Workbook

Sheet PI View Summary
B1: University of North Carolina at Charlotte | N1: Graduate Student Support | P1: Click button to show Cost Share Worksheet
C2: PI | E2: ='Budget Worksheet'!D2 -> PI - NAME | N2: Total Number of Students: | O2: =SUMIF('Budget Worksheet'!$C26:$J35,"Ph.D. Grad Student",'Budget Worksheet'!K26:K35)+SUMIF('Budget Worksheet'!$C26:$J35,"MS Grad Student",'Budget Worksheet'!K26:K35) -> 0
C3: Sponsor | E3: ='Budget Worksheet'!D3 -> 0 | F3: =IF('Budget Worksheet'!$K$2="Yes","Modular or R15 Budget","") ->  | N3: Total Stipend Amount: | O3: =SUMIF('Budget Worksheet'!$C26:$Q35,"Ph.D. Grad Student",'Budget Worksheet'!$Q30:$Q35)+SUMIF('Budget Worksheet'!$C26:$Q35,"MS Grad Student",'Budget Worksheet'!$Q30:$Q35) -> 0
C4: Project Start Date: | E4: ='Budget Worksheet'!I6 -> 2025-07-01 | N4: Total Fringe Benefits & Health Ins.: | O4: =SUMIF('Budget Worksheet'!$K27:$Q35,'Budget Worksheet'!K31,'Budget Worksheet'!Q27:Q35)+SUMIF('Budget Worksheet'!$K27:$Q35,'Budget Worksheet'!K32,'Budget Worksheet'!Q27:Q35) -> 0 | P4: Click button to hide Cost Share Worksheet
C5: Project End Date: | E5: ='Budget Worksheet'!J6 -> 2026-06-30 | N5: Total Tuition: | O5: =SUM('Budget Worksheet'!Q78:Q80) -> 0
N6: Total Amount: | O6: =SUM(O3:O5) -> 0
C7: Sponsor Year 1 | D7: Cost Share Year 1 | E7: Sponsor Year 2 | F7: Cost Share Year 2 | G7: Sponsor Year 3 | H7: Cost Share Year 3 | I7: Sponsor Year 4 | J7: Cost Share Year 4 | K7: Sponsor Year 5 | L7: Cost Share Year 5 | M7: Total | N7: Undergraduate Student Support
B8: Salaries and Wages | N8: Total Number of Students: | O8: =SUMIF('Budget Worksheet'!$C38:$J45,"Undergraduate Student",'Budget Worksheet'!$K38:$K45) -> 0
B9: Senior Personnel AY/CY Salary | C9: =SUMIF('Budget Worksheet'!$C12:C44,"Academic Year Salary",'Budget Worksheet'!L12:L44)+SUMIF('Budget Worksheet'!$C12:$C44,"Calendar Year Salary",'Budget Worksheet'!L12:L44) -> 0 | D9: =SUMIF('Cost Share Worksheet'!$C12:$C44,"Academic Year Salary",'Cost Share Worksheet'!L12:L44)+SUMIF('Cost Share Worksheet'!$C12:$C44,"Calendar Year Salary",'Cost Share Worksheet'!L12:L44) -> 0 | E9: =SUMIF('Budget Worksheet'!$C12:$C44,"Academic Year Salary",'Budget Worksheet'!M12:M44)+SUMIF('Budget Worksheet'!$C12:$C44,"Calendar Year Salary",'Budget Worksheet'!M12:M44) -> 0 | F9: =SUMIF('Cost Share Worksheet'!$C12:$C44,"Academic Year Salary",'Cost Share Worksheet'!M12:M44)+SUMIF('Cost Share Worksheet'!$C12:$C44,"Calendar Year Salary",'Cost Share Worksheet'!M12:M44) -> 0 | G9: =SUMIF('Budget Worksheet'!$C12:$C44,"Academic Year Salary",'Budget Worksheet'!N12:N44)+SUMIF('Budget Worksheet'!$C12:$C44,"Calendar Year Salary",'Budget Worksheet'!N12:N44) -> 0 | H9: =SUMIF('Cost Share Worksheet'!$C12:$C44,"Academic Year Salary",'Cost Share Worksheet'!N12:N44)+SUMIF('Cost Share Worksheet'!$C12:$C44,"Calendar Year Salary",'Cost Share Worksheet'!N12:N44) -> 0 | I9: =SUMIF('Budget Worksheet'!$C12:$C44,"Academic Year Salary",'Budget Worksheet'!O12:O44)+SUMIF('Budget Worksheet'!$C12:$C44,"Calendar Year Salary",'Budget Worksheet'!O12:O44) -> 0 | J9: =SUMIF('Cost Share Worksheet'!$C12:$C44,"Academic Year Salary",'Cost Share Worksheet'!O12:O44)+SUMIF('Cost Share Worksheet'!$C12:$C44,"Calendar Year Salary",'Cost Share Worksheet'!O12:O44) -> 0 | K9: =SUMIF('Budget Worksheet'!$C12:$C44,"Academic Year Salary",'Budget Worksheet'!$P12:$P44)+SUMIF('Budget Worksheet'!$C12:$C44,"Calendar Year Salary",'Budget Worksheet'!$P12:$P44) -> 0 | L9: =SUMIF('Cost Share Worksheet'!$C12:$C44,"Academic Year Salary",'Cost Share Worksheet'!P12:P44)+SUMIF('Cost Share Worksheet'!$C12:$C44,"Calendar Year Salary",'Cost Share Worksheet'!P12:P44) -> 0 | M9: =SUM(C9:L9) -> 0 | N9: Total Stipend Amount: | O9: =SUMIF('Budget Worksheet'!$C38:$Q45,"Undergraduate Student",'Budget Worksheet'!$Q42:Q45) -> 0
B10: Senior Personnel Summer Salary | C10: =SUMIF('Budget Worksheet'!$C12:$C44,"Summer Salary",'Budget Worksheet'!L12:L44) -> 0 | D10: =SUMIF('Cost Share Worksheet'!$C12:$C44,"Summer Salary",'Cost Share Worksheet'!L12:L44) -> 0 | E10: =SUMIF('Budget Worksheet'!$C12:$C44,"Summer Salary",'Budget Worksheet'!M12:M44) -> 0 | F10: =SUMIF('Cost Share Worksheet'!$C12:$C44,"Summer Salary",'Cost Share Worksheet'!M12:M44) -> 0 | G10: =SUMIF('Budget Worksheet'!$C12:$C44,"Summer Salary",'Budget Worksheet'!N12:N44) -> 0 | H10: =SUMIF('Cost Share Worksheet'!$C12:$C44,"Summer Salary",'Cost Share Worksheet'!N12:N44) -> 0 | I10: =SUMIF('Budget Worksheet'!$C12:$C44,"Summer Salary",'Budget Worksheet'!O12:O44) -> 0 | J10: =SUMIF('Cost Share Worksheet'!$C12:$C44,"Summer Salary",'Cost Share Worksheet'!O12:O44) -> 0 | K10: =SUMIF('Budget Worksheet'!$C12:$C44,"Summer Salary",'Budget Worksheet'!$P12:$P44) -> 0 | L10: =SUMIF('Cost Share Worksheet'!$C12:$C44,"Summer Salary",'Cost Share Worksheet'!P12:P44) -> 0 | M10: =SUM(C10:L10) -> 0 | N10: Total Fringe Benefits & Health Ins.: | O10: =SUMIF('Budget Worksheet'!$K39:$Q45,'Budget Worksheet'!K43,'Budget Worksheet'!Q39:Q45) -> 0
B11: Post Doctoral Associates | C11: =SUMIF('Budget Worksheet'!$C20:$C44,"Post Doctoral Associate",'Budget Worksheet'!L20:L44) -> 0 | D11: =SUMIF('Cost Share Worksheet'!$C20:$C44,"Post Doctoral Associate",'Cost Share Worksheet'!L20:L44) -> 0 | E11: =SUMIF('Budget Worksheet'!$C20:$C44,"Post Doctoral Associate",'Budget Worksheet'!M20:M44) -> 0 | F11: =SUMIF('Cost Share Worksheet'!$C20:$C44,"Post Doctoral Associate",'Cost Share Worksheet'!M20:M44) -> 0 | G11: =SUMIF('Budget Worksheet'!$C20:$C44,"Post Doctoral Associate",'Budget Worksheet'!N20:N44) -> 0 | H11: =SUMIF('Cost Share Worksheet'!$C20:$C44,"Post Doctoral Associate",'Cost Share Worksheet'!N20:N44) -> 0 | I11: =SUMIF('Budget Worksheet'!$C20:$C44,"Post Doctoral Associate",'Budget Worksheet'!O20:O44) -> 0 | J11: =SUMIF('Cost Share Worksheet'!$C20:$C44,"Post Doctoral Associate",'Cost Share Worksheet'!O20:O44) -> 0 | K11: =SUMIF('Budget Worksheet'!$C20:$C44,"Post Doctoral Associate",'Budget Worksheet'!P20:P44) -> 0 | L11: =SUMIF('Cost Share Worksheet'!$C20:$C44,"Post Doctoral Associate",'Cost Share Worksheet'!P20:P44) -> 0 | M11: =SUM(C11:L11) -> 0 | N11: Total Amount: | O11: =SUM(O9:O10) -> 0
B12: Graduate Students | C12: =SUMIF('Budget Worksheet'!$C26:$C45,"Ph.D. Grad Student",'Budget Worksheet'!L30)+SUMIF('Budget Worksheet'!$C26:C44,"MS Grad Student",'Budget Worksheet'!L30) -> 0 | D12: =SUMIF('Cost Share Worksheet'!$C26:$C45,"Ph.D. Grad Student",'Cost Share Worksheet'!L30)+SUMIF('Cost Share Worksheet'!$C26:$C45,"MS Grad Student",'Cost Share Worksheet'!L30) -> 0 | E12: =SUMIF('Budget Worksheet'!$C26:$C45,"Ph.D. Grad Student",'Budget Worksheet'!M30)+SUMIF('Budget Worksheet'!$C26:$C44,"MS Grad Student",'Budget Worksheet'!M30) -> 0 | F12: =SUMIF('Cost Share Worksheet'!$C26:$C45,"Ph.D. Grad Student",'Cost Share Worksheet'!M30)+SUMIF('Cost Share Worksheet'!$C26:$C45,"MS Grad Student",'Cost Share Worksheet'!M30) -> 0 | G12: =SUMIF('Budget Worksheet'!$C26:$C45,"Ph.D. Grad Student",'Budget Worksheet'!N30)+SUMIF('Budget Worksheet'!$C26:$C44,"MS Grad Student",'Budget Worksheet'!N30) -> 0 | H12: =SUMIF('Cost Share Worksheet'!$C26:$C45,"Ph.D. Grad Student",'Cost Share Worksheet'!N30)+SUMIF('Cost Share Worksheet'!$C26:$C45,"MS Grad Student",'Cost Share Worksheet'!N30) -> 0 | I12: =SUMIF('Budget Worksheet'!$C26:$C45,"Ph.D. Grad Student",'Budget Worksheet'!O30)+SUMIF('Budget Worksheet'!$C26:$C44,"MS Grad Student",'Budget Worksheet'!O30) -> 0 | J12: =SUMIF('Cost Share Worksheet'!$C26:$C45,"Ph.D. Grad Student",'Cost Share Worksheet'!O30)+SUMIF('Cost Share Worksheet'!$C26:$C45,"MS Grad Student",'Cost Share Worksheet'!O30) -> 0 | K12: =SUMIF('Budget Worksheet'!$C26:$C45,"Ph.D. Grad Student",'Budget Worksheet'!P30)+SUMIF('Budget Worksheet'!$C26:$C44,"MS Grad Student",'Budget Worksheet'!P30) -> 0 | L12: =SUMIF('Cost Share Worksheet'!$C26:$C45,"Ph.D. Grad Student",'Cost Share Worksheet'!P30)+SUMIF('Cost Share Worksheet'!$C26:$C45,"MS Grad Student",'Cost Share Worksheet'!P30) -> 0 | M12: 0
B13: Undergraduate Students | C13: =SUMIF('Budget Worksheet'!$C38:$C45,"Undergraduate Student",'Budget Worksheet'!L42) -> 0 | D13: =SUMIF('Cost Share Worksheet'!$C38:$C45,"Undergraduate Student",'Cost Share Worksheet'!L42) -> 0 | E13: =SUMIF('Budget Worksheet'!$C38:$C45,"Undergraduate Student",'Budget Worksheet'!M42) -> 0 | F13: =SUMIF('Cost Share Worksheet'!$C38:$C45,"Undergraduate Student",'Cost Share Worksheet'!M42) -> 0 | G13: =SUMIF('Budget Worksheet'!$C38:$C45,"Undergraduate Student",'Budget Worksheet'!N42) -> 0 | H13: =SUMIF('Cost Share Worksheet'!$C38:$C45,"Undergraduate Student",'Cost Share Worksheet'!N42) -> 0 | I13: =SUMIF('Budget Worksheet'!$C38:$C45,"Undergraduate Student",'Budget Worksheet'!O42) -> 0 | J13: =SUMIF('Cost Share Worksheet'!$C38:$C45,"Undergraduate Student",'Cost Share Worksheet'!O42) -> 0 | K13: =SUMIF('Budget Worksheet'!$C38:$C45,"Undergraduate Student",'Budget Worksheet'!P42) -> 0 | L13: =SUMIF('Cost Share Worksheet'!$C38:$C45,"Undergraduate Student",'Cost Share Worksheet'!P42) -> 0 | M13: 0
B14: Other Personnel | C14: =SUMIF('Budget Worksheet'!$C20:$C44,"SHRA Staff",'Budget Worksheet'!L20)+SUMIF('Budget Worksheet'!$C20:$C44,"EHRA Staff",'Budget Worksheet'!L20)+SUMIF('Budget Worksheet'!$C20:$C44,"Non-Reg/Temp Staff",'Budget Worksheet'!L20)+SUMIF('Budget Worksheet'!$C20:$C44,"Principal Investigator",'Budget Worksheet'!L20) -> 0 | D14: =SUMIF('Cost Share Worksheet'!$C20:$C44,"SHRA Staff",'Cost Share Worksheet'!L20)+SUMIF('Cost Share Worksheet'!$C20:$C44,"EHRA Staff",'Cost Share Worksheet'!L20)+SUMIF('Cost Share Worksheet'!$C20:$C44,"Non-Reg/Temp Staff",'Cost Share Worksheet'!L20)+SUMIF('Cost Share Worksheet'!$C20:$C44,"Principal Investigator",'Cost Share Worksheet'!L20) -> 0 | E14: =SUMIF('Budget Worksheet'!$C20:$C44,"SHRA Staff",'Budget Worksheet'!M20)+SUMIF('Budget Worksheet'!$C20:$C44,"EHRA Staff",'Budget Worksheet'!M20)+SUMIF('Budget Worksheet'!$C20:$C44,"Non-Reg/Temp Staff",'Budget Worksheet'!M20)+SUMIF('Budget Worksheet'!$C20:$C44,"Principal Investigator",'Budget Worksheet'!M20) -> 0 | F14: =SUMIF('Cost Share Worksheet'!$C20:$C44,"SHRA Staff",'Cost Share Worksheet'!M20)+SUMIF('Cost Share Worksheet'!$C20:$C44,"EHRA Staff",'Cost Share Worksheet'!M20)+SUMIF('Cost Share Worksheet'!$C20:$C44,"Non-Reg/Temp Staff",'Cost Share Worksheet'!M20)+SUMIF('Cost Share Worksheet'!$C20:$C44,"Principal Investigator",'Cost Share Worksheet'!M20) -> 0 | G14: =SUMIF('Budget Worksheet'!$C20:$C44,"SHRA Staff",'Budget Worksheet'!N20)+SUMIF('Budget Worksheet'!$C20:$C44,"EHRA Staff",'Budget Worksheet'!N20)+SUMIF('Budget Worksheet'!$C20:$C44,"Non-Reg/Temp Staff",'Budget Worksheet'!N20)+SUMIF('Budget Worksheet'!$C20:$C44,"Principal Investigator",'Budget Worksheet'!N20) -> 0 | H14: =SUMIF('Cost Share Worksheet'!$C20:$C44,"SHRA Staff",'Cost Share Worksheet'!N20)+SUMIF('Cost Share Worksheet'!$C20:$C44,"EHRA Staff",'Cost Share Worksheet'!N20)+SUMIF('Cost Share Worksheet'!$C20:$C44,"Non-Reg/Temp Staff",'Cost Share Worksheet'!N20)+SUMIF('Cost Share Worksheet'!$C20:$C44,"Principal Investigator",'Cost Share Worksheet'!N20) -> 0 | I14: =SUMIF('Budget Worksheet'!$C20:$C44,"SHRA Staff",'Budget Worksheet'!O20)+SUMIF('Budget Worksheet'!$C20:$C44,"EHRA Staff",'Budget Worksheet'!O20)+SUMIF('Budget Worksheet'!$C20:$C44,"Non-Reg/Temp Staff",'Budget Worksheet'!O20)+SUMIF('Budget Worksheet'!$C20:$C44,"Principal Investigator",'Budget Worksheet'!O20) -> 0 | J14: =SUMIF('Cost Share Worksheet'!$C20:$C44,"SHRA Staff",'Cost Share Worksheet'!O20)+SUMIF('Cost Share Worksheet'!$C20:$C44,"EHRA Staff",'Cost Share Worksheet'!O20)+SUMIF('Cost Share Worksheet'!$C20:$C44,"Non-Reg/Temp Staff",'Cost Share Worksheet'!O20)+SUMIF('Cost Share Worksheet'!$C20:$C44,"Principal Investigator",'Cost Share Worksheet'!O20) -> 0 | K14: =SUMIF('Budget Worksheet'!$C20:$C44,"SHRA Staff",'Budget Worksheet'!P20)+SUMIF('Budget Worksheet'!$C20:$C44,"EHRA Staff",'Budget Worksheet'!P20)+SUMIF('Budget Worksheet'!$C20:$C44,"Non-Reg/Temp Staff",'Budget Worksheet'!P20)+SUMIF('Budget Worksheet'!$C20:$C44,"Principal Investigator",'Budget Worksheet'!P20) -> 0 | L14: =SUMIF('Cost Share Worksheet'!$C20:$C44,"SHRA Staff",'Cost Share Worksheet'!P20)+SUMIF('Cost Share Worksheet'!$C20:$C44,"EHRA Staff",'Cost Share Worksheet'!P20)+SUMIF('Cost Share Worksheet'!$C20:$C44,"Non-Reg/Temp Staff",'Cost Share Worksheet'!P20)+SUMIF('Cost Share Worksheet'!$C20:$C44,"Principal Investigator",'Cost Share Worksheet'!P20) -> 0 | M14: 0
B15: Fringe Benefits | C15: ='Budget Worksheet'!L49 -> 0 | D15: ='Cost Share Worksheet'!L49 -> 0 | E15: ='Budget Worksheet'!M49 -> 0 | F15: ='Cost Share Worksheet'!M49 -> 0 | G15: ='Budget Worksheet'!N49 -> 0 | H15: ='Cost Share Worksheet'!N49 -> 0 | I15: ='Budget Worksheet'!O49 -> 0 | J15: ='Cost Share Worksheet'!O49 -> 0 | K15: ='Budget Worksheet'!P49 -> 0 | L15: ='Cost Share Worksheet'!P49 -> 0 | M15: 0
B16: Equipment | C16: =SUM('Budget Worksheet'!L53:L54) -> 0 | D16: =SUM('Cost Share Worksheet'!L53:L54) -> 0 | E16: =SUM('Budget Worksheet'!M53:M54) -> 0 | F16: =SUM('Cost Share Worksheet'!M53:M54) -> 0 | G16: =SUM('Budget Worksheet'!N53:N54) -> 0 | H16: =SUM('Cost Share Worksheet'!N53:N54) -> 0 | I16: =SUM('Budget Worksheet'!O53:O54) -> 0 | J16: =SUM('Cost Share Worksheet'!O53:O54) -> 0 | K16: =SUM('Budget Worksheet'!P53:P54) -> 0 | L16: =SUM('Cost Share Worksheet'!P53:P54) -> 0 | M16: 0
B17: Travel
B18: Domestic | C18: ='Budget Worksheet'!L56 -> 0 | D18: ='Cost Share Worksheet'!L56 -> 0 | E18: ='Budget Worksheet'!M56 -> 0 | F18: ='Cost Share Worksheet'!M56 -> 0 | G18: ='Budget Worksheet'!N56 -> 0 | H18: ='Cost Share Worksheet'!N56 -> 0 | I18: ='Budget Worksheet'!O56 -> 0 | J18: ='Cost Share Worksheet'!O56 -> 0 | K18: ='Budget Worksheet'!P56 -> 0 | L18: ='Cost Share Worksheet'!P56 -> 0 | M18: =SUM(C18:L18) -> 0
B19: Foreign | C19: ='Budget Worksheet'!L57 -> 0 | D19: ='Cost Share Worksheet'!L57 -> 0 | E19: ='Budget Worksheet'!M57 -> 0 | F19: ='Cost Share Worksheet'!M57 -> 0 | G19: ='Budget Worksheet'!N57 -> 0 | H19: ='Cost Share Worksheet'!N57 -> 0 | I19: ='Budget Worksheet'!O57 -> 0 | J19: ='Cost Share Worksheet'!O57 -> 0 | K19: ='Budget Worksheet'!P57 -> 0 | L19: ='Cost Share Worksheet'!P57 -> 0 | M19: =SUM(C19:L19) -> 0
B20: Participant/Trainee Support Costs | C20: =SUM('Budget Worksheet'!L59:L67) -> 0 | D20: =SUM('Cost Share Worksheet'!L59:L67) -> 0 | E20: =SUM('Budget Worksheet'!M59:M67) -> 0 | F20: =SUM('Cost Share Worksheet'!M59:M67) -> 0 | G20: =SUM('Budget Worksheet'!N59:N67) -> 0 | H20: =SUM('Cost Share Worksheet'!N59:N67) -> 0 | I20: =SUM('Budget Worksheet'!O59:O67) -> 0 | J20: =SUM('Cost Share Worksheet'!O59:O67) -> 0 | K20: =SUM('Budget Worksheet'!P59:P67) -> 0 | L20: =SUM('Cost Share Worksheet'!P59:P67) -> 0 | M20: =SUM(C20:L20) -> 0
B21: Other Direct Costs
B22: Materials and Supplies | C22: ='Budget Worksheet'!L69 -> 0 | D22: ='Cost Share Worksheet'!L69 -> 0 | E22: ='Budget Worksheet'!M69 -> 0 | F22: ='Cost Share Worksheet'!M69 -> 0 | G22: ='Budget Worksheet'!N69 -> 0 | H22: ='Cost Share Worksheet'!N69 -> 0 | I22: ='Budget Worksheet'!O69 -> 0 | J22: ='Cost Share Worksheet'!O69 -> 0 | K22: ='Budget Worksheet'!P69 -> 0 | L22: ='Cost Share Worksheet'!P69 -> 0 | M22: =SUM(C22:L22) -> 0
B23: Publication Costs | C23: ='Budget Worksheet'!L70 -> 0 | D23: ='Cost Share Worksheet'!L70 -> 0 | E23: ='Budget Worksheet'!M70 -> 0 | F23: ='Cost Share Worksheet'!M70 -> 0 | G23: ='Budget Worksheet'!N70 -> 0 | H23: ='Cost Share Worksheet'!N70 -> 0 | I23: ='Budget Worksheet'!O70 -> 0 | J23: ='Cost Share Worksheet'!O70 -> 0 | K23: ='Budget Worksheet'!P70 -> 0 | L23: ='Cost Share Worksheet'!P70 -> 0 | M23: =SUM(C23:L23) -> 0
B24: Consultant Services | C24: ='Budget Worksheet'!L71 -> 0 | D24: ='Cost Share Worksheet'!L71 -> 0 | E24: ='Budget Worksheet'!M71 -> 0 | F24: ='Cost Share Worksheet'!M71 -> 0 | G24: ='Budget Worksheet'!N71 -> 0 | H24: ='Cost Share Worksheet'!N71 -> 0 | I24: ='Budget Worksheet'!O71 -> 0 | J24: ='Cost Share Worksheet'!O71 -> 0 | K24: ='Budget Worksheet'!P71 -> 0 | L24: ='Cost Share Worksheet'!P71 -> 0 | M24: 0
B25: ADP/Computer Services | C25: ='Budget Worksheet'!L72 -> 0 | D25: ='Cost Share Worksheet'!L72 -> 0 | E25: ='Budget Worksheet'!M72 -> 0 | F25: ='Cost Share Worksheet'!M72 -> 0 | G25: ='Budget Worksheet'!N72 -> 0 | H25: ='Cost Share Worksheet'!N72 -> 0 | I25: ='Budget Worksheet'!O72 -> 0 | J25: ='Cost Share Worksheet'!O72 -> 0 | K25: ='Budget Worksheet'!P72 -> 0 | L25: ='Cost Share Worksheet'!P72 -> 0 | M25: 0
B26: Subawards/Consortium/Contractual Costs | C26: =SUM('Budget Worksheet'!L74:L75) -> 0 | D26: =SUM('Cost Share Worksheet'!L74:L75) -> 0 | E26: =SUM('Budget Worksheet'!M74:M75) -> 0 | F26: =SUM('Cost Share Worksheet'!M74:M75) -> 0 | G26: =SUM('Budget Worksheet'!N74:N75) -> 0 | H26: =SUM('Cost Share Worksheet'!N74:N75) -> 0 | I26: =SUM('Budget Worksheet'!O74:O75) -> 0 | J26: =SUM('Cost Share Worksheet'!O74:O75) -> 0 | K26: =SUM('Budget Worksheet'!P74:P75) -> 0 | L26: =SUM('Cost Share Worksheet'!P74:P75) -> 0 | M26: 0
B27: Facility or Equipment Rental/User Fees | C27: ='Budget Worksheet'!L76 -> 0 | D27: ='Cost Share Worksheet'!L76 -> 0 | E27: ='Budget Worksheet'!M76 -> 0 | F27: ='Cost Share Worksheet'!M76 -> 0 | G27: ='Budget Worksheet'!N76 -> 0 | H27: ='Cost Share Worksheet'!N76 -> 0 | I27: ='Budget Worksheet'!O76 -> 0 | J27: ='Cost Share Worksheet'!O76 -> 0 | K27: ='Budget Worksheet'!P76 -> 0 | L27: ='Cost Share Worksheet'!P76 -> 0 | M27: 0
B28: Alterations and Renovations | C28: ='Budget Worksheet'!L77 -> 0 | D28: ='Cost Share Worksheet'!L77 -> 0 | E28: ='Budget Worksheet'!M77 -> 0 | F28: ='Cost Share Worksheet'!M77 -> 0 | G28: ='Budget Worksheet'!N77 -> 0 | H28: ='Cost Share Worksheet'!N77 -> 0 | I28: ='Budget Worksheet'!O77 -> 0 | J28: ='Cost Share Worksheet'!O77 -> 0 | K28: ='Budget Worksheet'!P77 -> 0 | L28: ='Cost Share Worksheet'!P77 -> 0 | M28: 0
B29: Other Direct | C29: =SUM('Budget Worksheet'!L78:L90) -> 0 | D29: =SUM('Cost Share Worksheet'!L78:L90) -> 0 | E29: =SUM('Budget Worksheet'!M78:M90) -> 0 | F29: =SUM('Cost Share Worksheet'!M78:M90) -> 0 | G29: =SUM('Budget Worksheet'!N78:N90) -> 0 | H29: =SUM('Cost Share Worksheet'!N78:N90) -> 0 | I29: =SUM('Budget Worksheet'!O78:O90) -> 0 | J29: =SUM('Cost Share Worksheet'!O78:O90) -> 0 | K29: =SUM('Budget Worksheet'!P78:P90) -> 0 | L29: =SUM('Cost Share Worksheet'!P78:P90) -> 0 | M29: 0
B30: Total Direct Costs | C30: =SUM(C9:C29) -> 0 | D30: =SUM(D9:D29) -> 0 | E30: =SUM(E9:E29) -> 0 | F30: =SUM(F9:F29) -> 0 | G30: 0 | H30: =SUM(H9:H29) -> 0 | I30: 0 | J30: =SUM(J9:J29) -> 0 | K30: 0 | L30: =SUM(L9:L29) -> 0 | M30: 0
B31: MTDC Base | C31: ='Budget Worksheet'!L105 -> 0 | D31: ='Cost Share Worksheet'!L101 -> 0 | E31: ='Budget Worksheet'!M105 -> 0 | F31: ='Cost Share Worksheet'!M101 -> 0 | G31: ='Budget Worksheet'!N105 -> 0 | H31: ='Cost Share Worksheet'!N101 -> 0 | I31: ='Budget Worksheet'!O105 -> 0 | J31: ='Cost Share Worksheet'!O101 -> 0 | K31: ='Budget Worksheet'!P105 -> 0 | L31: ='Cost Share Worksheet'!P101 -> 0 | M31: 0
B32: Indirect Costs | C32: ='Budget Worksheet'!L101 -> 0 | D32: ='Cost Share Worksheet'!L97 -> 0 | E32: ='Budget Worksheet'!M101 -> 0 | F32: ='Cost Share Worksheet'!M97 -> 0 | G32: ='Budget Worksheet'!N101 -> 0 | H32: ='Cost Share Worksheet'!N97 -> 0 | I32: ='Budget Worksheet'!O101 -> 0 | J32: ='Cost Share Worksheet'!O97 -> 0 | K32: ='Budget Worksheet'!P101 -> 0 | L32: ='Cost Share Worksheet'!P97 -> 0 | M32: 0 | N32: Sponsor Total Costs | O32: =C33+E33+G33+I33+K33 -> 0
B33: Total Direct and Indirect Costs | C33: =C30+C32 -> 0 | D33: =D30+D32 -> 0 | E33: 0 | F33: =F30+F32 -> 0 | G33: 0 | H33: =H30+H32 -> 0 | I33: 0 | J33: 0 | K33: 0 | L33: =L30+L32 -> 0 | M33: 0 | N33: UNC Charlotte Total Cost Share | O33: =D33+F33+H33+J33+L33 -> 0
B34: Modular Total Direct Costs Max per year | C34: ='Budget Worksheet'!L95 -> 0 | E34: ='Budget Worksheet'!M95 -> 0 | G34: ='Budget Worksheet'!N95 -> 0 | I34: ='Budget Worksheet'!O95 -> 0 | K34: ='Budget Worksheet'!P95 -> 0 | M34: ='Budget Worksheet'!Q95 -> 0
B35: Modular Total Direct Costs | C35: ='Budget Worksheet'!L96 -> 0 | E35: ='Budget Worksheet'!M96 -> 0 | G35: ='Budget Worksheet'!N96 -> 0 | I35: ='Budget Worksheet'!O96 -> 0 | K35: ='Budget Worksheet'!P96 -> 0 | M35: ='Budget Worksheet'!Q96 -> 0
B36: Max TDC and Module TDC Difference → | C36: =C34-C35 -> 0 | E36: =E34-E35 -> 0 | G36: =G34-G35 -> 0 | I36: =I34-I35 -> 0 | K36: =K34-K35 -> 0 | M36: =IFERROR(M34-M35,"OVER") -> 0
C37: =IF(AND($F$3="Modular Budget",C34<C35),"OVER","") ->  | E37: =IF(AND($F$3="Modular Budget",E34<E35),"OVER","") ->  | G37: =IF(AND($F$3="Modular Budget",G34<G35),"OVER","") ->  | I37: =IF(AND($F$3="Modular Budget",I34<I35),"OVER","") ->  | K37: =IF(AND($F$3="Modular Budget",K34<K35),"OVER","") ->  | M37: =IF(AND($F$3="Modular Budget",M34<M35),"OVER","") -> 

Sheet Budget Worksheet
C1: Budget Worksheet | D1: IPF 2025-0000 | E1: *Enter/select budget information in blue cells only | J1: HHS/NIH Salary Cap? | K1: NIH Modular/ R15 Budget? | L1: If Yes, select NIH Mechanism | M1: For R15, R21, R34 (Only) | N1: NIH Max Years = | O1: =IFERROR(VLOOKUP($L$2,'Look ups'!$B$38:$I$42,2,FALSE),0) -> 3 | P1: NIH Max TDC = | Q1: =IFERROR(VLOOKUP($L$2,'Look ups'!$B$38:$I$42,8,FALSE),0) -> 375000
C2: Principal Investigator: | D2: PI - NAME | J2: No | K2: No | L2: R15 | M2: Click Here | O2: Total Direct & | P2: Indirect Costs | Q2: =SUM(L103:P103) -> 0
C3: Sponsor: | I3: Project Start Date | J3: Project End Date | K3: Pre Escalate Key Personnel? | L3: Esc Factor Key Personnel | M3: Pre Escalate Other Personnel? | N3: Esc Factor Other Personnel | O3: Pre Escalate Students? | P3: Esc Factor Students | Q3: Tuition & Fees Esc Factor
C4: Program:
C5: Pre Award Budget Administrator:
C6: Sponsor F&A Allowed? | D6: Yes | E6: Sponsor F&A rate: | H6: 0.54 | I6: 2025-07-01 | J6: 2026-06-30 | K6: Y | L6: 0.025 | M6: Y | N6: 0.025 | O6: N | P6: 0.03 | Q6: 0.03
A8: F & A? | B8: Appointment Months | C8: Categories | D8: Base Salary | F8: Effort Mos Yr 1 | G8: Effort Mos Yr 2 | H8: Effort Mos Yr 3 | I8: Effort Mos Yr 4 | J8: Effort Mos Yr 5 | K8: Fringe Factor | L8: Year 1 | M8: Year 2 | N8: Year 3 | O8: Year 4 | P8: Year 5 | Q8: Total
C9: A. Salaries and Wages
C10: Senior Personnel: | F10: Annual Base Salary below
A11: 1 | C11: =D2 -> PI - NAME | F11: =IF(K6="n",D11,D11*(1+$L$6)) -> 0 | G11: =F11*(1+$L$6) -> 0 | H11: =G11*(1+$L$6) -> 0 | I11: 0 | J11: 0
C12: =VLOOKUP($B11,'Look ups'!$A$18:$B$23,2,FALSE) -> - | K12: FF | L12: =IFERROR((IF(AND($J$2="Yes",($D11*(IF($K$6="Y",($L$6+1),1)))>((VLOOKUP($B11,'Look ups'!$A$26:$B$30,2,FALSE)))),(VLOOKUP($B11,'Look ups'!$A$26:$B$30,2,FALSE)/$B11)*F12,(($D11/$B11)*F12*(IF($K$6="Y",($L$6+1),1))))),0) -> 0 | M12: =IFERROR((IF(AND('Budget Worksheet'!$J$2="Yes",($D11*(IF($K$6="Y",($L$6+1)^2,($L$6+1)^1)))>((VLOOKUP($B11,'Look ups'!$A$26:$B$30,2,FALSE)))),(VLOOKUP($B11,'Look ups'!$A$26:$B$30,2,FALSE)/$B11)*G12,(($D11/$B11)*G12*(IF($K$6="Y",($L$6+1)^2,($L$6+1)^1))))),0) -> 0 | N12: =IFERROR((IF(AND('Budget Worksheet'!$J$2="Yes",($D11*(IF($K$6="Y",($L$6+1)^3,($L$6+1)^2)))>((VLOOKUP($B11,'Look ups'!$A$26:$B$30,2,FALSE)))),(VLOOKUP($B11,'Look ups'!$A$26:$B$30,2,FALSE)/$B11)*H12,(($D11/$B11)*H12*(IF($K$6="Y",($L$6+1)^3,($L$6+1)^2))))),0) -> 0 | O12: =IFERROR((IF(AND('Budget Worksheet'!$J$2="Yes",($D11*(IF($K$6="Y",($L$6+1)^4,($L$6+1)^3)))>((VLOOKUP($B11,'Look ups'!$A$26:$B$30,2,FALSE)))),(VLOOKUP($B11,'Look ups'!$A$26:$B$30,2,FALSE)/$B11)*I12,(($D11/$B11)*I12*(IF($K$6="Y",($L$6+1)^4,($L$6+1)^3))))),0) -> 0 | P12: =IFERROR((IF(AND('Budget Worksheet'!$J$2="Yes",($D11*(IF($K$6="Y",($L$6+1)^5,($L$6+1)^4)))>((VLOOKUP($B11,'Look ups'!$A$26:$B$30,2,FALSE)))),(VLOOKUP($B11,'Look ups'!$A$26:$B$30,2,FALSE)/$B11)*J12,(($D11/$B11)*J12*(IF($K$6="Y",($L$6+1)^5,($L$6+1)^4))))),0) -> 0 | Q12: =SUM(L12:P12) -> 0
C13: Summer Salary | K13: FF | L13: =IFERROR(IF($C12="Calendar Year Salary",0,IF(AND($J$2="Yes",($D11*IF($K$6="Y",$L$6+1,1))>((VLOOKUP($B11,'Look ups'!$A$26:$B$30,2,FALSE)))),(VLOOKUP($B11,'Look ups'!$A$26:$B$30,2,FALSE)/$B11)*F13,(($D11/$B11)*F13)*IF($K$6="Y",($L$6+1),1))),0) -> 0 | M13: =IFERROR(IF($C12="Calendar Year Salary",0,IF(AND($J$2="Yes",($D11*(IF($K$6="Y",($L$6+1)^2,($L$6+1)^1)))>((VLOOKUP($B11,'Look ups'!$A$26:$B$30,2,FALSE)))),(VLOOKUP($B11,'Look ups'!$A$26:$B$30,2,FALSE)/$B11)*G13,(($D11/$B11)*G13*(IF($K$6="Y",($L$6+1)^2,($L$6+1)^1))))),0) -> 0 | N13: =IFERROR(IF($C12="Calendar Year Salary",0,IF(AND($J$2="Yes",($D11*(IF($K$6="Y",($L$6+1)^3,($L$6+1)^2)))>((VLOOKUP($B11,'Look ups'!$A$26:$B$30,2,FALSE)))),(VLOOKUP($B11,'Look ups'!$A$26:$B$30,2,FALSE)/$B11)*H13,(($D11/$B11)*H13*(IF($K$6="Y",($L$6+1)^3,($L$6+1)^2))))),0) -> 0 | O13: =IFERROR(IF($C12="Calendar Year Salary",0,IF(AND($J$2="Yes",($D11*(IF($K$6="Y",($L$6+1)^4,($L$6+1)^3)))>((VLOOKUP($B11,'Look ups'!$A$26:$B$30,2,FALSE)))),(VLOOKUP($B11,'Look ups'!$A$26:$B$30,2,FALSE)/$B11)*I13,(($D11/$B11)*I13*(IF($K$6="Y",($L$6+1)^4,($L$6+1)^3))))),0) -> 0 | P13: =IFERROR(IF($C12="Calendar Year Salary",0,IF(AND('Budget Worksheet'!$J$2="Yes",($D11*(IF($K$6="Y",($L$6+1)^5,($L$6+1)^4)))>((VLOOKUP($B11,'Look ups'!$A$26:$B$30,2,FALSE)))),(VLOOKUP($B11,'Look ups'!$A$26:$B$30,2,FALSE)/$B11)*J13,(($D11/$B11)*J13*(IF($K$6="Y",($L$6+1)^5,($L$6+1)^4))))),0) -> 0 | Q13: =SUM(L13:P13) -> 0
J14: Salary Subtotal: | L14: =SUM(L12:L13) -> 0 | M14: =SUM(M12:M13) -> 0 | N14: 0 | O14: 0 | P14: 0 | Q14: =SUM(L14:P14) -> 0
C15: Total Hours: | D15: =SUM(F15:J15) -> 0 | F15: =IF($C12="Calendar Year Salary",(F12-0)*173.3333,SUM(F12:F13)*173.3333) -> 0 | G15: =IF($C12="Calendar Year Salary",(G12-0)*173.3333,SUM(G12:G13)*173.3333) -> 0 | H15: =IF($C12="Calendar Year Salary",(H12-0)*173.3333,SUM(H12:H13)*173.3333) -> 0 | I15: =IF($C12="Calendar Year Salary",(I12-0)*173.3333,SUM(I12:I13)*173.3333) -> 0 | J15: =IF($C12="Calendar Year Salary",(J12-0)*173.3333,SUM(J12:J13)*173.3333) -> 0 | K15: Fringe | L15: =IFERROR(VLOOKUP($K12,FF,3,FALSE)*(L12+L13),"") -> 0 | M15: =IFERROR(VLOOKUP($K12,FF,4,FALSE)*(M12+M13),"") -> 0 | N15: =IFERROR(VLOOKUP($K12,FF,5,FALSE)*(N12+N13),"") -> 0 | O15: =IFERROR(VLOOKUP($K12,FF,6,FALSE)*(O12+O13),"") -> 0 | P15: =IFERROR(VLOOKUP($K12,FF,7,FALSE)*(P12+P13),"") -> 0 | Q15: =SUM(L15:P15) -> 0
A17: Click button for additional Senior Personnel
C19: Other Personnel: | E19: # Pers
A20: 1 | C20: Select Position | K20: =IFERROR(VLOOKUP(C20,OPFringe,2,FALSE),"") ->  | L20: =IFERROR((($D20/$B20)*F20)*IF($M$6="Y",$N$6+1,1),0) -> 0 | M20: =IFERROR((($D20/$B20)*G20)*IF($M$6="Y",($N$6+1)^2,($N$6+1)),0) -> 0 | N20: =IFERROR((($D20/$B20)*H20)*IF($M$6="Y",($N$6+1)^3,($N$6+1)^2),0) -> 0 | O20: =IFERROR((($D20/$B20)*I20)*IF($M$6="Y",($N$6+1)^4,($N$6+1)^3),0) -> 0 | P20: =IFERROR((($D20/$B20)*J20)*IF($M$6="Y",($N$6+1)^5,($N$6+1)^4),0) -> 0 | Q20: =SUM(L20:P20) -> 0
C21: Total Hours: | D21: =SUM(F21:J21) -> 0 | F21: =F20*173.3333 -> 0 | G21: =G20*173.3333 -> 0 | H21: =H20*173.3333 -> 0 | I21: =I20*173.3333 -> 0 | J21: =J20*173.3333 -> 0 | K21: Fringe | L21: =IFERROR(L20*VLOOKUP($K20,FringeFactor,3,FALSE),0) -> 0 | M21: =IFERROR(M20*VLOOKUP($K20,FringeFactor,4,FALSE),0) -> 0 | N21: =IFERROR(N20*VLOOKUP($K20,FringeFactor,5,FALSE),0) -> 0 | O21: =IFERROR(O20*VLOOKUP($K20,FringeFactor,6,FALSE),0) -> 0 | P21: =IFERROR(P20*VLOOKUP($K20,FringeFactor,7,FALSE),0) -> 0 | Q21: =SUM(L21:P21) -> 0
A23: Click button for additional Other Personnel
C25: Student Section: | D25: Click here for Tuition Section | F25: Enter number of students/year below
A26: 1 | C26: Ph.D. Grad Student | K26: =MAX(F26:J26) -> 0
C27: GS Fall Semester | K27: =IFERROR(VLOOKUP($C27,OPFringe,2,FALSE),"") -> GS | L27: =IFERROR((($D26/$B26)*F27)*IF($O$6="Y",$P$6+1,1),0) -> 0 | M27: =IFERROR((($D26/$B26)*G27)*($P$6+1),0) -> 0 | N27: =IFERROR(((($D26/$B26)*H27)*($P$6+1)^2),0) -> 0 | O27: =IFERROR(((($D26/$B26)*I27)*($P$6+1)^3),0) -> 0 | P27: =IFERROR(((($D26/$B26)*J27)*($P$6+1)^4),0) -> 0 | Q27: =SUM(L27:P27) -> 0
C28: GS Spring Semester | D28: Enter effort here: | K28: =IFERROR(VLOOKUP(C28,OPFringe,2,FALSE),"") -> GS | L28: =IFERROR((($D26/$B26)*F28)*IF($O$6="Y",$P$6+1,1),0) -> 0 | M28: =IFERROR((($D26/$B26)*G28)*($P$6+1),0) -> 0 | N28: =IFERROR(((($D26/$B26)*H28)*($P$6+1)^2),0) -> 0 | O28: =IFERROR(((($D26/$B26)*I28)*($P$6+1)^3),0) -> 0 | P28: =IFERROR(((($D26/$B26)*J28)*($P$6+1)^4),0) -> 0 | Q28: =SUM(L28:P28) -> 0
B29: (20 hrs./week FT) | C29: GS Summer | K29: =IFERROR(VLOOKUP(C29,OPFringe,2,FALSE),"") -> GSS | L29: =IFERROR((($D26/$B26)*F29)*IF($O$6="Y",$P$6+1,1),0) -> 0 | M29: =IFERROR((($D26/$B26)*G29)*($P$6+1),0) -> 0 | N29: =IFERROR(((($D26/$B26)*H29)*($P$6+1)^2),0) -> 0 | O29: =IFERROR(((($D26/$B26)*I29)*($P$6+1)^3),0) -> 0 | P29: =IFERROR(((($D26/$B26)*J29)*($P$6+1)^4),0) -> 0 | Q29: =SUM(L29:P29) -> 0
C30: Total Effort Months | F30: =SUM(F27:F29) -> 0 | G30: =SUM(G27:G29) -> 0 | H30: =SUM(H27:H29) -> 0 | I30: =SUM(I27:I29) -> 0 | J30: =SUM(J27:J29) -> 0 | L30: =SUM(L27:L29) -> 0 | M30: 0 | N30: 0 | O30: 0 | P30: 0 | Q30: 0
C31: Total Hours: | D31: =SUM(F31:J31) -> 0 | F31: =F30*(173.3333/2) -> 0 | G31: =G30*(173.3333/2) -> 0 | H31: 0 | I31: 0 | J31: 0 | K31: Fringe | L31: =IFERROR(SUM(L27*VLOOKUP($K27,FringeFactor,3,FALSE),L28*VLOOKUP($K28,FringeFactor,3,FALSE),L29*VLOOKUP($K29,FringeFactor,3,FALSE)),"") -> 0 | M31: =IFERROR(SUM(M27*VLOOKUP($K27,FringeFactor,3,FALSE),M28*VLOOKUP($K28,FringeFactor,3,FALSE),M29*VLOOKUP($K29,FringeFactor,3,FALSE)),"") -> 0 | N31: =IFERROR(SUM(N27*VLOOKUP($K27,FringeFactor,3,FALSE),N28*VLOOKUP($K28,FringeFactor,3,FALSE),N29*VLOOKUP($K29,FringeFactor,3,FALSE)),"") -> 0 | O31: =IFERROR(SUM(O27*VLOOKUP($K27,FringeFactor,3,FALSE),O28*VLOOKUP($K28,FringeFactor,3,FALSE),O29*VLOOKUP($K29,FringeFactor,3,FALSE)),"") -> 0 | P31: =IFERROR(SUM(P27*VLOOKUP($K27,FringeFactor,3,FALSE),P28*VLOOKUP($K28,FringeFactor,3,FALSE),P29*VLOOKUP($K29,FringeFactor,3,FALSE)),"") -> 0 | Q31: =SUM(L31:P31) -> 0
C32: Include GS Health Insurance Premium? | D32: Yes | K32: HIP | L32: =SUM(IF(AND($B26>0,$D32="Yes",F27>0),(HIP/2)*F26,0),IF(AND($B26>0,$D32="Yes",F28>0),(HIP/2)*F26,0)) -> 0 | M32: =SUM(IF(AND($B26>0,$D32="Yes",G27>0),(HIP/2)*G26*(1+HIPI),0),IF(AND($B26>0,$D32="Yes",G28>0),(HIP/2)*G26*(1+HIPI),0)) -> 0 | N32: =SUM(IF(AND($B26>0,$D32="Yes",H27>0),(HIP/2)*H26*(1+HIPI)^2,0),IF(AND($B26>0,$D32="Yes",H28>0),(HIP/2)*H26*(1+HIPI)^2,0)) -> 0 | O32: =SUM(IF(AND($B26>0,$D32="Yes",I27>0),(HIP/2)*I26*(1+HIPI)^3,0),IF(AND($B26>0,$D32="Yes",I28>0),(HIP/2)*I26*(1+HIPI)^3,0)) -> 0 | P32: =SUM(IF(AND($B26>0,$D32="Yes",J27>0),(HIP/2)*J26*(1+HIPI)^4,0),IF(AND($B26>0,$D32="Yes",J28>0),(HIP/2)*J26*(1+HIPI)^4,0)) -> 0 | Q32: =SUM(L32:P32) -> 0
J33: GS Fringe-HIP Total: | L33: =SUM(L31:L32) -> 0 | M33: =SUM(M31:M32) -> 0 | N33: 0 | O33: 0 | P33: 0 | Q33: =SUM(L33:P33) -> 0
A35: Click button for additional Grad Students
F37: Enter number of students/year below
A38: 1 | C38: Undergraduate Student | K38: =MAX(F38:J38) -> 0
C39: US Fall Semester | K39: =IFERROR(VLOOKUP(C39,OPFringe,2,FALSE),"") -> US | L39: =IFERROR((($D38/$B38)*F39)*IF($O$6="Y",$P$6+1,1),0) -> 0 | M39: =IFERROR((($D38/$B38)*G39)*($P$6+1),0) -> 0 | N39: =IFERROR(((($D38/$B38)*H39)*($P$6+1)^2),0) -> 0 | O39: =IFERROR(((($D38/$B38)*I39)*($P$6+1)^3),0) -> 0 | P39: =IFERROR(((($D38/$B38)*J39)*($P$6+1)^4),0) -> 0 | Q39: =SUM(L39:P39) -> 0
C40: US Spring Semester | D40: Enter effort here: | K40: =IFERROR(VLOOKUP(C40,OPFringe,2,FALSE),"") -> US | L40: =IFERROR((($D38/$B38)*F40)*IF($O$6="Y",$P$6+1,1),0) -> 0 | M40: =IFERROR((($D38/$B38)*G40)*($P$6+1),0) -> 0 | N40: =IFERROR(((($D38/$B38)*H40)*($P$6+1)^2),0) -> 0 | O40: =IFERROR(((($D38/$B38)*I40)*($P$6+1)^3),0) -> 0 | P40: =IFERROR(((($D38/$B38)*J40)*($P$6+1)^4),0) -> 0 | Q40: =SUM(L40:P40) -> 0
C41: US Summer | K41: =IFERROR(VLOOKUP(C41,OPFringe,2,FALSE),"") -> USS | L41: =IFERROR((($D38/$B38)*F41)*IF($O$6="Y",$P$6+1,1),0) -> 0 | M41: =IFERROR((($D38/$B38)*G41)*($P$6+1),0) -> 0 | N41: =IFERROR(((($D38/$B38)*H41)*($P$6+1)^2),0) -> 0 | O41: =IFERROR(((($D38/$B38)*I41)*($P$6+1)^3),0) -> 0 | P41: =IFERROR(((($D38/$B38)*J41)*($P$6+1)^4),0) -> 0 | Q41: =SUM(L41:P41) -> 0
C42: Total Effort Months | F42: =SUM(F39:F41) -> 0 | G42: =SUM(G39:G41) -> 0 | H42: =SUM(H39:H41) -> 0 | I42: =SUM(I39:I41) -> 0 | J42: =SUM(J39:J41) -> 0 | L42: =SUM(L39:L41) -> 0 | M42: =SUM(M39:M41) -> 0 | N42: =SUM(N39:N41) -> 0 | O42: =SUM(O39:O41) -> 0 | P42: =SUM(P39:P41) -> 0 | Q42: =SUM(L42:P42) -> 0
C43: Total Hours: | D43: =SUM(F43:J43) -> 0 | F43: =F42*(173.3333/2) -> 0 | G43: =G42*(173.3333/2) -> 0 | H43: 0 | I43: 0 | J43: 0 | K43: Fringe | L43: =IFERROR(SUM(L39*VLOOKUP($K39,FringeFactor,3,FALSE),L40*VLOOKUP($K40,FringeFactor,3,FALSE),L41*VLOOKUP($K41,FringeFactor,3,FALSE)),"") -> 0 | M43: =IFERROR(SUM(M39*VLOOKUP($K39,FringeFactor,3,FALSE),M40*VLOOKUP($K40,FringeFactor,3,FALSE),M41*VLOOKUP($K41,FringeFactor,3,FALSE)),"") -> 0 | N43: =IFERROR(SUM(N39*VLOOKUP($K39,FringeFactor,3,FALSE),N40*VLOOKUP($K40,FringeFactor,3,FALSE),N41*VLOOKUP($K41,FringeFactor,3,FALSE)),"") -> 0 | O43: =IFERROR(SUM(O39*VLOOKUP($K39,FringeFactor,3,FALSE),O40*VLOOKUP($K40,FringeFactor,3,FALSE),O41*VLOOKUP($K41,FringeFactor,3,FALSE)),"") -> 0 | P43: =IFERROR(SUM(P39*VLOOKUP($K39,FringeFactor,3,FALSE),P40*VLOOKUP($K40,FringeFactor,3,FALSE),P41*VLOOKUP($K41,FringeFactor,3,FALSE)),"") -> 0 | Q43: =SUM(L43:P43) -> 0
A45: Click button for additional Undergrad Students
A48: Y | C48: Total Salary and Wages | L48: =SUMIF($K$12:$L$47,"us",L$12:L$47)+SUMIF($K$12:$L$47,"uss",L$12:L$47)+SUMIF($K$12:$L$47,"ff",L$12:L$47)+SUMIF($K$12:$L$47,"gs",L$12:L$47)+SUMIF($K$12:$L$47,"gss",L$12:L$47)+SUMIF($K$12:$L$47,"ts",L$12:L$47)+SUMIF($K$12:$L$47,"shra",L$12:L$47)+SUMIF($K$12:$L$47,"ehra",L$12:L$47)+SUMIF($K$12:$L$47,"pd",L$12:L$47) -> 0 | M48: =SUMIF($K$12:$L$47,"us",M$12:M$47)+SUMIF($K$12:$L$47,"uss",M$12:M$47)+SUMIF($K$12:$L$47,"ff",M$12:M$47)+SUMIF($K$12:$L$47,"gs",M$12:M$47)+SUMIF($K$12:$L$47,"gss",M$12:M$47)+SUMIF($K$12:$L$47,"ts",M$12:M$47)+SUMIF($K$12:$L$47,"shra",M$12:M$47)+SUMIF($K$12:$L$47,"ehra",M$12:M$47)+SUMIF($K$12:$L$47,"pd",M$12:M$47) -> 0 | N48: =SUMIF($K$12:$L$47,"us",N$12:N$47)+SUMIF($K$12:$L$47,"uss",N$12:N$47)+SUMIF($K$12:$L$47,"ff",N$12:N$47)+SUMIF($K$12:$L$47,"gs",N$12:N$47)+SUMIF($K$12:$L$47,"gss",N$12:N$47)+SUMIF($K$12:$L$47,"ts",N$12:N$47)+SUMIF($K$12:$L$47,"shra",N$12:N$47)+SUMIF($K$12:$L$47,"ehra",N$12:N$47)+SUMIF($K$12:$L$47,"pd",N$12:N$47) -> 0 | O48: =SUMIF($K$12:$L$47,"us",O$12:O$47)+SUMIF($K$12:$L$47,"uss",O$12:O$47)+SUMIF($K$12:$L$47,"ff",O$12:O$47)+SUMIF($K$12:$L$47,"gs",O$12:O$47)+SUMIF($K$12:$L$47,"gss",O$12:O$47)+SUMIF($K$12:$L$47,"ts",O$12:O$47)+SUMIF($K$12:$L$47,"shra",O$12:O$47)+SUMIF($K$12:$L$47,"ehra",O$12:O$47)+SUMIF($K$12:$L$47,"pd",O$12:O$47) -> 0 | P48: =SUMIF($K$12:$L$47,"us",P$12:P$47)+SUMIF($K$12:$L$47,"uss",P$12:P$47)+SUMIF($K$12:$L$47,"ff",P$12:P$47)+SUMIF($K$12:$L$47,"gs",P$12:P$47)+SUMIF($K$12:$L$47,"gss",P$12:P$47)+SUMIF($K$12:$L$47,"ts",P$12:P$47)+SUMIF($K$12:$L$47,"shra",P$12:P$47)+SUMIF($K$12:$L$47,"ehra",P$12:P$47)+SUMIF($K$12:$L$47,"pd",P$12:P$47) -> 0 | Q48: =SUM(L48:P48) -> 0
A49: Y | C49: B. Fringes Benefits | L49: =SUMIF($K$12:$L$47,"Fringe",L$12:L$47)+SUMIF($K$12:$L$47,"HIP",L$12:L$47) -> 0 | M49: =SUMIF($K$12:$L$47,"Fringe",M$12:M$47)+SUMIF($K$12:$L$47,"HIP",M$12:M$47) -> 0 | N49: =SUMIF($K$12:$L$47,"Fringe",N$12:N$47)+SUMIF($K$12:$L$47,"HIP",N$12:N$47) -> 0 | O49: =SUMIF($K$12:$L$47,"Fringe",O$12:O$47)+SUMIF($K$12:$L$47,"HIP",O$12:O$47) -> 0 | P49: =SUMIF($K$12:$L$47,"Fringe",P$12:P$47)+SUMIF($K$12:$L$47,"HIP",P$12:P$47) -> 0 | Q49: =SUM(L49:P49) -> 0
C50: Total Salary and Fringes Benefits | L50: =SUM(L48:L49) -> 0 | M50: =SUM(M48:M49) -> 0 | N50: =SUM(N48:N49) -> 0 | O50: =SUM(O48:O49) -> 0 | P50: =SUM(P48:P49) -> 0 | Q50: =SUM(L50:P50) -> 0
C52: C. Equipment
A53: N | C53: Capital Equipment (purchased) | Q53: =SUM(L53:P53) -> 0
A54: N | C54: Capital Equipment (constructed) | Q54: =SUM(L54:P54) -> 0
C55: D. Travel
A56: Y | C56: Travel Domestic | Q56: 0
A57: Y | C57: Travel Foreign | Q57: 0
C58: E. Participant/Trainee Support Costs
A59: N | C59: Tuition/Fees/Health Insurance | Q59: 0
A60: N | C60: Stipends | Q60: 0
A61: N | C61: Participant Travel | Q61: 0
A62: N | C62: Travel Domestic | Q62: 0
A63: N | C63: Travel Foreign | Q63: 0
A64: N | C64: Subsistence | Q64: 0
A65: N | C65: Other | Q65: 0
A66: N | C66: Other | Q66: 0
A67: N | C67: Supplies | Q67: 0
C68: F. Other Direct Costs
A69: Y | C69: 1. Materials and Supplies | Q69: 0
A70: Y | C70: 2. Publication Costs | Q70: 0
A71: Y | C71: 3. Consultant Services | Q71: 0
A72: Y | C72: 4. ADP/Computer Services | Q72: 0
C73: 5. Subawards/Consortium/Contractual Costs
A74: Y | C74: Subcontracts < 25,000 | L74: =Subcontracts!C40 -> 0 | M74: =Subcontracts!D40 -> 0 | N74: =Subcontracts!E40 -> 0 | O74: =Subcontracts!F40 -> 0 | P74: =Subcontracts!G40 -> 0 | Q74: 0
A75: N | C75: Subcontracts> 25,000 | L75: =Subcontracts!C41 -> 0 | M75: =Subcontracts!D41 -> 0 | N75: =Subcontracts!E41 -> 0 | O75: =Subcontracts!F41 -> 0 | P75: =Subcontracts!G41 -> 0 | Q75: 0
A76: N | C76: 6. Facility Rental / NIC | Q76: 0
A77: Y | C77: 7. Repair & Maint - Equipment | Q77: 0
A78: Y | C78: 8. Other Direct | E78: Enter College/Program (Optional) | I78: Click for Student Section
A79: N | B79: 1 | C79: Tuition Only (In-state) | L79: =($D79/9)*SUM(F27:F28) -> 0 | M79: =(($D79/9)*($Q$6+1))*SUM(G27:G28) -> 0 | N79: =(($D79/9)*($Q$6+1)^2)*SUM(H27:H28) -> 0 | O79: =(($D79/9)*($Q$6+1)^3)*SUM(I27:I28) -> 0 | P79: =(($D79/9)*($Q$6+1)^4)*SUM(J27:J28) -> 0 | Q79: =SUM(L79:P79) -> 0
A80: Click button for additional T&F line
A81: Y | B81: =IFERROR(VLOOKUP(C81,'Look ups'!$M$4:$N$42,2,FALSE),"") -> 0 | C81: - | Q81: 0
A82: Y | B82: =IFERROR(VLOOKUP(C82,'Look ups'!$M$4:$N$42,2,FALSE),"") -> 0 | C82: - | Q82: 0
A83: Y | B83: =IFERROR(VLOOKUP(C83,'Look ups'!$M$4:$N$42,2,FALSE),"") -> 0 | C83: - | Q83: =SUM(L83:P83) -> 0
A84: Y | B84: =IFERROR(VLOOKUP(C84,'Look ups'!$M$4:$N$42,2,FALSE),"") -> 0 | C84: - | Q84: =SUM(L84:P84) -> 0
A85: Y | B85: =IFERROR(VLOOKUP(C85,'Look ups'!$M$4:$N$42,2,FALSE),"") -> 0 | C85: - | Q85: 0
A86: Y | B86: =IFERROR(VLOOKUP(C86,'Look ups'!$M$4:$N$42,2,FALSE),"") -> 0 | C86: - | Q86: 0
A87: Y | B87: =IFERROR(VLOOKUP(C87,'Look ups'!$M$4:$N$42,2,FALSE),"") -> 0 | C87: - | Q87: 0
A88: Y | B88: =IFERROR(VLOOKUP(C88,'Look ups'!$M$4:$N$42,2,FALSE),"") -> 0 | C88: - | Q88: 0
A89: Y | B89: =IFERROR(VLOOKUP(C89,'Look ups'!$M$4:$N$42,2,FALSE),"") -> 0 | C89: - | Q89: 0
A90: Y | B90: =IFERROR(VLOOKUP(C90,'Look ups'!$M$4:$N$42,2,FALSE),"") -> 0 | C90: - | Q90: 0
C91: Total Non-personnel Costs | L91: =SUM(L53:L90) -> 0 | M91: 0 | N91: 0 | O91: 0 | P91: 0 | Q91: 0
C93: G. Total Direct Costs | L93: =SUM(L91,L50) -> 0 | M93: =SUM(M91,M50) -> 0 | N93: =SUM(N91,N50) -> 0 | O93: =SUM(O91,O50) -> 0 | P93: =SUM(P91,P50) -> 0 | Q93: =SUM(L93:P93) -> 0
C94: Amount Per Module (Increment) | D94: 25000 | F94: Enter Modules/year here | K94: Nearest Module (Roundup) → | L94: =CEILING(L96,'Look ups'!$B$35) -> 0 | M94: =CEILING(M96,'Look ups'!$B$35) -> 0 | N94: =CEILING(N96,'Look ups'!$B$35) -> 0 | O94: =CEILING(O96,'Look ups'!$B$35) -> 0 | P94: =CEILING(P96,'Look ups'!$B$35) -> 0
C95: G. Modular Total Direct Costs Max per year | L95: =IFERROR(IF($K$2="Yes",VLOOKUP($L$2,'Look ups'!$B$38:$I$42,3,FALSE),0),0) -> 0 | M95: =IFERROR(IF($K$2="Yes",VLOOKUP($L$2,'Look ups'!$B$38:$I$42,4,FALSE),0),0) -> 0 | N95: =IFERROR(IF($K$2="Yes",VLOOKUP($L$2,'Look ups'!$B$38:$I$42,5,FALSE),0),0) -> 0 | O95: =IFERROR(IF($K$2="Yes",VLOOKUP($L$2,'Look ups'!$B$38:$I$42,6,FALSE),0),0) -> 0 | P95: =IFERROR(IF($K$2="Yes",VLOOKUP($L$2,'Look ups'!$B$38:$I$42,7,FALSE),0),0) -> 0 | Q95: =IF(AND($K$2="Yes",SUM(L95:P95)>Q1),"OVER",SUM(L95:P95)) -> 0
C96: G. Modular Amount (Total Direct Costs - Subaward F&A) | L96: =SUM(L50,L91)-Subcontracts!D17 -> 0 | M96: =SUM(M50,M91)-Subcontracts!F17 -> 0 | N96: =SUM(N50,N91)-Subcontracts!H17 -> 0 | O96: =SUM(O50,O91)-Subcontracts!J17 -> 0 | P96: =SUM(P50,P91)-Subcontracts!L17 -> 0 | Q96: =SUM(L96:P96) -> 0
H97: Max TDC and Module TDC Difference → | L97: =L95-L96 -> 0 | M97: =M95-M96 -> 0 | N97: =N95-N96 -> 0 | O97: =O95-O96 -> 0 | P97: =P95-P96 -> 0 | Q97: =IFERROR(Q95-Q96,"OVER") -> 0
L98: =IF(AND($K$2="Yes",L95<L96),"OVER","") -> 
C99: H. Indirect Costs
C100: UNC Charlotte's Facilities and Administrative Costs (F&A) | E100: 0.54 | L100: =L105*$E$100 -> 0 | M100: =M105*$E$100 -> 0 | N100: =N105*$E$100 -> 0 | O100: =O105*$E$100 -> 0 | P100: =P105*$E$100 -> 0 | Q100: =SUM(L100:P100) -> 0
B101: 75010 | C101: Sponsor F&A Rate | E101: =IF(D6="No",0,H6) -> 0.54 | L101: =L105*$E$101 -> 0 | M101: =M105*$E$101 -> 0 | N101: =N105*$E$101 -> 0 | O101: =O105*$E$101 -> 0 | P101: =P105*$E$101 -> 0 | Q101: =SUM(L101:P101) -> 0
B102: Rounding Adjustment | C102: Rounding Adjustment | Q102: =SUM(L102:P102) -> 0
C103: I. Total Direct and Indirect Costs | L103: =L93+L101+L102 -> 0 | M103: =M93+M101+M102 -> 0 | N103: =N93+N101+N102 -> 0 | O103: =O93+O101+O102 -> 0 | P103: =P93+P101+P102 -> 0 | Q103: =SUM(L103:P103) -> 0
C105: MTDC Base | L105: =SUMIFS(L48:L90,$A48:$A90,"Y") -> 0 | M105: =SUMIFS(M48:M90,$A48:$A90,"Y") -> 0 | N105: =SUMIFS(N48:N90,$A48:$A90,"Y") -> 0 | O105: =SUMIFS(O48:O90,$A48:$A90,"Y") -> 0 | P105: =SUMIFS(P48:P90,$A48:$A90,"Y") -> 0 | Q105: =SUM(L105:P105) -> 0
C106: Non-MTDC Direct Costs | L106: =SUMIFS(L$48:L$90,$A48:$A90,"N") -> 0 | M106: =SUMIFS(M$48:M$90,$A48:$A90,"N") -> 0 | N106: =SUMIFS(N$48:N$90,$A48:$A90,"N") -> 0 | O106: =SUMIFS(O$48:O$90,$A48:$A90,"N") -> 0 | P106: =SUMIFS(P$48:P$90,$A48:$A90,"N") -> 0 | Q106: =SUM(L106:P106) -> 0
C108: Unrecovered F&A | L108: =L100-L101 -> 0 | M108: =M100-M101 -> 0 | N108: =N100-N101 -> 0 | O108: =O100-O101 -> 0 | P108: =P100-P101 -> 0 | Q108: =SUM(L108:P108) -> 0
C109: BUDGET COMMENTS

Sheet Subcontracts
B1: Subcontract Worksheet
B3: Subcontract F&A Costs only on first | C3: 25000
C5: Year 1 | E5: Year 2 | G5: Year 3 | I5: Year 4 | K5: Year 5 | N5: Annual Total Costs (Direct and Indirect/F&A)
B6: Subcontractor | C6: Direct Costs | D6: F&A Costs | E6: Direct Costs | F6: F&A Costs | G6: Direct Costs | H6: F&A Costs | I6: Direct Costs | J6: F&A Costs | K6: Direct Costs | L6: F&A Costs | N6: Year 1 | O6: Year 2 | P6: Year 3 | Q6: Year 4 | R6: Year 5 | S6: Total
A7: 1 | N7: =SUM(C7:D7) -> 0 | O7: =SUM(E7:F7) -> 0 | P7: =SUM(G7:H7) -> 0 | Q7: =SUM(I7:J7) -> 0 | R7: =SUM(K7:L7) -> 0 | S7: =SUM(N7:R7) -> 0
A8: 2 | N8: =SUM(C8:D8) -> 0 | O8: 0 | P8: 0 | Q8: 0 | R8: 0 | S8: =SUM(N8:R8) -> 0
A9: 3 | N9: 0 | O9: 0 | P9: 0 | Q9: 0 | R9: 0 | S9: 0
A10: 4 | N10: 0 | O10: 0 | P10: 0 | Q10: 0 | R10: 0 | S10: 0
A11: 5 | N11: 0 | O11: 0 | P11: 0 | Q11: 0 | R11: 0 | S11: 0
A12: 6 | N12: 0 | O12: 0 | P12: 0 | Q12: 0 | R12: 0 | S12: 0
A13: 7 | N13: 0 | O13: 0 | P13: 0 | Q13: 0 | R13: 0 | S13: 0
A14: 8 | N14: 0 | O14: 0 | P14: 0 | Q14: 0 | R14: 0 | S14: 0
A15: 9 | N15: 0 | O15: 0 | P15: 0 | Q15: 0 | R15: 0 | S15: 0
A16: 10 | N16: 0 | O16: 0 | P16: 0 | Q16: 0 | R16: 0 | S16: 0
B17: Total | C17: =SUM(C7:C16) -> 0 | D17: 0 | E17: 0 | F17: 0 | G17: 0 | H17: 0 | I17: 0 | J17: 0 | K17: 0 | L17: 0 | N17: =SUM(N7:N16) -> 0 | O17: 0 | P17: 0 | Q17: 0 | R17: 0 | S17: 0
C19: Year 1 | D19: Year 2 | E19: Year 3 | F19: Year 4 | G19: Year 5 | H19: Total
A20: 1 | B20: Subcontracts < 25,000 | C20: =IF(N7<=$C$3,N7,$C$3) -> 0 | D20: =IF(AND(N7+O7<=$C$3,C20<=$C$3),O7,$C$3-C20) -> 0 | E20: =IF(AND(N7+O7+P7<=$C$3,C20+D20<=$C$3),P7,$C$3-C20-D20) -> 0 | F20: =IF(AND(N7+O7+P7+Q7<=$C$3,C20+D20+E20<=$C$3),Q7,$C$3-C20-D20-E20) -> 0 | G20: =IF(AND(N7+O7+P7+Q7+R7<=$C$3,C20+D20+E20+F20<=$C$3),R7,$C$3-C20-D20-E20-F20) -> 0 | H20: =SUM(C20:G20) -> 0
B21: Subcontractor> 25,000 | C21: =IF(N7>$C$3,N7-$C$3,0) -> 0 | D21: =IF(AND(N7+O7<=$C$3,C21<=$C$3),0,O7-D20) -> 0 | E21: =IF(AND(N7+O7+P7<=$C$3,D21<=$C$3),0,P7-E20) -> 0 | F21: =IF(AND(N7+O7+P7+Q7<=$C$3,E21<=$C$3),0,Q7-F20) -> 0 | G21: =IF(AND(N7+O7+P7+Q7+R7<=$C$3,F21<=$C$3),0,R7-G20) -> 0 | H21: =SUM(C21:G21) -> 0
A22: 2 | B22: Subcontracts < 25,000 | C22: =IF(N8<=$C$3,N8,$C$3) -> 0 | D22: =IF(AND(N8+O8<=$C$3,C22<=$C$3),O8,$C$3-C22) -> 0 | E22: =IF(AND(N8+O8+P8<=$C$3,C22+D22<=$C$3),P8,$C$3-C22-D22) -> 0 | F22: =IF(AND(N8+O8+P8+Q8<=$C$3,C22+D22+E22<=$C$3),Q8,$C$3-C22-D22-E22) -> 0 | G22: =IF(AND(N8+O8+P8+Q8+R8<=$C$3,C22+D22+E22+F22<=$C$3),R8,$C$3-C22-D22-E22-F22) -> 0 | H22: =SUM(C22:G22) -> 0
B23: Subcontractor> 25,000 | C23: =IF(N8>$C$3,N8-$C$3,0) -> 0 | D23: =IF(AND(N8+O8<=$C$3,C23<=$C$3),0,O8-D22) -> 0 | E23: =IF(AND(N8+O8+P8<=$C$3,D23<=$C$3),0,P8-E22) -> 0 | F23: =IF(AND(N8+O8+P8+Q8<=$C$3,E23<=$C$3),0,Q8-F22) -> 0 | G23: =IF(AND(N8+O8+P8+Q8+R8<=$C$3,F23<=$C$3),0,R8-G22) -> 0 | H23: =SUM(C23:G23) -> 0
A24: 3 | B24: Subcontracts < 25,000 | C24: =IF(N9<=$C$3,N9,$C$3) -> 0 | D24: =IF(AND(N9+O9<=$C$3,C24<=$C$3),O9,$C$3-C24) -> 0 | E24: =IF(AND(N9+O9+P9<=$C$3,C24+D24<=$C$3),P9,$C$3-C24-D24) -> 0 | F24: =IF(AND(N9+O9+P9+Q9<=$C$3,C24+D24+E24<=$C$3),,$C$3-C24-D24-E24) -> 0 | G24: =IF(AND(N9+O9+P9+Q9+R9<=$C$3,C24+D24+E24+F24<=$C$3),R9,$C$3-C24-D24-E24-F24) -> 0 | H24: 0
B25: Subcontractor> 25,000 | C25: =IF(N9>$C$3,N9-$C$3,0) -> 0 | D25: =IF(AND(N9+O9<=$C$3,C25<=$C$3),0,O9-D24) -> 0 | E25: =IF(AND(N9+O9+P9<=$C$3,D25<=$C$3),0,P9-E24) -> 0 | F25: =IF(AND(N9+O9+P9+Q9<=$C$3,E25<=$C$3),0,Q9-F24) -> 0 | G25: =IF(AND(N9+O9+P9+Q9+R9<=$C$3,F25<=$C$3),0,R9-G24) -> 0 | H25: =SUM(C25:G25) -> 0
A26: 4 | B26: Subcontracts < 25,000 | C26: =IF(N10<=$C$3,N10,$C$3) -> 0 | D26: =IF(AND(N10+O10<=$C$3,C26<=$C$3),O10,$C$3-C26) -> 0 | E26: =IF(AND(N10+O10+P10<=$C$3,C26+D26<=$C$3),P10,$C$3-C26-D26) -> 0 | F26: =IF(AND(N10+O10+P10+Q10<=$C$3,C26+D26+E26<=$C$3),Q10,$C$3-C26-D26-E26) -> 0 | G26: =IF(AND(N10+O10+P10+Q10+R10<=$C$3,C26+D26+E26+F26<=$C$3),R10,$C$3-C26-D26-E26-F26) -> 0 | H26: 0
B27: Subcontractor> 25,000 | C27: =IF(N10>$C$3,N10-$C$3,0) -> 0 | D27: =IF(AND(N10+O10<=$C$3,C27<=$C$3),0,O10-D26) -> 0 | E27: =IF(AND(N10+O10+P10<=$C$3,D27<=$C$3),0,P10-E26) -> 0 | F27: =IF(AND(N10+O10+P10+Q10<=$C$3,E27<=$C$3),0,Q10-F26) -> 0 | G27: =IF(AND(N10+O10+P10+Q10+R10<=$C$3,F27<=$C$3),0,R10-G26) -> 0 | H27: =SUM(C27:G27) -> 0
A28: 5 | B28: Subcontracts < 25,000 | C28: =IF(N11<=$C$3,N11,$C$3) -> 0 | D28: =IF(AND(N11+O11<=$C$3,C28<=$C$3),O11,$C$3-C28) -> 0 | E28: =IF(AND(N11+O11+P11<=$C$3,C28+D28<=$C$3),P11,$C$3-C28-D28) -> 0 | F28: =IF(AND(N11+O11+P11+Q11<=$C$3,C28+D28+E28<=$C$3),Q11,$C$3-C28-D28-E28) -> 0 | G28: =IF(AND(N11+O11+P11+Q11+R11<=$C$3,C28+D28+E28+F28<=$C$3),R11,$C$3-C28-D28-E28-F28) -> 0 | H28: 0
B29: Subcontractor> 25,000 | C29: =IF(N11>$C$3,N11-$C$3,0) -> 0 | D29: =IF(AND(N11+O11<=$C$3,C29<=$C$3),0,O11-D28) -> 0 | E29: =IF(AND(N11+O11+P11<=$C$3,D29<=$C$3),0,P11-E28) -> 0 | F29: =IF(AND(N11+O11+P11+Q11<=$C$3,E29<=$C$3),0,Q11-F28) -> 0 | G29: =IF(AND(N11+O11+P11+Q11+R11<=$C$3,F29<=$C$3),0,R11-G28) -> 0 | H29: =SUM(C29:G29) -> 0
A30: 6 | B30: Subcontracts < 25,000 | C30: =IF(N12<=$C$3,N12,$C$3) -> 0 | D30: =IF(AND(N12+O12<=$C$3,C30<=$C$3),O12,$C$3-C30) -> 0 | E30: =IF(AND(N12+O12+P12<=$C$3,C30+D30<=$C$3),P12,$C$3-C30-D30) -> 0 | F30: =IF(AND(N12+O12+P12+Q12<=$C$3,C30+D30+E30<=$C$3),Q12,$C$3-C30-D30-E30) -> 0 | G30: =IF(AND(N12+O12+P12+Q12+R12<=$C$3,C30+D30+E30+F30<=$C$3),R12,$C$3-C30-D30-E30-F30) -> 0 | H30: 0
B31: Subcontractor> 25,000 | C31: =IF(N12>$C$3,N12-$C$3,0) -> 0 | D31: =IF(AND(N12+O12<=$C$3,C31<=$C$3),0,O12-D30) -> 0 | E31: =IF(AND(N12+O12+P12<=$C$3,D31<=$C$3),0,P12-E30) -> 0 | F31: =IF(AND(N12+O12+P12+Q12<=$C$3,E31<=$C$3),0,Q12-F30) -> 0 | G31: =IF(AND(N12+O12+P12+Q12+R12<=$C$3,F31<=$C$3),0,R12-G30) -> 0 | H31: =SUM(C31:G31) -> 0
A32: 7 | B32: Subcontracts < 25,000 | C32: =IF(N13<=$C$3,N13,$C$3) -> 0 | D32: =IF(AND(N13+O13<=$C$3,C32<=$C$3),O13,$C$3-C32) -> 0 | E32: =IF(AND(N13+O13+P13<=$C$3,C32+D32<=$C$3),P13,$C$3-C32-D32) -> 0 | F32: =IF(AND(N13+O13+P13+Q13<=$C$3,C32+D32+E32<=$C$3),Q13,$C$3-C32-D32-E32) -> 0 | G32: =IF(AND(N13+O13+P13+Q13+R13<=$C$3,C32+D32+E32+F32<=$C$3),R13,$C$3-C32-D32-E32-F32) -> 0 | H32: 0
B33: Subcontractor> 25,000 | C33: =IF(N13>$C$3,N13-$C$3,0) -> 0 | D33: =IF(AND(N13+O13<=$C$3,C33<=$C$3),0,O13-D32) -> 0 | E33: =IF(AND(N13+O13+P13<=$C$3,D33<=$C$3),0,P13-E32) -> 0 | F33: =IF(AND(N13+O13+P13+Q13<=$C$3,E33<=$C$3),0,Q13-F32) -> 0 | G33: =IF(AND(N13+O13+P13+Q13+R13<=$C$3,F33<=$C$3),0,R13-G32) -> 0 | H33: =SUM(C33:G33) -> 0
A34: 8 | B34: Subcontracts < 25,000 | C34: =IF(N14<=$C$3,N14,$C$3) -> 0 | D34: =IF(AND(N14+O14<=$C$3,C34<=$C$3),O14,$C$3-C34) -> 0 | E34: =IF(AND(N14+O14+P14<=$C$3,C34+D34<=$C$3),P14,$C$3-C34-D34) -> 0 | F34: =IF(AND(N14+O14+P14+Q14<=$C$3,C34+D34+E34<=$C$3),Q14,$C$3-C34-D34-E34) -> 0 | G34: =IF(AND(N14+O14+P14+Q14+R14<=$C$3,C34+D34+E34+F34<=$C$3),R14,$C$3-C34-D34-E34-F34) -> 0 | H34: 0
B35: Subcontractor> 25,000 | C35: =IF(N14>$C$3,N14-$C$3,0) -> 0 | D35: =IF(AND(N14+O14<=$C$3,C35<=$C$3),0,O14-D34) -> 0 | E35: =IF(AND(N14+O14+P14<=$C$3,D35<=$C$3),0,P14-E34) -> 0 | F35: =IF(AND(N14+O14+P14+Q14<=$C$3,E35<=$C$3),0,Q14-F34) -> 0 | G35: =IF(AND(N14+O14+P14+Q14+R14<=$C$3,F35<=$C$3),0,R14-G34) -> 0 | H35: =SUM(C35:G35) -> 0
A36: 9 | B36: Subcontracts < 25,000 | C36: =IF(N15<=$C$3,N15,$C$3) -> 0 | D36: =IF(AND(N15+O15<=$C$3,C36<=$C$3),O15,$C$3-C36) -> 0 | E36: =IF(AND(N15+O15+P15<=$C$3,C36+D36<=$C$3),P15,$C$3-C36-D36) -> 0 | F36: =IF(AND(N15+O15+P15+Q15<=$C$3,C36+D36+E36<=$C$3),Q15,$C$3-C36-D36-E36) -> 0 | G36: =IF(AND(N15+O15+P15+Q15+R15<=$C$3,C36+D36+E36+F36<=$C$3),R15,$C$3-C36-D36-E36-F36) -> 0 | H36: 0
B37: Subcontractor> 25,000 | C37: =IF(N15>$C$3,N15-$C$3,0) -> 0 | D37: =IF(AND(N15+O15<=$C$3,C37<=$C$3),0,O15-D36) -> 0 | E37: =IF(AND(N15+O15+P15<=$C$3,D37<=$C$3),0,P15-E36) -> 0 | F37: =IF(AND(N15+O15+P15+Q15<=$C$3,E37<=$C$3),0,Q15-F36) -> 0 | G37: =IF(AND(N15+O15+P15+Q15+R15<=$C$3,F37<=$C$3),0,R15-G36) -> 0 | H37: =SUM(C37:G37) -> 0
A38: 10 | B38: Subcontracts < 25,000 | C38: =IF(N16<=$C$3,N16,$C$3) -> 0 | D38: =IF(AND(N16+O16<=$C$3,C38<=$C$3),O16,$C$3-C38) -> 0 | E38: =IF(AND(N16+O16+P16<=$C$3,C38+D38<=$C$3),P16,$C$3-C38-D38) -> 0 | F38: =IF(AND(N16+O16+P16+Q16<=$C$3,C38+D38+E38<=$C$3),Q16,$C$3-C38-D38-E38) -> 0 | G38: =IF(AND(N16+O16+P16+Q16+R16<=$C$3,C38+D38+E38+F38<=$C$3),R16,$C$3-C38-D38-E38-F38) -> 0 | H38: 0
B39: Subcontractor> 25,000 | C39: =IF(N16>$C$3,N16-$C$3,0) -> 0 | D39: =IF(AND(N16+O16<=$C$3,C39<=$C$3),0,O16-D38) -> 0 | E39: =IF(AND(N16+O16+P16<=$C$3,D39<=$C$3),0,P16-E38) -> 0 | F39: =IF(AND(N16+O16+P16+Q16<=$C$3,E39<=$C$3),0,Q16-F38) -> 0 | G39: =IF(AND(N16+O16+P16+Q16+R16<=$C$3,F39<=$C$3),0,R16-G38) -> 0 | H39: =SUM(C39:G39) -> 0
B40: Subcontracts < 25,000 Total | C40: =SUM(C20,C22,C24,C26,C28,C30,C32,C34,C36,C38) -> 0 | D40: 0 | E40: 0 | F40: 0 | G40: 0 | H40: =SUM(C40:G40) -> 0
B41: Subcontractor> 25,000 Total | C41: 0 | D41: 0 | E41: 0 | F41: 0 | G41: 0 | H41: =SUM(C41:G41) -> 0

Sheet Tuition Only (hidden)
A1: In State Graduate Tuition Only | B1: FALL/SPR | C1: FALL/SPR | D1: FALL/SPR | E1: FALL/SPR | F1: FALL/SPR | G1: FALL/SPR
B2: 21/22 | C2: 22/23 | D2: 23/24 | E2: 24/25 | F2: 25/26 | G2: 26/27
A3: One GA | B3: =2168.5*2 -> 4337 | C3: =B3*1.055 -> 4576 | D3: 4828 | E3: 5094 | F3: 5374 | G3: 5670
A4: Two GAs | B4: =B3*2 -> 8674 | C4: 9152 | D4: 9656 | E4: 10188 | F4: 10748 | G4: 11340
A5: Three GAs | B5: =B3*3 -> 13011 | C5: 13728 | D5: 14484 | E5: 15282 | F5: 16122 | G5: 17010
A7: Out of State Graduate Tuition Only | B7: FALL/SPR | C7: FALL/SPR | D7: FALL/SPR | E7: FALL/SPR | F7: FALL/SPR | G7: FALL/SPR
B8: 21/22 | C8: 22/23 | D8: 23/24 | E8: 24/25 | F8: 25/26 | G8: 26/27
A9: One GA | B9: =8885.5*2 -> 17771 | C9: =B9*1.055 -> 18748 | D9: 19779 | E9: 20867 | F9: 22015 | G9: 23226
A10: Two GAs | B10: =B9*2 -> 35542 | C10: 37496 | D10: 39558 | E10: 41734 | F10: 44030 | G10: 46452
A11: Three GAs | B11: =B9*3 -> 53313 | C11: 56244 | D11: 59337 | E11: 62601 | F11: 66045 | G11: 69678
A13: Graduate Health Insurance | B13: FALL/SPR | C13: FALL/SPR | D13: FALL/SPR | E13: FALL/SPR | F13: FALL/SPR | G13: FALL/SPR
A14: with 3% annual increase, 2 semesters | B14: 21/22 | C14: 22/23 | D14: 23/24 | E14: 24/25 | F14: 25/26 | G14: 26/27
A15: One GA | B15: =1308.4*2 -> 2617 | C15: =B15*1.03 -> 2696 | D15: 2777 | E15: 2860 | F15: 2946 | G15: 3034
A16: Two GAs | B16: =B15*2 -> 5234 | C16: 5392 | D16: 5554 | E16: 5720 | F16: 5892 | G16: 6068
A17: Three GAs | B17: =B15*3 -> 7851 | C17: 8088 | D17: 8331 | E17: 8580 | F17: 8838 | G17: 9102
A20: as of July 7, 2021

Sheet PI View (hidden)
A1: PROPOSAL / AWARD BUDGET
A2: OFFICE OF RESEARCH | H2: Principal Investigator: | I2: =PROPER(IF('Budget Worksheet'!D2<>"",'Budget Worksheet'!D2,"")) -> Pi - Name | N2: 1 | O2: 2 | P2: 3 | R2: 4 | S2: 5 | T2: 6 | U2: 7 | V2: 8 | W2: 9 | X2: 10
H3: Sponsor: | I3: =#REF! ->  | N3: COST SHARE | R3: Additional COST SHAREs
H4: Start Date | I4: End Date | J4: Grant | K4: Fund | L4: Org | M4: Program | N4: =#REF! ->  | O4: =#REF! ->  | P4: =#REF! ->  | Q4: TOTAL | R4: =#REF! ->  | S4: =#REF! ->  | T4: =#REF! ->  | U4: =#REF! ->  | V4: =#REF! ->  | W4: =#REF! ->  | X4: =#REF! -> 
H5: =IF('Budget Worksheet'!I6="","",'Budget Worksheet'!I6) -> 2025-07-01 | I5: =IF('Budget Worksheet'!J6="","",'Budget Worksheet'!J6) -> 2026-06-30 | J5: ='Budget Worksheet'!C111 -> 0 | K5: ='Budget Worksheet'!C112 -> 0 | L5: ='Budget Worksheet'!C113 -> 0 | M5: ='Budget Worksheet'!C114 -> 0 | N5: Cost Share Years Displayed
C7: Mos Yr 1 | D7: Mos Yr 2 | E7: Mos Yr 3 | F7: Mos Yr 4 | G7: Mos Yr 5 | H7: Year 1 | I7: Year 2 | J7: Year 3 | K7: Year 4 | L7: Year 5 | M7: Total | O7: =COUNTIFS(#REF!,"Yes") -> 
A8: A. Salaries and Wages
A9: Senior Personnel:
A10: ='Budget Worksheet'!C11 -> PI - NAME
A11: ='Budget Worksheet'!C12 -> - | C11: ='Budget Worksheet'!F12 -> 0 | D11: ='Budget Worksheet'!G12 -> 0 | E11: ='Budget Worksheet'!H12 -> 0 | F11: ='Budget Worksheet'!I12 -> 0 | G11: ='Budget Worksheet'!J12 -> 0 | H11: ='Budget Worksheet'!L12 -> 0 | I11: ='Budget Worksheet'!M12 -> 0 | J11: ='Budget Worksheet'!N12 -> 0 | K11: ='Budget Worksheet'!O12 -> 0 | L11: ='Budget Worksheet'!P12 -> 0 | M11: ='Budget Worksheet'!Q12 -> 0 | N11: =IF(#REF!="Yes",SUMIFS(#REF!,#REF!,#REF!),0)+IF(#REF!="Yes", SUMIFS(#REF!,#REF!,#REF!),0)+IF(#REF!="Yes",SUMIFS(#REF!,#REF!,#REF!),0)+IF(#REF!="Yes",SUMIFS(#REF!,#REF!,#REF!),0)+IF(#REF!="Yes",SUMIFS(#REF!,#REF!,#REF!),0) ->  | O11: =IF(#REF!="Yes",SUMIFS(#REF!,#REF!,#REF!),0)+IF(#REF!="Yes", SUMIFS(#REF!,#REF!,#REF!),0)+IF(#REF!="Yes",SUMIFS(#REF!,#REF!,#REF!),0)+IF(#REF!="Yes",SUMIFS(#REF!,#REF!,#REF!),0)+IF(#REF!="Yes",SUMIFS(#REF!,#REF!,#REF!),0) ->  | P11: =IF(#REF!="Yes",SUMIFS(#REF!,#REF!,#REF!),0)+IF(#REF!="Yes", SUMIFS(#REF!,#REF!,#REF!),0)+IF(#REF!="Yes",SUMIFS(#REF!,#REF!,#REF!),0)+IF(#REF!="Yes",SUMIFS(#REF!,#REF!,#REF!),0)+IF(#REF!="Yes",SUMIFS(#REF!,#REF!,#REF!),0) ->  | Q11: =#REF! ->  | R11: =IF(#REF!="Yes",SUMIFS(#REF!,#REF!,#REF!),0)+IF(#REF!="Yes", SUMIFS(#REF!,#REF!,#REF!),0)+IF(#REF!="Yes",SUMIFS(#REF!,#REF!,#REF!),0)+IF(#REF!="Yes",SUMIFS(#REF!,#REF!,#REF!),0)+IF(#REF!="Yes",SUMIFS(#REF!,#REF!,#REF!),0) ->  | S11: =IF(#REF!="Yes",SUMIFS(#REF!,#REF!,#REF!),0)+IF(#REF!="Yes", SUMIFS(#REF!,#REF!,#REF!),0)+IF(#REF!="Yes",SUMIFS(#REF!,#REF!,#REF!),0)+IF(#REF!="Yes",SUMIFS(#REF!,#REF!,#REF!),0)+IF(#REF!="Yes",SUMIFS(#REF!,#REF!,#REF!),0) ->  | T11: =IF(#REF!="Yes",SUMIFS(#REF!,#REF!,#REF!),0)+IF(#REF!="Yes", SUMIFS(#REF!,#REF!,#REF!),0)+IF(#REF!="Yes",SUMIFS(#REF!,#REF!,#REF!),0)+IF(#REF!="Yes",SUMIFS(#REF!,#REF!,#REF!),0)+IF(#REF!="Yes",SUMIFS(#REF!,#REF!,#REF!),0) ->  | U11: =IF(#REF!="Yes",SUMIFS(#REF!,#REF!,#REF!),0)+IF(#REF!="Yes", SUMIFS(#REF!,#REF!,#REF!),0)+IF(#REF!="Yes",SUMIFS(#REF!,#REF!,#REF!),0)+IF(#REF!="Yes",SUMIFS(#REF!,#REF!,#REF!),0)+IF(#REF!="Yes",SUMIFS(#REF!,#REF!,#REF!),0) ->  | V11: =IF(#REF!="Yes",SUMIFS(#REF!,#REF!,#REF!),0)+IF(#REF!="Yes", SUMIFS(#REF!,#REF!,#REF!),0)+IF(#REF!="Yes",SUMIFS(#REF!,#REF!,#REF!),0)+IF(#REF!="Yes",SUMIFS(#REF!,#REF!,#REF!),0)+IF(#REF!="Yes",SUMIFS(#REF!,#REF!,#REF!),0) ->  | W11: =IF(#REF!="Yes",SUMIFS(#REF!,#REF!,#REF!),0)+IF(#REF!="Yes", SUMIFS(#REF!,#REF!,#REF!),0)+IF(#REF!="Yes",SUMIFS(#REF!,#REF!,#REF!),0)+IF(#REF!="Yes",SUMIFS(#REF!,#REF!,#REF!),0)+IF(#REF!="Yes",SUMIFS(#REF!,#REF!,#REF!),0) ->  | X11: =IF(#REF!="Yes",SUMIFS(#REF!,#REF!,#REF!),0)+IF(#REF!="Yes", SUMIFS(#REF!,#REF!,#REF!),0)+IF(#REF!="Yes",SUMIFS(#REF!,#REF!,#REF!),0)+IF(#REF!="Yes",SUMIFS(#REF!,#REF!,#REF!),0)+IF(#REF!="Yes",SUMIFS(#REF!,#REF!,#REF!),0) -> 
A12: Summer Salary | C12: ='Budget Worksheet'!F13 -> 0 | D12: ='Budget Worksheet'!G13 -> 0 | E12: ='Budget Worksheet'!H13 -> 0 | F12: ='Budget Worksheet'!I13 -> 0 | G12: ='Budget Worksheet'!J13 -> 0 | H12: ='Budget Worksheet'!L13 -> 0 | I12: ='Budget Worksheet'!M13 -> 0 | J12: ='Budget Worksheet'!N13 -> 0 | K12: ='Budget Worksheet'!O13 -> 0 | L12: ='Budget Worksheet'!P13 -> 0 | M12: ='Budget Worksheet'!Q13 -> 0 | N12: =IF(#REF!="Yes",SUMIFS(#REF!,#REF!,#REF!),0)+IF(#REF!="Yes", SUMIFS(#REF!,#REF!,#REF!),0)+IF(#REF!="Yes",SUMIFS(#REF!,#REF!,#REF!),0)+IF(#REF!="Yes",SUMIFS(#REF!,#REF!,#REF!),0)+IF(#REF!="Yes",SUMIFS(#REF!,#REF!,#REF!),0) ->  | O12: =IF(#REF!="Yes",SUMIFS(#REF!,#REF!,#REF!),0)+IF(#REF!="Yes", SUMIFS(#REF!,#REF!,#REF!),0)+IF(#REF!="Yes",SUMIFS(#REF!,#REF!,#REF!),0)+IF(#REF!="Yes",SUMIFS(#REF!,#REF!,#REF!),0)+IF(#REF!="Yes",SUMIFS(#REF!,#REF!,#REF!),0) ->  | P12: =IF(#REF!="Yes",SUMIFS(#REF!,#REF!,#REF!),0)+IF(#REF!="Yes", SUMIFS(#REF!,#REF!,#REF!),0)+IF(#REF!="Yes",SUMIFS(#REF!,#REF!,#REF!),0)+IF(#REF!="Yes",SUMIFS(#REF!,#REF!,#REF!),0)+IF(#REF!="Yes",SUMIFS(#REF!,#REF!,#REF!),0) ->  | Q12: =#REF! ->  | R12: =IF(#REF!="Yes",SUMIFS(#REF!,#REF!,#REF!),0)+IF(#REF!="Yes", SUMIFS(#REF!,#REF!,#REF!),0)+IF(#REF!="Yes",SUMIFS(#REF!,#REF!,#REF!),0)+IF(#REF!="Yes",SUMIFS(#REF!,#REF!,#REF!),0)+IF(#REF!="Yes",SUMIFS(#REF!,#REF!,#REF!),0) ->  | S12: =IF(#REF!="Yes",SUMIFS(#REF!,#REF!,#REF!),0)+IF(#REF!="Yes", SUMIFS(#REF!,#REF!,#REF!),0)+IF(#REF!="Yes",SUMIFS(#REF!,#REF!,#REF!),0)+IF(#REF!="Yes",SUMIFS(#REF!,#REF!,#REF!),0)+IF(#REF!="Yes",SUMIFS(#REF!,#REF!,#REF!),0) ->  | T12: =IF(#REF!="Yes",SUMIFS(#REF!,#REF!,#REF!),0)+IF(#REF!="Yes", SUMIFS(#REF!,#REF!,#REF!),0)+IF(#REF!="Yes",SUMIFS(#REF!,#REF!,#REF!),0)+IF(#REF!="Yes",SUMIFS(#REF!,#REF!,#REF!),0)+IF(#REF!="Yes",SUMIFS(#REF!,#REF!,#REF!),0) ->  | U12: =IF(#REF!="Yes",SUMIFS(#REF!,#REF!,#REF!),0)+IF(#REF!="Yes", SUMIFS(#REF!,#REF!,#REF!),0)+IF(#REF!="Yes",SUMIFS(#REF!,#REF!,#REF!),0)+IF(#REF!="Yes",SUMIFS(#REF!,#REF!,#REF!),0)+IF(#REF!="Yes",SUMIFS(#REF!,#REF!,#REF!),0) ->  | V12: =IF(#REF!="Yes",SUMIFS(#REF!,#REF!,#REF!),0)+IF(#REF!="Yes", SUMIFS(#REF!,#REF!,#REF!),0)+IF(#REF!="Yes",SUMIFS(#REF!,#REF!,#REF!),0)+IF(#REF!="Yes",SUMIFS(#REF!,#REF!,#REF!),0)+IF(#REF!="Yes",SUMIFS(#REF!,#REF!,#REF!),0) ->  | W12: =IF(#REF!="Yes",SUMIFS(#REF!,#REF!,#REF!),0)+IF(#REF!="Yes", SUMIFS(#REF!,#REF!,#REF!),0)+IF(#REF!="Yes",SUMIFS(#REF!,#REF!,#REF!),0)+IF(#REF!="Yes",SUMIFS(#REF!,#REF!,#REF!),0)+IF(#REF!="Yes",SUMIFS(#REF!,#REF!,#REF!),0) ->  | X12: =IF(#REF!="Yes",SUMIFS(#REF!,#REF!,#REF!),0)+IF(#REF!="Yes", SUMIFS(#REF!,#REF!,#REF!),0)+IF(#REF!="Yes",SUMIFS(#REF!,#REF!,#REF!),0)+IF(#REF!="Yes",SUMIFS(#REF!,#REF!,#REF!),0)+IF(#REF!="Yes",SUMIFS(#REF!,#REF!,#REF!),0) -> 
A13: Fringe | H13: ='Budget Worksheet'!L15 -> 0 | I13: ='Budget Worksheet'!M15 -> 0 | J13: ='Budget Worksheet'!N15 -> 0 | K13: ='Budget Worksheet'!O15 -> 0 | L13: ='Budget Worksheet'!P15 -> 0 | M13: ='Budget Worksheet'!Q15 -> 0 | N13: =IF(#REF!="Yes",SUMIFS(#REF!,#REF!,#REF!),0)+IF(#REF!="Yes", SUMIFS(#REF!,#REF!,#REF!),0)+IF(#REF!="Yes",SUMIFS(#REF!,#REF!,#REF!),0)+IF(#REF!="Yes",SUMIFS(#REF!,#REF!,#REF!),0)+IF(#REF!="Yes",SUMIFS(#REF!,#REF!,#REF!),0) ->  | O13: =IF(#REF!="Yes",SUMIFS(#REF!,#REF!,#REF!),0)+IF(#REF!="Yes", SUMIFS(#REF!,#REF!,#REF!),0)+IF(#REF!="Yes",SUMIFS(#REF!,#REF!,#REF!),0)+IF(#REF!="Yes",SUMIFS(#REF!,#REF!,#REF!),0)+IF(#REF!="Yes",SUMIFS(#REF!,#REF!,#REF!),0) ->  | P13: =IF(#REF!="Yes",SUMIFS(#REF!,#REF!,#REF!),0)+IF(#REF!="Yes", SUMIFS(#REF!,#REF!,#REF!),0)+IF(#REF!="Yes",SUMIFS(#REF!,#REF!,#REF!),0)+IF(#REF!="Yes",SUMIFS(#REF!,#REF!,#REF!),0)+IF(#REF!="Yes",SUMIFS(#REF!,#REF!,#REF!),0) ->  | Q13: =#REF! ->  | R13: =IF(#REF!="Yes",SUMIFS(#REF!,#REF!,#REF!),0)+IF(#REF!="Yes", SUMIFS(#REF!,#REF!,#REF!),0)+IF(#REF!="Yes",SUMIFS(#REF!,#REF!,#REF!),0)+IF(#REF!="Yes",SUMIFS(#REF!,#REF!,#REF!),0)+IF(#REF!="Yes",SUMIFS(#REF!,#REF!,#REF!),0) ->  | S13: =IF(#REF!="Yes",SUMIFS(#REF!,#REF!,#REF!),0)+IF(#REF!="Yes", SUMIFS(#REF!,#REF!,#REF!),0)+IF(#REF!="Yes",SUMIFS(#REF!,#REF!,#REF!),0)+IF(#REF!="Yes",SUMIFS(#REF!,#REF!,#REF!),0)+IF(#REF!="Yes",SUMIFS(#REF!,#REF!,#REF!),0) ->  | T13: =IF(#REF!="Yes",SUMIFS(#REF!,#REF!,#REF!),0)+IF(#REF!="Yes", SUMIFS(#REF!,#REF!,#REF!),0)+IF(#REF!="Yes",SUMIFS(#REF!,#REF!,#REF!),0)+IF(#REF!="Yes",SUMIFS(#REF!,#REF!,#REF!),0)+IF(#REF!="Yes",SUMIFS(#REF!,#REF!,#REF!),0) ->  | U13: =IF(#REF!="Yes",SUMIFS(#REF!,#REF!,#REF!),0)+IF(#REF!="Yes", SUMIFS(#REF!,#REF!,#REF!),0)+IF(#REF!="Yes",SUMIFS(#REF!,#REF!,#REF!),0)+IF(#REF!="Yes",SUMIFS(#REF!,#REF!,#REF!),0)+IF(#REF!="Yes",SUMIFS(#REF!,#REF!,#REF!),0) ->  | V13: =IF(#REF!="Yes",SUMIFS(#REF!,#REF!,#REF!),0)+IF(#REF!="Yes", SUMIFS(#REF!,#REF!,#REF!),0)+IF(#REF!="Yes",SUMIFS(#REF!,#REF!,#REF!),0)+IF(#REF!="Yes",SUMIFS(#REF!,#REF!,#REF!),0)+IF(#REF!="Yes",SUMIFS(#REF!,#REF!,#REF!),0) ->  | W13: =IF(#REF!="Yes",SUMIFS(#REF!,#REF!,#REF!),0)+IF(#REF!="Yes", SUMIFS(#REF!,#REF!,#REF!),0)+IF(#REF!="Yes",SUMIFS(#REF!,#REF!,#REF!),0)+IF(#REF!="Yes",SUMIFS(#REF!,#REF!,#REF!),0)+IF(#REF!="Yes",SUMIFS(#REF!,#REF!,#REF!),0) ->  | X13: =IF(#REF!="Yes",SUMIFS(#REF!,#REF!,#REF!),0)+IF(#REF!="Yes", SUMIFS(#REF!,#REF!,#REF!),0)+IF(#REF!="Yes",SUMIFS(#REF!,#REF!,#REF!),0)+IF(#REF!="Yes",SUMIFS(#REF!,#REF!,#REF!),0)+IF(#REF!="Yes",SUMIFS(#REF!,#REF!,#REF!),0) -> 
N14: =#REF! ->  | O14: =IF(#REF!="Yes",SUMIFS(#REF!,#REF!,#REF!),0)+IF(#REF!="Yes", SUMIFS(#REF!,#REF!,#REF!),0)+IF(#REF!="Yes",SUMIFS(#REF!,#REF!,#REF!),0)+IF(#REF!="Yes",SUMIFS(#REF!,#REF!,#REF!),0)+IF(#REF!="Yes",SUMIFS(#REF!,#REF!,#REF!),0) ->  | P14: =IF(#REF!="Yes",SUMIFS(#REF!,#REF!,#REF!),0)+IF(#REF!="Yes", SUMIFS(#REF!,#REF!,#REF!),0)+IF(#REF!="Yes",SUMIFS(#REF!,#REF!,#REF!),0)+IF(#REF!="Yes",SUMIFS(#REF!,#REF!,#REF!),0)+IF(#REF!="Yes",SUMIFS(#REF!,#REF!,#REF!),0) ->  | Q14: =#REF! ->  | R14: =IF(#REF!="Yes",SUMIFS(#REF!,#REF!,#REF!),0)+IF(#REF!="Yes", SUMIFS(#REF!,#REF!,#REF!),0)+IF(#REF!="Yes",SUMIFS(#REF!,#REF!,#REF!),0)+IF(#REF!="Yes",SUMIFS(#REF!,#REF!,#REF!),0)+IF(#REF!="Yes",SUMIFS(#REF!,#REF!,#REF!),0) ->  | S14: =IF(#REF!="Yes",SUMIFS(#REF!,#REF!,#REF!),0)+IF(#REF!="Yes", SUMIFS(#REF!,#REF!,#REF!),0)+IF(#REF!="Yes",SUMIFS(#REF!,#REF!,#REF!),0)+IF(#REF!="Yes",SUMIFS(#REF!,#REF!,#REF!),0)+IF(#REF!="Yes",SUMIFS(#REF!,#REF!,#REF!),0) ->  | T14: =IF(#REF!="Yes",SUMIFS(#REF!,#REF!,#REF!),0)+IF(#REF!="Yes", SUMIFS(#REF!,#REF!,#REF!),0)+IF(#REF!="Yes",SUMIFS(#REF!,#REF!,#REF!),0)+IF(#REF!="Yes",SUMIFS(#REF!,#REF!,#REF!),0)+IF(#REF!="Yes",SUMIFS(#REF!,#REF!,#REF!),0) ->  | U14: =IF(#REF!="Yes",SUMIFS(#REF!,#REF!,#REF!),0)+IF(#REF!="Yes", SUMIFS(#REF!,#REF!,#REF!),0)+IF(#REF!="Yes",SUMIFS(#REF!,#REF!,#REF!),0)+IF(#REF!="Yes",SUMIFS(#REF!,#REF!,#REF!),0)+IF(#REF!="Yes",SUMIFS(#REF!,#REF!,#REF!),0) ->  | V14: =IF(#REF!="Yes",SUMIFS(#REF!,#REF!,#REF!),0)+IF(#REF!="Yes", SUMIFS(#REF!,#REF!,#REF!),0)+IF(#REF!="Yes",SUMIFS(#REF!,#REF!,#REF!),0)+IF(#REF!="Yes",SUMIFS(#REF!,#REF!,#REF!),0)+IF(#REF!="Yes",SUMIFS(#REF!,#REF!,#REF!),0) ->  | W14: =IF(#REF!="Yes",SUMIFS(#REF!,#REF!,#REF!),0)+IF(#REF!="Yes", SUMIFS(#REF!,#REF!,#REF!),0)+IF(#REF!="Yes",SUMIFS(#REF!,#REF!,#REF!),0)+IF(#REF!="Yes",SUMIFS(#REF!,#REF!,#REF!),0)+IF(#REF!="Yes",SUMIFS(#REF!,#REF!,#REF!),0) ->  | X14: =IF(#REF!="Yes",SUMIFS(#REF!,#REF!,#REF!),0)+IF(#REF!="Yes", SUMIFS(#REF!,#REF!,#REF!),0)+IF(#REF!="Yes",SUMIFS(#REF!,#REF!,#REF!),0)+IF(#REF!="Yes",SUMIFS(#REF!,#REF!,#REF!),0)+IF(#REF!="Yes",SUMIFS(#REF!,#REF!,#REF!),0) -> 
A15: ='Budget Worksheet'!#REF! ->  | N15: =#REF! ->  | O15: =IF(#REF!="Yes",SUMIFS(#REF!,#REF!,#REF!),0)+IF(#REF!="Yes", SUMIFS(#REF!,#REF!,#REF!),0)+IF(#REF!="Yes",SUMIFS(#REF!,#REF!,#REF!),0)+IF(#REF!="Yes",SUMIFS(#REF!,#REF!,#REF!),0)+IF(#REF!="Yes",SUMIFS(#REF!,#REF!,#REF!),0) ->  | P15: =IF(#REF!="Yes",SUMIFS(#REF!,#REF!,#REF!),0)+IF(#REF!="Yes", SUMIFS(#REF!,#REF!,#REF!),0)+IF(#REF!="Yes",SUMIFS(#REF!,#REF!,#REF!),0)+IF(#REF!="Yes",SUMIFS(#REF!,#REF!,#REF!),0)+IF(#REF!="Yes",SUMIFS(#REF!,#REF!,#REF!),0) ->  | Q15: =#REF! ->  | R15: =IF(#REF!="Yes",SUMIFS(#REF!,#REF!,#REF!),0)+IF(#REF!="Yes", SUMIFS(#REF!,#REF!,#REF!),0)+IF(#REF!="Yes",SUMIFS(#REF!,#REF!,#REF!),0)+IF(#REF!="Yes",SUMIFS(#REF!,#REF!,#REF!),0)+IF(#REF!="Yes",SUMIFS(#REF!,#REF!,#REF!),0) ->  | S15: =IF(#REF!="Yes",SUMIFS(#REF!,#REF!,#REF!),0)+IF(#REF!="Yes", SUMIFS(#REF!,#REF!,#REF!),0)+IF(#REF!="Yes",SUMIFS(#REF!,#REF!,#REF!),0)+IF(#REF!="Yes",SUMIFS(#REF!,#REF!,#REF!),0)+IF(#REF!="Yes",SUMIFS(#REF!,#REF!,#REF!),0) ->  | T15: =IF(#REF!="Yes",SUMIFS(#REF!,#REF!,#REF!),0)+IF(#REF!="Yes", SUMIFS(#REF!,#REF!,#REF!),0)+IF(#REF!="Yes",SUMIFS(#REF!,#REF!,#REF!),0)+IF(#REF!="Yes",SUMIFS(#REF!,#REF!,#REF!),0)+IF(#REF!="Yes",SUMIFS(#REF!,#REF!,#REF!),0) ->  | U15: =IF(#REF!="Yes",SUMIFS(#REF!,#REF!,#REF!),0)+IF(#REF!="Yes", SUMIFS(#REF!,#REF!,#REF!),0)+IF(#REF!="Yes",SUMIFS(#REF!,#REF!,#REF!),0)+IF(#REF!="Yes",SUMIFS(#REF!,#REF!,#REF!),0)+IF(#REF!="Yes",SUMIFS(#REF!,#REF!,#REF!),0) ->  | V15: =IF(#REF!="Yes",SUMIFS(#REF!,#REF!,#REF!),0)+IF(#REF!="Yes", SUMIFS(#REF!,#REF!,#REF!),0)+IF(#REF!="Yes",SUMIFS(#REF!,#REF!,#REF!),0)+IF(#REF!="Yes",SUMIFS(#REF!,#REF!,#REF!),0)+IF(#REF!="Yes",SUMIFS(#REF!,#REF!,#REF!),0) ->  | W15: =IF(#REF!="Yes",SUMIFS(#REF!,#REF!,#REF!),0)+IF(#REF!="Yes", SUMIFS(#REF!,#REF!,#REF!),0)+IF(#REF!="Yes",SUMIFS(#REF!,#REF!,#REF!),0)+IF(#REF!="Yes",SUMIFS(#REF!,#REF!,#REF!),0)+IF(#REF!="Yes",SUMIFS(#REF!,#REF!,#REF!),0) ->  | X15: =IF(#REF!="Yes",SUMIFS(#REF!,#REF!,#REF!),0)+IF(#REF!="Yes", SUMIFS(#REF!,#REF!,#REF!),0)+IF(#REF!="Yes",SUMIFS(#REF!,#REF!,#REF!),0)+IF(#REF!="Yes",SUMIFS(#REF!,#REF!,#REF!),0)+IF(#REF!="Yes",SUMIFS(#REF!,#REF!,#REF!),0) -> 
A16: ='Budget Worksheet'!#REF! ->  | C16: ='Budget Worksheet'!#REF! ->  | D16: ='Budget Worksheet'!#REF! ->  | E16: ='Budget Worksheet'!#REF! ->  | F16: ='Budget Worksheet'!#REF! ->  | G16: ='Budget Worksheet'!#REF! ->  | H16: ='Budget Worksheet'!#REF! ->  | I16: ='Budget Worksheet'!#REF! ->  | J16: ='Budget Worksheet'!#REF! ->  | K16: ='Budget Worksheet'!#REF! ->  | L16: ='Budget Worksheet'!#REF! ->  | M16: ='Budget Worksheet'!#REF! ->  | N16: =IF(#REF!="Yes",SUMIFS(#REF!,#REF!,#REF!),0)+IF(#REF!="Yes", SUMIFS(#REF!,#REF!,#REF!),0)+IF(#REF!="Yes",SUMIFS(#REF!,#REF!,#REF!),0)+IF(#REF!="Yes",SUMIFS(#REF!,#REF!,#REF!),0)+IF(#REF!="Yes",SUMIFS(#REF!,#REF!,#REF!),0) ->  | O16: =IF(#REF!="Yes",SUMIFS(#REF!,#REF!,#REF!),0)+IF(#REF!="Yes", SUMIFS(#REF!,#REF!,#REF!),0)+IF(#REF!="Yes",SUMIFS(#REF!,#REF!,#REF!),0)+IF(#REF!="Yes",SUMIFS(#REF!,#REF!,#REF!),0)+IF(#REF!="Yes",SUMIFS(#REF!,#REF!,#REF!),0) ->  | P16: =IF(#REF!="Yes",SUMIFS(#REF!,#REF!,#REF!),0)+IF(#REF!="Yes", SUMIFS(#REF!,#REF!,#REF!),0)+IF(#REF!="Yes",SUMIFS(#REF!,#REF!,#REF!),0)+IF(#REF!="Yes",SUMIFS(#REF!,#REF!,#REF!),0)+IF(#REF!="Yes",SUMIFS(#REF!,#REF!,#REF!),0) ->  | Q16: =#REF! ->  | R16: =IF(#REF!="Yes",SUMIFS(#REF!,#REF!,#REF!),0)+IF(#REF!="Yes", SUMIFS(#REF!,#REF!,#REF!),0)+IF(#REF!="Yes",SUMIFS(#REF!,#REF!,#REF!),0)+IF(#REF!="Yes",SUMIFS(#REF!,#REF!,#REF!),0)+IF(#REF!="Yes",SUMIFS(#REF!,#REF!,#REF!),0) ->  | S16: =IF(#REF!="Yes",SUMIFS(#REF!,#REF!,#REF!),0)+IF(#REF!="Yes", SUMIFS(#REF!,#REF!,#REF!),0)+IF(#REF!="Yes",SUMIFS(#REF!,#REF!,#REF!),0)+IF(#REF!="Yes",SUMIFS(#REF!,#REF!,#REF!),0)+IF(#REF!="Yes",SUMIFS(#REF!,#REF!,#REF!),0) ->  | T16: =IF(#REF!="Yes",SUMIFS(#REF!,#REF!,#REF!),0)+IF(#REF!="Yes", SUMIFS(#REF!,#REF!,#REF!),0)+IF(#REF!="Yes",SUMIFS(#REF!,#REF!,#REF!),0)+IF(#REF!="Yes",SUMIFS(#REF!,#REF!,#REF!),0)+IF(#REF!="Yes",SUMIFS(#REF!,#REF!,#REF!),0) ->  | U16: =IF(#REF!="Yes",SUMIFS(#REF!,#REF!,#REF!),0)+IF(#REF!="Yes", SUMIFS(#REF!,#REF!,#REF!),0)+IF(#REF!="Yes",SUMIFS(#REF!,#REF!,#REF!),0)+IF(#REF!="Yes",SUMIFS(#REF!,#REF!,#REF!),0)+IF(#REF!="Yes",SUMIFS(#REF!,#REF!,#REF!),0) ->  | V16: =IF(#REF!="Yes",SUMIFS(#REF!,#REF!,#REF!),0)+IF(#REF!="Yes", SUMIFS(#REF!,#REF!,#REF!),0)+IF(#REF!="Yes",SUMIFS(#REF!,#REF!,#REF!),0)+IF(#REF!="Yes",SUMIFS(#REF!,#REF!,#REF!),0)+IF(#REF!="Yes",SUMIFS(#REF!,#REF!,#REF!),0) ->  | W16: =IF(#REF!="Yes",SUMIFS(#REF!,#REF!,#REF!),0)+IF(#REF!="Yes", SUMIFS(#REF!,#REF!,#REF!),0)+IF(#REF!="Yes",SUMIFS(#REF!,#REF!,#REF!),0)+IF(#REF!="Yes",SUMIFS(#REF!,#REF!,#REF!),0)+IF(#REF!="Yes",SUMIFS(#REF!,#REF!,#REF!),0) ->  | X16: =IF(#REF!="Yes",SUMIFS(#REF!,#REF!,#REF!),0)+IF(#REF!="Yes", SUMIFS(#REF!,#REF!,#REF!),0)+IF(#REF!="Yes",SUMIFS(#REF!,#REF!,#REF!),0)+IF(#REF!="Yes",SUMIFS(#REF!,#REF!,#REF!),0)+IF(#REF!="Yes",SUMIFS(#REF!,#REF!,#REF!),0) -> 
A17: Summer Salary | C17: ='Budget Worksheet'!#REF! ->  | D17: ='Budget Worksheet'!#REF! ->  | E17: ='Budget Worksheet'!#REF! ->  | F17: ='Budget Worksheet'!#REF! ->  | G17: ='Budget Worksheet'!#REF! ->  | H17: ='Budget Worksheet'!#REF! ->  | I17: ='Budget Worksheet'!#REF! ->  | J17: ='Budget Worksheet'!#REF! ->  | K17: ='Budget Worksheet'!#REF! ->  | L17: ='Budget Worksheet'!#REF! ->  | M17: ='Budget Worksheet'!#REF! ->  | N17: =IF(#REF!="Yes",SUMIFS(#REF!,#REF!,#REF!),0)+IF(#REF!="Yes", SUMIFS(#REF!,#REF!,#REF!),0)+IF(#REF!="Yes",SUMIFS(#REF!,#REF!,#REF!),0)+IF(#REF!="Yes",SUMIFS(#REF!,#REF!,#REF!),0)+IF(#REF!="Yes",SUMIFS(#REF!,#REF!,#REF!),0) ->  | O17: =IF(#REF!="Yes",SUMIFS(#REF!,#REF!,#REF!),0)+IF(#REF!="Yes", SUMIFS(#REF!,#REF!,#REF!),0)+IF(#REF!="Yes",SUMIFS(#REF!,#REF!,#REF!),0)+IF(#REF!="Yes",SUMIFS(#REF!,#REF!,#REF!),0)+IF(#REF!="Yes",SUMIFS(#REF!,#REF!,#REF!),0) ->  | P17: =IF(#REF!="Yes",SUMIFS(#REF!,#REF!,#REF!),0)+IF(#REF!="Yes", SUMIFS(#REF!,#REF!,#REF!),0)+IF(#REF!="Yes",SUMIFS(#REF!,#REF!,#REF!),0)+IF(#REF!="Yes",SUMIFS(#REF!,#REF!,#REF!),0)+IF(#REF!="Yes",SUMIFS(#REF!,#REF!,#REF!),0) ->  | Q17: =#REF! ->  | R17: =IF(#REF!="Yes",SUMIFS(#REF!,#REF!,#REF!),0)+IF(#REF!="Yes", SUMIFS(#REF!,#REF!,#REF!),0)+IF(#REF!="Yes",SUMIFS(#REF!,#REF!,#REF!),0)+IF(#REF!="Yes",SUMIFS(#REF!,#REF!,#REF!),0)+IF(#REF!="Yes",SUMIFS(#REF!,#REF!,#REF!),0) ->  | S17: =IF(#REF!="Yes",SUMIFS(#REF!,#REF!,#REF!),0)+IF(#REF!="Yes", SUMIFS(#REF!,#REF!,#REF!),0)+IF(#REF!="Yes",SUMIFS(#REF!,#REF!,#REF!),0)+IF(#REF!="Yes",SUMIFS(#REF!,#REF!,#REF!),0)+IF(#REF!="Yes",SUMIFS(#REF!,#REF!,#REF!),0) ->  | T17: =IF(#REF!="Yes",SUMIFS(#REF!,#REF!,#REF!),0)+IF(#REF!="Yes", SUMIFS(#REF!,#REF!,#REF!),0)+IF(#REF!="Yes",SUMIFS(#REF!,#REF!,#REF!),0)+IF(#REF!="Yes",SUMIFS(#REF!,#REF!,#REF!),0)+IF(#REF!="Yes",SUMIFS(#REF!,#REF!,#REF!),0) ->  | U17: =IF(#REF!="Yes",SUMIFS(#REF!,#REF!,#REF!),0)+IF(#REF!="Yes", SUMIFS(#REF!,#REF!,#REF!),0)+IF(#REF!="Yes",SUMIFS(#REF!,#REF!,#REF!),0)+IF(#REF!="Yes",SUMIFS(#REF!,#REF!,#REF!),0)+IF(#REF!="Yes",SUMIFS(#REF!,#REF!,#REF!),0) ->  | V17: =IF(#REF!="Yes",SUMIFS(#REF!,#REF!,#REF!),0)+IF(#REF!="Yes", SUMIFS(#REF!,#REF!,#REF!),0)+IF(#REF!="Yes",SUMIFS(#REF!,#REF!,#REF!),0)+IF(#REF!="Yes",SUMIFS(#REF!,#REF!,#REF!),0)+IF(#REF!="Yes",SUMIFS(#REF!,#REF!,#REF!),0) ->  | W17: =IF(#REF!="Yes",SUMIFS(#REF!,#REF!,#REF!),0)+IF(#REF!="Yes", SUMIFS(#REF!,#REF!,#REF!),0)+IF(#REF!="Yes",SUMIFS(#REF!,#REF!,#REF!),0)+IF(#REF!="Yes",SUMIFS(#REF!,#REF!,#REF!),0)+IF(#REF!="Yes",SUMIFS(#REF!,#REF!,#REF!),0) ->  | X17: =IF(#REF!="Yes",SUMIFS(#REF!,#REF!,#REF!),0)+IF(#REF!="Yes", SUMIFS(#REF!,#REF!,#REF!),0)+IF(#REF!="Yes",SUMIFS(#REF!,#REF!,#REF!),0)+IF(#REF!="Yes",SUMIFS(#REF!,#REF!,#REF!),0)+IF(#REF!="Yes",SUMIFS(#REF!,#REF!,#REF!),0) -> 
A18: Fringe | H18: ='Budget Worksheet'!#REF! ->  | I18: ='Budget Worksheet'!#REF! ->  | J18: ='Budget Worksheet'!#REF! ->  | K18: ='Budget Worksheet'!#REF! ->  | L18: ='Budget Worksheet'!#REF! ->  | M18: ='Budget Worksheet'!#REF! ->  | N18: =IF(#REF!="Yes",SUMIFS(#REF!,#REF!,#REF!),0)+IF(#REF!="Yes", SUMIFS(#REF!,#REF!,#REF!),0)+IF(#REF!="Yes",SUMIFS(#REF!,#REF!,#REF!),0)+IF(#REF!="Yes",SUMIFS(#REF!,#REF!,#REF!),0)+IF(#REF!="Yes",SUMIFS(#REF!,#REF!,#REF!),0) ->  | O18: =IF(#REF!="Yes",SUMIFS(#REF!,#REF!,#REF!),0)+IF(#REF!="Yes", SUMIFS(#REF!,#REF!,#REF!),0)+IF(#REF!="Yes",SUMIFS(#REF!,#REF!,#REF!),0)+IF(#REF!="Yes",SUMIFS(#REF!,#REF!,#REF!),0)+IF(#REF!="Yes",SUMIFS(#REF!,#REF!,#REF!),0) ->  | P18: =IF(#REF!="Yes",SUMIFS(#REF!,#REF!,#REF!),0)+IF(#REF!="Yes", SUMIFS(#REF!,#REF!,#REF!),0)+IF(#REF!="Yes",SUMIFS(#REF!,#REF!,#REF!),0)+IF(#REF!="Yes",SUMIFS(#REF!,#REF!,#REF!),0)+IF(#REF!="Yes",SUMIFS(#REF!,#REF!,#REF!),0) ->  | Q18: =#REF! ->  | R18: =IF(#REF!="Yes",SUMIFS(#REF!,#REF!,#REF!),0)+IF(#REF!="Yes", SUMIFS(#REF!,#REF!,#REF!),0)+IF(#REF!="Yes",SUMIFS(#REF!,#REF!,#REF!),0)+IF(#REF!="Yes",SUMIFS(#REF!,#REF!,#REF!),0)+IF(#REF!="Yes",SUMIFS(#REF!,#REF!,#REF!),0) ->  | S18: =IF(#REF!="Yes",SUMIFS(#REF!,#REF!,#REF!),0)+IF(#REF!="Yes", SUMIFS(#REF!,#REF!,#REF!),0)+IF(#REF!="Yes",SUMIFS(#REF!,#REF!,#REF!),0)+IF(#REF!="Yes",SUMIFS(#REF!,#REF!,#REF!),0)+IF(#REF!="Yes",SUMIFS(#REF!,#REF!,#REF!),0) ->  | T18: =IF(#REF!="Yes",SUMIFS(#REF!,#REF!,#REF!),0)+IF(#REF!="Yes", SUMIFS(#REF!,#REF!,#REF!),0)+IF(#REF!="Yes",SUMIFS(#REF!,#REF!,#REF!),0)+IF(#REF!="Yes",SUMIFS(#REF!,#REF!,#REF!),0)+IF(#REF!="Yes",SUMIFS(#REF!,#REF!,#REF!),0) ->  | U18: =IF(#REF!="Yes",SUMIFS(#REF!,#REF!,#REF!),0)+IF(#REF!="Yes", SUMIFS(#REF!,#REF!,#REF!),0)+IF(#REF!="Yes",SUMIFS(#REF!,#REF!,#REF!),0)+IF(#REF!="Yes",SUMIFS(#REF!,#REF!,#REF!),0)+IF(#REF!="Yes",SUMIFS(#REF!,#REF!,#REF!),0) ->  | V18: =IF(#REF!="Yes",SUMIFS(#REF!,#REF!,#REF!),0)+IF(#REF!="Yes", SUMIFS(#REF!,#REF!,#REF!),0)+IF(#REF!="Yes",SUMIFS(#REF!,#REF!,#REF!),0)+IF(#REF!="Yes",SUMIFS(#REF!,#REF!,#REF!),0)+IF(#REF!="Yes",SUMIFS(#REF!,#REF!,#REF!),0) ->  | W18: =IF(#REF!="Yes",SUMIFS(#REF!,#REF!,#REF!),0)+IF(#REF!="Yes", SUMIFS(#REF!,#REF!,#REF!),0)+IF(#REF!="Yes",SUMIFS(#REF!,#REF!,#REF!),0)+IF(#REF!="Yes",SUMIFS(#REF!,#REF!,#REF!),0)+IF(#REF!="Yes",SUMIFS(#REF!,#REF!,#REF!),0) ->  | X18: =IF(#REF!="Yes",SUMIFS(#REF!,#REF!,#REF!),0)+IF(#REF!="Yes", SUMIFS(#REF!,#REF!,#REF!),0)+IF(#REF!="Yes",SUMIFS(#REF!,#REF!,#REF!),0)+IF(#REF!="Yes",SUMIFS(#REF!,#REF!,#REF!),0)+IF(#REF!="Yes",SUMIFS(#REF!,#REF!,#REF!),0) -> 
N19: =#REF! ->  | O19: =IF(#REF!="Yes",SUMIFS(#REF!,#REF!,#REF!),0)+IF(#REF!="Yes", SUMIFS(#REF!,#REF!,#REF!),0)+IF(#REF!="Yes",SUMIFS(#REF!,#REF!,#REF!),0)+IF(#REF!="Yes",SUMIFS(#REF!,#REF!,#REF!),0)+IF(#REF!="Yes",SUMIFS(#REF!,#REF!,#REF!),0) ->  | P19: =IF(#REF!="Yes",SUMIFS(#REF!,#REF!,#REF!),0)+IF(#REF!="Yes", SUMIFS(#REF!,#REF!,#REF!),0)+IF(#REF!="Yes",SUMIFS(#REF!,#REF!,#REF!),0)+IF(#REF!="Yes",SUMIFS(#REF!,#REF!,#REF!),0)+IF(#REF!="Yes",SUMIFS(#REF!,#REF!,#REF!),0) ->  | Q19: =#REF! ->  | R19: =IF(#REF!="Yes",SUMIFS(#REF!,#REF!,#REF!),0)+IF(#REF!="Yes", SUMIFS(#REF!,#REF!,#REF!),0)+IF(#REF!="Yes",SUMIFS(#REF!,#REF!,#REF!),0)+IF(#REF!="Yes",SUMIFS(#REF!,#REF!,#REF!),0)+IF(#REF!="Yes",SUMIFS(#REF!,#REF!,#REF!),0) ->  | S19: =IF(#REF!="Yes",SUMIFS(#REF!,#REF!,#REF!),0)+IF(#REF!="Yes", SUMIFS(#REF!,#REF!,#REF!),0)+IF(#REF!="Yes",SUMIFS(#REF!,#REF!,#REF!),0)+IF(#REF!="Yes",SUMIFS(#REF!,#REF!,#REF!),0)+IF(#REF!="Yes",SUMIFS(#REF!,#REF!,#REF!),0) ->  | T19: =IF(#REF!="Yes",SUMIFS(#REF!,#REF!,#REF!),0)+IF(#REF!="Yes", SUMIFS(#REF!,#REF!,#REF!),0)+IF(#REF!="Yes",SUMIFS(#REF!,#REF!,#REF!),0)+IF(#REF!="Yes",SUMIFS(#REF!,#REF!,#REF!),0)+IF(#REF!="Yes",SUMIFS(#REF!,#REF!,#REF!),0) ->  | U19: =IF(#REF!="Yes",SUMIFS(#REF!,#REF!,#REF!),0)+IF(#REF!="Yes", SUMIFS(#REF!,#REF!,#REF!),0)+IF(#REF!="Yes",SUMIFS(#REF!,#REF!,#REF!),0)+IF(#REF!="Yes",SUMIFS(#REF!,#REF!,#REF!),0)+IF(#REF!="Yes",SUMIFS(#REF!,#REF!,#REF!),0) ->  | V19: =IF(#REF!="Yes",SUMIFS(#REF!,#REF!,#REF!),0)+IF(#REF!="Yes", SUMIFS(#REF!,#REF!,#REF!),0)+IF(#REF!="Yes",SUMIFS(#REF!,#REF!,#REF!),0)+IF(#REF!="Yes",SUMIFS(#REF!,#REF!,#REF!),0)+IF(#REF!="Yes",SUMIFS(#REF!,#REF!,#REF!),0) ->  | W19: =IF(#REF!="Yes",SUMIFS(#REF!,#REF!,#REF!),0)+IF(#REF!="Yes", SUMIFS(#REF!,#REF!,#REF!),0)+IF(#REF!="Yes",SUMIFS(#REF!,#REF!,#REF!),0)+IF(#REF!="Yes",SUMIFS(#REF!,#REF!,#REF!),0)+IF(#REF!="Yes",SUMIFS(#REF!,#REF!,#REF!),0) ->  | X19: =IF(#REF!="Yes",SUMIFS(#REF!,#REF!,#REF!),0)+IF(#REF!="Yes", SUMIFS(#REF!,#REF!,#REF!),0)+IF(#REF!="Yes",SUMIFS(#REF!,#REF!,#REF!),0)+IF(#REF!="Yes",SUMIFS(#REF!,#REF!,#REF!),0)+IF(#REF!="Yes",SUMIFS(#REF!,#REF!,#REF!),0) -> 
A20: ='Budget Worksheet'!#REF! ->  | N20: =#REF! ->  | O20: =IF(#REF!="Yes",SUMIFS(#REF!,#REF!,#REF!),0)+IF(#REF!="Yes", SUMIFS(#REF!,#REF!,#REF!),0)+IF(#REF!="Yes",SUMIFS(#REF!,#REF!,#REF!),0)+IF(#REF!="Yes",SUMIFS(#REF!,#REF!,#REF!),0)+IF(#REF!="Yes",SUMIFS(#REF!,#REF!,#REF!),0) ->  | P20: =IF(#REF!="Yes",SUMIFS(#REF!,#REF!,#REF!),0)+IF(#REF!="Yes", SUMIFS(#REF!,#REF!,#REF!),0)+IF(#REF!="Yes",SUMIFS(#REF!,#REF!,#REF!),0)+IF(#REF!="Yes",SUMIFS(#REF!,#REF!,#REF!),0)+IF(#REF!="Yes",SUMIFS(#REF!,#REF!,#REF!),0) ->  | Q20: =#REF! ->  | R20: =IF(#REF!="Yes",SUMIFS(#REF!,#REF!,#REF!),0)+IF(#REF!="Yes", SUMIFS(#REF!,#REF!,#REF!),0)+IF(#REF!="Yes",SUMIFS(#REF!,#REF!,#REF!),0)+IF(#REF!="Yes",SUMIFS(#REF!,#REF!,#REF!),0)+IF(#REF!="Yes",SUMIFS(#REF!,#REF!,#REF!),0) ->  | S20: =IF(#REF!="Yes",SUMIFS(#REF!,#REF!,#REF!),0)+IF(#REF!="Yes", SUMIFS(#REF!,#REF!,#REF!),0)+IF(#REF!="Yes",SUMIFS(#REF!,#REF!,#REF!),0)+IF(#REF!="Yes",SUMIFS(#REF!,#REF!,#REF!),0)+IF(#REF!="Yes",SUMIFS(#REF!,#REF!,#REF!),0) ->  | T20: =IF(#REF!="Yes",SUMIFS(#REF!,#REF!,#REF!),0)+IF(#REF!="Yes", SUMIFS(#REF!,#REF!,#REF!),0)+IF(#REF!="Yes",SUMIFS(#REF!,#REF!,#REF!),0)+IF(#REF!="Yes",SUMIFS(#REF!,#REF!,#REF!),0)+IF(#REF!="Yes",SUMIFS(#REF!,#REF!,#REF!),0) ->  | U20: =IF(#REF!="Yes",SUMIFS(#REF!,#REF!,#REF!),0)+IF(#REF!="Yes", SUMIFS(#REF!,#REF!,#REF!),0)+IF(#REF!="Yes",SUMIFS(#REF!,#REF!,#REF!),0)+IF(#REF!="Yes",SUMIFS(#REF!,#REF!,#REF!),0)+IF(#REF!="Yes",SUMIFS(#REF!,#REF!,#REF!),0) ->  | V20: =IF(#REF!="Yes",SUMIFS(#REF!,#REF!,#REF!),0)+IF(#REF!="Yes", SUMIFS(#REF!,#REF!,#REF!),0)+IF(#REF!="Yes",SUMIFS(#REF!,#REF!,#REF!),0)+IF(#REF!="Yes",SUMIFS(#REF!,#REF!,#REF!),0)+IF(#REF!="Yes",SUMIFS(#REF!,#REF!,#REF!),0) ->  | W20: =IF(#REF!="Yes",SUMIFS(#REF!,#REF!,#REF!),0)+IF(#REF!="Yes", SUMIFS(#REF!,#REF!,#REF!),0)+IF(#REF!="Yes",SUMIFS(#REF!,#REF!,#REF!),0)+IF(#REF!="Yes",SUMIFS(#REF!,#REF!,#REF!),0)+IF(#REF!="Yes",SUMIFS(#REF!,#REF!,#REF!),0) ->  | X20: =IF(#REF!="Yes",SUMIFS(#REF!,#REF!,#REF!),0)+IF(#REF!="Yes", SUMIFS(#REF!,#REF!,#REF!),0)+IF(#REF!="Yes",SUMIFS(#REF!,#REF!,#REF!),0)+IF(#REF!="Yes",SUMIFS(#REF!,#REF!,#REF!),0)+IF(#REF!="Yes",SUMIFS(#REF!,#REF!,#REF!),0) -> 
A21: ='Budget Worksheet'!#REF! ->  | C21: ='Budget Worksheet'!#REF! ->  | D21: ='Budget Worksheet'!#REF! ->  | E21: ='Budget Worksheet'!#REF! ->  | F21: ='Budget Worksheet'!#REF! ->  | G21: ='Budget Worksheet'!#REF! ->  | H21: ='Budget Worksheet'!#REF! ->  | I21: ='Budget Worksheet'!#REF! ->  | J21: ='Budget Worksheet'!#REF! ->  | K21: ='Budget Worksheet'!#REF! ->  | L21: ='Budget Worksheet'!#REF! ->  | M21: ='Budget Worksheet'!#REF! ->  | N21: =IF(#REF!="Yes",SUMIFS(#REF!,#REF!,#REF!),0)+IF(#REF!="Yes", SUMIFS(#REF!,#REF!,#REF!),0)+IF(#REF!="Yes",SUMIFS(#REF!,#REF!,#REF!),0)+IF(#REF!="Yes",SUMIFS(#REF!,#REF!,#REF!),0)+IF(#REF!="Yes",SUMIFS(#REF!,#REF!,#REF!),0) ->  | O21: =IF(#REF!="Yes",SUMIFS(#REF!,#REF!,#REF!),0)+IF(#REF!="Yes", SUMIFS(#REF!,#REF!,#REF!),0)+IF(#REF!="Yes",SUMIFS(#REF!,#REF!,#REF!),0)+IF(#REF!="Yes",SUMIFS(#REF!,#REF!,#REF!),0)+IF(#REF!="Yes",SUMIFS(#REF!,#REF!,#REF!),0) ->  | P21: =IF(#REF!="Yes",SUMIFS(#REF!,#REF!,#REF!),0)+IF(#REF!="Yes", SUMIFS(#REF!,#REF!,#REF!),0)+IF(#REF!="Yes",SUMIFS(#REF!,#REF!,#REF!),0)+IF(#REF!="Yes",SUMIFS(#REF!,#REF!,#REF!),0)+IF(#REF!="Yes",SUMIFS(#REF!,#REF!,#REF!),0) ->  | Q21: =#REF! ->  | R21: =IF(#REF!="Yes",SUMIFS(#REF!,#REF!,#REF!),0)+IF(#REF!="Yes", SUMIFS(#REF!,#REF!,#REF!),0)+IF(#REF!="Yes",SUMIFS(#REF!,#REF!,#REF!),0)+IF(#REF!="Yes",SUMIFS(#REF!,#REF!,#REF!),0)+IF(#REF!="Yes",SUMIFS(#REF!,#REF!,#REF!),0) ->  | S21: =IF(#REF!="Yes",SUMIFS(#REF!,#REF!,#REF!),0)+IF(#REF!="Yes", SUMIFS(#REF!,#REF!,#REF!),0)+IF(#REF!="Yes",SUMIFS(#REF!,#REF!,#REF!),0)+IF(#REF!="Yes",SUMIFS(#REF!,#REF!,#REF!),0)+IF(#REF!="Yes",SUMIFS(#REF!,#REF!,#REF!),0) ->  | T21: =IF(#REF!="Yes",SUMIFS(#REF!,#REF!,#REF!),0)+IF(#REF!="Yes", SUMIFS(#REF!,#REF!,#REF!),0)+IF(#REF!="Yes",SUMIFS(#REF!,#REF!,#REF!),0)+IF(#REF!="Yes",SUMIFS(#REF!,#REF!,#REF!),0)+IF(#REF!="Yes",SUMIFS(#REF!,#REF!,#REF!),0) ->  | U21: =IF(#REF!="Yes",SUMIFS(#REF!,#REF!,#REF!),0)+IF(#REF!="Yes", SUMIFS(#REF!,#REF!,#REF!),0)+IF(#REF!="Yes",SUMIFS(#REF!,#REF!,#REF!),0)+IF(#REF!="Yes",SUMIFS(#REF!,#REF!,#REF!),0)+IF(#REF!="Yes",SUMIFS(#REF!,#REF!,#REF!),0) ->  | V21: =IF(#REF!="Yes",SUMIFS(#REF!,#REF!,#REF!),0)+IF(#REF!="Yes", SUMIFS(#REF!,#REF!,#REF!),0)+IF(#REF!="Yes",SUMIFS(#REF!,#REF!,#REF!),0)+IF(#REF!="Yes",SUMIFS(#REF!,#REF!,#REF!),0)+IF(#REF!="Yes",SUMIFS(#REF!,#REF!,#REF!),0) ->  | W21: =IF(#REF!="Yes",SUMIFS(#REF!,#REF!,#REF!),0)+IF(#REF!="Yes", SUMIFS(#REF!,#REF!,#REF!),0)+IF(#REF!="Yes",SUMIFS(#REF!,#REF!,#REF!),0)+IF(#REF!="Yes",SUMIFS(#REF!,#REF!,#REF!),0)+IF(#REF!="Yes",SUMIFS(#REF!,#REF!,#REF!),0) ->  | X21: =IF(#REF!="Yes",SUMIFS(#REF!,#REF!,#REF!),0)+IF(#REF!="Yes", SUMIFS(#REF!,#REF!,#REF!),0)+IF(#REF!="Yes",SUMIFS(#REF!,#REF!,#REF!),0)+IF(#REF!="Yes",SUMIFS(#REF!,#REF!,#REF!),0)+IF(#REF!="Yes",SUMIFS(#REF!,#REF!,#REF!),0) -> 
A22: Summer Salary | C22: ='Budget Worksheet'!#REF! ->  | D22: ='Budget Worksheet'!#REF! ->  | E22: ='Budget Worksheet'!#REF! ->  | F22: ='Budget Worksheet'!#REF! ->  | G22: ='Budget Worksheet'!#REF! ->  | H22: ='Budget Worksheet'!#REF! ->  | I22: ='Budget Worksheet'!#REF! ->  | J22: ='Budget Worksheet'!#REF! ->  | K22: ='Budget Worksheet'!#REF! ->  | L22: ='Budget Worksheet'!#REF! ->  | M22: ='Budget Worksheet'!#REF! ->  | N22: =IF(#REF!="Yes",SUMIFS(#REF!,#REF!,#REF!),0)+IF(#REF!="Yes", SUMIFS(#REF!,#REF!,#REF!),0)+IF(#REF!="Yes",SUMIFS(#REF!,#REF!,#REF!),0)+IF(#REF!="Yes",SUMIFS(#REF!,#REF!,#REF!),0)+IF(#REF!="Yes",SUMIFS(#REF!,#REF!,#REF!),0) ->  | O22: =IF(#REF!="Yes",SUMIFS(#REF!,#REF!,#REF!),0)+IF(#REF!="Yes", SUMIFS(#REF!,#REF!,#REF!),0)+IF(#REF!="Yes",SUMIFS(#REF!,#REF!,#REF!),0)+IF(#REF!="Yes",SUMIFS(#REF!,#REF!,#REF!),0)+IF(#REF!="Yes",SUMIFS(#REF!,#REF!,#REF!),0) ->  | P22: =IF(#REF!="Yes",SUMIFS(#REF!,#REF!,#REF!),0)+IF(#REF!="Yes", SUMIFS(#REF!,#REF!,#REF!),0)+IF(#REF!="Yes",SUMIFS(#REF!,#REF!,#REF!),0)+IF(#REF!="Yes",SUMIFS(#REF!,#REF!,#REF!),0)+IF(#REF!="Yes",SUMIFS(#REF!,#REF!,#REF!),0) ->  | Q22: =#REF! ->  | R22: =IF(#REF!="Yes",SUMIFS(#REF!,#REF!,#REF!),0)+IF(#REF!="Yes", SUMIFS(#REF!,#REF!,#REF!),0)+IF(#REF!="Yes",SUMIFS(#REF!,#REF!,#REF!),0)+IF(#REF!="Yes",SUMIFS(#REF!,#REF!,#REF!),0)+IF(#REF!="Yes",SUMIFS(#REF!,#REF!,#REF!),0) ->  | S22: =IF(#REF!="Yes",SUMIFS(#REF!,#REF!,#REF!),0)+IF(#REF!="Yes", SUMIFS(#REF!,#REF!,#REF!),0)+IF(#REF!="Yes",SUMIFS(#REF!,#REF!,#REF!),0)+IF(#REF!="Yes",SUMIFS(#REF!,#REF!,#REF!),0)+IF(#REF!="Yes",SUMIFS(#REF!,#REF!,#REF!),0) ->  | T22: =IF(#REF!="Yes",SUMIFS(#REF!,#REF!,#REF!),0)+IF(#REF!="Yes", SUMIFS(#REF!,#REF!,#REF!),0)+IF(#REF!="Yes",SUMIFS(#REF!,#REF!,#REF!),0)+IF(#REF!="Yes",SUMIFS(#REF!,#REF!,#REF!),0)+IF(#REF!="Yes",SUMIFS(#REF!,#REF!,#REF!),0) ->  | U22: =IF(#REF!="Yes",SUMIFS(#REF!,#REF!,#REF!),0)+IF(#REF!="Yes", SUMIFS(#REF!,#REF!,#REF!),0)+IF(#REF!="Yes",SUMIFS(#REF!,#REF!,#REF!),0)+IF(#REF!="Yes",SUMIFS(#REF!,#REF!,#REF!),0)+IF(#REF!="Yes",SUMIFS(#REF!,#REF!,#REF!),0) ->  | V22: =IF(#REF!="Yes",SUMIFS(#REF!,#REF!,#REF!),0)+IF(#REF!="Yes", SUMIFS(#REF!,#REF!,#REF!),0)+IF(#REF!="Yes",SUMIFS(#REF!,#REF!,#REF!),0)+IF(#REF!="Yes",SUMIFS(#REF!,#REF!,#REF!),0)+IF(#REF!="Yes",SUMIFS(#REF!,#REF!,#REF!),0) ->  | W22: =IF(#REF!="Yes",SUMIFS(#REF!,#REF!,#REF!),0)+IF(#REF!="Yes", SUMIFS(#REF!,#REF!,#REF!),0)+IF(#REF!="Yes",SUMIFS(#REF!,#REF!,#REF!),0)+IF(#REF!="Yes",SUMIFS(#REF!,#REF!,#REF!),0)+IF(#REF!="Yes",SUMIFS(#REF!,#REF!,#REF!),0) ->  | X22: =IF(#REF!="Yes",SUMIFS(#REF!,#REF!,#REF!),0)+IF(#REF!="Yes", SUMIFS(#REF!,#REF!,#REF!),0)+IF(#REF!="Yes",SUMIFS(#REF!,#REF!,#REF!),0)+IF(#REF!="Yes",SUMIFS(#REF!,#REF!,#REF!),0)+IF(#REF!="Yes",SUMIFS(#REF!,#REF!,#REF!),0) -> 
A23: Fringe | H23: ='Budget Worksheet'!#REF! ->  | I23: ='Budget Worksheet'!#REF! ->  | J23: ='Budget Worksheet'!#REF! ->  | K23: ='Budget Worksheet'!#REF! ->  | L23: ='Budget Worksheet'!#REF! ->  | M23: ='Budget Worksheet'!#REF! ->  | N23: =IF(#REF!="Yes",SUMIFS(#REF!,#REF!,#REF!),0)+IF(#REF!="Yes", SUMIFS(#REF!,#REF!,#REF!),0)+IF(#REF!="Yes",SUMIFS(#REF!,#REF!,#REF!),0)+IF(#REF!="Yes",SUMIFS(#REF!,#REF!,#REF!),0)+IF(#REF!="Yes",SUMIFS(#REF!,#REF!,#REF!),0) ->  | O23: =IF(#REF!="Yes",SUMIFS(#REF!,#REF!,#REF!),0)+IF(#REF!="Yes", SUMIFS(#REF!,#REF!,#REF!),0)+IF(#REF!="Yes",SUMIFS(#REF!,#REF!,#REF!),0)+IF(#REF!="Yes",SUMIFS(#REF!,#REF!,#REF!),0)+IF(#REF!="Yes",SUMIFS(#REF!,#REF!,#REF!),0) ->  | P23: =IF(#REF!="Yes",SUMIFS(#REF!,#REF!,#REF!),0)+IF(#REF!="Yes", SUMIFS(#REF!,#REF!,#REF!),0)+IF(#REF!="Yes",SUMIFS(#REF!,#REF!,#REF!),0)+IF(#REF!="Yes",SUMIFS(#REF!,#REF!,#REF!),0)+IF(#REF!="Yes",SUMIFS(#REF!,#REF!,#REF!),0) ->  | Q23: =#REF! ->  | R23: =IF(#REF!="Yes",SUMIFS(#REF!,#REF!,#REF!),0)+IF(#REF!="Yes", SUMIFS(#REF!,#REF!,#REF!),0)+IF(#REF!="Yes",SUMIFS(#REF!,#REF!,#REF!),0)+IF(#REF!="Yes",SUMIFS(#REF!,#REF!,#REF!),0)+IF(#REF!="Yes",SUMIFS(#REF!,#REF!,#REF!),0) ->  | S23: =IF(#REF!="Yes",SUMIFS(#REF!,#REF!,#REF!),0)+IF(#REF!="Yes", SUMIFS(#REF!,#REF!,#REF!),0)+IF(#REF!="Yes",SUMIFS(#REF!,#REF!,#REF!),0)+IF(#REF!="Yes",SUMIFS(#REF!,#REF!,#REF!),0)+IF(#REF!="Yes",SUMIFS(#REF!,#REF!,#REF!),0) ->  | T23: =IF(#REF!="Yes",SUMIFS(#REF!,#REF!,#REF!),0)+IF(#REF!="Yes", SUMIFS(#REF!,#REF!,#REF!),0)+IF(#REF!="Yes",SUMIFS(#REF!,#REF!,#REF!),0)+IF(#REF!="Yes",SUMIFS(#REF!,#REF!,#REF!),0)+IF(#REF!="Yes",SUMIFS(#REF!,#REF!,#REF!),0) ->  | U23: =IF(#REF!="Yes",SUMIFS(#REF!,#REF!,#REF!),0)+IF(#REF!="Yes", SUMIFS(#REF!,#REF!,#REF!),0)+IF(#REF!="Yes",SUMIFS(#REF!,#REF!,#REF!),0)+IF(#REF!="Yes",SUMIFS(#REF!,#REF!,#REF!),0)+IF(#REF!="Yes",SUMIFS(#REF!,#REF!,#REF!),0) ->  | V23: =IF(#REF!="Yes",SUMIFS(#REF!,#REF!,#REF!),0)+IF(#REF!="Yes", SUMIFS(#REF!,#REF!,#REF!),0)+IF(#REF!="Yes",SUMIFS(#REF!,#REF!,#REF!),0)+IF(#REF!="Yes",SUMIFS(#REF!,#REF!,#REF!),0)+IF(#REF!="Yes",SUMIFS(#REF!,#REF!,#REF!),0) ->  | W23: =IF(#REF!="Yes",SUMIFS(#REF!,#REF!,#REF!),0)+IF(#REF!="Yes", SUMIFS(#REF!,#REF!,#REF!),0)+IF(#REF!="Yes",SUMIFS(#REF!,#REF!,#REF!),0)+IF(#REF!="Yes",SUMIFS(#REF!,#REF!,#REF!),0)+IF(#REF!="Yes",SUMIFS(#REF!,#REF!,#REF!),0) ->  | X23: =IF(#REF!="Yes",SUMIFS(#REF!,#REF!,#REF!),0)+IF(#REF!="Yes", SUMIFS(#REF!,#REF!,#REF!),0)+IF(#REF!="Yes",SUMIFS(#REF!,#REF!,#REF!),0)+IF(#REF!="Yes",SUMIFS(#REF!,#REF!,#REF!),0)+IF(#REF!="Yes",SUMIFS(#REF!,#REF!,#REF!),0) -> 
N24: =#REF! ->  | O24: =IF(#REF!="Yes",SUMIFS(#REF!,#REF!,#REF!),0)+IF(#REF!="Yes", SUMIFS(#REF!,#REF!,#REF!),0)+IF(#REF!="Yes",SUMIFS(#REF!,#REF!,#REF!),0)+IF(#REF!="Yes",SUMIFS(#REF!,#REF!,#REF!),0)+IF(#REF!="Yes",SUMIFS(#REF!,#REF!,#REF!),0) ->  | P24: =IF(#REF!="Yes",SUMIFS(#REF!,#REF!,#REF!),0)+IF(#REF!="Yes", SUMIFS(#REF!,#REF!,#REF!),0)+IF(#REF!="Yes",SUMIFS(#REF!,#REF!,#REF!),0)+IF(#REF!="Yes",SUMIFS(#REF!,#REF!,#REF!),0)+IF(#REF!="Yes",SUMIFS(#REF!,#REF!,#REF!),0) ->  | Q24: =#REF! ->  | R24: =IF(#REF!="Yes",SUMIFS(#REF!,#REF!,#REF!),0)+IF(#REF!="Yes", SUMIFS(#REF!,#REF!,#REF!),0)+IF(#REF!="Yes",SUMIFS(#REF!,#REF!,#REF!),0)+IF(#REF!="Yes",SUMIFS(#REF!,#REF!,#REF!),0)+IF(#REF!="Yes",SUMIFS(#REF!,#REF!,#REF!),0) ->  | S24: =IF(#REF!="Yes",SUMIFS(#REF!,#REF!,#REF!),0)+IF(#REF!="Yes", SUMIFS(#REF!,#REF!,#REF!),0)+IF(#REF!="Yes",SUMIFS(#REF!,#REF!,#REF!),0)+IF(#REF!="Yes",SUMIFS(#REF!,#REF!,#REF!),0)+IF(#REF!="Yes",SUMIFS(#REF!,#REF!,#REF!),0) ->  | T24: =IF(#REF!="Yes",SUMIFS(#REF!,#REF!,#REF!),0)+IF(#REF!="Yes", SUMIFS(#REF!,#REF!,#REF!),0)+IF(#REF!="Yes",SUMIFS(#REF!,#REF!,#REF!),0)+IF(#REF!="Yes",SUMIFS(#REF!,#REF!,#REF!),0)+IF(#REF!="Yes",SUMIFS(#REF!,#REF!,#REF!),0) ->  | U24: =IF(#REF!="Yes",SUMIFS(#REF!,#REF!,#REF!),0)+IF(#REF!="Yes", SUMIFS(#REF!,#REF!,#REF!),0)+IF(#REF!="Yes",SUMIFS(#REF!,#REF!,#REF!),0)+IF(#REF!="Yes",SUMIFS(#REF!,#REF!,#REF!),0)+IF(#REF!="Yes",SUMIFS(#REF!,#REF!,#REF!),0) ->  | V24: =IF(#REF!="Yes",SUMIFS(#REF!,#REF!,#REF!),0)+IF(#REF!="Yes", SUMIFS(#REF!,#REF!,#REF!),0)+IF(#REF!="Yes",SUMIFS(#REF!,#REF!,#REF!),0)+IF(#REF!="Yes",SUMIFS(#REF!,#REF!,#REF!),0)+IF(#REF!="Yes",SUMIFS(#REF!,#REF!,#REF!),0) ->  | W24: =IF(#REF!="Yes",SUMIFS(#REF!,#REF!,#REF!),0)+IF(#REF!="Yes", SUMIFS(#REF!,#REF!,#REF!),0)+IF(#REF!="Yes",SUMIFS(#REF!,#REF!,#REF!),0)+IF(#REF!="Yes",SUMIFS(#REF!,#REF!,#REF!),0)+IF(#REF!="Yes",SUMIFS(#REF!,#REF!,#REF!),0) ->  | X24: =IF(#REF!="Yes",SUMIFS(#REF!,#REF!,#REF!),0)+IF(#REF!="Yes", SUMIFS(#REF!,#REF!,#REF!),0)+IF(#REF!="Yes",SUMIFS(#REF!,#REF!,#REF!),0)+IF(#REF!="Yes",SUMIFS(#REF!,#REF!,#REF!),0)+IF(#REF!="Yes",SUMIFS(#REF!,#REF!,#REF!),0) -> 
A25: ='Budget Worksheet'!#REF! ->  | N25: =#REF! ->  | O25: =IF(#REF!="Yes",SUMIFS(#REF!,#REF!,#REF!),0)+IF(#REF!="Yes", SUMIFS(#REF!,#REF!,#REF!),0)+IF(#REF!="Yes",SUMIFS(#REF!,#REF!,#REF!),0)+IF(#REF!="Yes",SUMIFS(#REF!,#REF!,#REF!),0)+IF(#REF!="Yes",SUMIFS(#REF!,#REF!,#REF!),0) ->  | P25: =IF(#REF!="Yes",SUMIFS(#REF!,#REF!,#REF!),0)+IF(#REF!="Yes", SUMIFS(#REF!,#REF!,#REF!),0)+IF(#REF!="Yes",SUMIFS(#REF!,#REF!,#REF!),0)+IF(#REF!="Yes",SUMIFS(#REF!,#REF!,#REF!),0)+IF(#REF!="Yes",SUMIFS(#REF!,#REF!,#REF!),0) ->  | Q25: =#REF! ->  | R25: =IF(#REF!="Yes",SUMIFS(#REF!,#REF!,#REF!),0)+IF(#REF!="Yes", SUMIFS(#REF!,#REF!,#REF!),0)+IF(#REF!="Yes",SUMIFS(#REF!,#REF!,#REF!),0)+IF(#REF!="Yes",SUMIFS(#REF!,#REF!,#REF!),0)+IF(#REF!="Yes",SUMIFS(#REF!,#REF!,#REF!),0) ->  | S25: =IF(#REF!="Yes",SUMIFS(#REF!,#REF!,#REF!),0)+IF(#REF!="Yes", SUMIFS(#REF!,#REF!,#REF!),0)+IF(#REF!="Yes",SUMIFS(#REF!,#REF!,#REF!),0)+IF(#REF!="Yes",SUMIFS(#REF!,#REF!,#REF!),0)+IF(#REF!="Yes",SUMIFS(#REF!,#REF!,#REF!),0) ->  | T25: =IF(#REF!="Yes",SUMIFS(#REF!,#REF!,#REF!),0)+IF(#REF!="Yes", SUMIFS(#REF!,#REF!,#REF!),0)+IF(#REF!="Yes",SUMIFS(#REF!,#REF!,#REF!),0)+IF(#REF!="Yes",SUMIFS(#REF!,#REF!,#REF!),0)+IF(#REF!="Yes",SUMIFS(#REF!,#REF!,#REF!),0) ->  | U25: =IF(#REF!="Yes",SUMIFS(#REF!,#REF!,#REF!),0)+IF(#REF!="Yes", SUMIFS(#REF!,#REF!,#REF!),0)+IF(#REF!="Yes",SUMIFS(#REF!,#REF!,#REF!),0)+IF(#REF!="Yes",SUMIFS(#REF!,#REF!,#REF!),0)+IF(#REF!="Yes",SUMIFS(#REF!,#REF!,#REF!),0) ->  | V25: =IF(#REF!="Yes",SUMIFS(#REF!,#REF!,#REF!),0)+IF(#REF!="Yes", SUMIFS(#REF!,#REF!,#REF!),0)+IF(#REF!="Yes",SUMIFS(#REF!,#REF!,#REF!),0)+IF(#REF!="Yes",SUMIFS(#REF!,#REF!,#REF!),0)+IF(#REF!="Yes",SUMIFS(#REF!,#REF!,#REF!),0) ->  | W25: =IF(#REF!="Yes",SUMIFS(#REF!,#REF!,#REF!),0)+IF(#REF!="Yes", SUMIFS(#REF!,#REF!,#REF!),0)+IF(#REF!="Yes",SUMIFS(#REF!,#REF!,#REF!),0)+IF(#REF!="Yes",SUMIFS(#REF!,#REF!,#REF!),0)+IF(#REF!="Yes",SUMIFS(#REF!,#REF!,#REF!),0) ->  | X25: =IF(#REF!="Yes",SUMIFS(#REF!,#REF!,#REF!),0)+IF(#REF!="Yes", SUMIFS(#REF!,#REF!,#REF!),0)+IF(#REF!="Yes",SUMIFS(#REF!,#REF!,#REF!),0)+IF(#REF!="Yes",SUMIFS(#REF!,#REF!,#REF!),0)+IF(#REF!="Yes",SUMIFS(#REF!,#REF!,#REF!),0) -> 
A26: ='Budget Worksheet'!#REF! ->  | C26: ='Budget Worksheet'!#REF! ->  | D26: ='Budget Worksheet'!#REF! ->  | E26: ='Budget Worksheet'!#REF! ->  | F26: ='Budget Worksheet'!#REF! ->  | G26: ='Budget Worksheet'!#REF! ->  | H26: ='Budget Worksheet'!#REF! ->  | I26: ='Budget Worksheet'!#REF! ->  | J26: ='Budget Worksheet'!#REF! ->  | K26: ='Budget Worksheet'!#REF! ->  | L26: ='Budget Worksheet'!#REF! ->  | M26: ='Budget Worksheet'!#REF! ->  | N26: =IF(#REF!="Yes",SUMIFS(#REF!,#REF!,#REF!),0)+IF(#REF!="Yes", SUMIFS(#REF!,#REF!,#REF!),0)+IF(#REF!="Yes",SUMIFS(#REF!,#REF!,#REF!),0)+IF(#REF!="Yes",SUMIFS(#REF!,#REF!,#REF!),0)+IF(#REF!="Yes",SUMIFS(#REF!,#REF!,#REF!),0) ->  | O26: =IF(#REF!="Yes",SUMIFS(#REF!,#REF!,#REF!),0)+IF(#REF!="Yes", SUMIFS(#REF!,#REF!,#REF!),0)+IF(#REF!="Yes",SUMIFS(#REF!,#REF!,#REF!),0)+IF(#REF!="Yes",SUMIFS(#REF!,#REF!,#REF!),0)+IF(#REF!="Yes",SUMIFS(#REF!,#REF!,#REF!),0) ->  | P26: =IF(#REF!="Yes",SUMIFS(#REF!,#REF!,#REF!),0)+IF(#REF!="Yes", SUMIFS(#REF!,#REF!,#REF!),0)+IF(#REF!="Yes",SUMIFS(#REF!,#REF!,#REF!),0)+IF(#REF!="Yes",SUMIFS(#REF!,#REF!,#REF!),0)+IF(#REF!="Yes",SUMIFS(#REF!,#REF!,#REF!),0) ->  | Q26: =#REF! ->  | R26: =IF(#REF!="Yes",SUMIFS(#REF!,#REF!,#REF!),0)+IF(#REF!="Yes", SUMIFS(#REF!,#REF!,#REF!),0)+IF(#REF!="Yes",SUMIFS(#REF!,#REF!,#REF!),0)+IF(#REF!="Yes",SUMIFS(#REF!,#REF!,#REF!),0)+IF(#REF!="Yes",SUMIFS(#REF!,#REF!,#REF!),0) ->  | S26: =IF(#REF!="Yes",SUMIFS(#REF!,#REF!,#REF!),0)+IF(#REF!="Yes", SUMIFS(#REF!,#REF!,#REF!),0)+IF(#REF!="Yes",SUMIFS(#REF!,#REF!,#REF!),0)+IF(#REF!="Yes",SUMIFS(#REF!,#REF!,#REF!),0)+IF(#REF!="Yes",SUMIFS(#REF!,#REF!,#REF!),0) ->  | T26: =IF(#REF!="Yes",SUMIFS(#REF!,#REF!,#REF!),0)+IF(#REF!="Yes", SUMIFS(#REF!,#REF!,#REF!),0)+IF(#REF!="Yes",SUMIFS(#REF!,#REF!,#REF!),0)+IF(#REF!="Yes",SUMIFS(#REF!,#REF!,#REF!),0)+IF(#REF!="Yes",SUMIFS(#REF!,#REF!,#REF!),0) ->  | U26: =IF(#REF!="Yes",SUMIFS(#REF!,#REF!,#REF!),0)+IF(#REF!="Yes", SUMIFS(#REF!,#REF!,#REF!),0)+IF(#REF!="Yes",SUMIFS(#REF!,#REF!,#REF!),0)+IF(#REF!="Yes",SUMIFS(#REF!,#REF!,#REF!),0)+IF(#REF!="Yes",SUMIFS(#REF!,#REF!,#REF!),0) ->  | V26: =IF(#REF!="Yes",SUMIFS(#REF!,#REF!,#REF!),0)+IF(#REF!="Yes", SUMIFS(#REF!,#REF!,#REF!),0)+IF(#REF!="Yes",SUMIFS(#REF!,#REF!,#REF!),0)+IF(#REF!="Yes",SUMIFS(#REF!,#REF!,#REF!),0)+IF(#REF!="Yes",SUMIFS(#REF!,#REF!,#REF!),0) ->  | W26: =IF(#REF!="Yes",SUMIFS(#REF!,#REF!,#REF!),0)+IF(#REF!="Yes", SUMIFS(#REF!,#REF!,#REF!),0)+IF(#REF!="Yes",SUMIFS(#REF!,#REF!,#REF!),0)+IF(#REF!="Yes",SUMIFS(#REF!,#REF!,#REF!),0)+IF(#REF!="Yes",SUMIFS(#REF!,#REF!,#REF!),0) ->  | X26: =IF(#REF!="Yes",SUMIFS(#REF!,#REF!,#REF!),0)+IF(#REF!="Yes", SUMIFS(#REF!,#REF!,#REF!),0)+IF(#REF!="Yes",SUMIFS(#REF!,#REF!,#REF!),0)+IF(#REF!="Yes",SUMIFS(#REF!,#REF!,#REF!),0)+IF(#REF!="Yes",SUMIFS(#REF!,#REF!,#REF!),0) -> 
A27: Summer Salary | C27: ='Budget Worksheet'!#REF! ->  | D27: ='Budget Worksheet'!#REF! ->  | E27: ='Budget Worksheet'!#REF! ->  | F27: ='Budget Worksheet'!#REF! ->  | G27: ='Budget Worksheet'!#REF! ->  | H27: ='Budget Worksheet'!#REF! ->  | I27: ='Budget Worksheet'!#REF! ->  | J27: ='Budget Worksheet'!#REF! ->  | K27: ='Budget Worksheet'!#REF! ->  | L27: ='Budget Worksheet'!#REF! ->  | M27: ='Budget Worksheet'!#REF! ->  | N27: =IF(#REF!="Yes",SUMIFS(#REF!,#REF!,#REF!),0)+IF(#REF!="Yes", SUMIFS(#REF!,#REF!,#REF!),0)+IF(#REF!="Yes",SUMIFS(#REF!,#REF!,#REF!),0)+IF(#REF!="Yes",SUMIFS(#REF!,#REF!,#REF!),0)+IF(#REF!="Yes",SUMIFS(#REF!,#REF!,#REF!),0) ->  | O27: =IF(#REF!="Yes",SUMIFS(#REF!,#REF!,#REF!),0)+IF(#REF!="Yes", SUMIFS(#REF!,#REF!,#REF!),0)+IF(#REF!="Yes",SUMIFS(#REF!,#REF!,#REF!),0)+IF(#REF!="Yes",SUMIFS(#REF!,#REF!,#REF!),0)+IF(#REF!="Yes",SUMIFS(#REF!,#REF!,#REF!),0) ->  | P27: =IF(#REF!="Yes",SUMIFS(#REF!,#REF!,#REF!),0)+IF(#REF!="Yes", SUMIFS(#REF!,#REF!,#REF!),0)+IF(#REF!="Yes",SUMIFS(#REF!,#REF!,#REF!),0)+IF(#REF!="Yes",SUMIFS(#REF!,#REF!,#REF!),0)+IF(#REF!="Yes",SUMIFS(#REF!,#REF!,#REF!),0) ->  | Q27: =#REF! ->  | R27: =IF(#REF!="Yes",SUMIFS(#REF!,#REF!,#REF!),0)+IF(#REF!="Yes", SUMIFS(#REF!,#REF!,#REF!),0)+IF(#REF!="Yes",SUMIFS(#REF!,#REF!,#REF!),0)+IF(#REF!="Yes",SUMIFS(#REF!,#REF!,#REF!),0)+IF(#REF!="Yes",SUMIFS(#REF!,#REF!,#REF!),0) ->  | S27: =IF(#REF!="Yes",SUMIFS(#REF!,#REF!,#REF!),0)+IF(#REF!="Yes", SUMIFS(#REF!,#REF!,#REF!),0)+IF(#REF!="Yes",SUMIFS(#REF!,#REF!,#REF!),0)+IF(#REF!="Yes",SUMIFS(#REF!,#REF!,#REF!),0)+IF(#REF!="Yes",SUMIFS(#REF!,#REF!,#REF!),0) ->  | T27: =IF(#REF!="Yes",SUMIFS(#REF!,#REF!,#REF!),0)+IF(#REF!="Yes", SUMIFS(#REF!,#REF!,#REF!),0)+IF(#REF!="Yes",SUMIFS(#REF!,#REF!,#REF!),0)+IF(#REF!="Yes",SUMIFS(#REF!,#REF!,#REF!),0)+IF(#REF!="Yes",SUMIFS(#REF!,#REF!,#REF!),0) ->  | U27: =IF(#REF!="Yes",SUMIFS(#REF!,#REF!,#REF!),0)+IF(#REF!="Yes", SUMIFS(#REF!,#REF!,#REF!),0)+IF(#REF!="Yes",SUMIFS(#REF!,#REF!,#REF!),0)+IF(#REF!="Yes",SUMIFS(#REF!,#REF!,#REF!),0)+IF(#REF!="Yes",SUMIFS(#REF!,#REF!,#REF!),0) ->  | V27: =IF(#REF!="Yes",SUMIFS(#REF!,#REF!,#REF!),0)+IF(#REF!="Yes", SUMIFS(#REF!,#REF!,#REF!),0)+IF(#REF!="Yes",SUMIFS(#REF!,#REF!,#REF!),0)+IF(#REF!="Yes",SUMIFS(#REF!,#REF!,#REF!),0)+IF(#REF!="Yes",SUMIFS(#REF!,#REF!,#REF!),0) ->  | W27: =IF(#REF!="Yes",SUMIFS(#REF!,#REF!,#REF!),0)+IF(#REF!="Yes", SUMIFS(#REF!,#REF!,#REF!),0)+IF(#REF!="Yes",SUMIFS(#REF!,#REF!,#REF!),0)+IF(#REF!="Yes",SUMIFS(#REF!,#REF!,#REF!),0)+IF(#REF!="Yes",SUMIFS(#REF!,#REF!,#REF!),0) ->  | X27: =IF(#REF!="Yes",SUMIFS(#REF!,#REF!,#REF!),0)+IF(#REF!="Yes", SUMIFS(#REF!,#REF!,#REF!),0)+IF(#REF!="Yes",SUMIFS(#REF!,#REF!,#REF!),0)+IF(#REF!="Yes",SUMIFS(#REF!,#REF!,#REF!),0)+IF(#REF!="Yes",SUMIFS(#REF!,#REF!,#REF!),0) -> 
A28: Fringe | H28: ='Budget Worksheet'!#REF! ->  | I28: ='Budget Worksheet'!#REF! ->  | J28: ='Budget Worksheet'!#REF! ->  | K28: ='Budget Worksheet'!#REF! ->  | L28: ='Budget Worksheet'!#REF! ->  | M28: ='Budget Worksheet'!#REF! ->  | N28: =IF(#REF!="Yes",SUMIFS(#REF!,#REF!,#REF!),0)+IF(#REF!="Yes", SUMIFS(#REF!,#REF!,#REF!),0)+IF(#REF!="Yes",SUMIFS(#REF!,#REF!,#REF!),0)+IF(#REF!="Yes",SUMIFS(#REF!,#REF!,#REF!),0)+IF(#REF!="Yes",SUMIFS(#REF!,#REF!,#REF!),0) ->  | O28: =IF(#REF!="Yes",SUMIFS(#REF!,#REF!,#REF!),0)+IF(#REF!="Yes", SUMIFS(#REF!,#REF!,#REF!),0)+IF(#REF!="Yes",SUMIFS(#REF!,#REF!,#REF!),0)+IF(#REF!="Yes",SUMIFS(#REF!,#REF!,#REF!),0)+IF(#REF!="Yes",SUMIFS(#REF!,#REF!,#REF!),0) ->  | P28: =IF(#REF!="Yes",SUMIFS(#REF!,#REF!,#REF!),0)+IF(#REF!="Yes", SUMIFS(#REF!,#REF!,#REF!),0)+IF(#REF!="Yes",SUMIFS(#REF!,#REF!,#REF!),0)+IF(#REF!="Yes",SUMIFS(#REF!,#REF!,#REF!),0)+IF(#REF!="Yes",SUMIFS(#REF!,#REF!,#REF!),0) ->  | Q28: =#REF! ->  | R28: =IF(#REF!="Yes",SUMIFS(#REF!,#REF!,#REF!),0)+IF(#REF!="Yes", SUMIFS(#REF!,#REF!,#REF!),0)+IF(#REF!="Yes",SUMIFS(#REF!,#REF!,#REF!),0)+IF(#REF!="Yes",SUMIFS(#REF!,#REF!,#REF!),0)+IF(#REF!="Yes",SUMIFS(#REF!,#REF!,#REF!),0) ->  | S28: =IF(#REF!="Yes",SUMIFS(#REF!,#REF!,#REF!),0)+IF(#REF!="Yes", SUMIFS(#REF!,#REF!,#REF!),0)+IF(#REF!="Yes",SUMIFS(#REF!,#REF!,#REF!),0)+IF(#REF!="Yes",SUMIFS(#REF!,#REF!,#REF!),0)+IF(#REF!="Yes",SUMIFS(#REF!,#REF!,#REF!),0) ->  | T28: =IF(#REF!="Yes",SUMIFS(#REF!,#REF!,#REF!),0)+IF(#REF!="Yes", SUMIFS(#REF!,#REF!,#REF!),0)+IF(#REF!="Yes",SUMIFS(#REF!,#REF!,#REF!),0)+IF(#REF!="Yes",SUMIFS(#REF!,#REF!,#REF!),0)+IF(#REF!="Yes",SUMIFS(#REF!,#REF!,#REF!),0) ->  | U28: =IF(#REF!="Yes",SUMIFS(#REF!,#REF!,#REF!),0)+IF(#REF!="Yes", SUMIFS(#REF!,#REF!,#REF!),0)+IF(#REF!="Yes",SUMIFS(#REF!,#REF!,#REF!),0)+IF(#REF!="Yes",SUMIFS(#REF!,#REF!,#REF!),0)+IF(#REF!="Yes",SUMIFS(#REF!,#REF!,#REF!),0) ->  | V28: =IF(#REF!="Yes",SUMIFS(#REF!,#REF!,#REF!),0)+IF(#REF!="Yes", SUMIFS(#REF!,#REF!,#REF!),0)+IF(#REF!="Yes",SUMIFS(#REF!,#REF!,#REF!),0)+IF(#REF!="Yes",SUMIFS(#REF!,#REF!,#REF!),0)+IF(#REF!="Yes",SUMIFS(#REF!,#REF!,#REF!),0) ->  | W28: =IF(#REF!="Yes",SUMIFS(#REF!,#REF!,#REF!),0)+IF(#REF!="Yes", SUMIFS(#REF!,#REF!,#REF!),0)+IF(#REF!="Yes",SUMIFS(#REF!,#REF!,#REF!),0)+IF(#REF!="Yes",SUMIFS(#REF!,#REF!,#REF!),0)+IF(#REF!="Yes",SUMIFS(#REF!,#REF!,#REF!),0) ->  | X28: =IF(#REF!="Yes",SUMIFS(#REF!,#REF!,#REF!),0)+IF(#REF!="Yes", SUMIFS(#REF!,#REF!,#REF!),0)+IF(#REF!="Yes",SUMIFS(#REF!,#REF!,#REF!),0)+IF(#REF!="Yes",SUMIFS(#REF!,#REF!,#REF!),0)+IF(#REF!="Yes",SUMIFS(#REF!,#REF!,#REF!),0) -> 
N29: =#REF! ->  | O29: =IF(#REF!="Yes",SUMIFS(#REF!,#REF!,#REF!),0)+IF(#REF!="Yes", SUMIFS(#REF!,#REF!,#REF!),0)+IF(#REF!="Yes",SUMIFS(#REF!,#REF!,#REF!),0)+IF(#REF!="Yes",SUMIFS(#REF!,#REF!,#REF!),0)+IF(#REF!="Yes",SUMIFS(#REF!,#REF!,#REF!),0) ->  | P29: =IF(#REF!="Yes",SUMIFS(#REF!,#REF!,#REF!),0)+IF(#REF!="Yes", SUMIFS(#REF!,#REF!,#REF!),0)+IF(#REF!="Yes",SUMIFS(#REF!,#REF!,#REF!),0)+IF(#REF!="Yes",SUMIFS(#REF!,#REF!,#REF!),0)+IF(#REF!="Yes",SUMIFS(#REF!,#REF!,#REF!),0) ->  | Q29: =#REF! ->  | R29: =IF(#REF!="Yes",SUMIFS(#REF!,#REF!,#REF!),0)+IF(#REF!="Yes", SUMIFS(#REF!,#REF!,#REF!),0)+IF(#REF!="Yes",SUMIFS(#REF!,#REF!,#REF!),0)+IF(#REF!="Yes",SUMIFS(#REF!,#REF!,#REF!),0)+IF(#REF!="Yes",SUMIFS(#REF!,#REF!,#REF!),0) ->  | S29: =IF(#REF!="Yes",SUMIFS(#REF!,#REF!,#REF!),0)+IF(#REF!="Yes", SUMIFS(#REF!,#REF!,#REF!),0)+IF(#REF!="Yes",SUMIFS(#REF!,#REF!,#REF!),0)+IF(#REF!="Yes",SUMIFS(#REF!,#REF!,#REF!),0)+IF(#REF!="Yes",SUMIFS(#REF!,#REF!,#REF!),0) ->  | T29: =IF(#REF!="Yes",SUMIFS(#REF!,#REF!,#REF!),0)+IF(#REF!="Yes", SUMIFS(#REF!,#REF!,#REF!),0)+IF(#REF!="Yes",SUMIFS(#REF!,#REF!,#REF!),0)+IF(#REF!="Yes",SUMIFS(#REF!,#REF!,#REF!),0)+IF(#REF!="Yes",SUMIFS(#REF!,#REF!,#REF!),0) ->  | U29: =IF(#REF!="Yes",SUMIFS(#REF!,#REF!,#REF!),0)+IF(#REF!="Yes", SUMIFS(#REF!,#REF!,#REF!),0)+IF(#REF!="Yes",SUMIFS(#REF!,#REF!,#REF!),0)+IF(#REF!="Yes",SUMIFS(#REF!,#REF!,#REF!),0)+IF(#REF!="Yes",SUMIFS(#REF!,#REF!,#REF!),0) ->  | V29: =IF(#REF!="Yes",SUMIFS(#REF!,#REF!,#REF!),0)+IF(#REF!="Yes", SUMIFS(#REF!,#REF!,#REF!),0)+IF(#REF!="Yes",SUMIFS(#REF!,#REF!,#REF!),0)+IF(#REF!="Yes",SUMIFS(#REF!,#REF!,#REF!),0)+IF(#REF!="Yes",SUMIFS(#REF!,#REF!,#REF!),0) ->  | W29: =IF(#REF!="Yes",SUMIFS(#REF!,#REF!,#REF!),0)+IF(#REF!="Yes", SUMIFS(#REF!,#REF!,#REF!),0)+IF(#REF!="Yes",SUMIFS(#REF!,#REF!,#REF!),0)+IF(#REF!="Yes",SUMIFS(#REF!,#REF!,#REF!),0)+IF(#REF!="Yes",SUMIFS(#REF!,#REF!,#REF!),0) ->  | X29: =IF(#REF!="Yes",SUMIFS(#REF!,#REF!,#REF!),0)+IF(#REF!="Yes", SUMIFS(#REF!,#REF!,#REF!),0)+IF(#REF!="Yes",SUMIFS(#REF!,#REF!,#REF!),0)+IF(#REF!="Yes",SUMIFS(#REF!,#REF!,#REF!),0)+IF(#REF!="Yes",SUMIFS(#REF!,#REF!,#REF!),0) -> 
A30: ='Budget Worksheet'!#REF! ->  | N30: =#REF! ->  | O30: =IF(#REF!="Yes",SUMIFS(#REF!,#REF!,#REF!),0)+IF(#REF!="Yes", SUMIFS(#REF!,#REF!,#REF!),0)+IF(#REF!="Yes",SUMIFS(#REF!,#REF!,#REF!),0)+IF(#REF!="Yes",SUMIFS(#REF!,#REF!,#REF!),0)+IF(#REF!="Yes",SUMIFS(#REF!,#REF!,#REF!),0) ->  | P30: =IF(#REF!="Yes",SUMIFS(#REF!,#REF!,#REF!),0)+IF(#REF!="Yes", SUMIFS(#REF!,#REF!,#REF!),0)+IF(#REF!="Yes",SUMIFS(#REF!,#REF!,#REF!),0)+IF(#REF!="Yes",SUMIFS(#REF!,#REF!,#REF!),0)+IF(#REF!="Yes",SUMIFS(#REF!,#REF!,#REF!),0) ->  | Q30: =#REF! ->  | R30: =IF(#REF!="Yes",SUMIFS(#REF!,#REF!,#REF!),0)+IF(#REF!="Yes", SUMIFS(#REF!,#REF!,#REF!),0)+IF(#REF!="Yes",SUMIFS(#REF!,#REF!,#REF!),0)+IF(#REF!="Yes",SUMIFS(#REF!,#REF!,#REF!),0)+IF(#REF!="Yes",SUMIFS(#REF!,#REF!,#REF!),0) ->  | S30: =IF(#REF!="Yes",SUMIFS(#REF!,#REF!,#REF!),0)+IF(#REF!="Yes", SUMIFS(#REF!,#REF!,#REF!),0)+IF(#REF!="Yes",SUMIFS(#REF!,#REF!,#REF!),0)+IF(#REF!="Yes",SUMIFS(#REF!,#REF!,#REF!),0)+IF(#REF!="Yes",SUMIFS(#REF!,#REF!,#REF!),0) ->  | T30: =IF(#REF!="Yes",SUMIFS(#REF!,#REF!,#REF!),0)+IF(#REF!="Yes", SUMIFS(#REF!,#REF!,#REF!),0)+IF(#REF!="Yes",SUMIFS(#REF!,#REF!,#REF!),0)+IF(#REF!="Yes",SUMIFS(#REF!,#REF!,#REF!),0)+IF(#REF!="Yes",SUMIFS(#REF!,#REF!,#REF!),0) ->  | U30: =IF(#REF!="Yes",SUMIFS(#REF!,#REF!,#REF!),0)+IF(#REF!="Yes", SUMIFS(#REF!,#REF!,#REF!),0)+IF(#REF!="Yes",SUMIFS(#REF!,#REF!,#REF!),0)+IF(#REF!="Yes",SUMIFS(#REF!,#REF!,#REF!),0)+IF(#REF!="Yes",SUMIFS(#REF!,#REF!,#REF!),0) ->  | V30: =IF(#REF!="Yes",SUMIFS(#REF!,#REF!,#REF!),0)+IF(#REF!="Yes", SUMIFS(#REF!,#REF!,#REF!),0)+IF(#REF!="Yes",SUMIFS(#REF!,#REF!,#REF!),0)+IF(#REF!="Yes",SUMIFS(#REF!,#REF!,#REF!),0)+IF(#REF!="Yes",SUMIFS(#REF!,#REF!,#REF!),0) ->  | W30: =IF(#REF!="Yes",SUMIFS(#REF!,#REF!,#REF!),0)+IF(#REF!="Yes", SUMIFS(#REF!,#REF!,#REF!),0)+IF(#REF!="Yes",SUMIFS(#REF!,#REF!,#REF!),0)+IF(#REF!="Yes",SUMIFS(#REF!,#REF!,#REF!),0)+IF(#REF!="Yes",SUMIFS(#REF!,#REF!,#REF!),0) ->  | X30: =IF(#REF!="Yes",SUMIFS(#REF!,#REF!,#REF!),0)+IF(#REF!="Yes", SUMIFS(#REF!,#REF!,#REF!),0)+IF(#REF!="Yes",SUMIFS(#REF!,#REF!,#REF!),0)+IF(#REF!="Yes",SUMIFS(#REF!,#REF!,#REF!),0)+IF(#REF!="Yes",SUMIFS(#REF!,#REF!,#REF!),0) -> 
A31: ='Budget Worksheet'!#REF! ->  | C31: ='Budget Worksheet'!#REF! ->  | D31: ='Budget Worksheet'!#REF! ->  | E31: ='Budget Worksheet'!#REF! ->  | F31: ='Budget Worksheet'!#REF! ->  | G31: ='Budget Worksheet'!#REF! ->  | H31: ='Budget Worksheet'!#REF! ->  | I31: ='Budget Worksheet'!#REF! ->  | J31: ='Budget Worksheet'!#REF! ->  | K31: ='Budget Worksheet'!#REF! ->  | L31: ='Budget Worksheet'!#REF! ->  | M31: ='Budget Worksheet'!#REF! ->  | N31: =IF(#REF!="Yes",SUMIFS(#REF!,#REF!,#REF!),0)+IF(#REF!="Yes", SUMIFS(#REF!,#REF!,#REF!),0)+IF(#REF!="Yes",SUMIFS(#REF!,#REF!,#REF!),0)+IF(#REF!="Yes",SUMIFS(#REF!,#REF!,#REF!),0)+IF(#REF!="Yes",SUMIFS(#REF!,#REF!,#REF!),0) ->  | O31: =IF(#REF!="Yes",SUMIFS(#REF!,#REF!,#REF!),0)+IF(#REF!="Yes", SUMIFS(#REF!,#REF!,#REF!),0)+IF(#REF!="Yes",SUMIFS(#REF!,#REF!,#REF!),0)+IF(#REF!="Yes",SUMIFS(#REF!,#REF!,#REF!),0)+IF(#REF!="Yes",SUMIFS(#REF!,#REF!,#REF!),0) ->  | P31: =IF(#REF!="Yes",SUMIFS(#REF!,#REF!,#REF!),0)+IF(#REF!="Yes", SUMIFS(#REF!,#REF!,#REF!),0)+IF(#REF!="Yes",SUMIFS(#REF!,#REF!,#REF!),0)+IF(#REF!="Yes",SUMIFS(#REF!,#REF!,#REF!),0)+IF(#REF!="Yes",SUMIFS(#REF!,#REF!,#REF!),0) ->  | Q31: =#REF! ->  | R31: =IF(#REF!="Yes",SUMIFS(#REF!,#REF!,#REF!),0)+IF(#REF!="Yes", SUMIFS(#REF!,#REF!,#REF!),0)+IF(#REF!="Yes",SUMIFS(#REF!,#REF!,#REF!),0)+IF(#REF!="Yes",SUMIFS(#REF!,#REF!,#REF!),0)+IF(#REF!="Yes",SUMIFS(#REF!,#REF!,#REF!),0) ->  | S31: =IF(#REF!="Yes",SUMIFS(#REF!,#REF!,#REF!),0)+IF(#REF!="Yes", SUMIFS(#REF!,#REF!,#REF!),0)+IF(#REF!="Yes",SUMIFS(#REF!,#REF!,#REF!),0)+IF(#REF!="Yes",SUMIFS(#REF!,#REF!,#REF!),0)+IF(#REF!="Yes",SUMIFS(#REF!,#REF!,#REF!),0) ->  | T31: =IF(#REF!="Yes",SUMIFS(#REF!,#REF!,#REF!),0)+IF(#REF!="Yes", SUMIFS(#REF!,#REF!,#REF!),0)+IF(#REF!="Yes",SUMIFS(#REF!,#REF!,#REF!),0)+IF(#REF!="Yes",SUMIFS(#REF!,#REF!,#REF!),0)+IF(#REF!="Yes",SUMIFS(#REF!,#REF!,#REF!),0) ->  | U31: =IF(#REF!="Yes",SUMIFS(#REF!,#REF!,#REF!),0)+IF(#REF!="Yes", SUMIFS(#REF!,#REF!,#REF!),0)+IF(#REF!="Yes",SUMIFS(#REF!,#REF!,#REF!),0)+IF(#REF!="Yes",SUMIFS(#REF!,#REF!,#REF!),0)+IF(#REF!="Yes",SUMIFS(#REF!,#REF!,#REF!),0) ->  | V31: =IF(#REF!="Yes",SUMIFS(#REF!,#REF!,#REF!),0)+IF(#REF!="Yes", SUMIFS(#REF!,#REF!,#REF!),0)+IF(#REF!="Yes",SUMIFS(#REF!,#REF!,#REF!),0)+IF(#REF!="Yes",SUMIFS(#REF!,#REF!,#REF!),0)+IF(#REF!="Yes",SUMIFS(#REF!,#REF!,#REF!),0) ->  | W31: =IF(#REF!="Yes",SUMIFS(#REF!,#REF!,#REF!),0)+IF(#REF!="Yes", SUMIFS(#REF!,#REF!,#REF!),0)+IF(#REF!="Yes",SUMIFS(#REF!,#REF!,#REF!),0)+IF(#REF!="Yes",SUMIFS(#REF!,#REF!,#REF!),0)+IF(#REF!="Yes",SUMIFS(#REF!,#REF!,#REF!),0) ->  | X31: =IF(#REF!="Yes",SUMIFS(#REF!,#REF!,#REF!),0)+IF(#REF!="Yes", SUMIFS(#REF!,#REF!,#REF!),0)+IF(#REF!="Yes",SUMIFS(#REF!,#REF!,#REF!),0)+IF(#REF!="Yes",SUMIFS(#REF!,#REF!,#REF!),0)+IF(#REF!="Yes",SUMIFS(#REF!,#REF!,#REF!),0) -> 
A32: Summer Salary | C32: ='Budget Worksheet'!#REF! ->  | D32: ='Budget Worksheet'!#REF! ->  | E32: ='Budget Worksheet'!#REF! ->  | F32: ='Budget Worksheet'!#REF! ->  | G32: ='Budget Worksheet'!#REF! ->  | H32: ='Budget Worksheet'!#REF! ->  | I32: ='Budget Worksheet'!#REF! ->  | J32: ='Budget Worksheet'!#REF! ->  | K32: ='Budget Worksheet'!#REF! ->  | L32: ='Budget Worksheet'!#REF! ->  | M32: ='Budget Worksheet'!#REF! ->  | N32: =IF(#REF!="Yes",SUMIFS(#REF!,#REF!,#REF!),0)+IF(#REF!="Yes", SUMIFS(#REF!,#REF!,#REF!),0)+IF(#REF!="Yes",SUMIFS(#REF!,#REF!,#REF!),0)+IF(#REF!="Yes",SUMIFS(#REF!,#REF!,#REF!),0)+IF(#REF!="Yes",SUMIFS(#REF!,#REF!,#REF!),0) ->  | O32: =IF(#REF!="Yes",SUMIFS(#REF!,#REF!,#REF!),0)+IF(#REF!="Yes", SUMIFS(#REF!,#REF!,#REF!),0)+IF(#REF!="Yes",SUMIFS(#REF!,#REF!,#REF!),0)+IF(#REF!="Yes",SUMIFS(#REF!,#REF!,#REF!),0)+IF(#REF!="Yes",SUMIFS(#REF!,#REF!,#REF!),0) ->  | P32: =IF(#REF!="Yes",SUMIFS(#REF!,#REF!,#REF!),0)+IF(#REF!="Yes", SUMIFS(#REF!,#REF!,#REF!),0)+IF(#REF!="Yes",SUMIFS(#REF!,#REF!,#REF!),0)+IF(#REF!="Yes",SUMIFS(#REF!,#REF!,#REF!),0)+IF(#REF!="Yes",SUMIFS(#REF!,#REF!,#REF!),0) ->  | Q32: =#REF! ->  | R32: =IF(#REF!="Yes",SUMIFS(#REF!,#REF!,#REF!),0)+IF(#REF!="Yes", SUMIFS(#REF!,#REF!,#REF!),0)+IF(#REF!="Yes",SUMIFS(#REF!,#REF!,#REF!),0)+IF(#REF!="Yes",SUMIFS(#REF!,#REF!,#REF!),0)+IF(#REF!="Yes",SUMIFS(#REF!,#REF!,#REF!),0) ->  | S32: =IF(#REF!="Yes",SUMIFS(#REF!,#REF!,#REF!),0)+IF(#REF!="Yes", SUMIFS(#REF!,#REF!,#REF!),0)+IF(#REF!="Yes",SUMIFS(#REF!,#REF!,#REF!),0)+IF(#REF!="Yes",SUMIFS(#REF!,#REF!,#REF!),0)+IF(#REF!="Yes",SUMIFS(#REF!,#REF!,#REF!),0) ->  | T32: =IF(#REF!="Yes",SUMIFS(#REF!,#REF!,#REF!),0)+IF(#REF!="Yes", SUMIFS(#REF!,#REF!,#REF!),0)+IF(#REF!="Yes",SUMIFS(#REF!,#REF!,#REF!),0)+IF(#REF!="Yes",SUMIFS(#REF!,#REF!,#REF!),0)+IF(#REF!="Yes",SUMIFS(#REF!,#REF!,#REF!),0) ->  | U32: =IF(#REF!="Yes",SUMIFS(#REF!,#REF!,#REF!),0)+IF(#REF!="Yes", SUMIFS(#REF!,#REF!,#REF!),0)+IF(#REF!="Yes",SUMIFS(#REF!,#REF!,#REF!),0)+IF(#REF!="Yes",SUMIFS(#REF!,#REF!,#REF!),0)+IF(#REF!="Yes",SUMIFS(#REF!,#REF!,#REF!),0) ->  | V32: =IF(#REF!="Yes",SUMIFS(#REF!,#REF!,#REF!),0)+IF(#REF!="Yes", SUMIFS(#REF!,#REF!,#REF!),0)+IF(#REF!="Yes",SUMIFS(#REF!,#REF!,#REF!),0)+IF(#REF!="Yes",SUMIFS(#REF!,#REF!,#REF!),0)+IF(#REF!="Yes",SUMIFS(#REF!,#REF!,#REF!),0) ->  | W32: =IF(#REF!="Yes",SUMIFS(#REF!,#REF!,#REF!),0)+IF(#REF!="Yes", SUMIFS(#REF!,#REF!,#REF!),0)+IF(#REF!="Yes",SUMIFS(#REF!,#REF!,#REF!),0)+IF(#REF!="Yes",SUMIFS(#REF!,#REF!,#REF!),0)+IF(#REF!="Yes",SUMIFS(#REF!,#REF!,#REF!),0) ->  | X32: =IF(#REF!="Yes",SUMIFS(#REF!,#REF!,#REF!),0)+IF(#REF!="Yes", SUMIFS(#REF!,#REF!,#REF!),0)+IF(#REF!="Yes",SUMIFS(#REF!,#REF!,#REF!),0)+IF(#REF!="Yes",SUMIFS(#REF!,#REF!,#REF!),0)+IF(#REF!="Yes",SUMIFS(#REF!,#REF!,#REF!),0) -> 
A33: Fringe | H33: ='Budget Worksheet'!#REF! ->  | I33: ='Budget Worksheet'!#REF! ->  | J33: ='Budget Worksheet'!#REF! ->  | K33: ='Budget Worksheet'!#REF! ->  | L33: ='Budget Worksheet'!#REF! ->  | M33: ='Budget Worksheet'!#REF! ->  | N33: =IF(#REF!="Yes",SUMIFS(#REF!,#REF!,#REF!),0)+IF(#REF!="Yes", SUMIFS(#REF!,#REF!,#REF!),0)+IF(#REF!="Yes",SUMIFS(#REF!,#REF!,#REF!),0)+IF(#REF!="Yes",SUMIFS(#REF!,#REF!,#REF!),0)+IF(#REF!="Yes",SUMIFS(#REF!,#REF!,#REF!),0) ->  | O33: =IF(#REF!="Yes",SUMIFS(#REF!,#REF!,#REF!),0)+IF(#REF!="Yes", SUMIFS(#REF!,#REF!,#REF!),0)+IF(#REF!="Yes",SUMIFS(#REF!,#REF!,#REF!),0)+IF(#REF!="Yes",SUMIFS(#REF!,#REF!,#REF!),0)+IF(#REF!="Yes",SUMIFS(#REF!,#REF!,#REF!),0) ->  | P33: =IF(#REF!="Yes",SUMIFS(#REF!,#REF!,#REF!),0)+IF(#REF!="Yes", SUMIFS(#REF!,#REF!,#REF!),0)+IF(#REF!="Yes",SUMIFS(#REF!,#REF!,#REF!),0)+IF(#REF!="Yes",SUMIFS(#REF!,#REF!,#REF!),0)+IF(#REF!="Yes",SUMIFS(#REF!,#REF!,#REF!),0) ->  | Q33: =#REF! ->  | R33: =IF(#REF!="Yes",SUMIFS(#REF!,#REF!,#REF!),0)+IF(#REF!="Yes", SUMIFS(#REF!,#REF!,#REF!),0)+IF(#REF!="Yes",SUMIFS(#REF!,#REF!,#REF!),0)+IF(#REF!="Yes",SUMIFS(#REF!,#REF!,#REF!),0)+IF(#REF!="Yes",SUMIFS(#REF!,#REF!,#REF!),0) ->  | S33: =IF(#REF!="Yes",SUMIFS(#REF!,#REF!,#REF!),0)+IF(#REF!="Yes", SUMIFS(#REF!,#REF!,#REF!),0)+IF(#REF!="Yes",SUMIFS(#REF!,#REF!,#REF!),0)+IF(#REF!="Yes",SUMIFS(#REF!,#REF!,#REF!),0)+IF(#REF!="Yes",SUMIFS(#REF!,#REF!,#REF!),0) ->  | T33: =IF(#REF!="Yes",SUMIFS(#REF!,#REF!,#REF!),0)+IF(#REF!="Yes", SUMIFS(#REF!,#REF!,#REF!),0)+IF(#REF!="Yes",SUMIFS(#REF!,#REF!,#REF!),0)+IF(#REF!="Yes",SUMIFS(#REF!,#REF!,#REF!),0)+IF(#REF!="Yes",SUMIFS(#REF!,#REF!,#REF!),0) ->  | U33: =IF(#REF!="Yes",SUMIFS(#REF!,#REF!,#REF!),0)+IF(#REF!="Yes", SUMIFS(#REF!,#REF!,#REF!),0)+IF(#REF!="Yes",SUMIFS(#REF!,#REF!,#REF!),0)+IF(#REF!="Yes",SUMIFS(#REF!,#REF!,#REF!),0)+IF(#REF!="Yes",SUMIFS(#REF!,#REF!,#REF!),0) ->  | V33: =IF(#REF!="Yes",SUMIFS(#REF!,#REF!,#REF!),0)+IF(#REF!="Yes", SUMIFS(#REF!,#REF!,#REF!),0)+IF(#REF!="Yes",SUMIFS(#REF!,#REF!,#REF!),0)+IF(#REF!="Yes",SUMIFS(#REF!,#REF!,#REF!),0)+IF(#REF!="Yes",SUMIFS(#REF!,#REF!,#REF!),0) ->  | W33: =IF(#REF!="Yes",SUMIFS(#REF!,#REF!,#REF!),0)+IF(#REF!="Yes", SUMIFS(#REF!,#REF!,#REF!),0)+IF(#REF!="Yes",SUMIFS(#REF!,#REF!,#REF!),0)+IF(#REF!="Yes",SUMIFS(#REF!,#REF!,#REF!),0)+IF(#REF!="Yes",SUMIFS(#REF!,#REF!,#REF!),0) ->  | X33: =IF(#REF!="Yes",SUMIFS(#REF!,#REF!,#REF!),0)+IF(#REF!="Yes", SUMIFS(#REF!,#REF!,#REF!),0)+IF(#REF!="Yes",SUMIFS(#REF!,#REF!,#REF!),0)+IF(#REF!="Yes",SUMIFS(#REF!,#REF!,#REF!),0)+IF(#REF!="Yes",SUMIFS(#REF!,#REF!,#REF!),0) -> 
Q34: =#REF! -> 
Q35: =#REF! -> 
A36: B. Other Personnel: | B36: # Pers | Q36: =#REF! -> 
A37: Post Doctoral Associates | B37: =SUMIFS('Budget Worksheet'!$E$27:$E$46,'Budget Worksheet'!$C$27:$C$46,'PI View '!A37) -> 0 | C37: =SUMIFS('Budget Worksheet'!F$27:F$46,'Budget Worksheet'!$C$27:$C$46,'PI View '!$A37) -> 0 | D37: =SUMIFS('Budget Worksheet'!G$27:G$46,'Budget Worksheet'!$C$27:$C$46,'PI View '!$A37) -> 0 | E37: =SUMIFS('Budget Worksheet'!H$27:H$46,'Budget Worksheet'!$C$27:$C$46,'PI View '!$A37) -> 0 | F37: =SUMIFS('Budget Worksheet'!I$27:I$46,'Budget Worksheet'!$C$27:$C$46,'PI View '!$A37) -> 0 | G37: =SUMIFS('Budget Worksheet'!J$27:J$46,'Budget Worksheet'!$C$27:$C$46,'PI View '!$A37) -> 0 | H37: =SUMIFS('Budget Worksheet'!L$27:L$46,'Budget Worksheet'!$C$27:$C$46,'PI View '!$A37) -> 0 | I37: =SUMIFS('Budget Worksheet'!M$27:M$46,'Budget Worksheet'!$C$27:$C$46,'PI View '!$A37) -> 0 | J37: =SUMIFS('Budget Worksheet'!N$27:N$46,'Budget Worksheet'!$C$27:$C$46,'PI View '!$A37) -> 0 | K37: =SUMIFS('Budget Worksheet'!O$27:O$46,'Budget Worksheet'!$C$27:$C$46,'PI View '!$A37) -> 0 | L37: =SUMIFS('Budget Worksheet'!P$27:P$46,'Budget Worksheet'!$C$27:$C$46,'PI View '!$A37) -> 0 | M37: =SUMIFS('Budget Worksheet'!Q$27:Q$46,'Budget Worksheet'!$C$27:$C$46,'PI View '!$A37) -> 0 | N37: =IF(#REF!="Yes",SUMIFS(#REF!,#REF!,A37),0)+IF(#REF!="Yes",SUMIFS(#REF!,#REF!,A37),0)+IF(#REF!="Yes",SUMIFS(#REF!,#REF!,A37),0)+IF(#REF!="Yes",SUMIFS(#REF!,#REF!,A37),0)+IF(#REF!="Yes",SUMIFS(#REF!,#REF!,A37),0) ->  | O37: =IF(#REF!="Yes",SUMIFS(#REF!,#REF!,A37),0)+IF(#REF!="Yes",SUMIFS(#REF!,#REF!,A37),0)+IF(#REF!="Yes",SUMIFS(#REF!,#REF!,A37),0)+IF(#REF!="Yes",SUMIFS(#REF!,#REF!,A37),0)+IF(#REF!="Yes",SUMIFS(#REF!,#REF!,A37),0) ->  | P37: =IF(#REF!="Yes",SUMIFS(#REF!,#REF!,A37),0)+IF(#REF!="Yes",SUMIFS(#REF!,#REF!,A37),0)+IF(#REF!="Yes",SUMIFS(#REF!,#REF!,A37),0)+IF(#REF!="Yes",SUMIFS(#REF!,#REF!,A37),0)+IF(#REF!="Yes",SUMIFS(#REF!,#REF!,A37),0) ->  | Q37: =SUM(N37:P37)+SUM(R37:X37) ->  | R37: =IF(#REF!="Yes",SUMIFS(#REF!,#REF!,A37),0)+IF(#REF!="Yes",SUMIFS(#REF!,#REF!,A37),0)+IF(#REF!="Yes",SUMIFS(#REF!,#REF!,A37),0)+IF(#REF!="Yes",SUMIFS(#REF!,#REF!,A37),0)+IF(#REF!="Yes",SUMIFS(#REF!,#REF!,A37),0) ->  | S37: =IF(#REF!="Yes",SUMIFS(#REF!,#REF!,A37),0)+IF(#REF!="Yes",SUMIFS(#REF!,#REF!,A37),0)+IF(#REF!="Yes",SUMIFS(#REF!,#REF!,A37),0)+IF(#REF!="Yes",SUMIFS(#REF!,#REF!,A37),0)+IF(#REF!="Yes",SUMIFS(#REF!,#REF!,A37),0) ->  | T37: =IF(#REF!="Yes",SUMIFS(#REF!,#REF!,A37),0)+IF(#REF!="Yes",SUMIFS(#REF!,#REF!,A37),0)+IF(#REF!="Yes",SUMIFS(#REF!,#REF!,A37),0)+IF(#REF!="Yes",SUMIFS(#REF!,#REF!,A37),0)+IF(#REF!="Yes",SUMIFS(#REF!,#REF!,A37),0) ->  | U37: =IF(#REF!="Yes",SUMIFS(#REF!,#REF!,A37),0)+IF(#REF!="Yes",SUMIFS(#REF!,#REF!,A37),0)+IF(#REF!="Yes",SUMIFS(#REF!,#REF!,A37),0)+IF(#REF!="Yes",SUMIFS(#REF!,#REF!,A37),0)+IF(#REF!="Yes",SUMIFS(#REF!,#REF!,A37),0) ->  | V37: =IF(#REF!="Yes",SUMIFS(#REF!,#REF!,A37),0)+IF(#REF!="Yes",SUMIFS(#REF!,#REF!,A37),0)+IF(#REF!="Yes",SUMIFS(#REF!,#REF!,A37),0)+IF(#REF!="Yes",SUMIFS(#REF!,#REF!,A37),0)+IF(#REF!="Yes",SUMIFS(#REF!,#REF!,A37),0) ->  | W37: =IF(#REF!="Yes",SUMIFS(#REF!,#REF!,A37),0)+IF(#REF!="Yes",SUMIFS(#REF!,#REF!,A37),0)+IF(#REF!="Yes",SUMIFS(#REF!,#REF!,A37),0)+IF(#REF!="Yes",SUMIFS(#REF!,#REF!,A37),0)+IF(#REF!="Yes",SUMIFS(#REF!,#REF!,A37),0) ->  | X37: =IF(#REF!="Yes",SUMIFS(#REF!,#REF!,A37),0)+IF(#REF!="Yes",SUMIFS(#REF!,#REF!,A37),0)+IF(#REF!="Yes",SUMIFS(#REF!,#REF!,A37),0)+IF(#REF!="Yes",SUMIFS(#REF!,#REF!,A37),0)+IF(#REF!="Yes",SUMIFS(#REF!,#REF!,A37),0) -> 
A38: Graduate Students | B38: =SUMIFS('Budget Worksheet'!$E$27:$E$46,'Budget Worksheet'!$C$27:$C$46,'PI View '!A38) -> 0 | C38: =SUMIFS('Budget Worksheet'!F$27:F$46,'Budget Worksheet'!$C$27:$C$46,'PI View '!$A38) -> 0 | D38: =SUMIFS('Budget Worksheet'!G$27:G$46,'Budget Worksheet'!$C$27:$C$46,'PI View '!$A38) -> 0 | E38: =SUMIFS('Budget Worksheet'!H$27:H$46,'Budget Worksheet'!$C$27:$C$46,'PI View '!$A38) -> 0 | F38: =SUMIFS('Budget Worksheet'!I$27:I$46,'Budget Worksheet'!$C$27:$C$46,'PI View '!$A38) -> 0 | G38: =SUMIFS('Budget Worksheet'!J$27:J$46,'Budget Worksheet'!$C$27:$C$46,'PI View '!$A38) -> 0 | H38: =SUMIFS('Budget Worksheet'!L$27:L$46,'Budget Worksheet'!$C$27:$C$46,'PI View '!$A38) -> 0 | I38: =SUMIFS('Budget Worksheet'!M$27:M$46,'Budget Worksheet'!$C$27:$C$46,'PI View '!$A38) -> 0 | J38: =SUMIFS('Budget Worksheet'!N$27:N$46,'Budget Worksheet'!$C$27:$C$46,'PI View '!$A38) -> 0 | K38: =SUMIFS('Budget Worksheet'!O$27:O$46,'Budget Worksheet'!$C$27:$C$46,'PI View '!$A38) -> 0 | L38: =SUMIFS('Budget Worksheet'!P$27:P$46,'Budget Worksheet'!$C$27:$C$46,'PI View '!$A38) -> 0 | M38: =SUMIFS('Budget Worksheet'!Q$27:Q$46,'Budget Worksheet'!$C$27:$C$46,'PI View '!$A38) -> 0 | N38: =IF(#REF!="Yes",SUMIFS(#REF!,#REF!,A38),0)+IF(#REF!="Yes",SUMIFS(#REF!,#REF!,A38),0)+IF(#REF!="Yes",SUMIFS(#REF!,#REF!,A38),0)+IF(#REF!="Yes",SUMIFS(#REF!,#REF!,A38),0)+IF(#REF!="Yes",SUMIFS(#REF!,#REF!,A38),0) ->  | O38: =IF(#REF!="Yes",SUMIFS(#REF!,#REF!,A38),0)+IF(#REF!="Yes",SUMIFS(#REF!,#REF!,A38),0)+IF(#REF!="Yes",SUMIFS(#REF!,#REF!,A38),0)+IF(#REF!="Yes",SUMIFS(#REF!,#REF!,A38),0)+IF(#REF!="Yes",SUMIFS(#REF!,#REF!,A38),0) ->  | P38: =IF(#REF!="Yes",SUMIFS(#REF!,#REF!,A38),0)+IF(#REF!="Yes",SUMIFS(#REF!,#REF!,A38),0)+IF(#REF!="Yes",SUMIFS(#REF!,#REF!,A38),0)+IF(#REF!="Yes",SUMIFS(#REF!,#REF!,A38),0)+IF(#REF!="Yes",SUMIFS(#REF!,#REF!,A38),0) ->  | Q38: =SUM(N38:P38)+SUM(R38:X38) ->  | R38: =IF(#REF!="Yes",SUMIFS(#REF!,#REF!,A38),0)+IF(#REF!="Yes",SUMIFS(#REF!,#REF!,A38),0)+IF(#REF!="Yes",SUMIFS(#REF!,#REF!,A38),0)+IF(#REF!="Yes",SUMIFS(#REF!,#REF!,A38),0)+IF(#REF!="Yes",SUMIFS(#REF!,#REF!,A38),0) ->  | S38: =IF(#REF!="Yes",SUMIFS(#REF!,#REF!,A38),0)+IF(#REF!="Yes",SUMIFS(#REF!,#REF!,A38),0)+IF(#REF!="Yes",SUMIFS(#REF!,#REF!,A38),0)+IF(#REF!="Yes",SUMIFS(#REF!,#REF!,A38),0)+IF(#REF!="Yes",SUMIFS(#REF!,#REF!,A38),0) ->  | T38: =IF(#REF!="Yes",SUMIFS(#REF!,#REF!,A38),0)+IF(#REF!="Yes",SUMIFS(#REF!,#REF!,A38),0)+IF(#REF!="Yes",SUMIFS(#REF!,#REF!,A38),0)+IF(#REF!="Yes",SUMIFS(#REF!,#REF!,A38),0)+IF(#REF!="Yes",SUMIFS(#REF!,#REF!,A38),0) ->  | U38: =IF(#REF!="Yes",SUMIFS(#REF!,#REF!,A38),0)+IF(#REF!="Yes",SUMIFS(#REF!,#REF!,A38),0)+IF(#REF!="Yes",SUMIFS(#REF!,#REF!,A38),0)+IF(#REF!="Yes",SUMIFS(#REF!,#REF!,A38),0)+IF(#REF!="Yes",SUMIFS(#REF!,#REF!,A38),0) ->  | V38: =IF(#REF!="Yes",SUMIFS(#REF!,#REF!,A38),0)+IF(#REF!="Yes",SUMIFS(#REF!,#REF!,A38),0)+IF(#REF!="Yes",SUMIFS(#REF!,#REF!,A38),0)+IF(#REF!="Yes",SUMIFS(#REF!,#REF!,A38),0)+IF(#REF!="Yes",SUMIFS(#REF!,#REF!,A38),0) ->  | W38: =IF(#REF!="Yes",SUMIFS(#REF!,#REF!,A38),0)+IF(#REF!="Yes",SUMIFS(#REF!,#REF!,A38),0)+IF(#REF!="Yes",SUMIFS(#REF!,#REF!,A38),0)+IF(#REF!="Yes",SUMIFS(#REF!,#REF!,A38),0)+IF(#REF!="Yes",SUMIFS(#REF!,#REF!,A38),0) ->  | X38: =IF(#REF!="Yes",SUMIFS(#REF!,#REF!,A38),0)+IF(#REF!="Yes",SUMIFS(#REF!,#REF!,A38),0)+IF(#REF!="Yes",SUMIFS(#REF!,#REF!,A38),0)+IF(#REF!="Yes",SUMIFS(#REF!,#REF!,A38),0)+IF(#REF!="Yes",SUMIFS(#REF!,#REF!,A38),0) -> 
A39: Undergraduate Students | B39: =SUMIFS('Budget Worksheet'!$E$27:$E$46,'Budget Worksheet'!$C$27:$C$46,'PI View '!A39) -> 0 | C39: =SUMIFS('Budget Worksheet'!F$27:F$46,'Budget Worksheet'!$C$27:$C$46,'PI View '!$A39) -> 0 | D39: =SUMIFS('Budget Worksheet'!G$27:G$46,'Budget Worksheet'!$C$27:$C$46,'PI View '!$A39) -> 0 | E39: =SUMIFS('Budget Worksheet'!H$27:H$46,'Budget Worksheet'!$C$27:$C$46,'PI View '!$A39) -> 0 | F39: =SUMIFS('Budget Worksheet'!I$27:I$46,'Budget Worksheet'!$C$27:$C$46,'PI View '!$A39) -> 0 | G39: =SUMIFS('Budget Worksheet'!J$27:J$46,'Budget Worksheet'!$C$27:$C$46,'PI View '!$A39) -> 0 | H39: =SUMIFS('Budget Worksheet'!L$27:L$46,'Budget Worksheet'!$C$27:$C$46,'PI View '!$A39) -> 0 | I39: =SUMIFS('Budget Worksheet'!M$27:M$46,'Budget Worksheet'!$C$27:$C$46,'PI View '!$A39) -> 0 | J39: =SUMIFS('Budget Worksheet'!N$27:N$46,'Budget Worksheet'!$C$27:$C$46,'PI View '!$A39) -> 0 | K39: =SUMIFS('Budget Worksheet'!O$27:O$46,'Budget Worksheet'!$C$27:$C$46,'PI View '!$A39) -> 0 | L39: =SUMIFS('Budget Worksheet'!P$27:P$46,'Budget Worksheet'!$C$27:$C$46,'PI View '!$A39) -> 0 | M39: =SUMIFS('Budget Worksheet'!Q$27:Q$46,'Budget Worksheet'!$C$27:$C$46,'PI View '!$A39) -> 0 | N39: =IF(#REF!="Yes",SUMIFS(#REF!,#REF!,A39),0)+IF(#REF!="Yes",SUMIFS(#REF!,#REF!,A39),0)+IF(#REF!="Yes",SUMIFS(#REF!,#REF!,A39),0)+IF(#REF!="Yes",SUMIFS(#REF!,#REF!,A39),0)+IF(#REF!="Yes",SUMIFS(#REF!,#REF!,A39),0) ->  | O39: =IF(#REF!="Yes",SUMIFS(#REF!,#REF!,A39),0)+IF(#REF!="Yes",SUMIFS(#REF!,#REF!,A39),0)+IF(#REF!="Yes",SUMIFS(#REF!,#REF!,A39),0)+IF(#REF!="Yes",SUMIFS(#REF!,#REF!,A39),0)+IF(#REF!="Yes",SUMIFS(#REF!,#REF!,A39),0) ->  | P39: =IF(#REF!="Yes",SUMIFS(#REF!,#REF!,A39),0)+IF(#REF!="Yes",SUMIFS(#REF!,#REF!,A39),0)+IF(#REF!="Yes",SUMIFS(#REF!,#REF!,A39),0)+IF(#REF!="Yes",SUMIFS(#REF!,#REF!,A39),0)+IF(#REF!="Yes",SUMIFS(#REF!,#REF!,A39),0) ->  | R39: =IF(#REF!="Yes",SUMIFS(#REF!,#REF!,A39),0)+IF(#REF!="Yes",SUMIFS(#REF!,#REF!,A39),0)+IF(#REF!="Yes",SUMIFS(#REF!,#REF!,A39),0)+IF(#REF!="Yes",SUMIFS(#REF!,#REF!,A39),0)+IF(#REF!="Yes",SUMIFS(#REF!,#REF!,A39),0) ->  | S39: =IF(#REF!="Yes",SUMIFS(#REF!,#REF!,A39),0)+IF(#REF!="Yes",SUMIFS(#REF!,#REF!,A39),0)+IF(#REF!="Yes",SUMIFS(#REF!,#REF!,A39),0)+IF(#REF!="Yes",SUMIFS(#REF!,#REF!,A39),0)+IF(#REF!="Yes",SUMIFS(#REF!,#REF!,A39),0) ->  | T39: =IF(#REF!="Yes",SUMIFS(#REF!,#REF!,A39),0)+IF(#REF!="Yes",SUMIFS(#REF!,#REF!,A39),0)+IF(#REF!="Yes",SUMIFS(#REF!,#REF!,A39),0)+IF(#REF!="Yes",SUMIFS(#REF!,#REF!,A39),0)+IF(#REF!="Yes",SUMIFS(#REF!,#REF!,A39),0) ->  | U39: =IF(#REF!="Yes",SUMIFS(#REF!,#REF!,A39),0)+IF(#REF!="Yes",SUMIFS(#REF!,#REF!,A39),0)+IF(#REF!="Yes",SUMIFS(#REF!,#REF!,A39),0)+IF(#REF!="Yes",SUMIFS(#REF!,#REF!,A39),0)+IF(#REF!="Yes",SUMIFS(#REF!,#REF!,A39),0) ->  | V39: =IF(#REF!="Yes",SUMIFS(#REF!,#REF!,A39),0)+IF(#REF!="Yes",SUMIFS(#REF!,#REF!,A39),0)+IF(#REF!="Yes",SUMIFS(#REF!,#REF!,A39),0)+IF(#REF!="Yes",SUMIFS(#REF!,#REF!,A39),0)+IF(#REF!="Yes",SUMIFS(#REF!,#REF!,A39),0) ->  | W39: =IF(#REF!="Yes",SUMIFS(#REF!,#REF!,A39),0)+IF(#REF!="Yes",SUMIFS(#REF!,#REF!,A39),0)+IF(#REF!="Yes",SUMIFS(#REF!,#REF!,A39),0)+IF(#REF!="Yes",SUMIFS(#REF!,#REF!,A39),0)+IF(#REF!="Yes",SUMIFS(#REF!,#REF!,A39),0) ->  | X39: =IF(#REF!="Yes",SUMIFS(#REF!,#REF!,A39),0)+IF(#REF!="Yes",SUMIFS(#REF!,#REF!,A39),0)+IF(#REF!="Yes",SUMIFS(#REF!,#REF!,A39),0)+IF(#REF!="Yes",SUMIFS(#REF!,#REF!,A39),0)+IF(#REF!="Yes",SUMIFS(#REF!,#REF!,A39),0) -> 
A40: Staff/Clerical Non-exempt | B40: =SUMIFS('Budget Worksheet'!$E$27:$E$46,'Budget Worksheet'!$C$27:$C$46,'PI View '!A40) -> 0 | C40: =SUMIFS('Budget Worksheet'!F$27:F$46,'Budget Worksheet'!$C$27:$C$46,'PI View '!$A40) -> 0 | D40: =SUMIFS('Budget Worksheet'!G$27:G$46,'Budget Worksheet'!$C$27:$C$46,'PI View '!$A40) -> 0 | E40: =SUMIFS('Budget Worksheet'!H$27:H$46,'Budget Worksheet'!$C$27:$C$46,'PI View '!$A40) -> 0 | F40: =SUMIFS('Budget Worksheet'!I$27:I$46,'Budget Worksheet'!$C$27:$C$46,'PI View '!$A40) -> 0 | G40: =SUMIFS('Budget Worksheet'!J$27:J$46,'Budget Worksheet'!$C$27:$C$46,'PI View '!$A40) -> 0 | H40: =SUMIFS('Budget Worksheet'!L$27:L$46,'Budget Worksheet'!$C$27:$C$46,'PI View '!$A40) -> 0 | I40: =SUMIFS('Budget Worksheet'!M$27:M$46,'Budget Worksheet'!$C$27:$C$46,'PI View '!$A40) -> 0 | J40: =SUMIFS('Budget Worksheet'!N$27:N$46,'Budget Worksheet'!$C$27:$C$46,'PI View '!$A40) -> 0 | K40: =SUMIFS('Budget Worksheet'!O$27:O$46,'Budget Worksheet'!$C$27:$C$46,'PI View '!$A40) -> 0 | L40: =SUMIFS('Budget Worksheet'!P$27:P$46,'Budget Worksheet'!$C$27:$C$46,'PI View '!$A40) -> 0 | M40: =SUMIFS('Budget Worksheet'!Q$27:Q$46,'Budget Worksheet'!$C$27:$C$46,'PI View '!$A40) -> 0 | N40: =IF(#REF!="Yes",SUMIFS(#REF!,#REF!,A40),0)+IF(#REF!="Yes",SUMIFS(#REF!,#REF!,A40),0)+IF(#REF!="Yes",SUMIFS(#REF!,#REF!,A40),0)+IF(#REF!="Yes",SUMIFS(#REF!,#REF!,A40),0)+IF(#REF!="Yes",SUMIFS(#REF!,#REF!,A40),0) ->  | O40: =IF(#REF!="Yes",SUMIFS(#REF!,#REF!,A40),0)+IF(#REF!="Yes",SUMIFS(#REF!,#REF!,A40),0)+IF(#REF!="Yes",SUMIFS(#REF!,#REF!,A40),0)+IF(#REF!="Yes",SUMIFS(#REF!,#REF!,A40),0)+IF(#REF!="Yes",SUMIFS(#REF!,#REF!,A40),0) ->  | P40: =IF(#REF!="Yes",SUMIFS(#REF!,#REF!,A40),0)+IF(#REF!="Yes",SUMIFS(#REF!,#REF!,A40),0)+IF(#REF!="Yes",SUMIFS(#REF!,#REF!,A40),0)+IF(#REF!="Yes",SUMIFS(#REF!,#REF!,A40),0)+IF(#REF!="Yes",SUMIFS(#REF!,#REF!,A40),0) ->  | R40: =IF(#REF!="Yes",SUMIFS(#REF!,#REF!,A40),0)+IF(#REF!="Yes",SUMIFS(#REF!,#REF!,A40),0)+IF(#REF!="Yes",SUMIFS(#REF!,#REF!,A40),0)+IF(#REF!="Yes",SUMIFS(#REF!,#REF!,A40),0)+IF(#REF!="Yes",SUMIFS(#REF!,#REF!,A40),0) ->  | S40: =IF(#REF!="Yes",SUMIFS(#REF!,#REF!,A40),0)+IF(#REF!="Yes",SUMIFS(#REF!,#REF!,A40),0)+IF(#REF!="Yes",SUMIFS(#REF!,#REF!,A40),0)+IF(#REF!="Yes",SUMIFS(#REF!,#REF!,A40),0)+IF(#REF!="Yes",SUMIFS(#REF!,#REF!,A40),0) ->  | T40: =IF(#REF!="Yes",SUMIFS(#REF!,#REF!,A40),0)+IF(#REF!="Yes",SUMIFS(#REF!,#REF!,A40),0)+IF(#REF!="Yes",SUMIFS(#REF!,#REF!,A40),0)+IF(#REF!="Yes",SUMIFS(#REF!,#REF!,A40),0)+IF(#REF!="Yes",SUMIFS(#REF!,#REF!,A40),0) ->  | U40: =IF(#REF!="Yes",SUMIFS(#REF!,#REF!,A40),0)+IF(#REF!="Yes",SUMIFS(#REF!,#REF!,A40),0)+IF(#REF!="Yes",SUMIFS(#REF!,#REF!,A40),0)+IF(#REF!="Yes",SUMIFS(#REF!,#REF!,A40),0)+IF(#REF!="Yes",SUMIFS(#REF!,#REF!,A40),0) ->  | V40: =IF(#REF!="Yes",SUMIFS(#REF!,#REF!,A40),0)+IF(#REF!="Yes",SUMIFS(#REF!,#REF!,A40),0)+IF(#REF!="Yes",SUMIFS(#REF!,#REF!,A40),0)+IF(#REF!="Yes",SUMIFS(#REF!,#REF!,A40),0)+IF(#REF!="Yes",SUMIFS(#REF!,#REF!,A40),0) ->  | W40: =IF(#REF!="Yes",SUMIFS(#REF!,#REF!,A40),0)+IF(#REF!="Yes",SUMIFS(#REF!,#REF!,A40),0)+IF(#REF!="Yes",SUMIFS(#REF!,#REF!,A40),0)+IF(#REF!="Yes",SUMIFS(#REF!,#REF!,A40),0)+IF(#REF!="Yes",SUMIFS(#REF!,#REF!,A40),0) ->  | X40: =IF(#REF!="Yes",SUMIFS(#REF!,#REF!,A40),0)+IF(#REF!="Yes",SUMIFS(#REF!,#REF!,A40),0)+IF(#REF!="Yes",SUMIFS(#REF!,#REF!,A40),0)+IF(#REF!="Yes",SUMIFS(#REF!,#REF!,A40),0)+IF(#REF!="Yes",SUMIFS(#REF!,#REF!,A40),0) -> 
A41: Other Staff Exempt | B41: =SUMIFS('Budget Worksheet'!$E$27:$E$46,'Budget Worksheet'!$C$27:$C$46,'PI View '!A41) -> 0 | C41: =SUMIFS('Budget Worksheet'!F$27:F$46,'Budget Worksheet'!$C$27:$C$46,'PI View '!$A41) -> 0 | D41: =SUMIFS('Budget Worksheet'!G$27:G$46,'Budget Worksheet'!$C$27:$C$46,'PI View '!$A41) -> 0 | E41: =SUMIFS('Budget Worksheet'!H$27:H$46,'Budget Worksheet'!$C$27:$C$46,'PI View '!$A41) -> 0 | F41: =SUMIFS('Budget Worksheet'!I$27:I$46,'Budget Worksheet'!$C$27:$C$46,'PI View '!$A41) -> 0 | G41: =SUMIFS('Budget Worksheet'!J$27:J$46,'Budget Worksheet'!$C$27:$C$46,'PI View '!$A41) -> 0 | H41: =SUMIFS('Budget Worksheet'!L$27:L$46,'Budget Worksheet'!$C$27:$C$46,'PI View '!$A41) -> 0 | I41: =SUMIFS('Budget Worksheet'!M$27:M$46,'Budget Worksheet'!$C$27:$C$46,'PI View '!$A41) -> 0 | J41: =SUMIFS('Budget Worksheet'!N$27:N$46,'Budget Worksheet'!$C$27:$C$46,'PI View '!$A41) -> 0 | K41: =SUMIFS('Budget Worksheet'!O$27:O$46,'Budget Worksheet'!$C$27:$C$46,'PI View '!$A41) -> 0 | L41: =SUMIFS('Budget Worksheet'!P$27:P$46,'Budget Worksheet'!$C$27:$C$46,'PI View '!$A41) -> 0 | M41: =SUMIFS('Budget Worksheet'!Q$27:Q$46,'Budget Worksheet'!$C$27:$C$46,'PI View '!$A41) -> 0 | N41: =IF(#REF!="Yes",SUMIFS(#REF!,#REF!,A41),0)+IF(#REF!="Yes",SUMIFS(#REF!,#REF!,A41),0)+IF(#REF!="Yes",SUMIFS(#REF!,#REF!,A41),0)+IF(#REF!="Yes",SUMIFS(#REF!,#REF!,A41),0)+IF(#REF!="Yes",SUMIFS(#REF!,#REF!,A41),0) ->  | O41: =IF(#REF!="Yes",SUMIFS(#REF!,#REF!,A41),0)+IF(#REF!="Yes",SUMIFS(#REF!,#REF!,A41),0)+IF(#REF!="Yes",SUMIFS(#REF!,#REF!,A41),0)+IF(#REF!="Yes",SUMIFS(#REF!,#REF!,A41),0)+IF(#REF!="Yes",SUMIFS(#REF!,#REF!,A41),0) ->  | P41: =IF(#REF!="Yes",SUMIFS(#REF!,#REF!,A41),0)+IF(#REF!="Yes",SUMIFS(#REF!,#REF!,A41),0)+IF(#REF!="Yes",SUMIFS(#REF!,#REF!,A41),0)+IF(#REF!="Yes",SUMIFS(#REF!,#REF!,A41),0)+IF(#REF!="Yes",SUMIFS(#REF!,#REF!,A41),0) ->  | R41: =IF(#REF!="Yes",SUMIFS(#REF!,#REF!,A41),0)+IF(#REF!="Yes",SUMIFS(#REF!,#REF!,A41),0)+IF(#REF!="Yes",SUMIFS(#REF!,#REF!,A41),0)+IF(#REF!="Yes",SUMIFS(#REF!,#REF!,A41),0)+IF(#REF!="Yes",SUMIFS(#REF!,#REF!,A41),0) ->  | S41: =IF(#REF!="Yes",SUMIFS(#REF!,#REF!,A41),0)+IF(#REF!="Yes",SUMIFS(#REF!,#REF!,A41),0)+IF(#REF!="Yes",SUMIFS(#REF!,#REF!,A41),0)+IF(#REF!="Yes",SUMIFS(#REF!,#REF!,A41),0)+IF(#REF!="Yes",SUMIFS(#REF!,#REF!,A41),0) ->  | T41: =IF(#REF!="Yes",SUMIFS(#REF!,#REF!,A41),0)+IF(#REF!="Yes",SUMIFS(#REF!,#REF!,A41),0)+IF(#REF!="Yes",SUMIFS(#REF!,#REF!,A41),0)+IF(#REF!="Yes",SUMIFS(#REF!,#REF!,A41),0)+IF(#REF!="Yes",SUMIFS(#REF!,#REF!,A41),0) ->  | U41: =IF(#REF!="Yes",SUMIFS(#REF!,#REF!,A41),0)+IF(#REF!="Yes",SUMIFS(#REF!,#REF!,A41),0)+IF(#REF!="Yes",SUMIFS(#REF!,#REF!,A41),0)+IF(#REF!="Yes",SUMIFS(#REF!,#REF!,A41),0)+IF(#REF!="Yes",SUMIFS(#REF!,#REF!,A41),0) ->  | V41: =IF(#REF!="Yes",SUMIFS(#REF!,#REF!,A41),0)+IF(#REF!="Yes",SUMIFS(#REF!,#REF!,A41),0)+IF(#REF!="Yes",SUMIFS(#REF!,#REF!,A41),0)+IF(#REF!="Yes",SUMIFS(#REF!,#REF!,A41),0)+IF(#REF!="Yes",SUMIFS(#REF!,#REF!,A41),0) ->  | W41: =IF(#REF!="Yes",SUMIFS(#REF!,#REF!,A41),0)+IF(#REF!="Yes",SUMIFS(#REF!,#REF!,A41),0)+IF(#REF!="Yes",SUMIFS(#REF!,#REF!,A41),0)+IF(#REF!="Yes",SUMIFS(#REF!,#REF!,A41),0)+IF(#REF!="Yes",SUMIFS(#REF!,#REF!,A41),0) ->  | X41: =IF(#REF!="Yes",SUMIFS(#REF!,#REF!,A41),0)+IF(#REF!="Yes",SUMIFS(#REF!,#REF!,A41),0)+IF(#REF!="Yes",SUMIFS(#REF!,#REF!,A41),0)+IF(#REF!="Yes",SUMIFS(#REF!,#REF!,A41),0)+IF(#REF!="Yes",SUMIFS(#REF!,#REF!,A41),0) -> 
A42: Non-Reg/Temp Staff | B42: =SUMIFS('Budget Worksheet'!$E$27:$E$46,'Budget Worksheet'!$C$27:$C$46,'PI View '!A42) -> 0 | C42: =SUMIFS('Budget Worksheet'!F$27:F$46,'Budget Worksheet'!$C$27:$C$46,'PI View '!$A42) -> 0 | D42: =SUMIFS('Budget Worksheet'!G$27:G$46,'Budget Worksheet'!$C$27:$C$46,'PI View '!$A42) -> 0 | E42: =SUMIFS('Budget Worksheet'!H$27:H$46,'Budget Worksheet'!$C$27:$C$46,'PI View '!$A42) -> 0 | F42: =SUMIFS('Budget Worksheet'!I$27:I$46,'Budget Worksheet'!$C$27:$C$46,'PI View '!$A42) -> 0 | G42: =SUMIFS('Budget Worksheet'!J$27:J$46,'Budget Worksheet'!$C$27:$C$46,'PI View '!$A42) -> 0 | H42: =SUMIFS('Budget Worksheet'!L$27:L$46,'Budget Worksheet'!$C$27:$C$46,'PI View '!$A42) -> 0 | I42: =SUMIFS('Budget Worksheet'!M$27:M$46,'Budget Worksheet'!$C$27:$C$46,'PI View '!$A42) -> 0 | J42: =SUMIFS('Budget Worksheet'!N$27:N$46,'Budget Worksheet'!$C$27:$C$46,'PI View '!$A42) -> 0 | K42: =SUMIFS('Budget Worksheet'!O$27:O$46,'Budget Worksheet'!$C$27:$C$46,'PI View '!$A42) -> 0 | L42: =SUMIFS('Budget Worksheet'!P$27:P$46,'Budget Worksheet'!$C$27:$C$46,'PI View '!$A42) -> 0 | M42: =SUMIFS('Budget Worksheet'!Q$27:Q$46,'Budget Worksheet'!$C$27:$C$46,'PI View '!$A42) -> 0 | N42: =IF(#REF!="Yes",SUMIFS(#REF!,#REF!,A42),0)+IF(#REF!="Yes",SUMIFS(#REF!,#REF!,A42),0)+IF(#REF!="Yes",SUMIFS(#REF!,#REF!,A42),0)+IF(#REF!="Yes",SUMIFS(#REF!,#REF!,A42),0)+IF(#REF!="Yes",SUMIFS(#REF!,#REF!,A42),0) ->  | O42: =IF(#REF!="Yes",SUMIFS(#REF!,#REF!,A42),0)+IF(#REF!="Yes",SUMIFS(#REF!,#REF!,A42),0)+IF(#REF!="Yes",SUMIFS(#REF!,#REF!,A42),0)+IF(#REF!="Yes",SUMIFS(#REF!,#REF!,A42),0)+IF(#REF!="Yes",SUMIFS(#REF!,#REF!,A42),0) ->  | P42: =IF(#REF!="Yes",SUMIFS(#REF!,#REF!,A42),0)+IF(#REF!="Yes",SUMIFS(#REF!,#REF!,A42),0)+IF(#REF!="Yes",SUMIFS(#REF!,#REF!,A42),0)+IF(#REF!="Yes",SUMIFS(#REF!,#REF!,A42),0)+IF(#REF!="Yes",SUMIFS(#REF!,#REF!,A42),0) ->  | R42: =IF(#REF!="Yes",SUMIFS(#REF!,#REF!,A42),0)+IF(#REF!="Yes",SUMIFS(#REF!,#REF!,A42),0)+IF(#REF!="Yes",SUMIFS(#REF!,#REF!,A42),0)+IF(#REF!="Yes",SUMIFS(#REF!,#REF!,A42),0)+IF(#REF!="Yes",SUMIFS(#REF!,#REF!,A42),0) ->  | S42: =IF(#REF!="Yes",SUMIFS(#REF!,#REF!,A42),0)+IF(#REF!="Yes",SUMIFS(#REF!,#REF!,A42),0)+IF(#REF!="Yes",SUMIFS(#REF!,#REF!,A42),0)+IF(#REF!="Yes",SUMIFS(#REF!,#REF!,A42),0)+IF(#REF!="Yes",SUMIFS(#REF!,#REF!,A42),0) ->  | T42: =IF(#REF!="Yes",SUMIFS(#REF!,#REF!,A42),0)+IF(#REF!="Yes",SUMIFS(#REF!,#REF!,A42),0)+IF(#REF!="Yes",SUMIFS(#REF!,#REF!,A42),0)+IF(#REF!="Yes",SUMIFS(#REF!,#REF!,A42),0)+IF(#REF!="Yes",SUMIFS(#REF!,#REF!,A42),0) ->  | U42: =IF(#REF!="Yes",SUMIFS(#REF!,#REF!,A42),0)+IF(#REF!="Yes",SUMIFS(#REF!,#REF!,A42),0)+IF(#REF!="Yes",SUMIFS(#REF!,#REF!,A42),0)+IF(#REF!="Yes",SUMIFS(#REF!,#REF!,A42),0)+IF(#REF!="Yes",SUMIFS(#REF!,#REF!,A42),0) ->  | V42: =IF(#REF!="Yes",SUMIFS(#REF!,#REF!,A42),0)+IF(#REF!="Yes",SUMIFS(#REF!,#REF!,A42),0)+IF(#REF!="Yes",SUMIFS(#REF!,#REF!,A42),0)+IF(#REF!="Yes",SUMIFS(#REF!,#REF!,A42),0)+IF(#REF!="Yes",SUMIFS(#REF!,#REF!,A42),0) ->  | W42: =IF(#REF!="Yes",SUMIFS(#REF!,#REF!,A42),0)+IF(#REF!="Yes",SUMIFS(#REF!,#REF!,A42),0)+IF(#REF!="Yes",SUMIFS(#REF!,#REF!,A42),0)+IF(#REF!="Yes",SUMIFS(#REF!,#REF!,A42),0)+IF(#REF!="Yes",SUMIFS(#REF!,#REF!,A42),0) ->  | X42: =IF(#REF!="Yes",SUMIFS(#REF!,#REF!,A42),0)+IF(#REF!="Yes",SUMIFS(#REF!,#REF!,A42),0)+IF(#REF!="Yes",SUMIFS(#REF!,#REF!,A42),0)+IF(#REF!="Yes",SUMIFS(#REF!,#REF!,A42),0)+IF(#REF!="Yes",SUMIFS(#REF!,#REF!,A42),0) -> 
A43: Principal Investigator | H43: =SUMIFS('Budget Worksheet'!L$27:L$46,'Budget Worksheet'!$C$27:$C$46,'PI View '!$A43) -> 0 | I43: =SUMIFS('Budget Worksheet'!M$27:M$46,'Budget Worksheet'!$C$27:$C$46,'PI View '!$A43) -> 0 | J43: =SUMIFS('Budget Worksheet'!N$27:N$46,'Budget Worksheet'!$C$27:$C$46,'PI View '!$A43) -> 0 | K43: =SUMIFS('Budget Worksheet'!O$27:O$46,'Budget Worksheet'!$C$27:$C$46,'PI View '!$A43) -> 0 | L43: =SUMIFS('Budget Worksheet'!P$27:P$46,'Budget Worksheet'!$C$27:$C$46,'PI View '!$A43) -> 0 | N43: =IF(#REF!="Yes",SUMIFS(#REF!,#REF!,A43),0)+IF(#REF!="Yes",SUMIFS(#REF!,#REF!,A43),0)+IF(#REF!="Yes",SUMIFS(#REF!,#REF!,A43),0)+IF(#REF!="Yes",SUMIFS(#REF!,#REF!,A43),0)+IF(#REF!="Yes",SUMIFS(#REF!,#REF!,A43),0) ->  | O43: =IF(#REF!="Yes",SUMIFS(#REF!,#REF!,A43),0)+IF(#REF!="Yes",SUMIFS(#REF!,#REF!,A43),0)+IF(#REF!="Yes",SUMIFS(#REF!,#REF!,A43),0)+IF(#REF!="Yes",SUMIFS(#REF!,#REF!,A43),0)+IF(#REF!="Yes",SUMIFS(#REF!,#REF!,A43),0) ->  | P43: =IF(#REF!="Yes",SUMIFS(#REF!,#REF!,A43),0)+IF(#REF!="Yes",SUMIFS(#REF!,#REF!,A43),0)+IF(#REF!="Yes",SUMIFS(#REF!,#REF!,A43),0)+IF(#REF!="Yes",SUMIFS(#REF!,#REF!,A43),0)+IF(#REF!="Yes",SUMIFS(#REF!,#REF!,A43),0) ->  | R43: =IF(#REF!="Yes",SUMIFS(#REF!,#REF!,A43),0)+IF(#REF!="Yes",SUMIFS(#REF!,#REF!,A43),0)+IF(#REF!="Yes",SUMIFS(#REF!,#REF!,A43),0)+IF(#REF!="Yes",SUMIFS(#REF!,#REF!,A43),0)+IF(#REF!="Yes",SUMIFS(#REF!,#REF!,A43),0) ->  | S43: =IF(#REF!="Yes",SUMIFS(#REF!,#REF!,A43),0)+IF(#REF!="Yes",SUMIFS(#REF!,#REF!,A43),0)+IF(#REF!="Yes",SUMIFS(#REF!,#REF!,A43),0)+IF(#REF!="Yes",SUMIFS(#REF!,#REF!,A43),0)+IF(#REF!="Yes",SUMIFS(#REF!,#REF!,A43),0) ->  | T43: =IF(#REF!="Yes",SUMIFS(#REF!,#REF!,A43),0)+IF(#REF!="Yes",SUMIFS(#REF!,#REF!,A43),0)+IF(#REF!="Yes",SUMIFS(#REF!,#REF!,A43),0)+IF(#REF!="Yes",SUMIFS(#REF!,#REF!,A43),0)+IF(#REF!="Yes",SUMIFS(#REF!,#REF!,A43),0) ->  | U43: =IF(#REF!="Yes",SUMIFS(#REF!,#REF!,A43),0)+IF(#REF!="Yes",SUMIFS(#REF!,#REF!,A43),0)+IF(#REF!="Yes",SUMIFS(#REF!,#REF!,A43),0)+IF(#REF!="Yes",SUMIFS(#REF!,#REF!,A43),0)+IF(#REF!="Yes",SUMIFS(#REF!,#REF!,A43),0) ->  | V43: =IF(#REF!="Yes",SUMIFS(#REF!,#REF!,A43),0)+IF(#REF!="Yes",SUMIFS(#REF!,#REF!,A43),0)+IF(#REF!="Yes",SUMIFS(#REF!,#REF!,A43),0)+IF(#REF!="Yes",SUMIFS(#REF!,#REF!,A43),0)+IF(#REF!="Yes",SUMIFS(#REF!,#REF!,A43),0) ->  | W43: =IF(#REF!="Yes",SUMIFS(#REF!,#REF!,A43),0)+IF(#REF!="Yes",SUMIFS(#REF!,#REF!,A43),0)+IF(#REF!="Yes",SUMIFS(#REF!,#REF!,A43),0)+IF(#REF!="Yes",SUMIFS(#REF!,#REF!,A43),0)+IF(#REF!="Yes",SUMIFS(#REF!,#REF!,A43),0) ->  | X43: =IF(#REF!="Yes",SUMIFS(#REF!,#REF!,A43),0)+IF(#REF!="Yes",SUMIFS(#REF!,#REF!,A43),0)+IF(#REF!="Yes",SUMIFS(#REF!,#REF!,A43),0)+IF(#REF!="Yes",SUMIFS(#REF!,#REF!,A43),0)+IF(#REF!="Yes",SUMIFS(#REF!,#REF!,A43),0) -> 
A44: Principal Investigator Summer | H44: =SUMIFS('Budget Worksheet'!L$27:L$46,'Budget Worksheet'!$C$27:$C$46,'PI View '!$A44) -> 0 | I44: =SUMIFS('Budget Worksheet'!M$27:M$46,'Budget Worksheet'!$C$27:$C$46,'PI View '!$A44) -> 0 | J44: =SUMIFS('Budget Worksheet'!N$27:N$46,'Budget Worksheet'!$C$27:$C$46,'PI View '!$A44) -> 0 | K44: =SUMIFS('Budget Worksheet'!O$27:O$46,'Budget Worksheet'!$C$27:$C$46,'PI View '!$A44) -> 0 | L44: =SUMIFS('Budget Worksheet'!P$27:P$46,'Budget Worksheet'!$C$27:$C$46,'PI View '!$A44) -> 0 | N44: =IF(#REF!="Yes",SUMIFS(#REF!,#REF!,A44),0)+IF(#REF!="Yes",SUMIFS(#REF!,#REF!,A44),0)+IF(#REF!="Yes",SUMIFS(#REF!,#REF!,A44),0)+IF(#REF!="Yes",SUMIFS(#REF!,#REF!,A44),0)+IF(#REF!="Yes",SUMIFS(#REF!,#REF!,A44),0) ->  | O44: =IF(#REF!="Yes",SUMIFS(#REF!,#REF!,A44),0)+IF(#REF!="Yes",SUMIFS(#REF!,#REF!,A44),0)+IF(#REF!="Yes",SUMIFS(#REF!,#REF!,A44),0)+IF(#REF!="Yes",SUMIFS(#REF!,#REF!,A44),0)+IF(#REF!="Yes",SUMIFS(#REF!,#REF!,A44),0) ->  | P44: =IF(#REF!="Yes",SUMIFS(#REF!,#REF!,A44),0)+IF(#REF!="Yes",SUMIFS(#REF!,#REF!,A44),0)+IF(#REF!="Yes",SUMIFS(#REF!,#REF!,A44),0)+IF(#REF!="Yes",SUMIFS(#REF!,#REF!,A44),0)+IF(#REF!="Yes",SUMIFS(#REF!,#REF!,A44),0) ->  | R44: =IF(#REF!="Yes",SUMIFS(#REF!,#REF!,A44),0)+IF(#REF!="Yes",SUMIFS(#REF!,#REF!,A44),0)+IF(#REF!="Yes",SUMIFS(#REF!,#REF!,A44),0)+IF(#REF!="Yes",SUMIFS(#REF!,#REF!,A44),0)+IF(#REF!="Yes",SUMIFS(#REF!,#REF!,A44),0) ->  | S44: =IF(#REF!="Yes",SUMIFS(#REF!,#REF!,A44),0)+IF(#REF!="Yes",SUMIFS(#REF!,#REF!,A44),0)+IF(#REF!="Yes",SUMIFS(#REF!,#REF!,A44),0)+IF(#REF!="Yes",SUMIFS(#REF!,#REF!,A44),0)+IF(#REF!="Yes",SUMIFS(#REF!,#REF!,A44),0) ->  | T44: =IF(#REF!="Yes",SUMIFS(#REF!,#REF!,A44),0)+IF(#REF!="Yes",SUMIFS(#REF!,#REF!,A44),0)+IF(#REF!="Yes",SUMIFS(#REF!,#REF!,A44),0)+IF(#REF!="Yes",SUMIFS(#REF!,#REF!,A44),0)+IF(#REF!="Yes",SUMIFS(#REF!,#REF!,A44),0) ->  | U44: =IF(#REF!="Yes",SUMIFS(#REF!,#REF!,A44),0)+IF(#REF!="Yes",SUMIFS(#REF!,#REF!,A44),0)+IF(#REF!="Yes",SUMIFS(#REF!,#REF!,A44),0)+IF(#REF!="Yes",SUMIFS(#REF!,#REF!,A44),0)+IF(#REF!="Yes",SUMIFS(#REF!,#REF!,A44),0) ->  | V44: =IF(#REF!="Yes",SUMIFS(#REF!,#REF!,A44),0)+IF(#REF!="Yes",SUMIFS(#REF!,#REF!,A44),0)+IF(#REF!="Yes",SUMIFS(#REF!,#REF!,A44),0)+IF(#REF!="Yes",SUMIFS(#REF!,#REF!,A44),0)+IF(#REF!="Yes",SUMIFS(#REF!,#REF!,A44),0) ->  | W44: =IF(#REF!="Yes",SUMIFS(#REF!,#REF!,A44),0)+IF(#REF!="Yes",SUMIFS(#REF!,#REF!,A44),0)+IF(#REF!="Yes",SUMIFS(#REF!,#REF!,A44),0)+IF(#REF!="Yes",SUMIFS(#REF!,#REF!,A44),0)+IF(#REF!="Yes",SUMIFS(#REF!,#REF!,A44),0) ->  | X44: =IF(#REF!="Yes",SUMIFS(#REF!,#REF!,A44),0)+IF(#REF!="Yes",SUMIFS(#REF!,#REF!,A44),0)+IF(#REF!="Yes",SUMIFS(#REF!,#REF!,A44),0)+IF(#REF!="Yes",SUMIFS(#REF!,#REF!,A44),0)+IF(#REF!="Yes",SUMIFS(#REF!,#REF!,A44),0) -> 
A46: Total Salary | H46: ='Budget Worksheet'!#REF! ->  | I46: ='Budget Worksheet'!M48 -> 0 | J46: ='Budget Worksheet'!N48 -> 0 | K46: ='Budget Worksheet'!O48 -> 0 | L46: ='Budget Worksheet'!P48 -> 0 | M46: ='Budget Worksheet'!Q48 -> 0 | N46: =IF(#REF!="Yes",SUMIFS(#REF!,#REF!,#REF!),0)+IF(#REF!="Yes", SUMIFS(#REF!,#REF!,#REF!),0)+IF(#REF!="Yes",SUMIFS(#REF!,#REF!,#REF!),0)+IF(#REF!="Yes",SUMIFS(#REF!,#REF!,#REF!),0)+IF(#REF!="Yes",SUMIFS(#REF!,#REF!,#REF!),0) ->  | O46: =IF(#REF!="Yes",SUMIFS(#REF!,#REF!,#REF!),0)+IF(#REF!="Yes", SUMIFS(#REF!,#REF!,#REF!),0)+IF(#REF!="Yes",SUMIFS(#REF!,#REF!,#REF!),0)+IF(#REF!="Yes",SUMIFS(#REF!,#REF!,#REF!),0)+IF(#REF!="Yes",SUMIFS(#REF!,#REF!,#REF!),0) ->  | P46: =IF(#REF!="Yes",SUMIFS(#REF!,#REF!,#REF!),0)+IF(#REF!="Yes", SUMIFS(#REF!,#REF!,#REF!),0)+IF(#REF!="Yes",SUMIFS(#REF!,#REF!,#REF!),0)+IF(#REF!="Yes",SUMIFS(#REF!,#REF!,#REF!),0)+IF(#REF!="Yes",SUMIFS(#REF!,#REF!,#REF!),0) ->  | R46: =IF(#REF!="Yes",SUMIFS(#REF!,#REF!,#REF!),0)+IF(#REF!="Yes", SUMIFS(#REF!,#REF!,#REF!),0)+IF(#REF!="Yes",SUMIFS(#REF!,#REF!,#REF!),0)+IF(#REF!="Yes",SUMIFS(#REF!,#REF!,#REF!),0)+IF(#REF!="Yes",SUMIFS(#REF!,#REF!,#REF!),0) ->  | S46: =IF(#REF!="Yes",SUMIFS(#REF!,#REF!,#REF!),0)+IF(#REF!="Yes", SUMIFS(#REF!,#REF!,#REF!),0)+IF(#REF!="Yes",SUMIFS(#REF!,#REF!,#REF!),0)+IF(#REF!="Yes",SUMIFS(#REF!,#REF!,#REF!),0)+IF(#REF!="Yes",SUMIFS(#REF!,#REF!,#REF!),0) ->  | T46: =IF(#REF!="Yes",SUMIFS(#REF!,#REF!,#REF!),0)+IF(#REF!="Yes", SUMIFS(#REF!,#REF!,#REF!),0)+IF(#REF!="Yes",SUMIFS(#REF!,#REF!,#REF!),0)+IF(#REF!="Yes",SUMIFS(#REF!,#REF!,#REF!),0)+IF(#REF!="Yes",SUMIFS(#REF!,#REF!,#REF!),0) ->  | U46: =IF(#REF!="Yes",SUMIFS(#REF!,#REF!,#REF!),0)+IF(#REF!="Yes", SUMIFS(#REF!,#REF!,#REF!),0)+IF(#REF!="Yes",SUMIFS(#REF!,#REF!,#REF!),0)+IF(#REF!="Yes",SUMIFS(#REF!,#REF!,#REF!),0)+IF(#REF!="Yes",SUMIFS(#REF!,#REF!,#REF!),0) ->  | V46: =IF(#REF!="Yes",SUMIFS(#REF!,#REF!,#REF!),0)+IF(#REF!="Yes", SUMIFS(#REF!,#REF!,#REF!),0)+IF(#REF!="Yes",SUMIFS(#REF!,#REF!,#REF!),0)+IF(#REF!="Yes",SUMIFS(#REF!,#REF!,#REF!),0)+IF(#REF!="Yes",SUMIFS(#REF!,#REF!,#REF!),0) ->  | W46: =IF(#REF!="Yes",SUMIFS(#REF!,#REF!,#REF!),0)+IF(#REF!="Yes", SUMIFS(#REF!,#REF!,#REF!),0)+IF(#REF!="Yes",SUMIFS(#REF!,#REF!,#REF!),0)+IF(#REF!="Yes",SUMIFS(#REF!,#REF!,#REF!),0)+IF(#REF!="Yes",SUMIFS(#REF!,#REF!,#REF!),0) ->  | X46: =IF(#REF!="Yes",SUMIFS(#REF!,#REF!,#REF!),0)+IF(#REF!="Yes", SUMIFS(#REF!,#REF!,#REF!),0)+IF(#REF!="Yes",SUMIFS(#REF!,#REF!,#REF!),0)+IF(#REF!="Yes",SUMIFS(#REF!,#REF!,#REF!),0)+IF(#REF!="Yes",SUMIFS(#REF!,#REF!,#REF!),0) -> 
A47: Total Fringes | H47: ='Budget Worksheet'!L49 -> 0 | I47: ='Budget Worksheet'!M49 -> 0 | J47: ='Budget Worksheet'!N49 -> 0 | K47: ='Budget Worksheet'!O49 -> 0 | L47: ='Budget Worksheet'!P49 -> 0 | M47: ='Budget Worksheet'!Q49 -> 0 | N47: =IF(#REF!="Yes",SUMIFS(#REF!,#REF!,#REF!),0)+IF(#REF!="Yes", SUMIFS(#REF!,#REF!,#REF!),0)+IF(#REF!="Yes",SUMIFS(#REF!,#REF!,#REF!),0)+IF(#REF!="Yes",SUMIFS(#REF!,#REF!,#REF!),0)+IF(#REF!="Yes",SUMIFS(#REF!,#REF!,#REF!),0) ->  | O47: =IF(#REF!="Yes",SUMIFS(#REF!,#REF!,#REF!),0)+IF(#REF!="Yes", SUMIFS(#REF!,#REF!,#REF!),0)+IF(#REF!="Yes",SUMIFS(#REF!,#REF!,#REF!),0)+IF(#REF!="Yes",SUMIFS(#REF!,#REF!,#REF!),0)+IF(#REF!="Yes",SUMIFS(#REF!,#REF!,#REF!),0) ->  | P47: =IF(#REF!="Yes",SUMIFS(#REF!,#REF!,#REF!),0)+IF(#REF!="Yes", SUMIFS(#REF!,#REF!,#REF!),0)+IF(#REF!="Yes",SUMIFS(#REF!,#REF!,#REF!),0)+IF(#REF!="Yes",SUMIFS(#REF!,#REF!,#REF!),0)+IF(#REF!="Yes",SUMIFS(#REF!,#REF!,#REF!),0) ->  | R47: =IF(#REF!="Yes",SUMIFS(#REF!,#REF!,#REF!),0)+IF(#REF!="Yes", SUMIFS(#REF!,#REF!,#REF!),0)+IF(#REF!="Yes",SUMIFS(#REF!,#REF!,#REF!),0)+IF(#REF!="Yes",SUMIFS(#REF!,#REF!,#REF!),0)+IF(#REF!="Yes",SUMIFS(#REF!,#REF!,#REF!),0) ->  | S47: =IF(#REF!="Yes",SUMIFS(#REF!,#REF!,#REF!),0)+IF(#REF!="Yes", SUMIFS(#REF!,#REF!,#REF!),0)+IF(#REF!="Yes",SUMIFS(#REF!,#REF!,#REF!),0)+IF(#REF!="Yes",SUMIFS(#REF!,#REF!,#REF!),0)+IF(#REF!="Yes",SUMIFS(#REF!,#REF!,#REF!),0) ->  | T47: =IF(#REF!="Yes",SUMIFS(#REF!,#REF!,#REF!),0)+IF(#REF!="Yes", SUMIFS(#REF!,#REF!,#REF!),0)+IF(#REF!="Yes",SUMIFS(#REF!,#REF!,#REF!),0)+IF(#REF!="Yes",SUMIFS(#REF!,#REF!,#REF!),0)+IF(#REF!="Yes",SUMIFS(#REF!,#REF!,#REF!),0) ->  | U47: =IF(#REF!="Yes",SUMIFS(#REF!,#REF!,#REF!),0)+IF(#REF!="Yes", SUMIFS(#REF!,#REF!,#REF!),0)+IF(#REF!="Yes",SUMIFS(#REF!,#REF!,#REF!),0)+IF(#REF!="Yes",SUMIFS(#REF!,#REF!,#REF!),0)+IF(#REF!="Yes",SUMIFS(#REF!,#REF!,#REF!),0) ->  | V47: =IF(#REF!="Yes",SUMIFS(#REF!,#REF!,#REF!),0)+IF(#REF!="Yes", SUMIFS(#REF!,#REF!,#REF!),0)+IF(#REF!="Yes",SUMIFS(#REF!,#REF!,#REF!),0)+IF(#REF!="Yes",SUMIFS(#REF!,#REF!,#REF!),0)+IF(#REF!="Yes",SUMIFS(#REF!,#REF!,#REF!),0) ->  | W47: =IF(#REF!="Yes",SUMIFS(#REF!,#REF!,#REF!),0)+IF(#REF!="Yes", SUMIFS(#REF!,#REF!,#REF!),0)+IF(#REF!="Yes",SUMIFS(#REF!,#REF!,#REF!),0)+IF(#REF!="Yes",SUMIFS(#REF!,#REF!,#REF!),0)+IF(#REF!="Yes",SUMIFS(#REF!,#REF!,#REF!),0) ->  | X47: =IF(#REF!="Yes",SUMIFS(#REF!,#REF!,#REF!),0)+IF(#REF!="Yes", SUMIFS(#REF!,#REF!,#REF!),0)+IF(#REF!="Yes",SUMIFS(#REF!,#REF!,#REF!),0)+IF(#REF!="Yes",SUMIFS(#REF!,#REF!,#REF!),0)+IF(#REF!="Yes",SUMIFS(#REF!,#REF!,#REF!),0) -> 
A48: Total Salary and Fringes | H48: ='Budget Worksheet'!L50 -> 0 | I48: ='Budget Worksheet'!M50 -> 0 | J48: ='Budget Worksheet'!N50 -> 0 | K48: ='Budget Worksheet'!O50 -> 0 | L48: ='Budget Worksheet'!P50 -> 0 | M48: ='Budget Worksheet'!Q50 -> 0 | N48: =IF(#REF!="Yes",SUMIFS(#REF!,#REF!,#REF!),0)+IF(#REF!="Yes", SUMIFS(#REF!,#REF!,#REF!),0)+IF(#REF!="Yes",SUMIFS(#REF!,#REF!,#REF!),0)+IF(#REF!="Yes",SUMIFS(#REF!,#REF!,#REF!),0)+IF(#REF!="Yes",SUMIFS(#REF!,#REF!,#REF!),0) ->  | O48: =IF(#REF!="Yes",SUMIFS(#REF!,#REF!,#REF!),0)+IF(#REF!="Yes", SUMIFS(#REF!,#REF!,#REF!),0)+IF(#REF!="Yes",SUMIFS(#REF!,#REF!,#REF!),0)+IF(#REF!="Yes",SUMIFS(#REF!,#REF!,#REF!),0)+IF(#REF!="Yes",SUMIFS(#REF!,#REF!,#REF!),0) ->  | P48: =IF(#REF!="Yes",SUMIFS(#REF!,#REF!,#REF!),0)+IF(#REF!="Yes", SUMIFS(#REF!,#REF!,#REF!),0)+IF(#REF!="Yes",SUMIFS(#REF!,#REF!,#REF!),0)+IF(#REF!="Yes",SUMIFS(#REF!,#REF!,#REF!),0)+IF(#REF!="Yes",SUMIFS(#REF!,#REF!,#REF!),0) ->  | R48: =IF(#REF!="Yes",SUMIFS(#REF!,#REF!,#REF!),0)+IF(#REF!="Yes", SUMIFS(#REF!,#REF!,#REF!),0)+IF(#REF!="Yes",SUMIFS(#REF!,#REF!,#REF!),0)+IF(#REF!="Yes",SUMIFS(#REF!,#REF!,#REF!),0)+IF(#REF!="Yes",SUMIFS(#REF!,#REF!,#REF!),0) ->  | S48: =IF(#REF!="Yes",SUMIFS(#REF!,#REF!,#REF!),0)+IF(#REF!="Yes", SUMIFS(#REF!,#REF!,#REF!),0)+IF(#REF!="Yes",SUMIFS(#REF!,#REF!,#REF!),0)+IF(#REF!="Yes",SUMIFS(#REF!,#REF!,#REF!),0)+IF(#REF!="Yes",SUMIFS(#REF!,#REF!,#REF!),0) ->  | T48: =IF(#REF!="Yes",SUMIFS(#REF!,#REF!,#REF!),0)+IF(#REF!="Yes", SUMIFS(#REF!,#REF!,#REF!),0)+IF(#REF!="Yes",SUMIFS(#REF!,#REF!,#REF!),0)+IF(#REF!="Yes",SUMIFS(#REF!,#REF!,#REF!),0)+IF(#REF!="Yes",SUMIFS(#REF!,#REF!,#REF!),0) ->  | U48: =IF(#REF!="Yes",SUMIFS(#REF!,#REF!,#REF!),0)+IF(#REF!="Yes", SUMIFS(#REF!,#REF!,#REF!),0)+IF(#REF!="Yes",SUMIFS(#REF!,#REF!,#REF!),0)+IF(#REF!="Yes",SUMIFS(#REF!,#REF!,#REF!),0)+IF(#REF!="Yes",SUMIFS(#REF!,#REF!,#REF!),0) ->  | V48: =IF(#REF!="Yes",SUMIFS(#REF!,#REF!,#REF!),0)+IF(#REF!="Yes", SUMIFS(#REF!,#REF!,#REF!),0)+IF(#REF!="Yes",SUMIFS(#REF!,#REF!,#REF!),0)+IF(#REF!="Yes",SUMIFS(#REF!,#REF!,#REF!),0)+IF(#REF!="Yes",SUMIFS(#REF!,#REF!,#REF!),0) ->  | W48: =IF(#REF!="Yes",SUMIFS(#REF!,#REF!,#REF!),0)+IF(#REF!="Yes", SUMIFS(#REF!,#REF!,#REF!),0)+IF(#REF!="Yes",SUMIFS(#REF!,#REF!,#REF!),0)+IF(#REF!="Yes",SUMIFS(#REF!,#REF!,#REF!),0)+IF(#REF!="Yes",SUMIFS(#REF!,#REF!,#REF!),0) ->  | X48: =IF(#REF!="Yes",SUMIFS(#REF!,#REF!,#REF!),0)+IF(#REF!="Yes", SUMIFS(#REF!,#REF!,#REF!),0)+IF(#REF!="Yes",SUMIFS(#REF!,#REF!,#REF!),0)+IF(#REF!="Yes",SUMIFS(#REF!,#REF!,#REF!),0)+IF(#REF!="Yes",SUMIFS(#REF!,#REF!,#REF!),0) -> 
Q50: =#REF! -> 
A51: C. Equipment
A52: Capital Equipment (purchased) | H52: ='Budget Worksheet'!L53 -> 0 | I52: ='Budget Worksheet'!M53 -> 0 | J52: ='Budget Worksheet'!N53 -> 0 | K52: ='Budget Worksheet'!O53 -> 0 | L52: ='Budget Worksheet'!P53 -> 0 | M52: ='Budget Worksheet'!Q53 -> 0 | N52: =IF(#REF!="Yes",SUMIFS(#REF!,#REF!,#REF!),0)+IF(#REF!="Yes", SUMIFS(#REF!,#REF!,#REF!),0)+IF(#REF!="Yes",SUMIFS(#REF!,#REF!,#REF!),0)+IF(#REF!="Yes",SUMIFS(#REF!,#REF!,#REF!),0)+IF(#REF!="Yes",SUMIFS(#REF!,#REF!,#REF!),0) ->  | O52: =IF(#REF!="Yes",SUMIFS(#REF!,#REF!,#REF!),0)+IF(#REF!="Yes", SUMIFS(#REF!,#REF!,#REF!),0)+IF(#REF!="Yes",SUMIFS(#REF!,#REF!,#REF!),0)+IF(#REF!="Yes",SUMIFS(#REF!,#REF!,#REF!),0)+IF(#REF!="Yes",SUMIFS(#REF!,#REF!,#REF!),0) ->  | P52: =IF(#REF!="Yes",SUMIFS(#REF!,#REF!,#REF!),0)+IF(#REF!="Yes", SUMIFS(#REF!,#REF!,#REF!),0)+IF(#REF!="Yes",SUMIFS(#REF!,#REF!,#REF!),0)+IF(#REF!="Yes",SUMIFS(#REF!,#REF!,#REF!),0)+IF(#REF!="Yes",SUMIFS(#REF!,#REF!,#REF!),0) ->  | Q52: =SUM(N52:P52)+SUM(R52:X52) ->  | R52: =IF(#REF!="Yes",SUMIFS(#REF!,#REF!,#REF!),0)+IF(#REF!="Yes", SUMIFS(#REF!,#REF!,#REF!),0)+IF(#REF!="Yes",SUMIFS(#REF!,#REF!,#REF!),0)+IF(#REF!="Yes",SUMIFS(#REF!,#REF!,#REF!),0)+IF(#REF!="Yes",SUMIFS(#REF!,#REF!,#REF!),0) ->  | S52: =IF(#REF!="Yes",SUMIFS(#REF!,#REF!,#REF!),0)+IF(#REF!="Yes", SUMIFS(#REF!,#REF!,#REF!),0)+IF(#REF!="Yes",SUMIFS(#REF!,#REF!,#REF!),0)+IF(#REF!="Yes",SUMIFS(#REF!,#REF!,#REF!),0)+IF(#REF!="Yes",SUMIFS(#REF!,#REF!,#REF!),0) ->  | T52: =IF(#REF!="Yes",SUMIFS(#REF!,#REF!,#REF!),0)+IF(#REF!="Yes", SUMIFS(#REF!,#REF!,#REF!),0)+IF(#REF!="Yes",SUMIFS(#REF!,#REF!,#REF!),0)+IF(#REF!="Yes",SUMIFS(#REF!,#REF!,#REF!),0)+IF(#REF!="Yes",SUMIFS(#REF!,#REF!,#REF!),0) ->  | U52: =IF(#REF!="Yes",SUMIFS(#REF!,#REF!,#REF!),0)+IF(#REF!="Yes", SUMIFS(#REF!,#REF!,#REF!),0)+IF(#REF!="Yes",SUMIFS(#REF!,#REF!,#REF!),0)+IF(#REF!="Yes",SUMIFS(#REF!,#REF!,#REF!),0)+IF(#REF!="Yes",SUMIFS(#REF!,#REF!,#REF!),0) ->  | V52: =IF(#REF!="Yes",SUMIFS(#REF!,#REF!,#REF!),0)+IF(#REF!="Yes", SUMIFS(#REF!,#REF!,#REF!),0)+IF(#REF!="Yes",SUMIFS(#REF!,#REF!,#REF!),0)+IF(#REF!="Yes",SUMIFS(#REF!,#REF!,#REF!),0)+IF(#REF!="Yes",SUMIFS(#REF!,#REF!,#REF!),0) ->  | W52: =IF(#REF!="Yes",SUMIFS(#REF!,#REF!,#REF!),0)+IF(#REF!="Yes", SUMIFS(#REF!,#REF!,#REF!),0)+IF(#REF!="Yes",SUMIFS(#REF!,#REF!,#REF!),0)+IF(#REF!="Yes",SUMIFS(#REF!,#REF!,#REF!),0)+IF(#REF!="Yes",SUMIFS(#REF!,#REF!,#REF!),0) ->  | X52: =IF(#REF!="Yes",SUMIFS(#REF!,#REF!,#REF!),0)+IF(#REF!="Yes", SUMIFS(#REF!,#REF!,#REF!),0)+IF(#REF!="Yes",SUMIFS(#REF!,#REF!,#REF!),0)+IF(#REF!="Yes",SUMIFS(#REF!,#REF!,#REF!),0)+IF(#REF!="Yes",SUMIFS(#REF!,#REF!,#REF!),0) -> 
A53: Capital Equipment (constructed) | H53: ='Budget Worksheet'!L54 -> 0 | I53: ='Budget Worksheet'!M54 -> 0 | J53: ='Budget Worksheet'!N54 -> 0 | K53: ='Budget Worksheet'!O54 -> 0 | L53: ='Budget Worksheet'!P54 -> 0 | M53: ='Budget Worksheet'!Q54 -> 0 | N53: =IF(#REF!="Yes",SUMIFS(#REF!,#REF!,#REF!),0)+IF(#REF!="Yes", SUMIFS(#REF!,#REF!,#REF!),0)+IF(#REF!="Yes",SUMIFS(#REF!,#REF!,#REF!),0)+IF(#REF!="Yes",SUMIFS(#REF!,#REF!,#REF!),0)+IF(#REF!="Yes",SUMIFS(#REF!,#REF!,#REF!),0) ->  | O53: =IF(#REF!="Yes",SUMIFS(#REF!,#REF!,#REF!),0)+IF(#REF!="Yes", SUMIFS(#REF!,#REF!,#REF!),0)+IF(#REF!="Yes",SUMIFS(#REF!,#REF!,#REF!),0)+IF(#REF!="Yes",SUMIFS(#REF!,#REF!,#REF!),0)+IF(#REF!="Yes",SUMIFS(#REF!,#REF!,#REF!),0) ->  | P53: =IF(#REF!="Yes",SUMIFS(#REF!,#REF!,#REF!),0)+IF(#REF!="Yes", SUMIFS(#REF!,#REF!,#REF!),0)+IF(#REF!="Yes",SUMIFS(#REF!,#REF!,#REF!),0)+IF(#REF!="Yes",SUMIFS(#REF!,#REF!,#REF!),0)+IF(#REF!="Yes",SUMIFS(#REF!,#REF!,#REF!),0) ->  | R53: =IF(#REF!="Yes",SUMIFS(#REF!,#REF!,#REF!),0)+IF(#REF!="Yes", SUMIFS(#REF!,#REF!,#REF!),0)+IF(#REF!="Yes",SUMIFS(#REF!,#REF!,#REF!),0)+IF(#REF!="Yes",SUMIFS(#REF!,#REF!,#REF!),0)+IF(#REF!="Yes",SUMIFS(#REF!,#REF!,#REF!),0) ->  | S53: =IF(#REF!="Yes",SUMIFS(#REF!,#REF!,#REF!),0)+IF(#REF!="Yes", SUMIFS(#REF!,#REF!,#REF!),0)+IF(#REF!="Yes",SUMIFS(#REF!,#REF!,#REF!),0)+IF(#REF!="Yes",SUMIFS(#REF!,#REF!,#REF!),0)+IF(#REF!="Yes",SUMIFS(#REF!,#REF!,#REF!),0) ->  | T53: =IF(#REF!="Yes",SUMIFS(#REF!,#REF!,#REF!),0)+IF(#REF!="Yes", SUMIFS(#REF!,#REF!,#REF!),0)+IF(#REF!="Yes",SUMIFS(#REF!,#REF!,#REF!),0)+IF(#REF!="Yes",SUMIFS(#REF!,#REF!,#REF!),0)+IF(#REF!="Yes",SUMIFS(#REF!,#REF!,#REF!),0) ->  | U53: =IF(#REF!="Yes",SUMIFS(#REF!,#REF!,#REF!),0)+IF(#REF!="Yes", SUMIFS(#REF!,#REF!,#REF!),0)+IF(#REF!="Yes",SUMIFS(#REF!,#REF!,#REF!),0)+IF(#REF!="Yes",SUMIFS(#REF!,#REF!,#REF!),0)+IF(#REF!="Yes",SUMIFS(#REF!,#REF!,#REF!),0) ->  | V53: =IF(#REF!="Yes",SUMIFS(#REF!,#REF!,#REF!),0)+IF(#REF!="Yes", SUMIFS(#REF!,#REF!,#REF!),0)+IF(#REF!="Yes",SUMIFS(#REF!,#REF!,#REF!),0)+IF(#REF!="Yes",SUMIFS(#REF!,#REF!,#REF!),0)+IF(#REF!="Yes",SUMIFS(#REF!,#REF!,#REF!),0) ->  | W53: =IF(#REF!="Yes",SUMIFS(#REF!,#REF!,#REF!),0)+IF(#REF!="Yes", SUMIFS(#REF!,#REF!,#REF!),0)+IF(#REF!="Yes",SUMIFS(#REF!,#REF!,#REF!),0)+IF(#REF!="Yes",SUMIFS(#REF!,#REF!,#REF!),0)+IF(#REF!="Yes",SUMIFS(#REF!,#REF!,#REF!),0) ->  | X53: =IF(#REF!="Yes",SUMIFS(#REF!,#REF!,#REF!),0)+IF(#REF!="Yes", SUMIFS(#REF!,#REF!,#REF!),0)+IF(#REF!="Yes",SUMIFS(#REF!,#REF!,#REF!),0)+IF(#REF!="Yes",SUMIFS(#REF!,#REF!,#REF!),0)+IF(#REF!="Yes",SUMIFS(#REF!,#REF!,#REF!),0) -> 
A54: D. Travel | N54: =#REF! ->  | O54: =IF(#REF!="Yes",SUMIFS(#REF!,#REF!,#REF!),0)+IF(#REF!="Yes", SUMIFS(#REF!,#REF!,#REF!),0)+IF(#REF!="Yes",SUMIFS(#REF!,#REF!,#REF!),0)+IF(#REF!="Yes",SUMIFS(#REF!,#REF!,#REF!),0)+IF(#REF!="Yes",SUMIFS(#REF!,#REF!,#REF!),0) ->  | P54: =IF(#REF!="Yes",SUMIFS(#REF!,#REF!,#REF!),0)+IF(#REF!="Yes", SUMIFS(#REF!,#REF!,#REF!),0)+IF(#REF!="Yes",SUMIFS(#REF!,#REF!,#REF!),0)+IF(#REF!="Yes",SUMIFS(#REF!,#REF!,#REF!),0)+IF(#REF!="Yes",SUMIFS(#REF!,#REF!,#REF!),0) ->  | R54: =IF(#REF!="Yes",SUMIFS(#REF!,#REF!,#REF!),0)+IF(#REF!="Yes", SUMIFS(#REF!,#REF!,#REF!),0)+IF(#REF!="Yes",SUMIFS(#REF!,#REF!,#REF!),0)+IF(#REF!="Yes",SUMIFS(#REF!,#REF!,#REF!),0)+IF(#REF!="Yes",SUMIFS(#REF!,#REF!,#REF!),0) ->  | S54: =IF(#REF!="Yes",SUMIFS(#REF!,#REF!,#REF!),0)+IF(#REF!="Yes", SUMIFS(#REF!,#REF!,#REF!),0)+IF(#REF!="Yes",SUMIFS(#REF!,#REF!,#REF!),0)+IF(#REF!="Yes",SUMIFS(#REF!,#REF!,#REF!),0)+IF(#REF!="Yes",SUMIFS(#REF!,#REF!,#REF!),0) ->  | T54: =IF(#REF!="Yes",SUMIFS(#REF!,#REF!,#REF!),0)+IF(#REF!="Yes", SUMIFS(#REF!,#REF!,#REF!),0)+IF(#REF!="Yes",SUMIFS(#REF!,#REF!,#REF!),0)+IF(#REF!="Yes",SUMIFS(#REF!,#REF!,#REF!),0)+IF(#REF!="Yes",SUMIFS(#REF!,#REF!,#REF!),0) ->  | U54: =IF(#REF!="Yes",SUMIFS(#REF!,#REF!,#REF!),0)+IF(#REF!="Yes", SUMIFS(#REF!,#REF!,#REF!),0)+IF(#REF!="Yes",SUMIFS(#REF!,#REF!,#REF!),0)+IF(#REF!="Yes",SUMIFS(#REF!,#REF!,#REF!),0)+IF(#REF!="Yes",SUMIFS(#REF!,#REF!,#REF!),0) ->  | V54: =IF(#REF!="Yes",SUMIFS(#REF!,#REF!,#REF!),0)+IF(#REF!="Yes", SUMIFS(#REF!,#REF!,#REF!),0)+IF(#REF!="Yes",SUMIFS(#REF!,#REF!,#REF!),0)+IF(#REF!="Yes",SUMIFS(#REF!,#REF!,#REF!),0)+IF(#REF!="Yes",SUMIFS(#REF!,#REF!,#REF!),0) ->  | W54: =IF(#REF!="Yes",SUMIFS(#REF!,#REF!,#REF!),0)+IF(#REF!="Yes", SUMIFS(#REF!,#REF!,#REF!),0)+IF(#REF!="Yes",SUMIFS(#REF!,#REF!,#REF!),0)+IF(#REF!="Yes",SUMIFS(#REF!,#REF!,#REF!),0)+IF(#REF!="Yes",SUMIFS(#REF!,#REF!,#REF!),0) ->  | X54: =IF(#REF!="Yes",SUMIFS(#REF!,#REF!,#REF!),0)+IF(#REF!="Yes", SUMIFS(#REF!,#REF!,#REF!),0)+IF(#REF!="Yes",SUMIFS(#REF!,#REF!,#REF!),0)+IF(#REF!="Yes",SUMIFS(#REF!,#REF!,#REF!),0)+IF(#REF!="Yes",SUMIFS(#REF!,#REF!,#REF!),0) -> 
A55: Travel Domestic | H55: ='Budget Worksheet'!L56 -> 0 | I55: ='Budget Worksheet'!M56 -> 0 | J55: ='Budget Worksheet'!N56 -> 0 | K55: ='Budget Worksheet'!O56 -> 0 | L55: ='Budget Worksheet'!P56 -> 0 | M55: ='Budget Worksheet'!Q56 -> 0 | N55: =IF(#REF!="Yes",SUMIFS(#REF!,#REF!,#REF!),0)+IF(#REF!="Yes", SUMIFS(#REF!,#REF!,#REF!),0)+IF(#REF!="Yes",SUMIFS(#REF!,#REF!,#REF!),0)+IF(#REF!="Yes",SUMIFS(#REF!,#REF!,#REF!),0)+IF(#REF!="Yes",SUMIFS(#REF!,#REF!,#REF!),0) ->  | O55: =IF(#REF!="Yes",SUMIFS(#REF!,#REF!,#REF!),0)+IF(#REF!="Yes", SUMIFS(#REF!,#REF!,#REF!),0)+IF(#REF!="Yes",SUMIFS(#REF!,#REF!,#REF!),0)+IF(#REF!="Yes",SUMIFS(#REF!,#REF!,#REF!),0)+IF(#REF!="Yes",SUMIFS(#REF!,#REF!,#REF!),0) ->  | P55: =IF(#REF!="Yes",SUMIFS(#REF!,#REF!,#REF!),0)+IF(#REF!="Yes", SUMIFS(#REF!,#REF!,#REF!),0)+IF(#REF!="Yes",SUMIFS(#REF!,#REF!,#REF!),0)+IF(#REF!="Yes",SUMIFS(#REF!,#REF!,#REF!),0)+IF(#REF!="Yes",SUMIFS(#REF!,#REF!,#REF!),0) ->  | R55: =IF(#REF!="Yes",SUMIFS(#REF!,#REF!,#REF!),0)+IF(#REF!="Yes", SUMIFS(#REF!,#REF!,#REF!),0)+IF(#REF!="Yes",SUMIFS(#REF!,#REF!,#REF!),0)+IF(#REF!="Yes",SUMIFS(#REF!,#REF!,#REF!),0)+IF(#REF!="Yes",SUMIFS(#REF!,#REF!,#REF!),0) ->  | S55: =IF(#REF!="Yes",SUMIFS(#REF!,#REF!,#REF!),0)+IF(#REF!="Yes", SUMIFS(#REF!,#REF!,#REF!),0)+IF(#REF!="Yes",SUMIFS(#REF!,#REF!,#REF!),0)+IF(#REF!="Yes",SUMIFS(#REF!,#REF!,#REF!),0)+IF(#REF!="Yes",SUMIFS(#REF!,#REF!,#REF!),0) ->  | T55: =IF(#REF!="Yes",SUMIFS(#REF!,#REF!,#REF!),0)+IF(#REF!="Yes", SUMIFS(#REF!,#REF!,#REF!),0)+IF(#REF!="Yes",SUMIFS(#REF!,#REF!,#REF!),0)+IF(#REF!="Yes",SUMIFS(#REF!,#REF!,#REF!),0)+IF(#REF!="Yes",SUMIFS(#REF!,#REF!,#REF!),0) ->  | U55: =IF(#REF!="Yes",SUMIFS(#REF!,#REF!,#REF!),0)+IF(#REF!="Yes", SUMIFS(#REF!,#REF!,#REF!),0)+IF(#REF!="Yes",SUMIFS(#REF!,#REF!,#REF!),0)+IF(#REF!="Yes",SUMIFS(#REF!,#REF!,#REF!),0)+IF(#REF!="Yes",SUMIFS(#REF!,#REF!,#REF!),0) ->  | V55: =IF(#REF!="Yes",SUMIFS(#REF!,#REF!,#REF!),0)+IF(#REF!="Yes", SUMIFS(#REF!,#REF!,#REF!),0)+IF(#REF!="Yes",SUMIFS(#REF!,#REF!,#REF!),0)+IF(#REF!="Yes",SUMIFS(#REF!,#REF!,#REF!),0)+IF(#REF!="Yes",SUMIFS(#REF!,#REF!,#REF!),0) ->  | W55: =IF(#REF!="Yes",SUMIFS(#REF!,#REF!,#REF!),0)+IF(#REF!="Yes", SUMIFS(#REF!,#REF!,#REF!),0)+IF(#REF!="Yes",SUMIFS(#REF!,#REF!,#REF!),0)+IF(#REF!="Yes",SUMIFS(#REF!,#REF!,#REF!),0)+IF(#REF!="Yes",SUMIFS(#REF!,#REF!,#REF!),0) ->  | X55: =IF(#REF!="Yes",SUMIFS(#REF!,#REF!,#REF!),0)+IF(#REF!="Yes", SUMIFS(#REF!,#REF!,#REF!),0)+IF(#REF!="Yes",SUMIFS(#REF!,#REF!,#REF!),0)+IF(#REF!="Yes",SUMIFS(#REF!,#REF!,#REF!),0)+IF(#REF!="Yes",SUMIFS(#REF!,#REF!,#REF!),0) -> 
A56: Travel Foreign | H56: ='Budget Worksheet'!L57 -> 0 | I56: ='Budget Worksheet'!M57 -> 0 | J56: ='Budget Worksheet'!N57 -> 0 | K56: ='Budget Worksheet'!O57 -> 0 | L56: ='Budget Worksheet'!P57 -> 0 | M56: ='Budget Worksheet'!Q57 -> 0 | N56: =IF(#REF!="Yes",SUMIFS(#REF!,#REF!,#REF!),0)+IF(#REF!="Yes", SUMIFS(#REF!,#REF!,#REF!),0)+IF(#REF!="Yes",SUMIFS(#REF!,#REF!,#REF!),0)+IF(#REF!="Yes",SUMIFS(#REF!,#REF!,#REF!),0)+IF(#REF!="Yes",SUMIFS(#REF!,#REF!,#REF!),0) ->  | O56: =IF(#REF!="Yes",SUMIFS(#REF!,#REF!,#REF!),0)+IF(#REF!="Yes", SUMIFS(#REF!,#REF!,#REF!),0)+IF(#REF!="Yes",SUMIFS(#REF!,#REF!,#REF!),0)+IF(#REF!="Yes",SUMIFS(#REF!,#REF!,#REF!),0)+IF(#REF!="Yes",SUMIFS(#REF!,#REF!,#REF!),0) ->  | P56: =IF(#REF!="Yes",SUMIFS(#REF!,#REF!,#REF!),0)+IF(#REF!="Yes", SUMIFS(#REF!,#REF!,#REF!),0)+IF(#REF!="Yes",SUMIFS(#REF!,#REF!,#REF!),0)+IF(#REF!="Yes",SUMIFS(#REF!,#REF!,#REF!),0)+IF(#REF!="Yes",SUMIFS(#REF!,#REF!,#REF!),0) ->  | R56: =IF(#REF!="Yes",SUMIFS(#REF!,#REF!,#REF!),0)+IF(#REF!="Yes", SUMIFS(#REF!,#REF!,#REF!),0)+IF(#REF!="Yes",SUMIFS(#REF!,#REF!,#REF!),0)+IF(#REF!="Yes",SUMIFS(#REF!,#REF!,#REF!),0)+IF(#REF!="Yes",SUMIFS(#REF!,#REF!,#REF!),0) ->  | S56: =IF(#REF!="Yes",SUMIFS(#REF!,#REF!,#REF!),0)+IF(#REF!="Yes", SUMIFS(#REF!,#REF!,#REF!),0)+IF(#REF!="Yes",SUMIFS(#REF!,#REF!,#REF!),0)+IF(#REF!="Yes",SUMIFS(#REF!,#REF!,#REF!),0)+IF(#REF!="Yes",SUMIFS(#REF!,#REF!,#REF!),0) ->  | T56: =IF(#REF!="Yes",SUMIFS(#REF!,#REF!,#REF!),0)+IF(#REF!="Yes", SUMIFS(#REF!,#REF!,#REF!),0)+IF(#REF!="Yes",SUMIFS(#REF!,#REF!,#REF!),0)+IF(#REF!="Yes",SUMIFS(#REF!,#REF!,#REF!),0)+IF(#REF!="Yes",SUMIFS(#REF!,#REF!,#REF!),0) ->  | U56: =IF(#REF!="Yes",SUMIFS(#REF!,#REF!,#REF!),0)+IF(#REF!="Yes", SUMIFS(#REF!,#REF!,#REF!),0)+IF(#REF!="Yes",SUMIFS(#REF!,#REF!,#REF!),0)+IF(#REF!="Yes",SUMIFS(#REF!,#REF!,#REF!),0)+IF(#REF!="Yes",SUMIFS(#REF!,#REF!,#REF!),0) ->  | V56: =IF(#REF!="Yes",SUMIFS(#REF!,#REF!,#REF!),0)+IF(#REF!="Yes", SUMIFS(#REF!,#REF!,#REF!),0)+IF(#REF!="Yes",SUMIFS(#REF!,#REF!,#REF!),0)+IF(#REF!="Yes",SUMIFS(#REF!,#REF!,#REF!),0)+IF(#REF!="Yes",SUMIFS(#REF!,#REF!,#REF!),0) ->  | W56: =IF(#REF!="Yes",SUMIFS(#REF!,#REF!,#REF!),0)+IF(#REF!="Yes", SUMIFS(#REF!,#REF!,#REF!),0)+IF(#REF!="Yes",SUMIFS(#REF!,#REF!,#REF!),0)+IF(#REF!="Yes",SUMIFS(#REF!,#REF!,#REF!),0)+IF(#REF!="Yes",SUMIFS(#REF!,#REF!,#REF!),0) ->  | X56: =IF(#REF!="Yes",SUMIFS(#REF!,#REF!,#REF!),0)+IF(#REF!="Yes", SUMIFS(#REF!,#REF!,#REF!),0)+IF(#REF!="Yes",SUMIFS(#REF!,#REF!,#REF!),0)+IF(#REF!="Yes",SUMIFS(#REF!,#REF!,#REF!),0)+IF(#REF!="Yes",SUMIFS(#REF!,#REF!,#REF!),0) -> 
A57: E. Participant/Trainee Support Costs | N57: =#REF! ->  | O57: =IF(#REF!="Yes",SUMIFS(#REF!,#REF!,#REF!),0)+IF(#REF!="Yes", SUMIFS(#REF!,#REF!,#REF!),0)+IF(#REF!="Yes",SUMIFS(#REF!,#REF!,#REF!),0)+IF(#REF!="Yes",SUMIFS(#REF!,#REF!,#REF!),0)+IF(#REF!="Yes",SUMIFS(#REF!,#REF!,#REF!),0) ->  | P57: =IF(#REF!="Yes",SUMIFS(#REF!,#REF!,#REF!),0)+IF(#REF!="Yes", SUMIFS(#REF!,#REF!,#REF!),0)+IF(#REF!="Yes",SUMIFS(#REF!,#REF!,#REF!),0)+IF(#REF!="Yes",SUMIFS(#REF!,#REF!,#REF!),0)+IF(#REF!="Yes",SUMIFS(#REF!,#REF!,#REF!),0) ->  | R57: =IF(#REF!="Yes",SUMIFS(#REF!,#REF!,#REF!),0)+IF(#REF!="Yes", SUMIFS(#REF!,#REF!,#REF!),0)+IF(#REF!="Yes",SUMIFS(#REF!,#REF!,#REF!),0)+IF(#REF!="Yes",SUMIFS(#REF!,#REF!,#REF!),0)+IF(#REF!="Yes",SUMIFS(#REF!,#REF!,#REF!),0) ->  | S57: =IF(#REF!="Yes",SUMIFS(#REF!,#REF!,#REF!),0)+IF(#REF!="Yes", SUMIFS(#REF!,#REF!,#REF!),0)+IF(#REF!="Yes",SUMIFS(#REF!,#REF!,#REF!),0)+IF(#REF!="Yes",SUMIFS(#REF!,#REF!,#REF!),0)+IF(#REF!="Yes",SUMIFS(#REF!,#REF!,#REF!),0) ->  | T57: =IF(#REF!="Yes",SUMIFS(#REF!,#REF!,#REF!),0)+IF(#REF!="Yes", SUMIFS(#REF!,#REF!,#REF!),0)+IF(#REF!="Yes",SUMIFS(#REF!,#REF!,#REF!),0)+IF(#REF!="Yes",SUMIFS(#REF!,#REF!,#REF!),0)+IF(#REF!="Yes",SUMIFS(#REF!,#REF!,#REF!),0) ->  | U57: =IF(#REF!="Yes",SUMIFS(#REF!,#REF!,#REF!),0)+IF(#REF!="Yes", SUMIFS(#REF!,#REF!,#REF!),0)+IF(#REF!="Yes",SUMIFS(#REF!,#REF!,#REF!),0)+IF(#REF!="Yes",SUMIFS(#REF!,#REF!,#REF!),0)+IF(#REF!="Yes",SUMIFS(#REF!,#REF!,#REF!),0) ->  | V57: =IF(#REF!="Yes",SUMIFS(#REF!,#REF!,#REF!),0)+IF(#REF!="Yes", SUMIFS(#REF!,#REF!,#REF!),0)+IF(#REF!="Yes",SUMIFS(#REF!,#REF!,#REF!),0)+IF(#REF!="Yes",SUMIFS(#REF!,#REF!,#REF!),0)+IF(#REF!="Yes",SUMIFS(#REF!,#REF!,#REF!),0) ->  | W57: =IF(#REF!="Yes",SUMIFS(#REF!,#REF!,#REF!),0)+IF(#REF!="Yes", SUMIFS(#REF!,#REF!,#REF!),0)+IF(#REF!="Yes",SUMIFS(#REF!,#REF!,#REF!),0)+IF(#REF!="Yes",SUMIFS(#REF!,#REF!,#REF!),0)+IF(#REF!="Yes",SUMIFS(#REF!,#REF!,#REF!),0) ->  | X57: =IF(#REF!="Yes",SUMIFS(#REF!,#REF!,#REF!),0)+IF(#REF!="Yes", SUMIFS(#REF!,#REF!,#REF!),0)+IF(#REF!="Yes",SUMIFS(#REF!,#REF!,#REF!),0)+IF(#REF!="Yes",SUMIFS(#REF!,#REF!,#REF!),0)+IF(#REF!="Yes",SUMIFS(#REF!,#REF!,#REF!),0) -> 
A58: Tuition/Fees/Health Insurance | H58: ='Budget Worksheet'!L59 -> 0 | I58: ='Budget Worksheet'!M59 -> 0 | J58: ='Budget Worksheet'!N59 -> 0 | K58: ='Budget Worksheet'!O59 -> 0 | L58: ='Budget Worksheet'!P59 -> 0 | M58: ='Budget Worksheet'!Q59 -> 0 | N58: =IF(#REF!="Yes",SUMIFS(#REF!,#REF!,#REF!),0)+IF(#REF!="Yes", SUMIFS(#REF!,#REF!,#REF!),0)+IF(#REF!="Yes",SUMIFS(#REF!,#REF!,#REF!),0)+IF(#REF!="Yes",SUMIFS(#REF!,#REF!,#REF!),0)+IF(#REF!="Yes",SUMIFS(#REF!,#REF!,#REF!),0) ->  | O58: =IF(#REF!="Yes",SUMIFS(#REF!,#REF!,#REF!),0)+IF(#REF!="Yes", SUMIFS(#REF!,#REF!,#REF!),0)+IF(#REF!="Yes",SUMIFS(#REF!,#REF!,#REF!),0)+IF(#REF!="Yes",SUMIFS(#REF!,#REF!,#REF!),0)+IF(#REF!="Yes",SUMIFS(#REF!,#REF!,#REF!),0) ->  | P58: =IF(#REF!="Yes",SUMIFS(#REF!,#REF!,#REF!),0)+IF(#REF!="Yes", SUMIFS(#REF!,#REF!,#REF!),0)+IF(#REF!="Yes",SUMIFS(#REF!,#REF!,#REF!),0)+IF(#REF!="Yes",SUMIFS(#REF!,#REF!,#REF!),0)+IF(#REF!="Yes",SUMIFS(#REF!,#REF!,#REF!),0) ->  | R58: =IF(#REF!="Yes",SUMIFS(#REF!,#REF!,#REF!),0)+IF(#REF!="Yes", SUMIFS(#REF!,#REF!,#REF!),0)+IF(#REF!="Yes",SUMIFS(#REF!,#REF!,#REF!),0)+IF(#REF!="Yes",SUMIFS(#REF!,#REF!,#REF!),0)+IF(#REF!="Yes",SUMIFS(#REF!,#REF!,#REF!),0) ->  | S58: =IF(#REF!="Yes",SUMIFS(#REF!,#REF!,#REF!),0)+IF(#REF!="Yes", SUMIFS(#REF!,#REF!,#REF!),0)+IF(#REF!="Yes",SUMIFS(#REF!,#REF!,#REF!),0)+IF(#REF!="Yes",SUMIFS(#REF!,#REF!,#REF!),0)+IF(#REF!="Yes",SUMIFS(#REF!,#REF!,#REF!),0) ->  | T58: =IF(#REF!="Yes",SUMIFS(#REF!,#REF!,#REF!),0)+IF(#REF!="Yes", SUMIFS(#REF!,#REF!,#REF!),0)+IF(#REF!="Yes",SUMIFS(#REF!,#REF!,#REF!),0)+IF(#REF!="Yes",SUMIFS(#REF!,#REF!,#REF!),0)+IF(#REF!="Yes",SUMIFS(#REF!,#REF!,#REF!),0) ->  | U58: =IF(#REF!="Yes",SUMIFS(#REF!,#REF!,#REF!),0)+IF(#REF!="Yes", SUMIFS(#REF!,#REF!,#REF!),0)+IF(#REF!="Yes",SUMIFS(#REF!,#REF!,#REF!),0)+IF(#REF!="Yes",SUMIFS(#REF!,#REF!,#REF!),0)+IF(#REF!="Yes",SUMIFS(#REF!,#REF!,#REF!),0) ->  | V58: =IF(#REF!="Yes",SUMIFS(#REF!,#REF!,#REF!),0)+IF(#REF!="Yes", SUMIFS(#REF!,#REF!,#REF!),0)+IF(#REF!="Yes",SUMIFS(#REF!,#REF!,#REF!),0)+IF(#REF!="Yes",SUMIFS(#REF!,#REF!,#REF!),0)+IF(#REF!="Yes",SUMIFS(#REF!,#REF!,#REF!),0) ->  | W58: =IF(#REF!="Yes",SUMIFS(#REF!,#REF!,#REF!),0)+IF(#REF!="Yes", SUMIFS(#REF!,#REF!,#REF!),0)+IF(#REF!="Yes",SUMIFS(#REF!,#REF!,#REF!),0)+IF(#REF!="Yes",SUMIFS(#REF!,#REF!,#REF!),0)+IF(#REF!="Yes",SUMIFS(#REF!,#REF!,#REF!),0) ->  | X58: =IF(#REF!="Yes",SUMIFS(#REF!,#REF!,#REF!),0)+IF(#REF!="Yes", SUMIFS(#REF!,#REF!,#REF!),0)+IF(#REF!="Yes",SUMIFS(#REF!,#REF!,#REF!),0)+IF(#REF!="Yes",SUMIFS(#REF!,#REF!,#REF!),0)+IF(#REF!="Yes",SUMIFS(#REF!,#REF!,#REF!),0) -> 
A59: Stipends | H59: ='Budget Worksheet'!L60 -> 0 | I59: ='Budget Worksheet'!M60 -> 0 | J59: ='Budget Worksheet'!N60 -> 0 | K59: ='Budget Worksheet'!O60 -> 0 | L59: ='Budget Worksheet'!P60 -> 0 | M59: ='Budget Worksheet'!Q60 -> 0 | N59: =IF(#REF!="Yes",SUMIFS(#REF!,#REF!,#REF!),0)+IF(#REF!="Yes", SUMIFS(#REF!,#REF!,#REF!),0)+IF(#REF!="Yes",SUMIFS(#REF!,#REF!,#REF!),0)+IF(#REF!="Yes",SUMIFS(#REF!,#REF!,#REF!),0)+IF(#REF!="Yes",SUMIFS(#REF!,#REF!,#REF!),0) ->  | O59: =IF(#REF!="Yes",SUMIFS(#REF!,#REF!,#REF!),0)+IF(#REF!="Yes", SUMIFS(#REF!,#REF!,#REF!),0)+IF(#REF!="Yes",SUMIFS(#REF!,#REF!,#REF!),0)+IF(#REF!="Yes",SUMIFS(#REF!,#REF!,#REF!),0)+IF(#REF!="Yes",SUMIFS(#REF!,#REF!,#REF!),0) ->  | P59: =IF(#REF!="Yes",SUMIFS(#REF!,#REF!,#REF!),0)+IF(#REF!="Yes", SUMIFS(#REF!,#REF!,#REF!),0)+IF(#REF!="Yes",SUMIFS(#REF!,#REF!,#REF!),0)+IF(#REF!="Yes",SUMIFS(#REF!,#REF!,#REF!),0)+IF(#REF!="Yes",SUMIFS(#REF!,#REF!,#REF!),0) ->  | R59: =IF(#REF!="Yes",SUMIFS(#REF!,#REF!,#REF!),0)+IF(#REF!="Yes", SUMIFS(#REF!,#REF!,#REF!),0)+IF(#REF!="Yes",SUMIFS(#REF!,#REF!,#REF!),0)+IF(#REF!="Yes",SUMIFS(#REF!,#REF!,#REF!),0)+IF(#REF!="Yes",SUMIFS(#REF!,#REF!,#REF!),0) ->  | S59: =IF(#REF!="Yes",SUMIFS(#REF!,#REF!,#REF!),0)+IF(#REF!="Yes", SUMIFS(#REF!,#REF!,#REF!),0)+IF(#REF!="Yes",SUMIFS(#REF!,#REF!,#REF!),0)+IF(#REF!="Yes",SUMIFS(#REF!,#REF!,#REF!),0)+IF(#REF!="Yes",SUMIFS(#REF!,#REF!,#REF!),0) ->  | T59: =IF(#REF!="Yes",SUMIFS(#REF!,#REF!,#REF!),0)+IF(#REF!="Yes", SUMIFS(#REF!,#REF!,#REF!),0)+IF(#REF!="Yes",SUMIFS(#REF!,#REF!,#REF!),0)+IF(#REF!="Yes",SUMIFS(#REF!,#REF!,#REF!),0)+IF(#REF!="Yes",SUMIFS(#REF!,#REF!,#REF!),0) ->  | U59: =IF(#REF!="Yes",SUMIFS(#REF!,#REF!,#REF!),0)+IF(#REF!="Yes", SUMIFS(#REF!,#REF!,#REF!),0)+IF(#REF!="Yes",SUMIFS(#REF!,#REF!,#REF!),0)+IF(#REF!="Yes",SUMIFS(#REF!,#REF!,#REF!),0)+IF(#REF!="Yes",SUMIFS(#REF!,#REF!,#REF!),0) ->  | V59: =IF(#REF!="Yes",SUMIFS(#REF!,#REF!,#REF!),0)+IF(#REF!="Yes", SUMIFS(#REF!,#REF!,#REF!),0)+IF(#REF!="Yes",SUMIFS(#REF!,#REF!,#REF!),0)+IF(#REF!="Yes",SUMIFS(#REF!,#REF!,#REF!),0)+IF(#REF!="Yes",SUMIFS(#REF!,#REF!,#REF!),0) ->  | W59: =IF(#REF!="Yes",SUMIFS(#REF!,#REF!,#REF!),0)+IF(#REF!="Yes", SUMIFS(#REF!,#REF!,#REF!),0)+IF(#REF!="Yes",SUMIFS(#REF!,#REF!,#REF!),0)+IF(#REF!="Yes",SUMIFS(#REF!,#REF!,#REF!),0)+IF(#REF!="Yes",SUMIFS(#REF!,#REF!,#REF!),0) ->  | X59: =IF(#REF!="Yes",SUMIFS(#REF!,#REF!,#REF!),0)+IF(#REF!="Yes", SUMIFS(#REF!,#REF!,#REF!),0)+IF(#REF!="Yes",SUMIFS(#REF!,#REF!,#REF!),0)+IF(#REF!="Yes",SUMIFS(#REF!,#REF!,#REF!),0)+IF(#REF!="Yes",SUMIFS(#REF!,#REF!,#REF!),0) -> 
A60: Participant Travel | H60: ='Budget Worksheet'!L61 -> 0 | I60: ='Budget Worksheet'!M61 -> 0 | J60: ='Budget Worksheet'!N61 -> 0 | K60: ='Budget Worksheet'!O61 -> 0 | L60: ='Budget Worksheet'!P61 -> 0 | M60: ='Budget Worksheet'!Q61 -> 0 | N60: =IF(#REF!="Yes",SUMIFS(#REF!,#REF!,#REF!),0)+IF(#REF!="Yes", SUMIFS(#REF!,#REF!,#REF!),0)+IF(#REF!="Yes",SUMIFS(#REF!,#REF!,#REF!),0)+IF(#REF!="Yes",SUMIFS(#REF!,#REF!,#REF!),0)+IF(#REF!="Yes",SUMIFS(#REF!,#REF!,#REF!),0) ->  | O60: =IF(#REF!="Yes",SUMIFS(#REF!,#REF!,#REF!),0)+IF(#REF!="Yes", SUMIFS(#REF!,#REF!,#REF!),0)+IF(#REF!="Yes",SUMIFS(#REF!,#REF!,#REF!),0)+IF(#REF!="Yes",SUMIFS(#REF!,#REF!,#REF!),0)+IF(#REF!="Yes",SUMIFS(#REF!,#REF!,#REF!),0) ->  | P60: =IF(#REF!="Yes",SUMIFS(#REF!,#REF!,#REF!),0)+IF(#REF!="Yes", SUMIFS(#REF!,#REF!,#REF!),0)+IF(#REF!="Yes",SUMIFS(#REF!,#REF!,#REF!),0)+IF(#REF!="Yes",SUMIFS(#REF!,#REF!,#REF!),0)+IF(#REF!="Yes",SUMIFS(#REF!,#REF!,#REF!),0) ->  | R60: =IF(#REF!="Yes",SUMIFS(#REF!,#REF!,#REF!),0)+IF(#REF!="Yes", SUMIFS(#REF!,#REF!,#REF!),0)+IF(#REF!="Yes",SUMIFS(#REF!,#REF!,#REF!),0)+IF(#REF!="Yes",SUMIFS(#REF!,#REF!,#REF!),0)+IF(#REF!="Yes",SUMIFS(#REF!,#REF!,#REF!),0) ->  | S60: =IF(#REF!="Yes",SUMIFS(#REF!,#REF!,#REF!),0)+IF(#REF!="Yes", SUMIFS(#REF!,#REF!,#REF!),0)+IF(#REF!="Yes",SUMIFS(#REF!,#REF!,#REF!),0)+IF(#REF!="Yes",SUMIFS(#REF!,#REF!,#REF!),0)+IF(#REF!="Yes",SUMIFS(#REF!,#REF!,#REF!),0) ->  | T60: =IF(#REF!="Yes",SUMIFS(#REF!,#REF!,#REF!),0)+IF(#REF!="Yes", SUMIFS(#REF!,#REF!,#REF!),0)+IF(#REF!="Yes",SUMIFS(#REF!,#REF!,#REF!),0)+IF(#REF!="Yes",SUMIFS(#REF!,#REF!,#REF!),0)+IF(#REF!="Yes",SUMIFS(#REF!,#REF!,#REF!),0) ->  | U60: =IF(#REF!="Yes",SUMIFS(#REF!,#REF!,#REF!),0)+IF(#REF!="Yes", SUMIFS(#REF!,#REF!,#REF!),0)+IF(#REF!="Yes",SUMIFS(#REF!,#REF!,#REF!),0)+IF(#REF!="Yes",SUMIFS(#REF!,#REF!,#REF!),0)+IF(#REF!="Yes",SUMIFS(#REF!,#REF!,#REF!),0) ->  | V60: =IF(#REF!="Yes",SUMIFS(#REF!,#REF!,#REF!),0)+IF(#REF!="Yes", SUMIFS(#REF!,#REF!,#REF!),0)+IF(#REF!="Yes",SUMIFS(#REF!,#REF!,#REF!),0)+IF(#REF!="Yes",SUMIFS(#REF!,#REF!,#REF!),0)+IF(#REF!="Yes",SUMIFS(#REF!,#REF!,#REF!),0) ->  | W60: =IF(#REF!="Yes",SUMIFS(#REF!,#REF!,#REF!),0)+IF(#REF!="Yes", SUMIFS(#REF!,#REF!,#REF!),0)+IF(#REF!="Yes",SUMIFS(#REF!,#REF!,#REF!),0)+IF(#REF!="Yes",SUMIFS(#REF!,#REF!,#REF!),0)+IF(#REF!="Yes",SUMIFS(#REF!,#REF!,#REF!),0) ->  | X60: =IF(#REF!="Yes",SUMIFS(#REF!,#REF!,#REF!),0)+IF(#REF!="Yes", SUMIFS(#REF!,#REF!,#REF!),0)+IF(#REF!="Yes",SUMIFS(#REF!,#REF!,#REF!),0)+IF(#REF!="Yes",SUMIFS(#REF!,#REF!,#REF!),0)+IF(#REF!="Yes",SUMIFS(#REF!,#REF!,#REF!),0) -> 
A61: Travel Domestic | H61: ='Budget Worksheet'!L62 -> 0 | I61: ='Budget Worksheet'!M62 -> 0 | J61: ='Budget Worksheet'!N62 -> 0 | K61: ='Budget Worksheet'!O62 -> 0 | L61: ='Budget Worksheet'!P62 -> 0 | M61: ='Budget Worksheet'!Q62 -> 0 | N61: =IF(#REF!="Yes",SUMIFS(#REF!,#REF!,#REF!),0)+IF(#REF!="Yes", SUMIFS(#REF!,#REF!,#REF!),0)+IF(#REF!="Yes",SUMIFS(#REF!,#REF!,#REF!),0)+IF(#REF!="Yes",SUMIFS(#REF!,#REF!,#REF!),0)+IF(#REF!="Yes",SUMIFS(#REF!,#REF!,#REF!),0) ->  | O61: =IF(#REF!="Yes",SUMIFS(#REF!,#REF!,#REF!),0)+IF(#REF!="Yes", SUMIFS(#REF!,#REF!,#REF!),0)+IF(#REF!="Yes",SUMIFS(#REF!,#REF!,#REF!),0)+IF(#REF!="Yes",SUMIFS(#REF!,#REF!,#REF!),0)+IF(#REF!="Yes",SUMIFS(#REF!,#REF!,#REF!),0) ->  | P61: =IF(#REF!="Yes",SUMIFS(#REF!,#REF!,#REF!),0)+IF(#REF!="Yes", SUMIFS(#REF!,#REF!,#REF!),0)+IF(#REF!="Yes",SUMIFS(#REF!,#REF!,#REF!),0)+IF(#REF!="Yes",SUMIFS(#REF!,#REF!,#REF!),0)+IF(#REF!="Yes",SUMIFS(#REF!,#REF!,#REF!),0) ->  | R61: =IF(#REF!="Yes",SUMIFS(#REF!,#REF!,#REF!),0)+IF(#REF!="Yes", SUMIFS(#REF!,#REF!,#REF!),0)+IF(#REF!="Yes",SUMIFS(#REF!,#REF!,#REF!),0)+IF(#REF!="Yes",SUMIFS(#REF!,#REF!,#REF!),0)+IF(#REF!="Yes",SUMIFS(#REF!,#REF!,#REF!),0) ->  | S61: =IF(#REF!="Yes",SUMIFS(#REF!,#REF!,#REF!),0)+IF(#REF!="Yes", SUMIFS(#REF!,#REF!,#REF!),0)+IF(#REF!="Yes",SUMIFS(#REF!,#REF!,#REF!),0)+IF(#REF!="Yes",SUMIFS(#REF!,#REF!,#REF!),0)+IF(#REF!="Yes",SUMIFS(#REF!,#REF!,#REF!),0) ->  | T61: =IF(#REF!="Yes",SUMIFS(#REF!,#REF!,#REF!),0)+IF(#REF!="Yes", SUMIFS(#REF!,#REF!,#REF!),0)+IF(#REF!="Yes",SUMIFS(#REF!,#REF!,#REF!),0)+IF(#REF!="Yes",SUMIFS(#REF!,#REF!,#REF!),0)+IF(#REF!="Yes",SUMIFS(#REF!,#REF!,#REF!),0) ->  | U61: =IF(#REF!="Yes",SUMIFS(#REF!,#REF!,#REF!),0)+IF(#REF!="Yes", SUMIFS(#REF!,#REF!,#REF!),0)+IF(#REF!="Yes",SUMIFS(#REF!,#REF!,#REF!),0)+IF(#REF!="Yes",SUMIFS(#REF!,#REF!,#REF!),0)+IF(#REF!="Yes",SUMIFS(#REF!,#REF!,#REF!),0) ->  | V61: =IF(#REF!="Yes",SUMIFS(#REF!,#REF!,#REF!),0)+IF(#REF!="Yes", SUMIFS(#REF!,#REF!,#REF!),0)+IF(#REF!="Yes",SUMIFS(#REF!,#REF!,#REF!),0)+IF(#REF!="Yes",SUMIFS(#REF!,#REF!,#REF!),0)+IF(#REF!="Yes",SUMIFS(#REF!,#REF!,#REF!),0) ->  | W61: =IF(#REF!="Yes",SUMIFS(#REF!,#REF!,#REF!),0)+IF(#REF!="Yes", SUMIFS(#REF!,#REF!,#REF!),0)+IF(#REF!="Yes",SUMIFS(#REF!,#REF!,#REF!),0)+IF(#REF!="Yes",SUMIFS(#REF!,#REF!,#REF!),0)+IF(#REF!="Yes",SUMIFS(#REF!,#REF!,#REF!),0) ->  | X61: =IF(#REF!="Yes",SUMIFS(#REF!,#REF!,#REF!),0)+IF(#REF!="Yes", SUMIFS(#REF!,#REF!,#REF!),0)+IF(#REF!="Yes",SUMIFS(#REF!,#REF!,#REF!),0)+IF(#REF!="Yes",SUMIFS(#REF!,#REF!,#REF!),0)+IF(#REF!="Yes",SUMIFS(#REF!,#REF!,#REF!),0) -> 
A62: Travel Foreign | H62: ='Budget Worksheet'!L63 -> 0 | I62: ='Budget Worksheet'!M63 -> 0 | J62: ='Budget Worksheet'!N63 -> 0 | K62: ='Budget Worksheet'!O63 -> 0 | L62: ='Budget Worksheet'!P63 -> 0 | M62: ='Budget Worksheet'!Q63 -> 0 | N62: =IF(#REF!="Yes",SUMIFS(#REF!,#REF!,#REF!),0)+IF(#REF!="Yes", SUMIFS(#REF!,#REF!,#REF!),0)+IF(#REF!="Yes",SUMIFS(#REF!,#REF!,#REF!),0)+IF(#REF!="Yes",SUMIFS(#REF!,#REF!,#REF!),0)+IF(#REF!="Yes",SUMIFS(#REF!,#REF!,#REF!),0) ->  | O62: =IF(#REF!="Yes",SUMIFS(#REF!,#REF!,#REF!),0)+IF(#REF!="Yes", SUMIFS(#REF!,#REF!,#REF!),0)+IF(#REF!="Yes",SUMIFS(#REF!,#REF!,#REF!),0)+IF(#REF!="Yes",SUMIFS(#REF!,#REF!,#REF!),0)+IF(#REF!="Yes",SUMIFS(#REF!,#REF!,#REF!),0) ->  | P62: =IF(#REF!="Yes",SUMIFS(#REF!,#REF!,#REF!),0)+IF(#REF!="Yes", SUMIFS(#REF!,#REF!,#REF!),0)+IF(#REF!="Yes",SUMIFS(#REF!,#REF!,#REF!),0)+IF(#REF!="Yes",SUMIFS(#REF!,#REF!,#REF!),0)+IF(#REF!="Yes",SUMIFS(#REF!,#REF!,#REF!),0) ->  | R62: =IF(#REF!="Yes",SUMIFS(#REF!,#REF!,#REF!),0)+IF(#REF!="Yes", SUMIFS(#REF!,#REF!,#REF!),0)+IF(#REF!="Yes",SUMIFS(#REF!,#REF!,#REF!),0)+IF(#REF!="Yes",SUMIFS(#REF!,#REF!,#REF!),0)+IF(#REF!="Yes",SUMIFS(#REF!,#REF!,#REF!),0) ->  | S62: =IF(#REF!="Yes",SUMIFS(#REF!,#REF!,#REF!),0)+IF(#REF!="Yes", SUMIFS(#REF!,#REF!,#REF!),0)+IF(#REF!="Yes",SUMIFS(#REF!,#REF!,#REF!),0)+IF(#REF!="Yes",SUMIFS(#REF!,#REF!,#REF!),0)+IF(#REF!="Yes",SUMIFS(#REF!,#REF!,#REF!),0) ->  | T62: =IF(#REF!="Yes",SUMIFS(#REF!,#REF!,#REF!),0)+IF(#REF!="Yes", SUMIFS(#REF!,#REF!,#REF!),0)+IF(#REF!="Yes",SUMIFS(#REF!,#REF!,#REF!),0)+IF(#REF!="Yes",SUMIFS(#REF!,#REF!,#REF!),0)+IF(#REF!="Yes",SUMIFS(#REF!,#REF!,#REF!),0) ->  | U62: =IF(#REF!="Yes",SUMIFS(#REF!,#REF!,#REF!),0)+IF(#REF!="Yes", SUMIFS(#REF!,#REF!,#REF!),0)+IF(#REF!="Yes",SUMIFS(#REF!,#REF!,#REF!),0)+IF(#REF!="Yes",SUMIFS(#REF!,#REF!,#REF!),0)+IF(#REF!="Yes",SUMIFS(#REF!,#REF!,#REF!),0) ->  | V62: =IF(#REF!="Yes",SUMIFS(#REF!,#REF!,#REF!),0)+IF(#REF!="Yes", SUMIFS(#REF!,#REF!,#REF!),0)+IF(#REF!="Yes",SUMIFS(#REF!,#REF!,#REF!),0)+IF(#REF!="Yes",SUMIFS(#REF!,#REF!,#REF!),0)+IF(#REF!="Yes",SUMIFS(#REF!,#REF!,#REF!),0) ->  | W62: =IF(#REF!="Yes",SUMIFS(#REF!,#REF!,#REF!),0)+IF(#REF!="Yes", SUMIFS(#REF!,#REF!,#REF!),0)+IF(#REF!="Yes",SUMIFS(#REF!,#REF!,#REF!),0)+IF(#REF!="Yes",SUMIFS(#REF!,#REF!,#REF!),0)+IF(#REF!="Yes",SUMIFS(#REF!,#REF!,#REF!),0) ->  | X62: =IF(#REF!="Yes",SUMIFS(#REF!,#REF!,#REF!),0)+IF(#REF!="Yes", SUMIFS(#REF!,#REF!,#REF!),0)+IF(#REF!="Yes",SUMIFS(#REF!,#REF!,#REF!),0)+IF(#REF!="Yes",SUMIFS(#REF!,#REF!,#REF!),0)+IF(#REF!="Yes",SUMIFS(#REF!,#REF!,#REF!),0) -> 
A63: Subsistence | H63: ='Budget Worksheet'!L64 -> 0 | I63: ='Budget Worksheet'!M64 -> 0 | J63: ='Budget Worksheet'!N64 -> 0 | K63: ='Budget Worksheet'!O64 -> 0 | L63: ='Budget Worksheet'!P64 -> 0 | M63: ='Budget Worksheet'!Q64 -> 0 | N63: =IF(#REF!="Yes",SUMIFS(#REF!,#REF!,#REF!),0)+IF(#REF!="Yes", SUMIFS(#REF!,#REF!,#REF!),0)+IF(#REF!="Yes",SUMIFS(#REF!,#REF!,#REF!),0)+IF(#REF!="Yes",SUMIFS(#REF!,#REF!,#REF!),0)+IF(#REF!="Yes",SUMIFS(#REF!,#REF!,#REF!),0) ->  | O63: =IF(#REF!="Yes",SUMIFS(#REF!,#REF!,#REF!),0)+IF(#REF!="Yes", SUMIFS(#REF!,#REF!,#REF!),0)+IF(#REF!="Yes",SUMIFS(#REF!,#REF!,#REF!),0)+IF(#REF!="Yes",SUMIFS(#REF!,#REF!,#REF!),0)+IF(#REF!="Yes",SUMIFS(#REF!,#REF!,#REF!),0) ->  | P63: =IF(#REF!="Yes",SUMIFS(#REF!,#REF!,#REF!),0)+IF(#REF!="Yes", SUMIFS(#REF!,#REF!,#REF!),0)+IF(#REF!="Yes",SUMIFS(#REF!,#REF!,#REF!),0)+IF(#REF!="Yes",SUMIFS(#REF!,#REF!,#REF!),0)+IF(#REF!="Yes",SUMIFS(#REF!,#REF!,#REF!),0) ->  | R63: =IF(#REF!="Yes",SUMIFS(#REF!,#REF!,#REF!),0)+IF(#REF!="Yes", SUMIFS(#REF!,#REF!,#REF!),0)+IF(#REF!="Yes",SUMIFS(#REF!,#REF!,#REF!),0)+IF(#REF!="Yes",SUMIFS(#REF!,#REF!,#REF!),0)+IF(#REF!="Yes",SUMIFS(#REF!,#REF!,#REF!),0) ->  | S63: =IF(#REF!="Yes",SUMIFS(#REF!,#REF!,#REF!),0)+IF(#REF!="Yes", SUMIFS(#REF!,#REF!,#REF!),0)+IF(#REF!="Yes",SUMIFS(#REF!,#REF!,#REF!),0)+IF(#REF!="Yes",SUMIFS(#REF!,#REF!,#REF!),0)+IF(#REF!="Yes",SUMIFS(#REF!,#REF!,#REF!),0) ->  | T63: =IF(#REF!="Yes",SUMIFS(#REF!,#REF!,#REF!),0)+IF(#REF!="Yes", SUMIFS(#REF!,#REF!,#REF!),0)+IF(#REF!="Yes",SUMIFS(#REF!,#REF!,#REF!),0)+IF(#REF!="Yes",SUMIFS(#REF!,#REF!,#REF!),0)+IF(#REF!="Yes",SUMIFS(#REF!,#REF!,#REF!),0) ->  | U63: =IF(#REF!="Yes",SUMIFS(#REF!,#REF!,#REF!),0)+IF(#REF!="Yes", SUMIFS(#REF!,#REF!,#REF!),0)+IF(#REF!="Yes",SUMIFS(#REF!,#REF!,#REF!),0)+IF(#REF!="Yes",SUMIFS(#REF!,#REF!,#REF!),0)+IF(#REF!="Yes",SUMIFS(#REF!,#REF!,#REF!),0) ->  | V63: =IF(#REF!="Yes",SUMIFS(#REF!,#REF!,#REF!),0)+IF(#REF!="Yes", SUMIFS(#REF!,#REF!,#REF!),0)+IF(#REF!="Yes",SUMIFS(#REF!,#REF!,#REF!),0)+IF(#REF!="Yes",SUMIFS(#REF!,#REF!,#REF!),0)+IF(#REF!="Yes",SUMIFS(#REF!,#REF!,#REF!),0) ->  | W63: =IF(#REF!="Yes",SUMIFS(#REF!,#REF!,#REF!),0)+IF(#REF!="Yes", SUMIFS(#REF!,#REF!,#REF!),0)+IF(#REF!="Yes",SUMIFS(#REF!,#REF!,#REF!),0)+IF(#REF!="Yes",SUMIFS(#REF!,#REF!,#REF!),0)+IF(#REF!="Yes",SUMIFS(#REF!,#REF!,#REF!),0) ->  | X63: =IF(#REF!="Yes",SUMIFS(#REF!,#REF!,#REF!),0)+IF(#REF!="Yes", SUMIFS(#REF!,#REF!,#REF!),0)+IF(#REF!="Yes",SUMIFS(#REF!,#REF!,#REF!),0)+IF(#REF!="Yes",SUMIFS(#REF!,#REF!,#REF!),0)+IF(#REF!="Yes",SUMIFS(#REF!,#REF!,#REF!),0) -> 
A64: Other | H64: ='Budget Worksheet'!L65 -> 0 | I64: ='Budget Worksheet'!M65 -> 0 | J64: ='Budget Worksheet'!N65 -> 0 | K64: ='Budget Worksheet'!O65 -> 0 | L64: ='Budget Worksheet'!P65 -> 0 | M64: ='Budget Worksheet'!Q65 -> 0 | N64: =IF(#REF!="Yes",SUMIFS(#REF!,#REF!,#REF!),0)+IF(#REF!="Yes", SUMIFS(#REF!,#REF!,#REF!),0)+IF(#REF!="Yes",SUMIFS(#REF!,#REF!,#REF!),0)+IF(#REF!="Yes",SUMIFS(#REF!,#REF!,#REF!),0)+IF(#REF!="Yes",SUMIFS(#REF!,#REF!,#REF!),0) ->  | O64: =IF(#REF!="Yes",SUMIFS(#REF!,#REF!,#REF!),0)+IF(#REF!="Yes", SUMIFS(#REF!,#REF!,#REF!),0)+IF(#REF!="Yes",SUMIFS(#REF!,#REF!,#REF!),0)+IF(#REF!="Yes",SUMIFS(#REF!,#REF!,#REF!),0)+IF(#REF!="Yes",SUMIFS(#REF!,#REF!,#REF!),0) ->  | P64: =IF(#REF!="Yes",SUMIFS(#REF!,#REF!,#REF!),0)+IF(#REF!="Yes", SUMIFS(#REF!,#REF!,#REF!),0)+IF(#REF!="Yes",SUMIFS(#REF!,#REF!,#REF!),0)+IF(#REF!="Yes",SUMIFS(#REF!,#REF!,#REF!),0)+IF(#REF!="Yes",SUMIFS(#REF!,#REF!,#REF!),0) ->  | R64: =IF(#REF!="Yes",SUMIFS(#REF!,#REF!,#REF!),0)+IF(#REF!="Yes", SUMIFS(#REF!,#REF!,#REF!),0)+IF(#REF!="Yes",SUMIFS(#REF!,#REF!,#REF!),0)+IF(#REF!="Yes",SUMIFS(#REF!,#REF!,#REF!),0)+IF(#REF!="Yes",SUMIFS(#REF!,#REF!,#REF!),0) ->  | S64: =IF(#REF!="Yes",SUMIFS(#REF!,#REF!,#REF!),0)+IF(#REF!="Yes", SUMIFS(#REF!,#REF!,#REF!),0)+IF(#REF!="Yes",SUMIFS(#REF!,#REF!,#REF!),0)+IF(#REF!="Yes",SUMIFS(#REF!,#REF!,#REF!),0)+IF(#REF!="Yes",SUMIFS(#REF!,#REF!,#REF!),0) ->  | T64: =IF(#REF!="Yes",SUMIFS(#REF!,#REF!,#REF!),0)+IF(#REF!="Yes", SUMIFS(#REF!,#REF!,#REF!),0)+IF(#REF!="Yes",SUMIFS(#REF!,#REF!,#REF!),0)+IF(#REF!="Yes",SUMIFS(#REF!,#REF!,#REF!),0)+IF(#REF!="Yes",SUMIFS(#REF!,#REF!,#REF!),0) ->  | U64: =IF(#REF!="Yes",SUMIFS(#REF!,#REF!,#REF!),0)+IF(#REF!="Yes", SUMIFS(#REF!,#REF!,#REF!),0)+IF(#REF!="Yes",SUMIFS(#REF!,#REF!,#REF!),0)+IF(#REF!="Yes",SUMIFS(#REF!,#REF!,#REF!),0)+IF(#REF!="Yes",SUMIFS(#REF!,#REF!,#REF!),0) ->  | V64: =IF(#REF!="Yes",SUMIFS(#REF!,#REF!,#REF!),0)+IF(#REF!="Yes", SUMIFS(#REF!,#REF!,#REF!),0)+IF(#REF!="Yes",SUMIFS(#REF!,#REF!,#REF!),0)+IF(#REF!="Yes",SUMIFS(#REF!,#REF!,#REF!),0)+IF(#REF!="Yes",SUMIFS(#REF!,#REF!,#REF!),0) ->  | W64: =IF(#REF!="Yes",SUMIFS(#REF!,#REF!,#REF!),0)+IF(#REF!="Yes", SUMIFS(#REF!,#REF!,#REF!),0)+IF(#REF!="Yes",SUMIFS(#REF!,#REF!,#REF!),0)+IF(#REF!="Yes",SUMIFS(#REF!,#REF!,#REF!),0)+IF(#REF!="Yes",SUMIFS(#REF!,#REF!,#REF!),0) ->  | X64: =IF(#REF!="Yes",SUMIFS(#REF!,#REF!,#REF!),0)+IF(#REF!="Yes", SUMIFS(#REF!,#REF!,#REF!),0)+IF(#REF!="Yes",SUMIFS(#REF!,#REF!,#REF!),0)+IF(#REF!="Yes",SUMIFS(#REF!,#REF!,#REF!),0)+IF(#REF!="Yes",SUMIFS(#REF!,#REF!,#REF!),0) -> 
A65: Other | H65: ='Budget Worksheet'!L66 -> 0 | I65: ='Budget Worksheet'!M66 -> 0 | J65: ='Budget Worksheet'!N66 -> 0 | K65: ='Budget Worksheet'!O66 -> 0 | L65: ='Budget Worksheet'!P66 -> 0 | M65: ='Budget Worksheet'!Q66 -> 0 | N65: =IF(#REF!="Yes",SUMIFS(#REF!,#REF!,#REF!),0)+IF(#REF!="Yes", SUMIFS(#REF!,#REF!,#REF!),0)+IF(#REF!="Yes",SUMIFS(#REF!,#REF!,#REF!),0)+IF(#REF!="Yes",SUMIFS(#REF!,#REF!,#REF!),0)+IF(#REF!="Yes",SUMIFS(#REF!,#REF!,#REF!),0) ->  | O65: =IF(#REF!="Yes",SUMIFS(#REF!,#REF!,#REF!),0)+IF(#REF!="Yes", SUMIFS(#REF!,#REF!,#REF!),0)+IF(#REF!="Yes",SUMIFS(#REF!,#REF!,#REF!),0)+IF(#REF!="Yes",SUMIFS(#REF!,#REF!,#REF!),0)+IF(#REF!="Yes",SUMIFS(#REF!,#REF!,#REF!),0) ->  | P65: =IF(#REF!="Yes",SUMIFS(#REF!,#REF!,#REF!),0)+IF(#REF!="Yes", SUMIFS(#REF!,#REF!,#REF!),0)+IF(#REF!="Yes",SUMIFS(#REF!,#REF!,#REF!),0)+IF(#REF!="Yes",SUMIFS(#REF!,#REF!,#REF!),0)+IF(#REF!="Yes",SUMIFS(#REF!,#REF!,#REF!),0) ->  | R65: =IF(#REF!="Yes",SUMIFS(#REF!,#REF!,#REF!),0)+IF(#REF!="Yes", SUMIFS(#REF!,#REF!,#REF!),0)+IF(#REF!="Yes",SUMIFS(#REF!,#REF!,#REF!),0)+IF(#REF!="Yes",SUMIFS(#REF!,#REF!,#REF!),0)+IF(#REF!="Yes",SUMIFS(#REF!,#REF!,#REF!),0) ->  | S65: =IF(#REF!="Yes",SUMIFS(#REF!,#REF!,#REF!),0)+IF(#REF!="Yes", SUMIFS(#REF!,#REF!,#REF!),0)+IF(#REF!="Yes",SUMIFS(#REF!,#REF!,#REF!),0)+IF(#REF!="Yes",SUMIFS(#REF!,#REF!,#REF!),0)+IF(#REF!="Yes",SUMIFS(#REF!,#REF!,#REF!),0) ->  | T65: =IF(#REF!="Yes",SUMIFS(#REF!,#REF!,#REF!),0)+IF(#REF!="Yes", SUMIFS(#REF!,#REF!,#REF!),0)+IF(#REF!="Yes",SUMIFS(#REF!,#REF!,#REF!),0)+IF(#REF!="Yes",SUMIFS(#REF!,#REF!,#REF!),0)+IF(#REF!="Yes",SUMIFS(#REF!,#REF!,#REF!),0) ->  | U65: =IF(#REF!="Yes",SUMIFS(#REF!,#REF!,#REF!),0)+IF(#REF!="Yes", SUMIFS(#REF!,#REF!,#REF!),0)+IF(#REF!="Yes",SUMIFS(#REF!,#REF!,#REF!),0)+IF(#REF!="Yes",SUMIFS(#REF!,#REF!,#REF!),0)+IF(#REF!="Yes",SUMIFS(#REF!,#REF!,#REF!),0) ->  | V65: =IF(#REF!="Yes",SUMIFS(#REF!,#REF!,#REF!),0)+IF(#REF!="Yes", SUMIFS(#REF!,#REF!,#REF!),0)+IF(#REF!="Yes",SUMIFS(#REF!,#REF!,#REF!),0)+IF(#REF!="Yes",SUMIFS(#REF!,#REF!,#REF!),0)+IF(#REF!="Yes",SUMIFS(#REF!,#REF!,#REF!),0) ->  | W65: =IF(#REF!="Yes",SUMIFS(#REF!,#REF!,#REF!),0)+IF(#REF!="Yes", SUMIFS(#REF!,#REF!,#REF!),0)+IF(#REF!="Yes",SUMIFS(#REF!,#REF!,#REF!),0)+IF(#REF!="Yes",SUMIFS(#REF!,#REF!,#REF!),0)+IF(#REF!="Yes",SUMIFS(#REF!,#REF!,#REF!),0) ->  | X65: =IF(#REF!="Yes",SUMIFS(#REF!,#REF!,#REF!),0)+IF(#REF!="Yes", SUMIFS(#REF!,#REF!,#REF!),0)+IF(#REF!="Yes",SUMIFS(#REF!,#REF!,#REF!),0)+IF(#REF!="Yes",SUMIFS(#REF!,#REF!,#REF!),0)+IF(#REF!="Yes",SUMIFS(#REF!,#REF!,#REF!),0) -> 
A66: Supplies | H66: ='Budget Worksheet'!L67 -> 0 | I66: ='Budget Worksheet'!M67 -> 0 | J66: ='Budget Worksheet'!N67 -> 0 | K66: ='Budget Worksheet'!O67 -> 0 | L66: ='Budget Worksheet'!P67 -> 0 | M66: ='Budget Worksheet'!Q67 -> 0 | N66: =IF(#REF!="Yes",SUMIFS(#REF!,#REF!,#REF!),0)+IF(#REF!="Yes", SUMIFS(#REF!,#REF!,#REF!),0)+IF(#REF!="Yes",SUMIFS(#REF!,#REF!,#REF!),0)+IF(#REF!="Yes",SUMIFS(#REF!,#REF!,#REF!),0)+IF(#REF!="Yes",SUMIFS(#REF!,#REF!,#REF!),0) ->  | O66: =IF(#REF!="Yes",SUMIFS(#REF!,#REF!,#REF!),0)+IF(#REF!="Yes", SUMIFS(#REF!,#REF!,#REF!),0)+IF(#REF!="Yes",SUMIFS(#REF!,#REF!,#REF!),0)+IF(#REF!="Yes",SUMIFS(#REF!,#REF!,#REF!),0)+IF(#REF!="Yes",SUMIFS(#REF!,#REF!,#REF!),0) ->  | P66: =IF(#REF!="Yes",SUMIFS(#REF!,#REF!,#REF!),0)+IF(#REF!="Yes", SUMIFS(#REF!,#REF!,#REF!),0)+IF(#REF!="Yes",SUMIFS(#REF!,#REF!,#REF!),0)+IF(#REF!="Yes",SUMIFS(#REF!,#REF!,#REF!),0)+IF(#REF!="Yes",SUMIFS(#REF!,#REF!,#REF!),0) ->  | R66: =IF(#REF!="Yes",SUMIFS(#REF!,#REF!,#REF!),0)+IF(#REF!="Yes", SUMIFS(#REF!,#REF!,#REF!),0)+IF(#REF!="Yes",SUMIFS(#REF!,#REF!,#REF!),0)+IF(#REF!="Yes",SUMIFS(#REF!,#REF!,#REF!),0)+IF(#REF!="Yes",SUMIFS(#REF!,#REF!,#REF!),0) ->  | S66: =IF(#REF!="Yes",SUMIFS(#REF!,#REF!,#REF!),0)+IF(#REF!="Yes", SUMIFS(#REF!,#REF!,#REF!),0)+IF(#REF!="Yes",SUMIFS(#REF!,#REF!,#REF!),0)+IF(#REF!="Yes",SUMIFS(#REF!,#REF!,#REF!),0)+IF(#REF!="Yes",SUMIFS(#REF!,#REF!,#REF!),0) ->  | T66: =IF(#REF!="Yes",SUMIFS(#REF!,#REF!,#REF!),0)+IF(#REF!="Yes", SUMIFS(#REF!,#REF!,#REF!),0)+IF(#REF!="Yes",SUMIFS(#REF!,#REF!,#REF!),0)+IF(#REF!="Yes",SUMIFS(#REF!,#REF!,#REF!),0)+IF(#REF!="Yes",SUMIFS(#REF!,#REF!,#REF!),0) ->  | U66: =IF(#REF!="Yes",SUMIFS(#REF!,#REF!,#REF!),0)+IF(#REF!="Yes", SUMIFS(#REF!,#REF!,#REF!),0)+IF(#REF!="Yes",SUMIFS(#REF!,#REF!,#REF!),0)+IF(#REF!="Yes",SUMIFS(#REF!,#REF!,#REF!),0)+IF(#REF!="Yes",SUMIFS(#REF!,#REF!,#REF!),0) ->  | V66: =IF(#REF!="Yes",SUMIFS(#REF!,#REF!,#REF!),0)+IF(#REF!="Yes", SUMIFS(#REF!,#REF!,#REF!),0)+IF(#REF!="Yes",SUMIFS(#REF!,#REF!,#REF!),0)+IF(#REF!="Yes",SUMIFS(#REF!,#REF!,#REF!),0)+IF(#REF!="Yes",SUMIFS(#REF!,#REF!,#REF!),0) ->  | W66: =IF(#REF!="Yes",SUMIFS(#REF!,#REF!,#REF!),0)+IF(#REF!="Yes", SUMIFS(#REF!,#REF!,#REF!),0)+IF(#REF!="Yes",SUMIFS(#REF!,#REF!,#REF!),0)+IF(#REF!="Yes",SUMIFS(#REF!,#REF!,#REF!),0)+IF(#REF!="Yes",SUMIFS(#REF!,#REF!,#REF!),0) ->  | X66: =IF(#REF!="Yes",SUMIFS(#REF!,#REF!,#REF!),0)+IF(#REF!="Yes", SUMIFS(#REF!,#REF!,#REF!),0)+IF(#REF!="Yes",SUMIFS(#REF!,#REF!,#REF!),0)+IF(#REF!="Yes",SUMIFS(#REF!,#REF!,#REF!),0)+IF(#REF!="Yes",SUMIFS(#REF!,#REF!,#REF!),0) -> 
A67: F. Other Direct Costs | N67: =#REF! ->  | O67: =IF(#REF!="Yes",SUMIFS(#REF!,#REF!,#REF!),0)+IF(#REF!="Yes", SUMIFS(#REF!,#REF!,#REF!),0)+IF(#REF!="Yes",SUMIFS(#REF!,#REF!,#REF!),0)+IF(#REF!="Yes",SUMIFS(#REF!,#REF!,#REF!),0)+IF(#REF!="Yes",SUMIFS(#REF!,#REF!,#REF!),0) ->  | P67: =IF(#REF!="Yes",SUMIFS(#REF!,#REF!,#REF!),0)+IF(#REF!="Yes", SUMIFS(#REF!,#REF!,#REF!),0)+IF(#REF!="Yes",SUMIFS(#REF!,#REF!,#REF!),0)+IF(#REF!="Yes",SUMIFS(#REF!,#REF!,#REF!),0)+IF(#REF!="Yes",SUMIFS(#REF!,#REF!,#REF!),0) ->  | R67: =IF(#REF!="Yes",SUMIFS(#REF!,#REF!,#REF!),0)+IF(#REF!="Yes", SUMIFS(#REF!,#REF!,#REF!),0)+IF(#REF!="Yes",SUMIFS(#REF!,#REF!,#REF!),0)+IF(#REF!="Yes",SUMIFS(#REF!,#REF!,#REF!),0)+IF(#REF!="Yes",SUMIFS(#REF!,#REF!,#REF!),0) ->  | S67: =IF(#REF!="Yes",SUMIFS(#REF!,#REF!,#REF!),0)+IF(#REF!="Yes", SUMIFS(#REF!,#REF!,#REF!),0)+IF(#REF!="Yes",SUMIFS(#REF!,#REF!,#REF!),0)+IF(#REF!="Yes",SUMIFS(#REF!,#REF!,#REF!),0)+IF(#REF!="Yes",SUMIFS(#REF!,#REF!,#REF!),0) ->  | T67: =IF(#REF!="Yes",SUMIFS(#REF!,#REF!,#REF!),0)+IF(#REF!="Yes", SUMIFS(#REF!,#REF!,#REF!),0)+IF(#REF!="Yes",SUMIFS(#REF!,#REF!,#REF!),0)+IF(#REF!="Yes",SUMIFS(#REF!,#REF!,#REF!),0)+IF(#REF!="Yes",SUMIFS(#REF!,#REF!,#REF!),0) ->  | U67: =IF(#REF!="Yes",SUMIFS(#REF!,#REF!,#REF!),0)+IF(#REF!="Yes", SUMIFS(#REF!,#REF!,#REF!),0)+IF(#REF!="Yes",SUMIFS(#REF!,#REF!,#REF!),0)+IF(#REF!="Yes",SUMIFS(#REF!,#REF!,#REF!),0)+IF(#REF!="Yes",SUMIFS(#REF!,#REF!,#REF!),0) ->  | V67: =IF(#REF!="Yes",SUMIFS(#REF!,#REF!,#REF!),0)+IF(#REF!="Yes", SUMIFS(#REF!,#REF!,#REF!),0)+IF(#REF!="Yes",SUMIFS(#REF!,#REF!,#REF!),0)+IF(#REF!="Yes",SUMIFS(#REF!,#REF!,#REF!),0)+IF(#REF!="Yes",SUMIFS(#REF!,#REF!,#REF!),0) ->  | W67: =IF(#REF!="Yes",SUMIFS(#REF!,#REF!,#REF!),0)+IF(#REF!="Yes", SUMIFS(#REF!,#REF!,#REF!),0)+IF(#REF!="Yes",SUMIFS(#REF!,#REF!,#REF!),0)+IF(#REF!="Yes",SUMIFS(#REF!,#REF!,#REF!),0)+IF(#REF!="Yes",SUMIFS(#REF!,#REF!,#REF!),0) ->  | X67: =IF(#REF!="Yes",SUMIFS(#REF!,#REF!,#REF!),0)+IF(#REF!="Yes", SUMIFS(#REF!,#REF!,#REF!),0)+IF(#REF!="Yes",SUMIFS(#REF!,#REF!,#REF!),0)+IF(#REF!="Yes",SUMIFS(#REF!,#REF!,#REF!),0)+IF(#REF!="Yes",SUMIFS(#REF!,#REF!,#REF!),0) -> 
A68: 1. Materials and Supplies | H68: ='Budget Worksheet'!L69 -> 0 | I68: ='Budget Worksheet'!M69 -> 0 | J68: ='Budget Worksheet'!N69 -> 0 | K68: ='Budget Worksheet'!O69 -> 0 | L68: ='Budget Worksheet'!P69 -> 0 | M68: ='Budget Worksheet'!Q69 -> 0 | N68: =IF(#REF!="Yes",SUMIFS(#REF!,#REF!,#REF!),0)+IF(#REF!="Yes", SUMIFS(#REF!,#REF!,#REF!),0)+IF(#REF!="Yes",SUMIFS(#REF!,#REF!,#REF!),0)+IF(#REF!="Yes",SUMIFS(#REF!,#REF!,#REF!),0)+IF(#REF!="Yes",SUMIFS(#REF!,#REF!,#REF!),0) ->  | O68: =IF(#REF!="Yes",SUMIFS(#REF!,#REF!,#REF!),0)+IF(#REF!="Yes", SUMIFS(#REF!,#REF!,#REF!),0)+IF(#REF!="Yes",SUMIFS(#REF!,#REF!,#REF!),0)+IF(#REF!="Yes",SUMIFS(#REF!,#REF!,#REF!),0)+IF(#REF!="Yes",SUMIFS(#REF!,#REF!,#REF!),0) ->  | P68: =IF(#REF!="Yes",SUMIFS(#REF!,#REF!,#REF!),0)+IF(#REF!="Yes", SUMIFS(#REF!,#REF!,#REF!),0)+IF(#REF!="Yes",SUMIFS(#REF!,#REF!,#REF!),0)+IF(#REF!="Yes",SUMIFS(#REF!,#REF!,#REF!),0)+IF(#REF!="Yes",SUMIFS(#REF!,#REF!,#REF!),0) ->  | R68: =IF(#REF!="Yes",SUMIFS(#REF!,#REF!,#REF!),0)+IF(#REF!="Yes", SUMIFS(#REF!,#REF!,#REF!),0)+IF(#REF!="Yes",SUMIFS(#REF!,#REF!,#REF!),0)+IF(#REF!="Yes",SUMIFS(#REF!,#REF!,#REF!),0)+IF(#REF!="Yes",SUMIFS(#REF!,#REF!,#REF!),0) ->  | S68: =IF(#REF!="Yes",SUMIFS(#REF!,#REF!,#REF!),0)+IF(#REF!="Yes", SUMIFS(#REF!,#REF!,#REF!),0)+IF(#REF!="Yes",SUMIFS(#REF!,#REF!,#REF!),0)+IF(#REF!="Yes",SUMIFS(#REF!,#REF!,#REF!),0)+IF(#REF!="Yes",SUMIFS(#REF!,#REF!,#REF!),0) ->  | T68: =IF(#REF!="Yes",SUMIFS(#REF!,#REF!,#REF!),0)+IF(#REF!="Yes", SUMIFS(#REF!,#REF!,#REF!),0)+IF(#REF!="Yes",SUMIFS(#REF!,#REF!,#REF!),0)+IF(#REF!="Yes",SUMIFS(#REF!,#REF!,#REF!),0)+IF(#REF!="Yes",SUMIFS(#REF!,#REF!,#REF!),0) ->  | U68: =IF(#REF!="Yes",SUMIFS(#REF!,#REF!,#REF!),0)+IF(#REF!="Yes", SUMIFS(#REF!,#REF!,#REF!),0)+IF(#REF!="Yes",SUMIFS(#REF!,#REF!,#REF!),0)+IF(#REF!="Yes",SUMIFS(#REF!,#REF!,#REF!),0)+IF(#REF!="Yes",SUMIFS(#REF!,#REF!,#REF!),0) ->  | V68: =IF(#REF!="Yes",SUMIFS(#REF!,#REF!,#REF!),0)+IF(#REF!="Yes", SUMIFS(#REF!,#REF!,#REF!),0)+IF(#REF!="Yes",SUMIFS(#REF!,#REF!,#REF!),0)+IF(#REF!="Yes",SUMIFS(#REF!,#REF!,#REF!),0)+IF(#REF!="Yes",SUMIFS(#REF!,#REF!,#REF!),0) ->  | W68: =IF(#REF!="Yes",SUMIFS(#REF!,#REF!,#REF!),0)+IF(#REF!="Yes", SUMIFS(#REF!,#REF!,#REF!),0)+IF(#REF!="Yes",SUMIFS(#REF!,#REF!,#REF!),0)+IF(#REF!="Yes",SUMIFS(#REF!,#REF!,#REF!),0)+IF(#REF!="Yes",SUMIFS(#REF!,#REF!,#REF!),0) ->  | X68: =IF(#REF!="Yes",SUMIFS(#REF!,#REF!,#REF!),0)+IF(#REF!="Yes", SUMIFS(#REF!,#REF!,#REF!),0)+IF(#REF!="Yes",SUMIFS(#REF!,#REF!,#REF!),0)+IF(#REF!="Yes",SUMIFS(#REF!,#REF!,#REF!),0)+IF(#REF!="Yes",SUMIFS(#REF!,#REF!,#REF!),0) -> 
A69: 2. Publication Costs | H69: ='Budget Worksheet'!L70 -> 0 | I69: ='Budget Worksheet'!M70 -> 0 | J69: ='Budget Worksheet'!N70 -> 0 | K69: ='Budget Worksheet'!O70 -> 0 | L69: ='Budget Worksheet'!P70 -> 0 | M69: ='Budget Worksheet'!Q70 -> 0 | N69: =IF(#REF!="Yes",SUMIFS(#REF!,#REF!,#REF!),0)+IF(#REF!="Yes", SUMIFS(#REF!,#REF!,#REF!),0)+IF(#REF!="Yes",SUMIFS(#REF!,#REF!,#REF!),0)+IF(#REF!="Yes",SUMIFS(#REF!,#REF!,#REF!),0)+IF(#REF!="Yes",SUMIFS(#REF!,#REF!,#REF!),0) ->  | O69: =IF(#REF!="Yes",SUMIFS(#REF!,#REF!,#REF!),0)+IF(#REF!="Yes", SUMIFS(#REF!,#REF!,#REF!),0)+IF(#REF!="Yes",SUMIFS(#REF!,#REF!,#REF!),0)+IF(#REF!="Yes",SUMIFS(#REF!,#REF!,#REF!),0)+IF(#REF!="Yes",SUMIFS(#REF!,#REF!,#REF!),0) ->  | P69: =IF(#REF!="Yes",SUMIFS(#REF!,#REF!,#REF!),0)+IF(#REF!="Yes", SUMIFS(#REF!,#REF!,#REF!),0)+IF(#REF!="Yes",SUMIFS(#REF!,#REF!,#REF!),0)+IF(#REF!="Yes",SUMIFS(#REF!,#REF!,#REF!),0)+IF(#REF!="Yes",SUMIFS(#REF!,#REF!,#REF!),0) ->  | R69: =IF(#REF!="Yes",SUMIFS(#REF!,#REF!,#REF!),0)+IF(#REF!="Yes", SUMIFS(#REF!,#REF!,#REF!),0)+IF(#REF!="Yes",SUMIFS(#REF!,#REF!,#REF!),0)+IF(#REF!="Yes",SUMIFS(#REF!,#REF!,#REF!),0)+IF(#REF!="Yes",SUMIFS(#REF!,#REF!,#REF!),0) ->  | S69: =IF(#REF!="Yes",SUMIFS(#REF!,#REF!,#REF!),0)+IF(#REF!="Yes", SUMIFS(#REF!,#REF!,#REF!),0)+IF(#REF!="Yes",SUMIFS(#REF!,#REF!,#REF!),0)+IF(#REF!="Yes",SUMIFS(#REF!,#REF!,#REF!),0)+IF(#REF!="Yes",SUMIFS(#REF!,#REF!,#REF!),0) ->  | T69: =IF(#REF!="Yes",SUMIFS(#REF!,#REF!,#REF!),0)+IF(#REF!="Yes", SUMIFS(#REF!,#REF!,#REF!),0)+IF(#REF!="Yes",SUMIFS(#REF!,#REF!,#REF!),0)+IF(#REF!="Yes",SUMIFS(#REF!,#REF!,#REF!),0)+IF(#REF!="Yes",SUMIFS(#REF!,#REF!,#REF!),0) ->  | U69: =IF(#REF!="Yes",SUMIFS(#REF!,#REF!,#REF!),0)+IF(#REF!="Yes", SUMIFS(#REF!,#REF!,#REF!),0)+IF(#REF!="Yes",SUMIFS(#REF!,#REF!,#REF!),0)+IF(#REF!="Yes",SUMIFS(#REF!,#REF!,#REF!),0)+IF(#REF!="Yes",SUMIFS(#REF!,#REF!,#REF!),0) ->  | V69: =IF(#REF!="Yes",SUMIFS(#REF!,#REF!,#REF!),0)+IF(#REF!="Yes", SUMIFS(#REF!,#REF!,#REF!),0)+IF(#REF!="Yes",SUMIFS(#REF!,#REF!,#REF!),0)+IF(#REF!="Yes",SUMIFS(#REF!,#REF!,#REF!),0)+IF(#REF!="Yes",SUMIFS(#REF!,#REF!,#REF!),0) ->  | W69: =IF(#REF!="Yes",SUMIFS(#REF!,#REF!,#REF!),0)+IF(#REF!="Yes", SUMIFS(#REF!,#REF!,#REF!),0)+IF(#REF!="Yes",SUMIFS(#REF!,#REF!,#REF!),0)+IF(#REF!="Yes",SUMIFS(#REF!,#REF!,#REF!),0)+IF(#REF!="Yes",SUMIFS(#REF!,#REF!,#REF!),0) ->  | X69: =IF(#REF!="Yes",SUMIFS(#REF!,#REF!,#REF!),0)+IF(#REF!="Yes", SUMIFS(#REF!,#REF!,#REF!),0)+IF(#REF!="Yes",SUMIFS(#REF!,#REF!,#REF!),0)+IF(#REF!="Yes",SUMIFS(#REF!,#REF!,#REF!),0)+IF(#REF!="Yes",SUMIFS(#REF!,#REF!,#REF!),0) -> 
A70: 3. Consultant Services | H70: ='Budget Worksheet'!L71 -> 0 | I70: ='Budget Worksheet'!M71 -> 0 | J70: ='Budget Worksheet'!N71 -> 0 | K70: ='Budget Worksheet'!O71 -> 0 | L70: ='Budget Worksheet'!P71 -> 0 | M70: ='Budget Worksheet'!Q71 -> 0 | N70: =IF(#REF!="Yes",SUMIFS(#REF!,#REF!,#REF!),0)+IF(#REF!="Yes", SUMIFS(#REF!,#REF!,#REF!),0)+IF(#REF!="Yes",SUMIFS(#REF!,#REF!,#REF!),0)+IF(#REF!="Yes",SUMIFS(#REF!,#REF!,#REF!),0)+IF(#REF!="Yes",SUMIFS(#REF!,#REF!,#REF!),0) ->  | O70: =IF(#REF!="Yes",SUMIFS(#REF!,#REF!,#REF!),0)+IF(#REF!="Yes", SUMIFS(#REF!,#REF!,#REF!),0)+IF(#REF!="Yes",SUMIFS(#REF!,#REF!,#REF!),0)+IF(#REF!="Yes",SUMIFS(#REF!,#REF!,#REF!),0)+IF(#REF!="Yes",SUMIFS(#REF!,#REF!,#REF!),0) ->  | P70: =IF(#REF!="Yes",SUMIFS(#REF!,#REF!,#REF!),0)+IF(#REF!="Yes", SUMIFS(#REF!,#REF!,#REF!),0)+IF(#REF!="Yes",SUMIFS(#REF!,#REF!,#REF!),0)+IF(#REF!="Yes",SUMIFS(#REF!,#REF!,#REF!),0)+IF(#REF!="Yes",SUMIFS(#REF!,#REF!,#REF!),0) ->  | R70: =IF(#REF!="Yes",SUMIFS(#REF!,#REF!,#REF!),0)+IF(#REF!="Yes", SUMIFS(#REF!,#REF!,#REF!),0)+IF(#REF!="Yes",SUMIFS(#REF!,#REF!,#REF!),0)+IF(#REF!="Yes",SUMIFS(#REF!,#REF!,#REF!),0)+IF(#REF!="Yes",SUMIFS(#REF!,#REF!,#REF!),0) ->  | S70: =IF(#REF!="Yes",SUMIFS(#REF!,#REF!,#REF!),0)+IF(#REF!="Yes", SUMIFS(#REF!,#REF!,#REF!),0)+IF(#REF!="Yes",SUMIFS(#REF!,#REF!,#REF!),0)+IF(#REF!="Yes",SUMIFS(#REF!,#REF!,#REF!),0)+IF(#REF!="Yes",SUMIFS(#REF!,#REF!,#REF!),0) ->  | T70: =IF(#REF!="Yes",SUMIFS(#REF!,#REF!,#REF!),0)+IF(#REF!="Yes", SUMIFS(#REF!,#REF!,#REF!),0)+IF(#REF!="Yes",SUMIFS(#REF!,#REF!,#REF!),0)+IF(#REF!="Yes",SUMIFS(#REF!,#REF!,#REF!),0)+IF(#REF!="Yes",SUMIFS(#REF!,#REF!,#REF!),0) ->  | U70: =IF(#REF!="Yes",SUMIFS(#REF!,#REF!,#REF!),0)+IF(#REF!="Yes", SUMIFS(#REF!,#REF!,#REF!),0)+IF(#REF!="Yes",SUMIFS(#REF!,#REF!,#REF!),0)+IF(#REF!="Yes",SUMIFS(#REF!,#REF!,#REF!),0)+IF(#REF!="Yes",SUMIFS(#REF!,#REF!,#REF!),0) ->  | V70: =IF(#REF!="Yes",SUMIFS(#REF!,#REF!,#REF!),0)+IF(#REF!="Yes", SUMIFS(#REF!,#REF!,#REF!),0)+IF(#REF!="Yes",SUMIFS(#REF!,#REF!,#REF!),0)+IF(#REF!="Yes",SUMIFS(#REF!,#REF!,#REF!),0)+IF(#REF!="Yes",SUMIFS(#REF!,#REF!,#REF!),0) ->  | W70: =IF(#REF!="Yes",SUMIFS(#REF!,#REF!,#REF!),0)+IF(#REF!="Yes", SUMIFS(#REF!,#REF!,#REF!),0)+IF(#REF!="Yes",SUMIFS(#REF!,#REF!,#REF!),0)+IF(#REF!="Yes",SUMIFS(#REF!,#REF!,#REF!),0)+IF(#REF!="Yes",SUMIFS(#REF!,#REF!,#REF!),0) ->  | X70: =IF(#REF!="Yes",SUMIFS(#REF!,#REF!,#REF!),0)+IF(#REF!="Yes", SUMIFS(#REF!,#REF!,#REF!),0)+IF(#REF!="Yes",SUMIFS(#REF!,#REF!,#REF!),0)+IF(#REF!="Yes",SUMIFS(#REF!,#REF!,#REF!),0)+IF(#REF!="Yes",SUMIFS(#REF!,#REF!,#REF!),0) ->  | Y70: =SUM(#REF!) -> 
A71: 4. ADP/Computer Services | H71: ='Budget Worksheet'!L72 -> 0 | I71: ='Budget Worksheet'!M72 -> 0 | J71: ='Budget Worksheet'!N72 -> 0 | K71: ='Budget Worksheet'!O72 -> 0 | L71: ='Budget Worksheet'!P72 -> 0 | M71: ='Budget Worksheet'!Q72 -> 0 | N71: =IF(#REF!="Yes",SUMIFS(#REF!,#REF!,#REF!),0)+IF(#REF!="Yes", SUMIFS(#REF!,#REF!,#REF!),0)+IF(#REF!="Yes",SUMIFS(#REF!,#REF!,#REF!),0)+IF(#REF!="Yes",SUMIFS(#REF!,#REF!,#REF!),0)+IF(#REF!="Yes",SUMIFS(#REF!,#REF!,#REF!),0) ->  | O71: =IF(#REF!="Yes",SUMIFS(#REF!,#REF!,#REF!),0)+IF(#REF!="Yes", SUMIFS(#REF!,#REF!,#REF!),0)+IF(#REF!="Yes",SUMIFS(#REF!,#REF!,#REF!),0)+IF(#REF!="Yes",SUMIFS(#REF!,#REF!,#REF!),0)+IF(#REF!="Yes",SUMIFS(#REF!,#REF!,#REF!),0) ->  | P71: =IF(#REF!="Yes",SUMIFS(#REF!,#REF!,#REF!),0)+IF(#REF!="Yes", SUMIFS(#REF!,#REF!,#REF!),0)+IF(#REF!="Yes",SUMIFS(#REF!,#REF!,#REF!),0)+IF(#REF!="Yes",SUMIFS(#REF!,#REF!,#REF!),0)+IF(#REF!="Yes",SUMIFS(#REF!,#REF!,#REF!),0) ->  | R71: =IF(#REF!="Yes",SUMIFS(#REF!,#REF!,#REF!),0)+IF(#REF!="Yes", SUMIFS(#REF!,#REF!,#REF!),0)+IF(#REF!="Yes",SUMIFS(#REF!,#REF!,#REF!),0)+IF(#REF!="Yes",SUMIFS(#REF!,#REF!,#REF!),0)+IF(#REF!="Yes",SUMIFS(#REF!,#REF!,#REF!),0) ->  | S71: =IF(#REF!="Yes",SUMIFS(#REF!,#REF!,#REF!),0)+IF(#REF!="Yes", SUMIFS(#REF!,#REF!,#REF!),0)+IF(#REF!="Yes",SUMIFS(#REF!,#REF!,#REF!),0)+IF(#REF!="Yes",SUMIFS(#REF!,#REF!,#REF!),0)+IF(#REF!="Yes",SUMIFS(#REF!,#REF!,#REF!),0) ->  | T71: =IF(#REF!="Yes",SUMIFS(#REF!,#REF!,#REF!),0)+IF(#REF!="Yes", SUMIFS(#REF!,#REF!,#REF!),0)+IF(#REF!="Yes",SUMIFS(#REF!,#REF!,#REF!),0)+IF(#REF!="Yes",SUMIFS(#REF!,#REF!,#REF!),0)+IF(#REF!="Yes",SUMIFS(#REF!,#REF!,#REF!),0) ->  | U71: =IF(#REF!="Yes",SUMIFS(#REF!,#REF!,#REF!),0)+IF(#REF!="Yes", SUMIFS(#REF!,#REF!,#REF!),0)+IF(#REF!="Yes",SUMIFS(#REF!,#REF!,#REF!),0)+IF(#REF!="Yes",SUMIFS(#REF!,#REF!,#REF!),0)+IF(#REF!="Yes",SUMIFS(#REF!,#REF!,#REF!),0) ->  | V71: =IF(#REF!="Yes",SUMIFS(#REF!,#REF!,#REF!),0)+IF(#REF!="Yes", SUMIFS(#REF!,#REF!,#REF!),0)+IF(#REF!="Yes",SUMIFS(#REF!,#REF!,#REF!),0)+IF(#REF!="Yes",SUMIFS(#REF!,#REF!,#REF!),0)+IF(#REF!="Yes",SUMIFS(#REF!,#REF!,#REF!),0) ->  | W71: =IF(#REF!="Yes",SUMIFS(#REF!,#REF!,#REF!),0)+IF(#REF!="Yes", SUMIFS(#REF!,#REF!,#REF!),0)+IF(#REF!="Yes",SUMIFS(#REF!,#REF!,#REF!),0)+IF(#REF!="Yes",SUMIFS(#REF!,#REF!,#REF!),0)+IF(#REF!="Yes",SUMIFS(#REF!,#REF!,#REF!),0) ->  | X71: =IF(#REF!="Yes",SUMIFS(#REF!,#REF!,#REF!),0)+IF(#REF!="Yes", SUMIFS(#REF!,#REF!,#REF!),0)+IF(#REF!="Yes",SUMIFS(#REF!,#REF!,#REF!),0)+IF(#REF!="Yes",SUMIFS(#REF!,#REF!,#REF!),0)+IF(#REF!="Yes",SUMIFS(#REF!,#REF!,#REF!),0) -> 
A72: 5. Subawards/Consortium/Contractual Costs | H72: ='Budget Worksheet'!L73 -> 0 | I72: ='Budget Worksheet'!M73 -> 0 | J72: ='Budget Worksheet'!N73 -> 0 | K72: ='Budget Worksheet'!O73 -> 0 | L72: ='Budget Worksheet'!P73 -> 0 | M72: ='Budget Worksheet'!Q73 -> 0 | N72: =IF(#REF!="Yes",SUMIFS(#REF!,#REF!,#REF!),0)+IF(#REF!="Yes", SUMIFS(#REF!,#REF!,#REF!),0)+IF(#REF!="Yes",SUMIFS(#REF!,#REF!,#REF!),0)+IF(#REF!="Yes",SUMIFS(#REF!,#REF!,#REF!),0)+IF(#REF!="Yes",SUMIFS(#REF!,#REF!,#REF!),0) ->  | O72: =IF(#REF!="Yes",SUMIFS(#REF!,#REF!,#REF!),0)+IF(#REF!="Yes", SUMIFS(#REF!,#REF!,#REF!),0)+IF(#REF!="Yes",SUMIFS(#REF!,#REF!,#REF!),0)+IF(#REF!="Yes",SUMIFS(#REF!,#REF!,#REF!),0)+IF(#REF!="Yes",SUMIFS(#REF!,#REF!,#REF!),0) ->  | P72: =IF(#REF!="Yes",SUMIFS(#REF!,#REF!,#REF!),0)+IF(#REF!="Yes", SUMIFS(#REF!,#REF!,#REF!),0)+IF(#REF!="Yes",SUMIFS(#REF!,#REF!,#REF!),0)+IF(#REF!="Yes",SUMIFS(#REF!,#REF!,#REF!),0)+IF(#REF!="Yes",SUMIFS(#REF!,#REF!,#REF!),0) ->  | R72: =IF(#REF!="Yes",SUMIFS(#REF!,#REF!,#REF!),0)+IF(#REF!="Yes", SUMIFS(#REF!,#REF!,#REF!),0)+IF(#REF!="Yes",SUMIFS(#REF!,#REF!,#REF!),0)+IF(#REF!="Yes",SUMIFS(#REF!,#REF!,#REF!),0)+IF(#REF!="Yes",SUMIFS(#REF!,#REF!,#REF!),0) ->  | S72: =IF(#REF!="Yes",SUMIFS(#REF!,#REF!,#REF!),0)+IF(#REF!="Yes", SUMIFS(#REF!,#REF!,#REF!),0)+IF(#REF!="Yes",SUMIFS(#REF!,#REF!,#REF!),0)+IF(#REF!="Yes",SUMIFS(#REF!,#REF!,#REF!),0)+IF(#REF!="Yes",SUMIFS(#REF!,#REF!,#REF!),0) ->  | T72: =IF(#REF!="Yes",SUMIFS(#REF!,#REF!,#REF!),0)+IF(#REF!="Yes", SUMIFS(#REF!,#REF!,#REF!),0)+IF(#REF!="Yes",SUMIFS(#REF!,#REF!,#REF!),0)+IF(#REF!="Yes",SUMIFS(#REF!,#REF!,#REF!),0)+IF(#REF!="Yes",SUMIFS(#REF!,#REF!,#REF!),0) ->  | U72: =IF(#REF!="Yes",SUMIFS(#REF!,#REF!,#REF!),0)+IF(#REF!="Yes", SUMIFS(#REF!,#REF!,#REF!),0)+IF(#REF!="Yes",SUMIFS(#REF!,#REF!,#REF!),0)+IF(#REF!="Yes",SUMIFS(#REF!,#REF!,#REF!),0)+IF(#REF!="Yes",SUMIFS(#REF!,#REF!,#REF!),0) ->  | V72: =IF(#REF!="Yes",SUMIFS(#REF!,#REF!,#REF!),0)+IF(#REF!="Yes", SUMIFS(#REF!,#REF!,#REF!),0)+IF(#REF!="Yes",SUMIFS(#REF!,#REF!,#REF!),0)+IF(#REF!="Yes",SUMIFS(#REF!,#REF!,#REF!),0)+IF(#REF!="Yes",SUMIFS(#REF!,#REF!,#REF!),0) ->  | W72: =IF(#REF!="Yes",SUMIFS(#REF!,#REF!,#REF!),0)+IF(#REF!="Yes", SUMIFS(#REF!,#REF!,#REF!),0)+IF(#REF!="Yes",SUMIFS(#REF!,#REF!,#REF!),0)+IF(#REF!="Yes",SUMIFS(#REF!,#REF!,#REF!),0)+IF(#REF!="Yes",SUMIFS(#REF!,#REF!,#REF!),0) ->  | X72: =IF(#REF!="Yes",SUMIFS(#REF!,#REF!,#REF!),0)+IF(#REF!="Yes", SUMIFS(#REF!,#REF!,#REF!),0)+IF(#REF!="Yes",SUMIFS(#REF!,#REF!,#REF!),0)+IF(#REF!="Yes",SUMIFS(#REF!,#REF!,#REF!),0)+IF(#REF!="Yes",SUMIFS(#REF!,#REF!,#REF!),0) -> 
A73: Subcontracts < 25,000 | H73: ='Budget Worksheet'!L74 -> 0 | I73: ='Budget Worksheet'!M74 -> 0 | J73: ='Budget Worksheet'!N74 -> 0 | K73: ='Budget Worksheet'!O74 -> 0 | L73: ='Budget Worksheet'!P74 -> 0 | M73: ='Budget Worksheet'!Q74 -> 0 | N73: =IF(#REF!="Yes",SUMIFS(#REF!,#REF!,#REF!),0)+IF(#REF!="Yes", SUMIFS(#REF!,#REF!,#REF!),0)+IF(#REF!="Yes",SUMIFS(#REF!,#REF!,#REF!),0)+IF(#REF!="Yes",SUMIFS(#REF!,#REF!,#REF!),0)+IF(#REF!="Yes",SUMIFS(#REF!,#REF!,#REF!),0) ->  | O73: =IF(#REF!="Yes",SUMIFS(#REF!,#REF!,#REF!),0)+IF(#REF!="Yes", SUMIFS(#REF!,#REF!,#REF!),0)+IF(#REF!="Yes",SUMIFS(#REF!,#REF!,#REF!),0)+IF(#REF!="Yes",SUMIFS(#REF!,#REF!,#REF!),0)+IF(#REF!="Yes",SUMIFS(#REF!,#REF!,#REF!),0) ->  | P73: =IF(#REF!="Yes",SUMIFS(#REF!,#REF!,#REF!),0)+IF(#REF!="Yes", SUMIFS(#REF!,#REF!,#REF!),0)+IF(#REF!="Yes",SUMIFS(#REF!,#REF!,#REF!),0)+IF(#REF!="Yes",SUMIFS(#REF!,#REF!,#REF!),0)+IF(#REF!="Yes",SUMIFS(#REF!,#REF!,#REF!),0) ->  | R73: =IF(#REF!="Yes",SUMIFS(#REF!,#REF!,#REF!),0)+IF(#REF!="Yes", SUMIFS(#REF!,#REF!,#REF!),0)+IF(#REF!="Yes",SUMIFS(#REF!,#REF!,#REF!),0)+IF(#REF!="Yes",SUMIFS(#REF!,#REF!,#REF!),0)+IF(#REF!="Yes",SUMIFS(#REF!,#REF!,#REF!),0) ->  | S73: =IF(#REF!="Yes",SUMIFS(#REF!,#REF!,#REF!),0)+IF(#REF!="Yes", SUMIFS(#REF!,#REF!,#REF!),0)+IF(#REF!="Yes",SUMIFS(#REF!,#REF!,#REF!),0)+IF(#REF!="Yes",SUMIFS(#REF!,#REF!,#REF!),0)+IF(#REF!="Yes",SUMIFS(#REF!,#REF!,#REF!),0) ->  | T73: =IF(#REF!="Yes",SUMIFS(#REF!,#REF!,#REF!),0)+IF(#REF!="Yes", SUMIFS(#REF!,#REF!,#REF!),0)+IF(#REF!="Yes",SUMIFS(#REF!,#REF!,#REF!),0)+IF(#REF!="Yes",SUMIFS(#REF!,#REF!,#REF!),0)+IF(#REF!="Yes",SUMIFS(#REF!,#REF!,#REF!),0) ->  | U73: =IF(#REF!="Yes",SUMIFS(#REF!,#REF!,#REF!),0)+IF(#REF!="Yes", SUMIFS(#REF!,#REF!,#REF!),0)+IF(#REF!="Yes",SUMIFS(#REF!,#REF!,#REF!),0)+IF(#REF!="Yes",SUMIFS(#REF!,#REF!,#REF!),0)+IF(#REF!="Yes",SUMIFS(#REF!,#REF!,#REF!),0) ->  | V73: =IF(#REF!="Yes",SUMIFS(#REF!,#REF!,#REF!),0)+IF(#REF!="Yes", SUMIFS(#REF!,#REF!,#REF!),0)+IF(#REF!="Yes",SUMIFS(#REF!,#REF!,#REF!),0)+IF(#REF!="Yes",SUMIFS(#REF!,#REF!,#REF!),0)+IF(#REF!="Yes",SUMIFS(#REF!,#REF!,#REF!),0) ->  | W73: =IF(#REF!="Yes",SUMIFS(#REF!,#REF!,#REF!),0)+IF(#REF!="Yes", SUMIFS(#REF!,#REF!,#REF!),0)+IF(#REF!="Yes",SUMIFS(#REF!,#REF!,#REF!),0)+IF(#REF!="Yes",SUMIFS(#REF!,#REF!,#REF!),0)+IF(#REF!="Yes",SUMIFS(#REF!,#REF!,#REF!),0) ->  | X73: =IF(#REF!="Yes",SUMIFS(#REF!,#REF!,#REF!),0)+IF(#REF!="Yes", SUMIFS(#REF!,#REF!,#REF!),0)+IF(#REF!="Yes",SUMIFS(#REF!,#REF!,#REF!),0)+IF(#REF!="Yes",SUMIFS(#REF!,#REF!,#REF!),0)+IF(#REF!="Yes",SUMIFS(#REF!,#REF!,#REF!),0) -> 
A74: Subcontracts> 25,000 | H74: ='Budget Worksheet'!L75 -> 0 | I74: ='Budget Worksheet'!M75 -> 0 | J74: ='Budget Worksheet'!N75 -> 0 | K74: ='Budget Worksheet'!O75 -> 0 | L74: ='Budget Worksheet'!P75 -> 0 | M74: ='Budget Worksheet'!Q75 -> 0 | N74: =IF(#REF!="Yes",SUMIFS(#REF!,#REF!,#REF!),0)+IF(#REF!="Yes", SUMIFS(#REF!,#REF!,#REF!),0)+IF(#REF!="Yes",SUMIFS(#REF!,#REF!,#REF!),0)+IF(#REF!="Yes",SUMIFS(#REF!,#REF!,#REF!),0)+IF(#REF!="Yes",SUMIFS(#REF!,#REF!,#REF!),0) ->  | O74: =IF(#REF!="Yes",SUMIFS(#REF!,#REF!,#REF!),0)+IF(#REF!="Yes", SUMIFS(#REF!,#REF!,#REF!),0)+IF(#REF!="Yes",SUMIFS(#REF!,#REF!,#REF!),0)+IF(#REF!="Yes",SUMIFS(#REF!,#REF!,#REF!),0)+IF(#REF!="Yes",SUMIFS(#REF!,#REF!,#REF!),0) ->  | P74: =IF(#REF!="Yes",SUMIFS(#REF!,#REF!,#REF!),0)+IF(#REF!="Yes", SUMIFS(#REF!,#REF!,#REF!),0)+IF(#REF!="Yes",SUMIFS(#REF!,#REF!,#REF!),0)+IF(#REF!="Yes",SUMIFS(#REF!,#REF!,#REF!),0)+IF(#REF!="Yes",SUMIFS(#REF!,#REF!,#REF!),0) ->  | R74: =IF(#REF!="Yes",SUMIFS(#REF!,#REF!,#REF!),0)+IF(#REF!="Yes", SUMIFS(#REF!,#REF!,#REF!),0)+IF(#REF!="Yes",SUMIFS(#REF!,#REF!,#REF!),0)+IF(#REF!="Yes",SUMIFS(#REF!,#REF!,#REF!),0)+IF(#REF!="Yes",SUMIFS(#REF!,#REF!,#REF!),0) ->  | S74: =IF(#REF!="Yes",SUMIFS(#REF!,#REF!,#REF!),0)+IF(#REF!="Yes", SUMIFS(#REF!,#REF!,#REF!),0)+IF(#REF!="Yes",SUMIFS(#REF!,#REF!,#REF!),0)+IF(#REF!="Yes",SUMIFS(#REF!,#REF!,#REF!),0)+IF(#REF!="Yes",SUMIFS(#REF!,#REF!,#REF!),0) ->  | T74: =IF(#REF!="Yes",SUMIFS(#REF!,#REF!,#REF!),0)+IF(#REF!="Yes", SUMIFS(#REF!,#REF!,#REF!),0)+IF(#REF!="Yes",SUMIFS(#REF!,#REF!,#REF!),0)+IF(#REF!="Yes",SUMIFS(#REF!,#REF!,#REF!),0)+IF(#REF!="Yes",SUMIFS(#REF!,#REF!,#REF!),0) ->  | U74: =IF(#REF!="Yes",SUMIFS(#REF!,#REF!,#REF!),0)+IF(#REF!="Yes", SUMIFS(#REF!,#REF!,#REF!),0)+IF(#REF!="Yes",SUMIFS(#REF!,#REF!,#REF!),0)+IF(#REF!="Yes",SUMIFS(#REF!,#REF!,#REF!),0)+IF(#REF!="Yes",SUMIFS(#REF!,#REF!,#REF!),0) ->  | V74: =IF(#REF!="Yes",SUMIFS(#REF!,#REF!,#REF!),0)+IF(#REF!="Yes", SUMIFS(#REF!,#REF!,#REF!),0)+IF(#REF!="Yes",SUMIFS(#REF!,#REF!,#REF!),0)+IF(#REF!="Yes",SUMIFS(#REF!,#REF!,#REF!),0)+IF(#REF!="Yes",SUMIFS(#REF!,#REF!,#REF!),0) ->  | W74: =IF(#REF!="Yes",SUMIFS(#REF!,#REF!,#REF!),0)+IF(#REF!="Yes", SUMIFS(#REF!,#REF!,#REF!),0)+IF(#REF!="Yes",SUMIFS(#REF!,#REF!,#REF!),0)+IF(#REF!="Yes",SUMIFS(#REF!,#REF!,#REF!),0)+IF(#REF!="Yes",SUMIFS(#REF!,#REF!,#REF!),0) ->  | X74: =IF(#REF!="Yes",SUMIFS(#REF!,#REF!,#REF!),0)+IF(#REF!="Yes", SUMIFS(#REF!,#REF!,#REF!),0)+IF(#REF!="Yes",SUMIFS(#REF!,#REF!,#REF!),0)+IF(#REF!="Yes",SUMIFS(#REF!,#REF!,#REF!),0)+IF(#REF!="Yes",SUMIFS(#REF!,#REF!,#REF!),0) -> 
A75: 6. Equipment or Facility Rental/User Fees | H75: ='Budget Worksheet'!L76 -> 0 | I75: ='Budget Worksheet'!M76 -> 0 | J75: ='Budget Worksheet'!N76 -> 0 | K75: ='Budget Worksheet'!O76 -> 0 | L75: ='Budget Worksheet'!P76 -> 0 | M75: ='Budget Worksheet'!Q76 -> 0 | N75: =IF(#REF!="Yes",SUMIFS(#REF!,#REF!,#REF!),0)+IF(#REF!="Yes", SUMIFS(#REF!,#REF!,#REF!),0)+IF(#REF!="Yes",SUMIFS(#REF!,#REF!,#REF!),0)+IF(#REF!="Yes",SUMIFS(#REF!,#REF!,#REF!),0)+IF(#REF!="Yes",SUMIFS(#REF!,#REF!,#REF!),0) ->  | O75: =IF(#REF!="Yes",SUMIFS(#REF!,#REF!,#REF!),0)+IF(#REF!="Yes", SUMIFS(#REF!,#REF!,#REF!),0)+IF(#REF!="Yes",SUMIFS(#REF!,#REF!,#REF!),0)+IF(#REF!="Yes",SUMIFS(#REF!,#REF!,#REF!),0)+IF(#REF!="Yes",SUMIFS(#REF!,#REF!,#REF!),0) ->  | P75: =IF(#REF!="Yes",SUMIFS(#REF!,#REF!,#REF!),0)+IF(#REF!="Yes", SUMIFS(#REF!,#REF!,#REF!),0)+IF(#REF!="Yes",SUMIFS(#REF!,#REF!,#REF!),0)+IF(#REF!="Yes",SUMIFS(#REF!,#REF!,#REF!),0)+IF(#REF!="Yes",SUMIFS(#REF!,#REF!,#REF!),0) ->  | R75: =IF(#REF!="Yes",SUMIFS(#REF!,#REF!,#REF!),0)+IF(#REF!="Yes", SUMIFS(#REF!,#REF!,#REF!),0)+IF(#REF!="Yes",SUMIFS(#REF!,#REF!,#REF!),0)+IF(#REF!="Yes",SUMIFS(#REF!,#REF!,#REF!),0)+IF(#REF!="Yes",SUMIFS(#REF!,#REF!,#REF!),0) ->  | S75: =IF(#REF!="Yes",SUMIFS(#REF!,#REF!,#REF!),0)+IF(#REF!="Yes", SUMIFS(#REF!,#REF!,#REF!),0)+IF(#REF!="Yes",SUMIFS(#REF!,#REF!,#REF!),0)+IF(#REF!="Yes",SUMIFS(#REF!,#REF!,#REF!),0)+IF(#REF!="Yes",SUMIFS(#REF!,#REF!,#REF!),0) ->  | T75: =IF(#REF!="Yes",SUMIFS(#REF!,#REF!,#REF!),0)+IF(#REF!="Yes", SUMIFS(#REF!,#REF!,#REF!),0)+IF(#REF!="Yes",SUMIFS(#REF!,#REF!,#REF!),0)+IF(#REF!="Yes",SUMIFS(#REF!,#REF!,#REF!),0)+IF(#REF!="Yes",SUMIFS(#REF!,#REF!,#REF!),0) ->  | U75: =IF(#REF!="Yes",SUMIFS(#REF!,#REF!,#REF!),0)+IF(#REF!="Yes", SUMIFS(#REF!,#REF!,#REF!),0)+IF(#REF!="Yes",SUMIFS(#REF!,#REF!,#REF!),0)+IF(#REF!="Yes",SUMIFS(#REF!,#REF!,#REF!),0)+IF(#REF!="Yes",SUMIFS(#REF!,#REF!,#REF!),0) ->  | V75: =IF(#REF!="Yes",SUMIFS(#REF!,#REF!,#REF!),0)+IF(#REF!="Yes", SUMIFS(#REF!,#REF!,#REF!),0)+IF(#REF!="Yes",SUMIFS(#REF!,#REF!,#REF!),0)+IF(#REF!="Yes",SUMIFS(#REF!,#REF!,#REF!),0)+IF(#REF!="Yes",SUMIFS(#REF!,#REF!,#REF!),0) ->  | W75: =IF(#REF!="Yes",SUMIFS(#REF!,#REF!,#REF!),0)+IF(#REF!="Yes", SUMIFS(#REF!,#REF!,#REF!),0)+IF(#REF!="Yes",SUMIFS(#REF!,#REF!,#REF!),0)+IF(#REF!="Yes",SUMIFS(#REF!,#REF!,#REF!),0)+IF(#REF!="Yes",SUMIFS(#REF!,#REF!,#REF!),0) ->  | X75: =IF(#REF!="Yes",SUMIFS(#REF!,#REF!,#REF!),0)+IF(#REF!="Yes", SUMIFS(#REF!,#REF!,#REF!),0)+IF(#REF!="Yes",SUMIFS(#REF!,#REF!,#REF!),0)+IF(#REF!="Yes",SUMIFS(#REF!,#REF!,#REF!),0)+IF(#REF!="Yes",SUMIFS(#REF!,#REF!,#REF!),0) -> 
A76: 7. Alterations and Renovations | H76: ='Budget Worksheet'!L77 -> 0 | I76: ='Budget Worksheet'!M77 -> 0 | J76: ='Budget Worksheet'!N77 -> 0 | K76: ='Budget Worksheet'!O77 -> 0 | L76: ='Budget Worksheet'!P77 -> 0 | M76: ='Budget Worksheet'!Q77 -> 0 | N76: =IF(#REF!="Yes",SUMIFS(#REF!,#REF!,#REF!),0)+IF(#REF!="Yes", SUMIFS(#REF!,#REF!,#REF!),0)+IF(#REF!="Yes",SUMIFS(#REF!,#REF!,#REF!),0)+IF(#REF!="Yes",SUMIFS(#REF!,#REF!,#REF!),0)+IF(#REF!="Yes",SUMIFS(#REF!,#REF!,#REF!),0) ->  | O76: =IF(#REF!="Yes",SUMIFS(#REF!,#REF!,#REF!),0)+IF(#REF!="Yes", SUMIFS(#REF!,#REF!,#REF!),0)+IF(#REF!="Yes",SUMIFS(#REF!,#REF!,#REF!),0)+IF(#REF!="Yes",SUMIFS(#REF!,#REF!,#REF!),0)+IF(#REF!="Yes",SUMIFS(#REF!,#REF!,#REF!),0) ->  | P76: =IF(#REF!="Yes",SUMIFS(#REF!,#REF!,#REF!),0)+IF(#REF!="Yes", SUMIFS(#REF!,#REF!,#REF!),0)+IF(#REF!="Yes",SUMIFS(#REF!,#REF!,#REF!),0)+IF(#REF!="Yes",SUMIFS(#REF!,#REF!,#REF!),0)+IF(#REF!="Yes",SUMIFS(#REF!,#REF!,#REF!),0) ->  | R76: =IF(#REF!="Yes",SUMIFS(#REF!,#REF!,#REF!),0)+IF(#REF!="Yes", SUMIFS(#REF!,#REF!,#REF!),0)+IF(#REF!="Yes",SUMIFS(#REF!,#REF!,#REF!),0)+IF(#REF!="Yes",SUMIFS(#REF!,#REF!,#REF!),0)+IF(#REF!="Yes",SUMIFS(#REF!,#REF!,#REF!),0) ->  | S76: =IF(#REF!="Yes",SUMIFS(#REF!,#REF!,#REF!),0)+IF(#REF!="Yes", SUMIFS(#REF!,#REF!,#REF!),0)+IF(#REF!="Yes",SUMIFS(#REF!,#REF!,#REF!),0)+IF(#REF!="Yes",SUMIFS(#REF!,#REF!,#REF!),0)+IF(#REF!="Yes",SUMIFS(#REF!,#REF!,#REF!),0) ->  | T76: =IF(#REF!="Yes",SUMIFS(#REF!,#REF!,#REF!),0)+IF(#REF!="Yes", SUMIFS(#REF!,#REF!,#REF!),0)+IF(#REF!="Yes",SUMIFS(#REF!,#REF!,#REF!),0)+IF(#REF!="Yes",SUMIFS(#REF!,#REF!,#REF!),0)+IF(#REF!="Yes",SUMIFS(#REF!,#REF!,#REF!),0) ->  | U76: =IF(#REF!="Yes",SUMIFS(#REF!,#REF!,#REF!),0)+IF(#REF!="Yes", SUMIFS(#REF!,#REF!,#REF!),0)+IF(#REF!="Yes",SUMIFS(#REF!,#REF!,#REF!),0)+IF(#REF!="Yes",SUMIFS(#REF!,#REF!,#REF!),0)+IF(#REF!="Yes",SUMIFS(#REF!,#REF!,#REF!),0) ->  | V76: =IF(#REF!="Yes",SUMIFS(#REF!,#REF!,#REF!),0)+IF(#REF!="Yes", SUMIFS(#REF!,#REF!,#REF!),0)+IF(#REF!="Yes",SUMIFS(#REF!,#REF!,#REF!),0)+IF(#REF!="Yes",SUMIFS(#REF!,#REF!,#REF!),0)+IF(#REF!="Yes",SUMIFS(#REF!,#REF!,#REF!),0) ->  | W76: =IF(#REF!="Yes",SUMIFS(#REF!,#REF!,#REF!),0)+IF(#REF!="Yes", SUMIFS(#REF!,#REF!,#REF!),0)+IF(#REF!="Yes",SUMIFS(#REF!,#REF!,#REF!),0)+IF(#REF!="Yes",SUMIFS(#REF!,#REF!,#REF!),0)+IF(#REF!="Yes",SUMIFS(#REF!,#REF!,#REF!),0) ->  | X76: =IF(#REF!="Yes",SUMIFS(#REF!,#REF!,#REF!),0)+IF(#REF!="Yes", SUMIFS(#REF!,#REF!,#REF!),0)+IF(#REF!="Yes",SUMIFS(#REF!,#REF!,#REF!),0)+IF(#REF!="Yes",SUMIFS(#REF!,#REF!,#REF!),0)+IF(#REF!="Yes",SUMIFS(#REF!,#REF!,#REF!),0) -> 
A77: 8. Other Direct | H77: ='Budget Worksheet'!L78 -> 0 | I77: ='Budget Worksheet'!M78 -> 0 | J77: ='Budget Worksheet'!N78 -> 0 | K77: ='Budget Worksheet'!O78 -> 0 | L77: ='Budget Worksheet'!P78 -> 0 | M77: ='Budget Worksheet'!Q78 -> 0 | N77: =IF(#REF!="Yes",SUMIFS(#REF!,#REF!,#REF!),0)+IF(#REF!="Yes", SUMIFS(#REF!,#REF!,#REF!),0)+IF(#REF!="Yes",SUMIFS(#REF!,#REF!,#REF!),0)+IF(#REF!="Yes",SUMIFS(#REF!,#REF!,#REF!),0)+IF(#REF!="Yes",SUMIFS(#REF!,#REF!,#REF!),0) ->  | O77: =IF(#REF!="Yes",SUMIFS(#REF!,#REF!,#REF!),0)+IF(#REF!="Yes", SUMIFS(#REF!,#REF!,#REF!),0)+IF(#REF!="Yes",SUMIFS(#REF!,#REF!,#REF!),0)+IF(#REF!="Yes",SUMIFS(#REF!,#REF!,#REF!),0)+IF(#REF!="Yes",SUMIFS(#REF!,#REF!,#REF!),0) ->  | P77: =IF(#REF!="Yes",SUMIFS(#REF!,#REF!,#REF!),0)+IF(#REF!="Yes", SUMIFS(#REF!,#REF!,#REF!),0)+IF(#REF!="Yes",SUMIFS(#REF!,#REF!,#REF!),0)+IF(#REF!="Yes",SUMIFS(#REF!,#REF!,#REF!),0)+IF(#REF!="Yes",SUMIFS(#REF!,#REF!,#REF!),0) ->  | R77: =IF(#REF!="Yes",SUMIFS(#REF!,#REF!,#REF!),0)+IF(#REF!="Yes", SUMIFS(#REF!,#REF!,#REF!),0)+IF(#REF!="Yes",SUMIFS(#REF!,#REF!,#REF!),0)+IF(#REF!="Yes",SUMIFS(#REF!,#REF!,#REF!),0)+IF(#REF!="Yes",SUMIFS(#REF!,#REF!,#REF!),0) ->  | S77: =IF(#REF!="Yes",SUMIFS(#REF!,#REF!,#REF!),0)+IF(#REF!="Yes", SUMIFS(#REF!,#REF!,#REF!),0)+IF(#REF!="Yes",SUMIFS(#REF!,#REF!,#REF!),0)+IF(#REF!="Yes",SUMIFS(#REF!,#REF!,#REF!),0)+IF(#REF!="Yes",SUMIFS(#REF!,#REF!,#REF!),0) ->  | T77: =IF(#REF!="Yes",SUMIFS(#REF!,#REF!,#REF!),0)+IF(#REF!="Yes", SUMIFS(#REF!,#REF!,#REF!),0)+IF(#REF!="Yes",SUMIFS(#REF!,#REF!,#REF!),0)+IF(#REF!="Yes",SUMIFS(#REF!,#REF!,#REF!),0)+IF(#REF!="Yes",SUMIFS(#REF!,#REF!,#REF!),0) ->  | U77: =IF(#REF!="Yes",SUMIFS(#REF!,#REF!,#REF!),0)+IF(#REF!="Yes", SUMIFS(#REF!,#REF!,#REF!),0)+IF(#REF!="Yes",SUMIFS(#REF!,#REF!,#REF!),0)+IF(#REF!="Yes",SUMIFS(#REF!,#REF!,#REF!),0)+IF(#REF!="Yes",SUMIFS(#REF!,#REF!,#REF!),0) ->  | V77: =IF(#REF!="Yes",SUMIFS(#REF!,#REF!,#REF!),0)+IF(#REF!="Yes", SUMIFS(#REF!,#REF!,#REF!),0)+IF(#REF!="Yes",SUMIFS(#REF!,#REF!,#REF!),0)+IF(#REF!="Yes",SUMIFS(#REF!,#REF!,#REF!),0)+IF(#REF!="Yes",SUMIFS(#REF!,#REF!,#REF!),0) ->  | W77: =IF(#REF!="Yes",SUMIFS(#REF!,#REF!,#REF!),0)+IF(#REF!="Yes", SUMIFS(#REF!,#REF!,#REF!),0)+IF(#REF!="Yes",SUMIFS(#REF!,#REF!,#REF!),0)+IF(#REF!="Yes",SUMIFS(#REF!,#REF!,#REF!),0)+IF(#REF!="Yes",SUMIFS(#REF!,#REF!,#REF!),0) ->  | X77: =IF(#REF!="Yes",SUMIFS(#REF!,#REF!,#REF!),0)+IF(#REF!="Yes", SUMIFS(#REF!,#REF!,#REF!),0)+IF(#REF!="Yes",SUMIFS(#REF!,#REF!,#REF!),0)+IF(#REF!="Yes",SUMIFS(#REF!,#REF!,#REF!),0)+IF(#REF!="Yes",SUMIFS(#REF!,#REF!,#REF!),0) -> 
A78: 9. Other Costs | H78: ='Budget Worksheet'!#REF!+'Budget Worksheet'!#REF!+'Budget Worksheet'!L81+'Budget Worksheet'!L82+'Budget Worksheet'!L85+'Budget Worksheet'!L86+'Budget Worksheet'!L87+'Budget Worksheet'!L88+'Budget Worksheet'!L89+'Budget Worksheet'!L90 ->  | I78: ='Budget Worksheet'!#REF!+'Budget Worksheet'!#REF!+'Budget Worksheet'!M81+'Budget Worksheet'!M82+'Budget Worksheet'!M85+'Budget Worksheet'!M86+'Budget Worksheet'!M87+'Budget Worksheet'!M88+'Budget Worksheet'!M89+'Budget Worksheet'!M90 ->  | J78: ='Budget Worksheet'!#REF!+'Budget Worksheet'!#REF!+'Budget Worksheet'!N81+'Budget Worksheet'!N82+'Budget Worksheet'!N85+'Budget Worksheet'!N86+'Budget Worksheet'!N87+'Budget Worksheet'!N88+'Budget Worksheet'!N89+'Budget Worksheet'!N90 ->  | K78: ='Budget Worksheet'!#REF!+'Budget Worksheet'!#REF!+'Budget Worksheet'!O81+'Budget Worksheet'!O82+'Budget Worksheet'!O85+'Budget Worksheet'!O86+'Budget Worksheet'!O87+'Budget Worksheet'!O88+'Budget Worksheet'!O89+'Budget Worksheet'!O90 ->  | L78: ='Budget Worksheet'!#REF!+'Budget Worksheet'!#REF!+'Budget Worksheet'!P81+'Budget Worksheet'!P82+'Budget Worksheet'!P85+'Budget Worksheet'!P86+'Budget Worksheet'!P87+'Budget Worksheet'!P88+'Budget Worksheet'!P89+'Budget Worksheet'!P90 ->  | M78: =SUM(H78:L78) ->  | N78: =IF(#REF!="Yes",SUM(#REF!),0)+IF(#REF!="Yes",SUM(#REF!),0)+IF(#REF!="Yes",SUM(#REF!),0)+IF(#REF!="Yes",SUM(#REF!),0)+IF(#REF!="Yes",SUM(#REF!),0) ->  | O78: =IF(#REF!="Yes",SUM(#REF!),0)+IF(#REF!="Yes",SUM(#REF!),0)+IF(#REF!="Yes",SUM(#REF!),0)+IF(#REF!="Yes",SUM(#REF!),0)+IF(#REF!="Yes",SUM(#REF!),0) ->  | P78: =IF(#REF!="Yes",SUM(#REF!),0)+IF(#REF!="Yes",SUM(#REF!),0)+IF(#REF!="Yes",SUM(#REF!),0)+IF(#REF!="Yes",SUM(#REF!),0)+IF(#REF!="Yes",SUM(#REF!),0) ->  | R78: =IF(#REF!="Yes",SUM(#REF!),0)+IF(#REF!="Yes",SUM(#REF!),0)+IF(#REF!="Yes",SUM(#REF!),0)+IF(#REF!="Yes",SUM(#REF!),0)+IF(#REF!="Yes",SUM(#REF!),0) ->  | S78: =IF(#REF!="Yes",SUM(#REF!),0)+IF(#REF!="Yes",SUM(#REF!),0)+IF(#REF!="Yes",SUM(#REF!),0)+IF(#REF!="Yes",SUM(#REF!),0)+IF(#REF!="Yes",SUM(#REF!),0) ->  | T78: =IF(#REF!="Yes",SUM(#REF!),0)+IF(#REF!="Yes",SUM(#REF!),0)+IF(#REF!="Yes",SUM(#REF!),0)+IF(#REF!="Yes",SUM(#REF!),0)+IF(#REF!="Yes",SUM(#REF!),0) ->  | U78: =IF(#REF!="Yes",SUMIFS(#REF!,#REF!,#REF!),0)+IF(#REF!="Yes", SUMIFS(#REF!,#REF!,#REF!),0)+IF(#REF!="Yes",SUMIFS(#REF!,#REF!,#REF!),0)+IF(#REF!="Yes",SUMIFS(#REF!,#REF!,#REF!),0)+IF(#REF!="Yes",SUMIFS(#REF!,#REF!,#REF!),0)+IF(#REF!="Yes",SUMIFS(#REF!,#REF!,#REF!),0)+IF(#REF!="Yes", SUMIFS(#REF!,#REF!,#REF!),0)+IF(#REF!="Yes",SUMIFS(#REF!,#REF!,#REF!),0)+IF(#REF!="Yes",SUMIFS(#REF!,#REF!,#REF!),0)+IF(#REF!="Yes",SUMIFS(#REF!,#REF!,#REF!),0)+IF(#REF!="Yes",SUMIFS(#REF!,#REF!,#REF!),0)+IF(#REF!="Yes", SUMIFS(#REF!,#REF!,#REF!),0)+IF(#REF!="Yes",SUMIFS(#REF!,#REF!,#REF!),0)+IF(#REF!="Yes",SUMIFS(#REF!,#REF!,#REF!),0)+IF(#REF!="Yes",SUMIFS(#REF!,#REF!,#REF!),0)+IF(#REF!="Yes",SUMIFS(#REF!,#REF!,#REF!),0)+IF(#REF!="Yes", SUMIFS(#REF!,#REF!,#REF!),0)+IF(#REF!="Yes",SUMIFS(#REF!,#REF!,#REF!),0)+IF(#REF!="Yes",SUMIFS(#REF!,#REF!,#REF!),0)+IF(#REF!="Yes",SUMIFS(#REF!,#REF!,#REF!),0)+IF(#REF!="Yes",SUMIFS(#REF!,#REF!,#REF!),0)+IF(#REF!="Yes", SUMIFS(#REF!,#REF!,#REF!),0)+IF(#REF!="Yes",SUMIFS(#REF!,#REF!,#REF!),0)+IF(#REF!="Yes",SUMIFS(#REF!,#REF!,#REF!),0)+IF(#REF!="Yes",SUMIFS(#REF!,#REF!,#REF!),0)+IF(#REF!="Yes",SUMIFS(#REF!,#REF!,#REF!),0)+IF(#REF!="Yes", SUMIFS(#REF!,#REF!,#REF!),0)+IF(#REF!="Yes",SUMIFS(#REF!,#REF!,#REF!),0)+IF(#REF!="Yes",SUMIFS(#REF!,#REF!,#REF!),0)+IF(#REF!="Yes",SUMIFS(#REF!,#REF!,#REF!),0)+IF(#REF!="Yes",SUMIFS(#REF!,#REF!,#REF!),0)+IF(#REF!="Yes", SUMIFS(#REF!,#REF!,#REF!),0)+IF(#REF!="Yes",SUMIFS(#REF!,#REF!,#REF!),0)+IF(#REF!="Yes",SUMIFS(#REF!,#REF!,#REF!),0)+IF(#REF!="Yes",SUMIFS(#REF!,#REF!,#REF!),0)+IF(#REF!="Yes",SUMIFS(#REF!,#REF!,#REF!),0)+IF(#REF!="Yes", SUMIFS(#REF!,#REF!,#REF!),0)+IF(#REF!="Yes",SUMIFS(#REF!,#REF!,#REF!),0)+IF(#REF!="Yes",SUMIFS(#REF!,#REF!,#REF!),0)+IF(#REF!="Yes",SUMIFS(#REF!,#REF!,#REF!),0)+IF(#REF!="Yes",SUMIFS(#REF!,#REF!,#REF!),0)+IF(#REF!="Yes", SUMIFS(#REF!,#REF!,#REF!),0)+IF(#REF!="Yes",SUMIFS(#REF!,#REF!,#REF!),0)+IF(#REF!="Yes",SUMIFS(#REF!,#REF!,#REF!),0)+IF(#REF!="Yes",SUMIFS(#REF!,#REF!,#REF!),0)+IF(#REF!="Yes",SUMIFS(#REF!,#REF!,#REF!),0)+IF(#REF!="Yes", SUMIFS(#REF!,#REF!,#REF!),0)+IF(#REF!="Yes",SUMIFS(#REF!,#REF!,#REF!),0)+IF(#REF!="Yes",SUMIFS(#REF!,#REF!,#REF!),0)+IF(#REF!="Yes",SUMIFS(#REF!,#REF!,#REF!),0) ->  | V78: =IF(#REF!="Yes",SUMIFS(#REF!,#REF!,#REF!),0)+IF(#REF!="Yes", SUMIFS(#REF!,#REF!,#REF!),0)+IF(#REF!="Yes",SUMIFS(#REF!,#REF!,#REF!),0)+IF(#REF!="Yes",SUMIFS(#REF!,#REF!,#REF!),0)+IF(#REF!="Yes",SUMIFS(#REF!,#REF!,#REF!),0)+IF(#REF!="Yes",SUMIFS(#REF!,#REF!,#REF!),0)+IF(#REF!="Yes", SUMIFS(#REF!,#REF!,#REF!),0)+IF(#REF!="Yes",SUMIFS(#REF!,#REF!,#REF!),0)+IF(#REF!="Yes",SUMIFS(#REF!,#REF!,#REF!),0)+IF(#REF!="Yes",SUMIFS(#REF!,#REF!,#REF!),0)+IF(#REF!="Yes",SUMIFS(#REF!,#REF!,#REF!),0)+IF(#REF!="Yes", SUMIFS(#REF!,#REF!,#REF!),0)+IF(#REF!="Yes",SUMIFS(#REF!,#REF!,#REF!),0)+IF(#REF!="Yes",SUMIFS(#REF!,#REF!,#REF!),0)+IF(#REF!="Yes",SUMIFS(#REF!,#REF!,#REF!),0)+IF(#REF!="Yes",SUMIFS(#REF!,#REF!,#REF!),0)+IF(#REF!="Yes", SUMIFS(#REF!,#REF!,#REF!),0)+IF(#REF!="Yes",SUMIFS(#REF!,#REF!,#REF!),0)+IF(#REF!="Yes",SUMIFS(#REF!,#REF!,#REF!),0)+IF(#REF!="Yes",SUMIFS(#REF!,#REF!,#REF!),0)+IF(#REF!="Yes",SUMIFS(#REF!,#REF!,#REF!),0)+IF(#REF!="Yes", SUMIFS(#REF!,#REF!,#REF!),0)+IF(#REF!="Yes",SUMIFS(#REF!,#REF!,#REF!),0)+IF(#REF!="Yes",SUMIFS(#REF!,#REF!,#REF!),0)+IF(#REF!="Yes",SUMIFS(#REF!,#REF!,#REF!),0)+IF(#REF!="Yes",SUMIFS(#REF!,#REF!,#REF!),0)+IF(#REF!="Yes", SUMIFS(#REF!,#REF!,#REF!),0)+IF(#REF!="Yes",SUMIFS(#REF!,#REF!,#REF!),0)+IF(#REF!="Yes",SUMIFS(#REF!,#REF!,#REF!),0)+IF(#REF!="Yes",SUMIFS(#REF!,#REF!,#REF!),0)+IF(#REF!="Yes",SUMIFS(#REF!,#REF!,#REF!),0)+IF(#REF!="Yes", SUMIFS(#REF!,#REF!,#REF!),0)+IF(#REF!="Yes",SUMIFS(#REF!,#REF!,#REF!),0)+IF(#REF!="Yes",SUMIFS(#REF!,#REF!,#REF!),0)+IF(#REF!="Yes",SUMIFS(#REF!,#REF!,#REF!),0)+IF(#REF!="Yes",SUMIFS(#REF!,#REF!,#REF!),0)+IF(#REF!="Yes", SUMIFS(#REF!,#REF!,#REF!),0)+IF(#REF!="Yes",SUMIFS(#REF!,#REF!,#REF!),0)+IF(#REF!="Yes",SUMIFS(#REF!,#REF!,#REF!),0)+IF(#REF!="Yes",SUMIFS(#REF!,#REF!,#REF!),0)+IF(#REF!="Yes",SUMIFS(#REF!,#REF!,#REF!),0)+IF(#REF!="Yes", SUMIFS(#REF!,#REF!,#REF!),0)+IF(#REF!="Yes",SUMIFS(#REF!,#REF!,#REF!),0)+IF(#REF!="Yes",SUMIFS(#REF!,#REF!,#REF!),0)+IF(#REF!="Yes",SUMIFS(#REF!,#REF!,#REF!),0)+IF(#REF!="Yes",SUMIFS(#REF!,#REF!,#REF!),0)+IF(#REF!="Yes", SUMIFS(#REF!,#REF!,#REF!),0)+IF(#REF!="Yes",SUMIFS(#REF!,#REF!,#REF!),0)+IF(#REF!="Yes",SUMIFS(#REF!,#REF!,#REF!),0)+IF(#REF!="Yes",SUMIFS(#REF!,#REF!,#REF!),0) ->  | W78: =IF(#REF!="Yes",SUMIFS(#REF!,#REF!,#REF!),0)+IF(#REF!="Yes", SUMIFS(#REF!,#REF!,#REF!),0)+IF(#REF!="Yes",SUMIFS(#REF!,#REF!,#REF!),0)+IF(#REF!="Yes",SUMIFS(#REF!,#REF!,#REF!),0)+IF(#REF!="Yes",SUMIFS(#REF!,#REF!,#REF!),0)+IF(#REF!="Yes",SUMIFS(#REF!,#REF!,#REF!),0)+IF(#REF!="Yes", SUMIFS(#REF!,#REF!,#REF!),0)+IF(#REF!="Yes",SUMIFS(#REF!,#REF!,#REF!),0)+IF(#REF!="Yes",SUMIFS(#REF!,#REF!,#REF!),0)+IF(#REF!="Yes",SUMIFS(#REF!,#REF!,#REF!),0)+IF(#REF!="Yes",SUMIFS(#REF!,#REF!,#REF!),0)+IF(#REF!="Yes", SUMIFS(#REF!,#REF!,#REF!),0)+IF(#REF!="Yes",SUMIFS(#REF!,#REF!,#REF!),0)+IF(#REF!="Yes",SUMIFS(#REF!,#REF!,#REF!),0)+IF(#REF!="Yes",SUMIFS(#REF!,#REF!,#REF!),0)+IF(#REF!="Yes",SUMIFS(#REF!,#REF!,#REF!),0)+IF(#REF!="Yes", SUMIFS(#REF!,#REF!,#REF!),0)+IF(#REF!="Yes",SUMIFS(#REF!,#REF!,#REF!),0)+IF(#REF!="Yes",SUMIFS(#REF!,#REF!,#REF!),0)+IF(#REF!="Yes",SUMIFS(#REF!,#REF!,#REF!),0)+IF(#REF!="Yes",SUMIFS(#REF!,#REF!,#REF!),0)+IF(#REF!="Yes", SUMIFS(#REF!,#REF!,#REF!),0)+IF(#REF!="Yes",SUMIFS(#REF!,#REF!,#REF!),0)+IF(#REF!="Yes",SUMIFS(#REF!,#REF!,#REF!),0)+IF(#REF!="Yes",SUMIFS(#REF!,#REF!,#REF!),0)+IF(#REF!="Yes",SUMIFS(#REF!,#REF!,#REF!),0)+IF(#REF!="Yes", SUMIFS(#REF!,#REF!,#REF!),0)+IF(#REF!="Yes",SUMIFS(#REF!,#REF!,#REF!),0)+IF(#REF!="Yes",SUMIFS(#REF!,#REF!,#REF!),0)+IF(#REF!="Yes",SUMIFS(#REF!,#REF!,#REF!),0)+IF(#REF!="Yes",SUMIFS(#REF!,#REF!,#REF!),0)+IF(#REF!="Yes", SUMIFS(#REF!,#REF!,#REF!),0)+IF(#REF!="Yes",SUMIFS(#REF!,#REF!,#REF!),0)+IF(#REF!="Yes",SUMIFS(#REF!,#REF!,#REF!),0)+IF(#REF!="Yes",SUMIFS(#REF!,#REF!,#REF!),0)+IF(#REF!="Yes",SUMIFS(#REF!,#REF!,#REF!),0)+IF(#REF!="Yes", SUMIFS(#REF!,#REF!,#REF!),0)+IF(#REF!="Yes",SUMIFS(#REF!,#REF!,#REF!),0)+IF(#REF!="Yes",SUMIFS(#REF!,#REF!,#REF!),0)+IF(#REF!="Yes",SUMIFS(#REF!,#REF!,#REF!),0)+IF(#REF!="Yes",SUMIFS(#REF!,#REF!,#REF!),0)+IF(#REF!="Yes", SUMIFS(#REF!,#REF!,#REF!),0)+IF(#REF!="Yes",SUMIFS(#REF!,#REF!,#REF!),0)+IF(#REF!="Yes",SUMIFS(#REF!,#REF!,#REF!),0)+IF(#REF!="Yes",SUMIFS(#REF!,#REF!,#REF!),0)+IF(#REF!="Yes",SUMIFS(#REF!,#REF!,#REF!),0)+IF(#REF!="Yes", SUMIFS(#REF!,#REF!,#REF!),0)+IF(#REF!="Yes",SUMIFS(#REF!,#REF!,#REF!),0)+IF(#REF!="Yes",SUMIFS(#REF!,#REF!,#REF!),0)+IF(#REF!="Yes",SUMIFS(#REF!,#REF!,#REF!),0) ->  | X78: =IF(#REF!="Yes",SUMIFS(#REF!,#REF!,#REF!),0)+IF(#REF!="Yes", SUMIFS(#REF!,#REF!,#REF!),0)+IF(#REF!="Yes",SUMIFS(#REF!,#REF!,#REF!),0)+IF(#REF!="Yes",SUMIFS(#REF!,#REF!,#REF!),0)+IF(#REF!="Yes",SUMIFS(#REF!,#REF!,#REF!),0)+IF(#REF!="Yes",SUMIFS(#REF!,#REF!,#REF!),0)+IF(#REF!="Yes", SUMIFS(#REF!,#REF!,#REF!),0)+IF(#REF!="Yes",SUMIFS(#REF!,#REF!,#REF!),0)+IF(#REF!="Yes",SUMIFS(#REF!,#REF!,#REF!),0)+IF(#REF!="Yes",SUMIFS(#REF!,#REF!,#REF!),0)+IF(#REF!="Yes",SUMIFS(#REF!,#REF!,#REF!),0)+IF(#REF!="Yes", SUMIFS(#REF!,#REF!,#REF!),0)+IF(#REF!="Yes",SUMIFS(#REF!,#REF!,#REF!),0)+IF(#REF!="Yes",SUMIFS(#REF!,#REF!,#REF!),0)+IF(#REF!="Yes",SUMIFS(#REF!,#REF!,#REF!),0)+IF(#REF!="Yes",SUMIFS(#REF!,#REF!,#REF!),0)+IF(#REF!="Yes", SUMIFS(#REF!,#REF!,#REF!),0)+IF(#REF!="Yes",SUMIFS(#REF!,#REF!,#REF!),0)+IF(#REF!="Yes",SUMIFS(#REF!,#REF!,#REF!),0)+IF(#REF!="Yes",SUMIFS(#REF!,#REF!,#REF!),0)+IF(#REF!="Yes",SUMIFS(#REF!,#REF!,#REF!),0)+IF(#REF!="Yes", SUMIFS(#REF!,#REF!,#REF!),0)+IF(#REF!="Yes",SUMIFS(#REF!,#REF!,#REF!),0)+IF(#REF!="Yes",SUMIFS(#REF!,#REF!,#REF!),0)+IF(#REF!="Yes",SUMIFS(#REF!,#REF!,#REF!),0)+IF(#REF!="Yes",SUMIFS(#REF!,#REF!,#REF!),0)+IF(#REF!="Yes", SUMIFS(#REF!,#REF!,#REF!),0)+IF(#REF!="Yes",SUMIFS(#REF!,#REF!,#REF!),0)+IF(#REF!="Yes",SUMIFS(#REF!,#REF!,#REF!),0)+IF(#REF!="Yes",SUMIFS(#REF!,#REF!,#REF!),0)+IF(#REF!="Yes",SUMIFS(#REF!,#REF!,#REF!),0)+IF(#REF!="Yes", SUMIFS(#REF!,#REF!,#REF!),0)+IF(#REF!="Yes",SUMIFS(#REF!,#REF!,#REF!),0)+IF(#REF!="Yes",SUMIFS(#REF!,#REF!,#REF!),0)+IF(#REF!="Yes",SUMIFS(#REF!,#REF!,#REF!),0)+IF(#REF!="Yes",SUMIFS(#REF!,#REF!,#REF!),0)+IF(#REF!="Yes", SUMIFS(#REF!,#REF!,#REF!),0)+IF(#REF!="Yes",SUMIFS(#REF!,#REF!,#REF!),0)+IF(#REF!="Yes",SUMIFS(#REF!,#REF!,#REF!),0)+IF(#REF!="Yes",SUMIFS(#REF!,#REF!,#REF!),0)+IF(#REF!="Yes",SUMIFS(#REF!,#REF!,#REF!),0)+IF(#REF!="Yes", SUMIFS(#REF!,#REF!,#REF!),0)+IF(#REF!="Yes",SUMIFS(#REF!,#REF!,#REF!),0)+IF(#REF!="Yes",SUMIFS(#REF!,#REF!,#REF!),0)+IF(#REF!="Yes",SUMIFS(#REF!,#REF!,#REF!),0)+IF(#REF!="Yes",SUMIFS(#REF!,#REF!,#REF!),0)+IF(#REF!="Yes", SUMIFS(#REF!,#REF!,#REF!),0)+IF(#REF!="Yes",SUMIFS(#REF!,#REF!,#REF!),0)+IF(#REF!="Yes",SUMIFS(#REF!,#REF!,#REF!),0)+IF(#REF!="Yes",SUMIFS(#REF!,#REF!,#REF!),0) -> 
Q79: =#REF! ->  | R79: =#REF! ->  | T79: =#REF! ->  | U79: =#REF! ->  | V79: =#REF! ->  | W79: =#REF! ->  | X79: =#REF! -> 
Q80: =#REF! ->  | R80: =#REF! ->  | S80: =IF(#REF!="Yes",SUMIFS(#REF!,#REF!,#REF!),0)+IF(#REF!="Yes", SUMIFS(#REF!,#REF!,#REF!),0)+IF(#REF!="Yes",SUMIFS(#REF!,#REF!,#REF!),0)+IF(#REF!="Yes",SUMIFS(#REF!,#REF!,#REF!),0)+IF(#REF!="Yes",SUMIFS(#REF!,#REF!,#REF!),0)+IF(#REF!="Yes",SUMIFS(#REF!,#REF!,#REF!),0)+IF(#REF!="Yes", SUMIFS(#REF!,#REF!,#REF!),0)+IF(#REF!="Yes",SUMIFS(#REF!,#REF!,#REF!),0)+IF(#REF!="Yes",SUMIFS(#REF!,#REF!,#REF!),0)+IF(#REF!="Yes",SUMIFS(#REF!,#REF!,#REF!),0)+IF(#REF!="Yes",SUMIFS(#REF!,#REF!,#REF!),0)+IF(#REF!="Yes", SUMIFS(#REF!,#REF!,#REF!),0)+IF(#REF!="Yes",SUMIFS(#REF!,#REF!,#REF!),0)+IF(#REF!="Yes",SUMIFS(#REF!,#REF!,#REF!),0)+IF(#REF!="Yes",SUMIFS(#REF!,#REF!,#REF!),0)+IF(#REF!="Yes",SUMIFS(#REF!,#REF!,#REF!),0)+IF(#REF!="Yes", SUMIFS(#REF!,#REF!,#REF!),0)+IF(#REF!="Yes",SUMIFS(#REF!,#REF!,#REF!),0)+IF(#REF!="Yes",SUMIFS(#REF!,#REF!,#REF!),0)+IF(#REF!="Yes",SUMIFS(#REF!,#REF!,#REF!),0)+IF(#REF!="Yes",SUMIFS(#REF!,#REF!,#REF!),0)+IF(#REF!="Yes", SUMIFS(#REF!,#REF!,#REF!),0)+IF(#REF!="Yes",SUMIFS(#REF!,#REF!,#REF!),0)+IF(#REF!="Yes",SUMIFS(#REF!,#REF!,#REF!),0)+IF(#REF!="Yes",SUMIFS(#REF!,#REF!,#REF!),0)+IF(#REF!="Yes",SUMIFS(#REF!,#REF!,#REF!),0)+IF(#REF!="Yes", SUMIFS(#REF!,#REF!,#REF!),0)+IF(#REF!="Yes",SUMIFS(#REF!,#REF!,#REF!),0)+IF(#REF!="Yes",SUMIFS(#REF!,#REF!,#REF!),0)+IF(#REF!="Yes",SUMIFS(#REF!,#REF!,#REF!),0)+IF(#REF!="Yes",SUMIFS(#REF!,#REF!,#REF!),0)+IF(#REF!="Yes", SUMIFS(#REF!,#REF!,#REF!),0)+IF(#REF!="Yes",SUMIFS(#REF!,#REF!,#REF!),0)+IF(#REF!="Yes",SUMIFS(#REF!,#REF!,#REF!),0)+IF(#REF!="Yes",SUMIFS(#REF!,#REF!,#REF!),0)+IF(#REF!="Yes",SUMIFS(#REF!,#REF!,#REF!),0)+IF(#REF!="Yes", SUMIFS(#REF!,#REF!,#REF!),0)+IF(#REF!="Yes",SUMIFS(#REF!,#REF!,#REF!),0)+IF(#REF!="Yes",SUMIFS(#REF!,#REF!,#REF!),0)+IF(#REF!="Yes",SUMIFS(#REF!,#REF!,#REF!),0)+IF(#REF!="Yes",SUMIFS(#REF!,#REF!,#REF!),0)+IF(#REF!="Yes", SUMIFS(#REF!,#REF!,#REF!),0)+IF(#REF!="Yes",SUMIFS(#REF!,#REF!,#REF!),0)+IF(#REF!="Yes",SUMIFS(#REF!,#REF!,#REF!),0)+IF(#REF!="Yes",SUMIFS(#REF!,#REF!,#REF!),0)+IF(#REF!="Yes",SUMIFS(#REF!,#REF!,#REF!),0)+IF(#REF!="Yes", SUMIFS(#REF!,#REF!,#REF!),0)+IF(#REF!="Yes",SUMIFS(#REF!,#REF!,#REF!),0)+IF(#REF!="Yes",SUMIFS(#REF!,#REF!,#REF!),0)+IF(#REF!="Yes",SUMIFS(#REF!,#REF!,#REF!),0) ->  | T80: =#REF! ->  | U80: =#REF! ->  | V80: =#REF! ->  | W80: =#REF! ->  | X80: =#REF! -> 
A81: Total Non-personnel Costs | H81: ='Budget Worksheet'!L91 -> 0 | I81: ='Budget Worksheet'!M91 -> 0 | J81: ='Budget Worksheet'!N91 -> 0 | K81: ='Budget Worksheet'!O91 -> 0 | L81: ='Budget Worksheet'!P91 -> 0 | M81: ='Budget Worksheet'!Q91 -> 0 | N81: =IF(#REF!="Yes",SUMIFS(#REF!,#REF!,#REF!),0)+IF(#REF!="Yes", SUMIFS(#REF!,#REF!,#REF!),0)+IF(#REF!="Yes",SUMIFS(#REF!,#REF!,#REF!),0)+IF(#REF!="Yes",SUMIFS(#REF!,#REF!,#REF!),0)+IF(#REF!="Yes",SUMIFS(#REF!,#REF!,#REF!),0) ->  | O81: =IF(#REF!="Yes",SUMIFS(#REF!,#REF!,#REF!),0)+IF(#REF!="Yes", SUMIFS(#REF!,#REF!,#REF!),0)+IF(#REF!="Yes",SUMIFS(#REF!,#REF!,#REF!),0)+IF(#REF!="Yes",SUMIFS(#REF!,#REF!,#REF!),0)+IF(#REF!="Yes",SUMIFS(#REF!,#REF!,#REF!),0) ->  | P81: =IF(#REF!="Yes",SUMIFS(#REF!,#REF!,#REF!),0)+IF(#REF!="Yes", SUMIFS(#REF!,#REF!,#REF!),0)+IF(#REF!="Yes",SUMIFS(#REF!,#REF!,#REF!),0)+IF(#REF!="Yes",SUMIFS(#REF!,#REF!,#REF!),0)+IF(#REF!="Yes",SUMIFS(#REF!,#REF!,#REF!),0) ->  | Q81: =SUM(N81:P81)+SUM(R81:X81) ->  | R81: =IF(#REF!="Yes",SUMIFS(#REF!,#REF!,#REF!),0)+IF(#REF!="Yes", SUMIFS(#REF!,#REF!,#REF!),0)+IF(#REF!="Yes",SUMIFS(#REF!,#REF!,#REF!),0)+IF(#REF!="Yes",SUMIFS(#REF!,#REF!,#REF!),0)+IF(#REF!="Yes",SUMIFS(#REF!,#REF!,#REF!),0) ->  | S81: =IF(#REF!="Yes",SUMIFS(#REF!,#REF!,#REF!),0)+IF(#REF!="Yes", SUMIFS(#REF!,#REF!,#REF!),0)+IF(#REF!="Yes",SUMIFS(#REF!,#REF!,#REF!),0)+IF(#REF!="Yes",SUMIFS(#REF!,#REF!,#REF!),0)+IF(#REF!="Yes",SUMIFS(#REF!,#REF!,#REF!),0) ->  | T81: =IF(#REF!="Yes",SUMIFS(#REF!,#REF!,#REF!),0)+IF(#REF!="Yes", SUMIFS(#REF!,#REF!,#REF!),0)+IF(#REF!="Yes",SUMIFS(#REF!,#REF!,#REF!),0)+IF(#REF!="Yes",SUMIFS(#REF!,#REF!,#REF!),0)+IF(#REF!="Yes",SUMIFS(#REF!,#REF!,#REF!),0) ->  | U81: =IF(#REF!="Yes",SUMIFS(#REF!,#REF!,#REF!),0)+IF(#REF!="Yes", SUMIFS(#REF!,#REF!,#REF!),0)+IF(#REF!="Yes",SUMIFS(#REF!,#REF!,#REF!),0)+IF(#REF!="Yes",SUMIFS(#REF!,#REF!,#REF!),0)+IF(#REF!="Yes",SUMIFS(#REF!,#REF!,#REF!),0) ->  | V81: =IF(#REF!="Yes",SUMIFS(#REF!,#REF!,#REF!),0)+IF(#REF!="Yes", SUMIFS(#REF!,#REF!,#REF!),0)+IF(#REF!="Yes",SUMIFS(#REF!,#REF!,#REF!),0)+IF(#REF!="Yes",SUMIFS(#REF!,#REF!,#REF!),0)+IF(#REF!="Yes",SUMIFS(#REF!,#REF!,#REF!),0) ->  | W81: =IF(#REF!="Yes",SUMIFS(#REF!,#REF!,#REF!),0)+IF(#REF!="Yes", SUMIFS(#REF!,#REF!,#REF!),0)+IF(#REF!="Yes",SUMIFS(#REF!,#REF!,#REF!),0)+IF(#REF!="Yes",SUMIFS(#REF!,#REF!,#REF!),0)+IF(#REF!="Yes",SUMIFS(#REF!,#REF!,#REF!),0) ->  | X81: =IF(#REF!="Yes",SUMIFS(#REF!,#REF!,#REF!),0)+IF(#REF!="Yes", SUMIFS(#REF!,#REF!,#REF!),0)+IF(#REF!="Yes",SUMIFS(#REF!,#REF!,#REF!),0)+IF(#REF!="Yes",SUMIFS(#REF!,#REF!,#REF!),0)+IF(#REF!="Yes",SUMIFS(#REF!,#REF!,#REF!),0) -> 
A83: G. Total Direct Costs | H83: ='Budget Worksheet'!L93 -> 0 | I83: ='Budget Worksheet'!M93 -> 0 | J83: ='Budget Worksheet'!N93 -> 0 | K83: ='Budget Worksheet'!O93 -> 0 | L83: ='Budget Worksheet'!P93 -> 0 | M83: ='Budget Worksheet'!Q93 -> 0 | N83: =IF(#REF!="Yes",SUMIFS(#REF!,#REF!,#REF!),0)+IF(#REF!="Yes", SUMIFS(#REF!,#REF!,#REF!),0)+IF(#REF!="Yes",SUMIFS(#REF!,#REF!,#REF!),0)+IF(#REF!="Yes",SUMIFS(#REF!,#REF!,#REF!),0)+IF(#REF!="Yes",SUMIFS(#REF!,#REF!,#REF!),0) ->  | O83: =IF(#REF!="Yes",SUMIFS(#REF!,#REF!,#REF!),0)+IF(#REF!="Yes", SUMIFS(#REF!,#REF!,#REF!),0)+IF(#REF!="Yes",SUMIFS(#REF!,#REF!,#REF!),0)+IF(#REF!="Yes",SUMIFS(#REF!,#REF!,#REF!),0)+IF(#REF!="Yes",SUMIFS(#REF!,#REF!,#REF!),0) ->  | P83: =IF(#REF!="Yes",SUMIFS(#REF!,#REF!,#REF!),0)+IF(#REF!="Yes", SUMIFS(#REF!,#REF!,#REF!),0)+IF(#REF!="Yes",SUMIFS(#REF!,#REF!,#REF!),0)+IF(#REF!="Yes",SUMIFS(#REF!,#REF!,#REF!),0)+IF(#REF!="Yes",SUMIFS(#REF!,#REF!,#REF!),0) ->  | Q83: =SUM(N83:P83)+SUM(R83:X83) ->  | R83: =IF(#REF!="Yes",SUMIFS(#REF!,#REF!,#REF!),0)+IF(#REF!="Yes", SUMIFS(#REF!,#REF!,#REF!),0)+IF(#REF!="Yes",SUMIFS(#REF!,#REF!,#REF!),0)+IF(#REF!="Yes",SUMIFS(#REF!,#REF!,#REF!),0)+IF(#REF!="Yes",SUMIFS(#REF!,#REF!,#REF!),0) ->  | S83: =IF(#REF!="Yes",SUMIFS(#REF!,#REF!,#REF!),0)+IF(#REF!="Yes", SUMIFS(#REF!,#REF!,#REF!),0)+IF(#REF!="Yes",SUMIFS(#REF!,#REF!,#REF!),0)+IF(#REF!="Yes",SUMIFS(#REF!,#REF!,#REF!),0)+IF(#REF!="Yes",SUMIFS(#REF!,#REF!,#REF!),0) ->  | T83: =IF(#REF!="Yes",SUMIFS(#REF!,#REF!,#REF!),0)+IF(#REF!="Yes", SUMIFS(#REF!,#REF!,#REF!),0)+IF(#REF!="Yes",SUMIFS(#REF!,#REF!,#REF!),0)+IF(#REF!="Yes",SUMIFS(#REF!,#REF!,#REF!),0)+IF(#REF!="Yes",SUMIFS(#REF!,#REF!,#REF!),0) ->  | U83: =IF(#REF!="Yes",SUMIFS(#REF!,#REF!,#REF!),0)+IF(#REF!="Yes", SUMIFS(#REF!,#REF!,#REF!),0)+IF(#REF!="Yes",SUMIFS(#REF!,#REF!,#REF!),0)+IF(#REF!="Yes",SUMIFS(#REF!,#REF!,#REF!),0)+IF(#REF!="Yes",SUMIFS(#REF!,#REF!,#REF!),0) ->  | V83: =IF(#REF!="Yes",SUMIFS(#REF!,#REF!,#REF!),0)+IF(#REF!="Yes", SUMIFS(#REF!,#REF!,#REF!),0)+IF(#REF!="Yes",SUMIFS(#REF!,#REF!,#REF!),0)+IF(#REF!="Yes",SUMIFS(#REF!,#REF!,#REF!),0)+IF(#REF!="Yes",SUMIFS(#REF!,#REF!,#REF!),0) ->  | W83: =IF(#REF!="Yes",SUMIFS(#REF!,#REF!,#REF!),0)+IF(#REF!="Yes", SUMIFS(#REF!,#REF!,#REF!),0)+IF(#REF!="Yes",SUMIFS(#REF!,#REF!,#REF!),0)+IF(#REF!="Yes",SUMIFS(#REF!,#REF!,#REF!),0)+IF(#REF!="Yes",SUMIFS(#REF!,#REF!,#REF!),0) ->  | X83: =IF(#REF!="Yes",SUMIFS(#REF!,#REF!,#REF!),0)+IF(#REF!="Yes", SUMIFS(#REF!,#REF!,#REF!),0)+IF(#REF!="Yes",SUMIFS(#REF!,#REF!,#REF!),0)+IF(#REF!="Yes",SUMIFS(#REF!,#REF!,#REF!),0)+IF(#REF!="Yes",SUMIFS(#REF!,#REF!,#REF!),0) -> 
A85: MTDC Base | H85: ='Budget Worksheet'!L105 -> 0 | I85: ='Budget Worksheet'!M105 -> 0 | J85: ='Budget Worksheet'!N105 -> 0 | K85: ='Budget Worksheet'!O105 -> 0 | L85: ='Budget Worksheet'!P105 -> 0 | M85: ='Budget Worksheet'!Q105 -> 0 | N85: =IF(#REF!="Yes",SUMIFS(#REF!,#REF!,#REF!),0)+IF(#REF!="Yes", SUMIFS(#REF!,#REF!,#REF!),0)+IF(#REF!="Yes",SUMIFS(#REF!,#REF!,#REF!),0)+IF(#REF!="Yes",SUMIFS(#REF!,#REF!,#REF!),0)+IF(#REF!="Yes",SUMIFS(#REF!,#REF!,#REF!),0) ->  | O85: =IF(#REF!="Yes",SUMIFS(#REF!,#REF!,#REF!),0)+IF(#REF!="Yes", SUMIFS(#REF!,#REF!,#REF!),0)+IF(#REF!="Yes",SUMIFS(#REF!,#REF!,#REF!),0)+IF(#REF!="Yes",SUMIFS(#REF!,#REF!,#REF!),0)+IF(#REF!="Yes",SUMIFS(#REF!,#REF!,#REF!),0) ->  | P85: =IF(#REF!="Yes",SUMIFS(#REF!,#REF!,#REF!),0)+IF(#REF!="Yes", SUMIFS(#REF!,#REF!,#REF!),0)+IF(#REF!="Yes",SUMIFS(#REF!,#REF!,#REF!),0)+IF(#REF!="Yes",SUMIFS(#REF!,#REF!,#REF!),0)+IF(#REF!="Yes",SUMIFS(#REF!,#REF!,#REF!),0) ->  | Q85: =SUM(N85:P85)+SUM(R85:X85) ->  | R85: =IF(#REF!="Yes",SUMIFS(#REF!,#REF!,#REF!),0)+IF(#REF!="Yes", SUMIFS(#REF!,#REF!,#REF!),0)+IF(#REF!="Yes",SUMIFS(#REF!,#REF!,#REF!),0)+IF(#REF!="Yes",SUMIFS(#REF!,#REF!,#REF!),0)+IF(#REF!="Yes",SUMIFS(#REF!,#REF!,#REF!),0) ->  | S85: =IF(#REF!="Yes",SUMIFS(#REF!,#REF!,#REF!),0)+IF(#REF!="Yes", SUMIFS(#REF!,#REF!,#REF!),0)+IF(#REF!="Yes",SUMIFS(#REF!,#REF!,#REF!),0)+IF(#REF!="Yes",SUMIFS(#REF!,#REF!,#REF!),0)+IF(#REF!="Yes",SUMIFS(#REF!,#REF!,#REF!),0) ->  | T85: =IF(#REF!="Yes",SUMIFS(#REF!,#REF!,#REF!),0)+IF(#REF!="Yes", SUMIFS(#REF!,#REF!,#REF!),0)+IF(#REF!="Yes",SUMIFS(#REF!,#REF!,#REF!),0)+IF(#REF!="Yes",SUMIFS(#REF!,#REF!,#REF!),0)+IF(#REF!="Yes",SUMIFS(#REF!,#REF!,#REF!),0) ->  | U85: =IF(#REF!="Yes",SUMIFS(#REF!,#REF!,#REF!),0)+IF(#REF!="Yes", SUMIFS(#REF!,#REF!,#REF!),0)+IF(#REF!="Yes",SUMIFS(#REF!,#REF!,#REF!),0)+IF(#REF!="Yes",SUMIFS(#REF!,#REF!,#REF!),0)+IF(#REF!="Yes",SUMIFS(#REF!,#REF!,#REF!),0) ->  | V85: =IF(#REF!="Yes",SUMIFS(#REF!,#REF!,#REF!),0)+IF(#REF!="Yes", SUMIFS(#REF!,#REF!,#REF!),0)+IF(#REF!="Yes",SUMIFS(#REF!,#REF!,#REF!),0)+IF(#REF!="Yes",SUMIFS(#REF!,#REF!,#REF!),0)+IF(#REF!="Yes",SUMIFS(#REF!,#REF!,#REF!),0) ->  | W85: =IF(#REF!="Yes",SUMIFS(#REF!,#REF!,#REF!),0)+IF(#REF!="Yes", SUMIFS(#REF!,#REF!,#REF!),0)+IF(#REF!="Yes",SUMIFS(#REF!,#REF!,#REF!),0)+IF(#REF!="Yes",SUMIFS(#REF!,#REF!,#REF!),0)+IF(#REF!="Yes",SUMIFS(#REF!,#REF!,#REF!),0) ->  | X85: =IF(#REF!="Yes",SUMIFS(#REF!,#REF!,#REF!),0)+IF(#REF!="Yes", SUMIFS(#REF!,#REF!,#REF!),0)+IF(#REF!="Yes",SUMIFS(#REF!,#REF!,#REF!),0)+IF(#REF!="Yes",SUMIFS(#REF!,#REF!,#REF!),0)+IF(#REF!="Yes",SUMIFS(#REF!,#REF!,#REF!),0) -> 
A87: H. Indirect Costs
B88: ="Facilities and Admin Costs (F&A) "&'Budget Worksheet'!E101*100&"%" -> Facilities and Admin Costs (F&A) 54% | H88: ='Budget Worksheet'!L101 -> 0 | I88: ='Budget Worksheet'!M101 -> 0 | J88: ='Budget Worksheet'!N101 -> 0 | K88: ='Budget Worksheet'!O101 -> 0 | L88: ='Budget Worksheet'!P101 -> 0 | M88: ='Budget Worksheet'!Q101 -> 0 | N88: =IF(#REF!="Yes",SUMIFS(#REF!,#REF!,#REF!),0)+IF(#REF!="Yes", SUMIFS(#REF!,#REF!,#REF!),0)+IF(#REF!="Yes",SUMIFS(#REF!,#REF!,#REF!),0)+IF(#REF!="Yes",SUMIFS(#REF!,#REF!,#REF!),0)+IF(#REF!="Yes",SUMIFS(#REF!,#REF!,#REF!),0) ->  | O88: =IF(#REF!="Yes",SUMIFS(#REF!,#REF!,#REF!),0)+IF(#REF!="Yes", SUMIFS(#REF!,#REF!,#REF!),0)+IF(#REF!="Yes",SUMIFS(#REF!,#REF!,#REF!),0)+IF(#REF!="Yes",SUMIFS(#REF!,#REF!,#REF!),0)+IF(#REF!="Yes",SUMIFS(#REF!,#REF!,#REF!),0) ->  | P88: =IF(#REF!="Yes",SUMIFS(#REF!,#REF!,#REF!),0)+IF(#REF!="Yes", SUMIFS(#REF!,#REF!,#REF!),0)+IF(#REF!="Yes",SUMIFS(#REF!,#REF!,#REF!),0)+IF(#REF!="Yes",SUMIFS(#REF!,#REF!,#REF!),0)+IF(#REF!="Yes",SUMIFS(#REF!,#REF!,#REF!),0) ->  | Q88: =SUM(N88:P88)+SUM(R88:X88) ->  | R88: =IF(#REF!="Yes",SUMIFS(#REF!,#REF!,#REF!),0)+IF(#REF!="Yes", SUMIFS(#REF!,#REF!,#REF!),0)+IF(#REF!="Yes",SUMIFS(#REF!,#REF!,#REF!),0)+IF(#REF!="Yes",SUMIFS(#REF!,#REF!,#REF!),0)+IF(#REF!="Yes",SUMIFS(#REF!,#REF!,#REF!),0) ->  | S88: =IF(#REF!="Yes",SUMIFS(#REF!,#REF!,#REF!),0)+IF(#REF!="Yes", SUMIFS(#REF!,#REF!,#REF!),0)+IF(#REF!="Yes",SUMIFS(#REF!,#REF!,#REF!),0)+IF(#REF!="Yes",SUMIFS(#REF!,#REF!,#REF!),0)+IF(#REF!="Yes",SUMIFS(#REF!,#REF!,#REF!),0) ->  | T88: =IF(#REF!="Yes",SUMIFS(#REF!,#REF!,#REF!),0)+IF(#REF!="Yes", SUMIFS(#REF!,#REF!,#REF!),0)+IF(#REF!="Yes",SUMIFS(#REF!,#REF!,#REF!),0)+IF(#REF!="Yes",SUMIFS(#REF!,#REF!,#REF!),0)+IF(#REF!="Yes",SUMIFS(#REF!,#REF!,#REF!),0) ->  | U88: =IF(#REF!="Yes",SUMIFS(#REF!,#REF!,#REF!),0)+IF(#REF!="Yes", SUMIFS(#REF!,#REF!,#REF!),0)+IF(#REF!="Yes",SUMIFS(#REF!,#REF!,#REF!),0)+IF(#REF!="Yes",SUMIFS(#REF!,#REF!,#REF!),0)+IF(#REF!="Yes",SUMIFS(#REF!,#REF!,#REF!),0) ->  | V88: =IF(#REF!="Yes",SUMIFS(#REF!,#REF!,#REF!),0)+IF(#REF!="Yes", SUMIFS(#REF!,#REF!,#REF!),0)+IF(#REF!="Yes",SUMIFS(#REF!,#REF!,#REF!),0)+IF(#REF!="Yes",SUMIFS(#REF!,#REF!,#REF!),0)+IF(#REF!="Yes",SUMIFS(#REF!,#REF!,#REF!),0) ->  | W88: =IF(#REF!="Yes",SUMIFS(#REF!,#REF!,#REF!),0)+IF(#REF!="Yes", SUMIFS(#REF!,#REF!,#REF!),0)+IF(#REF!="Yes",SUMIFS(#REF!,#REF!,#REF!),0)+IF(#REF!="Yes",SUMIFS(#REF!,#REF!,#REF!),0)+IF(#REF!="Yes",SUMIFS(#REF!,#REF!,#REF!),0) ->  | X88: =IF(#REF!="Yes",SUMIFS(#REF!,#REF!,#REF!),0)+IF(#REF!="Yes", SUMIFS(#REF!,#REF!,#REF!),0)+IF(#REF!="Yes",SUMIFS(#REF!,#REF!,#REF!),0)+IF(#REF!="Yes",SUMIFS(#REF!,#REF!,#REF!),0)+IF(#REF!="Yes",SUMIFS(#REF!,#REF!,#REF!),0) -> 
A90: I. Total Direct and Indirect Costs | H90: ='Budget Worksheet'!L103 -> 0 | I90: ='Budget Worksheet'!M103 -> 0 | J90: ='Budget Worksheet'!N103 -> 0 | K90: ='Budget Worksheet'!O103 -> 0 | L90: ='Budget Worksheet'!P103 -> 0 | M90: ='Budget Worksheet'!Q103 -> 0 | N90: =IF(#REF!="Yes",SUMIFS(#REF!,#REF!,#REF!),0)+IF(#REF!="Yes", SUMIFS(#REF!,#REF!,#REF!),0)+IF(#REF!="Yes",SUMIFS(#REF!,#REF!,#REF!),0)+IF(#REF!="Yes",SUMIFS(#REF!,#REF!,#REF!),0)+IF(#REF!="Yes",SUMIFS(#REF!,#REF!,#REF!),0) ->  | O90: =IF(#REF!="Yes",SUMIFS(#REF!,#REF!,#REF!),0)+IF(#REF!="Yes", SUMIFS(#REF!,#REF!,#REF!),0)+IF(#REF!="Yes",SUMIFS(#REF!,#REF!,#REF!),0)+IF(#REF!="Yes",SUMIFS(#REF!,#REF!,#REF!),0)+IF(#REF!="Yes",SUMIFS(#REF!,#REF!,#REF!),0) ->  | P90: =IF(#REF!="Yes",SUMIFS(#REF!,#REF!,#REF!),0)+IF(#REF!="Yes", SUMIFS(#REF!,#REF!,#REF!),0)+IF(#REF!="Yes",SUMIFS(#REF!,#REF!,#REF!),0)+IF(#REF!="Yes",SUMIFS(#REF!,#REF!,#REF!),0)+IF(#REF!="Yes",SUMIFS(#REF!,#REF!,#REF!),0) ->  | Q90: =SUM(N90:P90)+SUM(R90:X90) ->  | R90: =IF(#REF!="Yes",SUMIFS(#REF!,#REF!,#REF!),0)+IF(#REF!="Yes", SUMIFS(#REF!,#REF!,#REF!),0)+IF(#REF!="Yes",SUMIFS(#REF!,#REF!,#REF!),0)+IF(#REF!="Yes",SUMIFS(#REF!,#REF!,#REF!),0)+IF(#REF!="Yes",SUMIFS(#REF!,#REF!,#REF!),0) ->  | S90: =IF(#REF!="Yes",SUMIFS(#REF!,#REF!,#REF!),0)+IF(#REF!="Yes", SUMIFS(#REF!,#REF!,#REF!),0)+IF(#REF!="Yes",SUMIFS(#REF!,#REF!,#REF!),0)+IF(#REF!="Yes",SUMIFS(#REF!,#REF!,#REF!),0)+IF(#REF!="Yes",SUMIFS(#REF!,#REF!,#REF!),0) ->  | T90: =IF(#REF!="Yes",SUMIFS(#REF!,#REF!,#REF!),0)+IF(#REF!="Yes", SUMIFS(#REF!,#REF!,#REF!),0)+IF(#REF!="Yes",SUMIFS(#REF!,#REF!,#REF!),0)+IF(#REF!="Yes",SUMIFS(#REF!,#REF!,#REF!),0)+IF(#REF!="Yes",SUMIFS(#REF!,#REF!,#REF!),0) ->  | U90: =IF(#REF!="Yes",SUMIFS(#REF!,#REF!,#REF!),0)+IF(#REF!="Yes", SUMIFS(#REF!,#REF!,#REF!),0)+IF(#REF!="Yes",SUMIFS(#REF!,#REF!,#REF!),0)+IF(#REF!="Yes",SUMIFS(#REF!,#REF!,#REF!),0)+IF(#REF!="Yes",SUMIFS(#REF!,#REF!,#REF!),0) ->  | V90: =IF(#REF!="Yes",SUMIFS(#REF!,#REF!,#REF!),0)+IF(#REF!="Yes", SUMIFS(#REF!,#REF!,#REF!),0)+IF(#REF!="Yes",SUMIFS(#REF!,#REF!,#REF!),0)+IF(#REF!="Yes",SUMIFS(#REF!,#REF!,#REF!),0)+IF(#REF!="Yes",SUMIFS(#REF!,#REF!,#REF!),0) ->  | W90: =IF(#REF!="Yes",SUMIFS(#REF!,#REF!,#REF!),0)+IF(#REF!="Yes", SUMIFS(#REF!,#REF!,#REF!),0)+IF(#REF!="Yes",SUMIFS(#REF!,#REF!,#REF!),0)+IF(#REF!="Yes",SUMIFS(#REF!,#REF!,#REF!),0)+IF(#REF!="Yes",SUMIFS(#REF!,#REF!,#REF!),0) ->  | X90: =IF(#REF!="Yes",SUMIFS(#REF!,#REF!,#REF!),0)+IF(#REF!="Yes", SUMIFS(#REF!,#REF!,#REF!),0)+IF(#REF!="Yes",SUMIFS(#REF!,#REF!,#REF!),0)+IF(#REF!="Yes",SUMIFS(#REF!,#REF!,#REF!),0)+IF(#REF!="Yes",SUMIFS(#REF!,#REF!,#REF!),0) -> 

Sheet Look ups
A1: Grad Student Hours Calculator | M1: Other Direct Costs
C3: FY25 | D3: FY26 | E3: FY27 | F3: FY28 | G3: FY29 | I3: Other Personnel | J3: Type | K3: Acct | M3: Cost Type
A4: Type | B4: Description | C4: Fringe Rate | I4: Select Position | J4: - | M4: -
A5: FF | B5: EHRA Faculty | C5: 0.368 | D5: 0.377 | E5: 0.386 | F5: 0.396 | G5: 0.406 | I5: Post Doctoral Associate | J5: PD | M5: Alterations and Renovations
A6: USS | B6: US Summer | C6: 0.0775 | D6: =C6*$H$19 -> 0.0775 | E6: 0.0775 | F6: 0.0775 | G6: 0.0775 | I6: SHRA Staff | J6: SHRA | M6: Advertising and Public Relations
A7: US | B7: US Fall Semester | C7: 0.001 | D7: 0.001 | E7: 0.001 | F7: 0.001 | G7: 0.001 | I7: EHRA Staff | J7: EHRA | M7: Animals (use and care)
A8: US | B8: US Spring Semester | C8: 0.001 | D8: 0.001 | E8: 0.001 | F8: 0.001 | G8: 0.001 | I8: Non-Reg/Temp Staff | J8: TS | M8: Animal Resource Facilities/Vivarium
A9: PD | B9: Post Doctoral Associate | C9: 0.194 | D9: 0.194 | E9: 0.194 | F9: 0.195 | G9: 0.195 | I9: Principal Investigator | J9: FF | M9: Computer Automated Data Processing Services
A10: EHRA | B10: EHRA Staff | C10: 0.368 | D10: 0.377 | E10: 0.386 | F10: 0.396 | G10: 0.406 | I10: GS Summer | J10: GSS | M10: Communications
A11: SHRA | B11: SHRA Staff | C11: 0.55 | D11: 0.561 | E11: 0.572 | F11: 0.583 | G11: 0.595 | I11: GS Fall Semester | J11: GS | M11: Equipment or Facility Rental/User Fees
A12: TS | B12: Non-Reg/Temp Staff | C12: 0.12 | D12: 0.12 | E12: 0.12 | F12: 0.12 | G12: 0.12 | I12: GS Spring Semester | J12: GS | M12: Facility Usage Fee
A13: GSS | B13: GS Summer | C13: 0.0775 | D13: =C13*$H23 -> 0.0775 | E13: 0.0775 | F13: 0.0775 | G13: 0.0775 | I13: US Summer | J13: USS | M13: Food Costs
A14: GS | B14: GS Fall Semester | C14: 0.001 | D14: 0.001 | E14: 0.001 | F14: 0.001 | G14: 0.001 | I14: US Fall Semester | J14: US | M14: Freight and Express
A15: GS | B15: GS Spring Semester | C15: 0.001 | D15: 0.001 | E15: 0.001 | F15: 0.001 | G15: 0.001 | I15: US Spring Semester | J15: US | M15: General & Administrative
A16: Insert new lines in middle of list | I16: Insert new lines in middle of list | M16: Meal Costs (Project Activity)
E17: Fringe Inflation Factors | M17: Other Contracted Services
A18: Mos. | B18: Appointment | E18: EHRA Faculty | H18: 1 | M18: Participant/Patient Incentive Costs
A19: 9 | B19: Academic Year Salary | E19: Undergraduate Student | H19: 1 | I19: Tuition Only (In-state) | M19: Pre-Award/Pre-Agreement Costs
A20: 10 | B20: Academic Year Salary | E20: Post Doctoral Associate | H20: 1 | I20: Tuition Only (Out-of-state) | M20: Printing and Binding
A21: 11 | B21: Academic Year Salary | E21: EHRA Staff | H21: 1 | I21: Fellowship Tuition and Fees (In-state) | M21: Professional Services Costs
A22: 12 | B22: Calendar Year Salary | E22: SHRA Staff | H22: 1 | I22: Fellowship Tuition and Fees (Out-of-state) | M22: Recruiting Costs
A23: 0 | B23: - | E23: Non-Reg/Temp Staff | H23: 1 | M23: Rental of Equipment/State Vehicles
E24: Graduate Student (summer) | H24: 1 | M24: Rental of Property
E25: Graduate Student | H25: 1 | M25: Sequencing Fees
A26: 221900 | B26: HHS/NIH Current Salary Cap | C26: Amount per month | M26: Speaker Fees
A27: 9 | B27: =($A$26/12)*$A27 -> 166425 | C27: =B27/A27 -> 18492 | M27: Subaward Profit or Fee
A28: 10 | B28: =($A$26/12)*$A28 -> 184917 | C28: =B28/A28 -> 18492 | M28: Training Costs
A29: 11 | B29: =($A$26/12)*$A29 -> 203408 | C29: =B29/A29 -> 18492 | M29: Tuition Only (In-state)
A30: 12 | B30: =($A$26/12)*$A30 -> 221900 | C30: =B30/A30 -> 18492 | M30: Tuition Only (Out-of-state)
M31: Tuition and Fees (In-state)
A32: 2951 | B32: GS Ann. Health Ins. Prem. | M32: Tuition and Fees (Out-of-state)
A33: 0.015 | B33: GS Annual HIP Inflation | M33: Workshop Costs
B34: NIH Module nearest amt: | M34: Other Costs
B35: 25000
B37: NIH Mechanisms | C37: Max Years | I37: Total
B38: R01 | C38: 5 | D38: 250000 | E38: 250000 | F38: 250000 | G38: 250000 | H38: 250000 | I38: 1250000
B39: R03 | C39: 2 | D39: 50000 | E39: 50000 | I39: 100000
B40: R15 | C40: 3 | D40: =Module1 -> 0 | E40: =Module2 -> 0 | F40: =Module3 -> 0 | I40: 375000
B41: R21 | C41: 2 | D41: =Module1 -> 0 | E41: =Module2 -> 0 | I41: 275000
B42: R34 | C42: Check FOA | D42: =Module1 -> 0 | E42: =Module2 -> 0 | F42: =Module3 -> 0 | I42: Check FOA
B44: Total Hours Calculator based on 40 hours/week full-time status during summer
B45: Hrs./ week | C45: No. of Months | D45: Total Hours
A46: Fall | C46: ='Budget Worksheet'!F27 -> 0 | D46: =B46*C46*4.333333 -> 0
A47: Spring | C47: ='Budget Worksheet'!F28 -> 0 | D47: =B47*C47*4.333333 -> 0
A48: Summer* | C48: ='Budget Worksheet'!F29 -> 0 | D48: =B48*C48*4.333333 -> 0
D49: =SUM(D46:D48) -> 0
B51: Effort Months Calculator based on 40 hours/week full-time status during summer
B52: Hrs./ week | C52: No. of weeks | D52: Effort Months | E52: Total Hours | F52: Weeks | G52: Effort Months
A53: Fall | B53: 20 | C53: 19.5 | D53: =(B53*C53)/86.67 -> 4.5 | E53: =B53*D53*4.333333 -> 390 | F53: 4.33 | G53: 1
A54: Spring | B54: 20 | C54: 19.5 | D54: =(B54*C54)/86.67 -> 4.5 | E54: =B54*D54*4.333333 -> 390 | F54: 19.5 | G54: 4.5 | H54: Full academic semester
A55: Summer* | B55: 40 | C55: 13 | D55: =(B55*C55)/173.333333 -> 3 | E55: =B55*D55*4.333333 -> 520 | F55: 13 | G55: 3 | H55: Full summer semester
E56: =SUM(E53:E55) -> 1300

Sheet Cost Share Worksheet
C1: Cost Share Budget Worksheet | D1: IPF 2025-0000 | E1: *Enter/select budget information in blue cells only
C2: Principal Investigator: | D2: ='Budget Worksheet'!D2 -> PI - NAME | O2: Total Direct & | P2: Indirect Costs | Q2: =SUM(L99:P99) -> 0
C3: Sponsor: | D3: ='Budget Worksheet'!D3 -> 0 | I3: Project Start Date | J3: Project End Date | K3: Pre Escalate Key Personnel? | L3: Esc Factor Key Personnel | M3: Pre Escalate Other Personnel? | N3: Esc Factor Other Personnel | O3: Pre Escalate Students? | P3: Esc Factor Students | Q3: Tuition & Fees Esc Factor
C4: Program: | D4: ='Budget Worksheet'!D4 -> 0
C5: Pre Award Budget Administrator: | D5: ='Budget Worksheet'!D5 -> 0
C6: Sponsor F&A Allowed? | D6: Yes | E6: Sponsor F&A rate: | H6: 0.54 | I6: 2025-07-01 | J6: 2026-06-30 | K6: N | L6: 0 | M6: N | N6: 0 | O6: N | P6: 0 | Q6: 0
A8: F & A? | B8: Appointment Months | C8: Categories | D8: Base Salary | F8: Effort Mos Yr 1 | G8: Effort Mos Yr 2 | H8: Effort Mos Yr 3 | I8: Effort Mos Yr 4 | J8: Effort Mos Yr 5 | K8: Fringe Factor | L8: Year 1 | M8: Year 2 | N8: Year 3 | O8: Year 4 | P8: Year 5 | Q8: Total
C9: A. Salaries and Wages
C10: Senior Personnel: | F10: Annual Base Salary below
A11: 1 | C11: =D2 -> PI - NAME | F11: =D11*1.02 -> 0 | G11: =F11*1.02 -> 0 | H11: =G11*1.02 -> 0 | I11: 0 | J11: 0
C12: =VLOOKUP($B11,'Look ups'!$A$18:$B$23,2,FALSE) -> - | K12: FF | L12: =IFERROR((IF(AND('Cost Share Worksheet'!$J$2="Yes",$D11>((VLOOKUP($B11,'Look ups'!$A$26:$B$30,2,FALSE)))),(VLOOKUP($B11,'Look ups'!$A$26:$B$30,2,FALSE)/$B11)*F12,(($D11/$B11)*F12)*IF($K$6="Y",$L$6+1,1))),0) -> 0 | M12: =IFERROR((IF(AND('Cost Share Worksheet'!$J$2="Yes",($D11*($L$6+1))>((VLOOKUP($B11,'Look ups'!$A$26:$B$30,2,FALSE)))),(VLOOKUP($B11,'Look ups'!$A$26:$B$30,2,FALSE)/$B11)*G12,(($D11/$B11)*G12*(IF($K$6="Y",($L$6+1)^2,($L$6+1)))))),0) -> 0 | N12: =IFERROR((IF(AND('Cost Share Worksheet'!$J$2="Yes",($D11*($L$6+1)^2)>((VLOOKUP($B11,'Look ups'!$A$26:$B$30,2,FALSE)))),(VLOOKUP($B11,'Look ups'!$A$26:$B$30,2,FALSE)/$B11)*H12,(($D11/$B11)*H12*(IF($K$6="Y",($L$6+1)^3,($L$6+1)^2))))),0) -> 0 | O12: =IFERROR((IF(AND('Cost Share Worksheet'!$J$2="Yes",($D11*($L$6+1)^3)>((VLOOKUP($B11,'Look ups'!$A$26:$B$30,2,FALSE)))),(VLOOKUP($B11,'Look ups'!$A$26:$B$30,2,FALSE)/$B11)*I12,(($D11/$B11)*I12*(IF($K$6="Y",($L$6+1)^4,($L$6+1)^3))))),0) -> 0 | P12: =IFERROR((IF(AND('Cost Share Worksheet'!$J$2="Yes",($D11*($L$6+1)^4)>((VLOOKUP($B11,'Look ups'!$A$26:$B$30,2,FALSE)))),(VLOOKUP($B11,'Look ups'!$A$26:$B$30,2,FALSE)/$B11)*J12,(($D11/$B11)*J12*(IF($K$6="Y",($L$6+1)^5,($L$6+1)^4))))),0) -> 0 | Q12: =SUM(L12:P12) -> 0
C13: Summer Salary | K13: FF | L13: =IFERROR(IF($C12="Calendar Year Salary",0,IF(AND('Cost Share Worksheet'!$J$2="Yes",$D11>((VLOOKUP($B11,'Look ups'!$A$26:$B$30,2,FALSE)))),(VLOOKUP($B11,'Look ups'!$A$26:$B$30,2,FALSE)/$B11)*F13,(($D11/$B11)*F13)*IF($K$6="Y",$L$6+1,1))),0) -> 0 | M13: =IFERROR(IF($C12="Calendar Year Salary",0,IF(AND('Cost Share Worksheet'!$J$2="Yes",($D11*($L$6+1))>((VLOOKUP($B11,'Look ups'!$A$26:$B$30,2,FALSE)))),(VLOOKUP($B11,'Look ups'!$A$26:$B$30,2,FALSE)/$B11)*G13,(($D11/$B11)*G13*(IF($K$6="Y",($L$6+1)^2,($L$6+1)))))),0) -> 0 | N13: =IFERROR(IF($C12="Calendar Year Salary",0,IF(AND('Cost Share Worksheet'!$J$2="Yes",($D11*($L$6+1)^2)>((VLOOKUP($B11,'Look ups'!$A$26:$B$30,2,FALSE)))),(VLOOKUP($B11,'Look ups'!$A$26:$B$30,2,FALSE)/$B11)*H13,(($D11/$B11)*H13*(IF($K$6="Y",($L$6+1)^3,($L$6+1)^2))))),0) -> 0 | O13: =IFERROR(IF($C12="Calendar Year Salary",0,IF(AND('Cost Share Worksheet'!$J$2="Yes",($D11*($L$6+1)^3)>((VLOOKUP($B11,'Look ups'!$A$26:$B$30,2,FALSE)))),(VLOOKUP($B11,'Look ups'!$A$26:$B$30,2,FALSE)/$B11)*I13,(($D11/$B11)*I13*(IF($K$6="Y",($L$6+1)^4,($L$6+1)^3))))),0) -> 0 | P13: =IFERROR(IF($C12="Calendar Year Salary",0,IF(AND('Cost Share Worksheet'!$J$2="Yes",($D11*($L$6+1)^4)>((VLOOKUP($B11,'Look ups'!$A$26:$B$30,2,FALSE)))),(VLOOKUP($B11,'Look ups'!$A$26:$B$30,2,FALSE)/$B11)*J13,(($D11/$B11)*J13*(IF($K$6="Y",($L$6+1)^5,($L$6+1)^4))))),0) -> 0 | Q13: =SUM(L13:P13) -> 0
J14: Salary Subtotal: | L14: =SUM(L12:L13) -> 0 | M14: =SUM(M12:M13) -> 0 | N14: 0 | O14: 0 | P14: 0 | Q14: =SUM(L14:P14) -> 0
C15: Total Hours: | D15: =SUM(F15:J15) -> 0 | F15: =IF($C12="Calendar Year Salary",(F12-0)*173.3333,SUM(F12:F13)*173.3333) -> 0 | G15: =IF($C12="Calendar Year Salary",(G12-0)*173.3333,SUM(G12:G13)*173.3333) -> 0 | H15: =IF($C12="Calendar Year Salary",(H12-0)*173.3333,SUM(H12:H13)*173.3333) -> 0 | I15: =IF($C12="Calendar Year Salary",(I12-0)*173.3333,SUM(I12:I13)*173.3333) -> 0 | J15: =IF($C12="Calendar Year Salary",(J12-0)*173.3333,SUM(J12:J13)*173.3333) -> 0 | K15: Fringe | L15: =IFERROR(VLOOKUP($K12,FF,3,FALSE)*(L12+L13),"") -> 0 | M15: =IFERROR(VLOOKUP($K12,FF,4,FALSE)*(M12+M13),"") -> 0 | N15: =IFERROR(VLOOKUP($K12,FF,5,FALSE)*(N12+N13),"") -> 0 | O15: =IFERROR(VLOOKUP($K12,FF,6,FALSE)*(O12+O13),"") -> 0 | P15: =IFERROR(VLOOKUP($K12,FF,7,FALSE)*(P12+P13),"") -> 0 | Q15: =SUM(L15:P15) -> 0
A17: Click button for additional Senior Personnel
C19: Other Personnel: | E19: # Pers
A20: 1 | C20: Select Position | K20: =IFERROR(VLOOKUP(C20,OPFringe,2,FALSE),"") ->  | L20: =IFERROR((($D20/$B20)*F20)*IF($M$6="Y",$N$6+1,1),0) -> 0 | M20: =IFERROR((($D20/$B20)*G20)*IF($M$6="Y",($N$6+1)^2,($N$6+1)),0) -> 0 | N20: =IFERROR((($D20/$B20)*H20)*IF($M$6="Y",($N$6+1)^3,($N$6+1)^2),0) -> 0 | O20: =IFERROR((($D20/$B20)*I20)*IF($M$6="Y",($N$6+1)^4,($N$6+1)^3),0) -> 0 | P20: =IFERROR((($D20/$B20)*J20)*IF($M$6="Y",($N$6+1)^5,($N$6+1)^4),0) -> 0 | Q20: =SUM(L20:P20) -> 0
C21: Total Hours: | D21: =SUM(F21:J21) -> 0 | F21: =F20*173.3333 -> 0 | G21: =G20*173.3333 -> 0 | H21: =H20*173.3333 -> 0 | I21: =I20*173.3333 -> 0 | J21: =J20*173.3333 -> 0 | K21: Fringe | L21: =IFERROR(L20*VLOOKUP($K20,FringeFactor,3,FALSE),0) -> 0 | M21: =IFERROR(M20*VLOOKUP($K20,FringeFactor,4,FALSE),0) -> 0 | N21: =IFERROR(N20*VLOOKUP($K20,FringeFactor,5,FALSE),0) -> 0 | O21: =IFERROR(O20*VLOOKUP($K20,FringeFactor,6,FALSE),0) -> 0 | P21: =IFERROR(P20*VLOOKUP($K20,FringeFactor,7,FALSE),0) -> 0 | Q21: =SUM(L21:P21) -> 0
A23: Click button for additional Other Personnel
C25: Student Section: | D25: Click here for Tuition & Fees | F25: Enter number of students/year below
A26: =INDIRECT(ADDRESS(ROW()-1,COLUMN()))+1 -> 1 | C26: Ph.D. Grad Student
C27: GS Fall Semester | K27: =IFERROR(VLOOKUP($C27,OPFringe,2,FALSE),"") -> GS | L27: =IFERROR((($D26/$B26)*F27)*IF($O$6="Y",$P$6+1,1),0) -> 0 | M27: =IFERROR((($D26/$B26)*G27)*($P$6+1),0) -> 0 | N27: =IFERROR(((($D26/$B26)*H27)*($P$6+1)^2),0) -> 0 | O27: =IFERROR(((($D26/$B26)*I27)*($P$6+1)^3),0) -> 0 | P27: =IFERROR(((($D26/$B26)*J27)*($P$6+1)^4),0) -> 0 | Q27: =SUM(L27:P27) -> 0
C28: GS Spring Semester | D28: Enter effort here: | K28: =IFERROR(VLOOKUP(C28,OPFringe,2,FALSE),"") -> GS | L28: =IFERROR((($D26/$B26)*F28)*IF($O$6="Y",$P$6+1,1),0) -> 0 | M28: =IFERROR((($D26/$B26)*G28)*($P$6+1),0) -> 0 | N28: =IFERROR(((($D26/$B26)*H28)*($P$6+1)^2),0) -> 0 | O28: =IFERROR(((($D26/$B26)*I28)*($P$6+1)^3),0) -> 0 | P28: =IFERROR(((($D26/$B26)*J28)*($P$6+1)^4),0) -> 0 | Q28: =SUM(L28:P28) -> 0
B29: (20 hrs./week FT) | C29: GS Summer | K29: =IFERROR(VLOOKUP(C29,OPFringe,2,FALSE),"") -> GSS | L29: =IFERROR((($D26/$B26)*F29)*IF($O$6="Y",$P$6+1,1),0) -> 0 | M29: =IFERROR((($D26/$B26)*G29)*($P$6+1),0) -> 0 | N29: =IFERROR(((($D26/$B26)*H29)*($P$6+1)^2),0) -> 0 | O29: =IFERROR(((($D26/$B26)*I29)*($P$6+1)^3),0) -> 0 | P29: =IFERROR(((($D26/$B26)*J29)*($P$6+1)^4),0) -> 0 | Q29: =SUM(L29:P29) -> 0
C30: Total Effort Months | F30: =SUM(F27:F29) -> 0 | G30: =SUM(G27:G29) -> 0 | H30: =SUM(H27:H29) -> 0 | I30: =SUM(I27:I29) -> 0 | J30: =SUM(J27:J29) -> 0 | L30: =SUM(L27:L29) -> 0 | M30: 0 | N30: 0 | O30: 0 | P30: 0 | Q30: 0
C31: Total Hours: | D31: =SUM(F31:J31) -> 0 | F31: =F30*(173.3333/2) -> 0 | G31: =G30*(173.3333/2) -> 0 | H31: 0 | I31: 0 | J31: 0 | K31: Fringe | L31: =IFERROR(SUM(L27*VLOOKUP($K27,FringeFactor,3,FALSE),L28*VLOOKUP($K28,FringeFactor,3,FALSE),L29*VLOOKUP($K29,FringeFactor,3,FALSE)),"") -> 0 | M31: =IFERROR(SUM(M27*VLOOKUP($K27,FringeFactor,3,FALSE),M28*VLOOKUP($K28,FringeFactor,3,FALSE),M29*VLOOKUP($K29,FringeFactor,3,FALSE)),"") -> 0 | N31: =IFERROR(SUM(N27*VLOOKUP($K27,FringeFactor,3,FALSE),N28*VLOOKUP($K28,FringeFactor,3,FALSE),N29*VLOOKUP($K29,FringeFactor,3,FALSE)),"") -> 0 | O31: =IFERROR(SUM(O27*VLOOKUP($K27,FringeFactor,3,FALSE),O28*VLOOKUP($K28,FringeFactor,3,FALSE),O29*VLOOKUP($K29,FringeFactor,3,FALSE)),"") -> 0 | P31: =IFERROR(SUM(P27*VLOOKUP($K27,FringeFactor,3,FALSE),P28*VLOOKUP($K28,FringeFactor,3,FALSE),P29*VLOOKUP($K29,FringeFactor,3,FALSE)),"") -> 0 | Q31: =SUM(L31:P31) -> 0
C32: Include GS Health Insurance Premium? | D32: Yes | K32: HIP | L32: =SUM(IF(AND($B26>0,$D32="Yes",F27>0),(HIP/2)*F26,0),IF(AND($B26>0,$D32="Yes",F28>0),(HIP/2)*F26,0)) -> 0 | M32: =SUM(IF(AND($B26>0,$D32="Yes",G27>0),(HIP/2)*G26*(1+HIPI),0),IF(AND($B26>0,$D32="Yes",G28>0),(HIP/2)*G26*(1+HIPI),0)) -> 0 | N32: =SUM(IF(AND($B26>0,$D32="Yes",H27>0),(HIP/2)*H26*(1+HIPI)^2,0),IF(AND($B26>0,$D32="Yes",H28>0),(HIP/2)*H26*(1+HIPI)^2,0)) -> 0 | O32: =SUM(IF(AND($B26>0,$D32="Yes",I27>0),(HIP/2)*I26*(1+HIPI)^3,0),IF(AND($B26>0,$D32="Yes",I28>0),(HIP/2)*I26*(1+HIPI)^3,0)) -> 0 | P32: =SUM(IF(AND($B26>0,$D32="Yes",J27>0),(HIP/2)*J26*(1+HIPI)^4,0),IF(AND($B26>0,$D32="Yes",J28>0),(HIP/2)*J26*(1+HIPI)^4,0)) -> 0 | Q32: =SUM(L32:P32) -> 0
J33: GS Fringe-HIP Total: | L33: =SUM(L31:L32) -> 0 | M33: =SUM(M31:M32) -> 0 | N33: 0 | O33: 0 | P33: 0 | Q33: =SUM(L33:P33) -> 0
A35: Click button for additional Grad Students
F37: Enter number of students/year below
A38: =INDIRECT(ADDRESS(ROW()-8,COLUMN()))+1 -> 1 | C38: Undergraduate Student | K38: =IFERROR(VLOOKUP(C38,OPFringe,2,FALSE),"") ->  | L38: =IF($C38="Principal Investigator Summer",(($D38/9)*F38)*IF($M$6="Y",$N$6+1,1),(($D38/12)*F38)*IF($M$6="Y",$N$6+1,1)) -> 0 | M38: =IF($C38="Principal Investigator Summer",(($D38/9)*G38)*(IF($M$6="Y",($N$6+1)^2,($N$6+1))),(($D38/12)*G38)*(IF($M$6="Y",($N$6+1)^2,($N$6+1)))) -> 0 | N38: =IF($C38="Principal Investigator Summer",(($D38/9)*H38)*(IF($M$6="Y",($N$6+1)^3,($N$6+1)^2)),(($D38/12)*H38)*(IF($M$6="Y",($N$6+1)^3,($N$6+1)^2))) -> 0 | O38: =IF($C38="Principal Investigator Summer",(($D38/9)*I38)*(IF($M$6="Y",($N$6+1)^4,($N$6+1)^3)),(($D38/12)*I38)*(IF($M$6="Y",($N$6+1)^4,($N$6+1)^3))) -> 0 | P38: =IF($C38="Principal Investigator Summer",(($D38/9)*J38)*(IF($M$6="Y",($N$6+1)^5,($N$6+1)^4)),(($D38/12)*J38)*(IF($M$6="Y",($N$6+1)^5,($N$6+1)^4))) -> 0 | Q38: =SUM(L38:P38) -> 0
C39: US Fall Semester | K39: =IFERROR(VLOOKUP(C39,OPFringe,2,FALSE),"") -> US | L39: =IFERROR((($D38/$B38)*F39)*IF($O$6="Y",$P$6+1,1),0) -> 0 | M39: =IFERROR((($D38/$B38)*G39)*($P$6+1),0) -> 0 | N39: =IFERROR(((($D38/$B38)*H39)*($P$6+1)^2),0) -> 0 | O39: =IFERROR(((($D38/$B38)*I39)*($P$6+1)^3),0) -> 0 | P39: =IFERROR(((($D38/$B38)*J39)*($P$6+1)^4),0) -> 0 | Q39: 0
C40: US Spring Semester | D40: Enter effort here: | K40: =IFERROR(VLOOKUP(C40,OPFringe,2,FALSE),"") -> US | L40: =IFERROR((($D38/$B38)*F40)*IF($O$6="Y",$P$6+1,1),0) -> 0 | M40: =IFERROR((($D38/$B38)*G40)*($P$6+1),0) -> 0 | N40: =IFERROR(((($D38/$B38)*H40)*($P$6+1)^2),0) -> 0 | O40: =IFERROR(((($D38/$B38)*I40)*($P$6+1)^3),0) -> 0 | P40: =IFERROR(((($D38/$B38)*J40)*($P$6+1)^4),0) -> 0 | Q40: 0
C41: US Summer | K41: =IFERROR(VLOOKUP(C41,OPFringe,2,FALSE),"") -> USS | L41: =IFERROR((($D38/$B38)*F41)*IF($O$6="Y",$P$6+1,1),0) -> 0 | M41: =IFERROR((($D38/$B38)*G41)*($P$6+1),0) -> 0 | N41: =IFERROR(((($D38/$B38)*H41)*($P$6+1)^2),0) -> 0 | O41: =IFERROR(((($D38/$B38)*I41)*($P$6+1)^3),0) -> 0 | P41: =IFERROR(((($D38/$B38)*J41)*($P$6+1)^4),0) -> 0 | Q41: 0
C42: Total Effort Months | F42: =SUM(F39:F41) -> 0 | G42: =SUM(G39:G41) -> 0 | H42: =SUM(H39:H41) -> 0 | I42: =SUM(I39:I41) -> 0 | J42: =SUM(J39:J41) -> 0 | L42: =SUM(L39:L41) -> 0 | M42: =SUM(M39:M41) -> 0 | N42: =SUM(N39:N41) -> 0 | O42: =SUM(O39:O41) -> 0 | P42: =SUM(P39:P41) -> 0 | Q42: 0
C43: Total Hours: | D43: =SUM(F43:J43) -> 0 | F43: =F42*(173.3333/2) -> 0 | G43: =G42*(173.3333/2) -> 0 | H43: 0 | I43: 0 | J43: 0 | K43: Fringe | L43: =IFERROR(SUM(L39*VLOOKUP($K39,FringeFactor,3,FALSE),L40*VLOOKUP($K40,FringeFactor,3,FALSE),L41*VLOOKUP($K41,FringeFactor,3,FALSE)),"") -> 0 | M43: =IFERROR(SUM(M39*VLOOKUP($K39,FringeFactor,3,FALSE),M40*VLOOKUP($K40,FringeFactor,3,FALSE),M41*VLOOKUP($K41,FringeFactor,3,FALSE)),"") -> 0 | N43: =IFERROR(SUM(N39*VLOOKUP($K39,FringeFactor,3,FALSE),N40*VLOOKUP($K40,FringeFactor,3,FALSE),N41*VLOOKUP($K41,FringeFactor,3,FALSE)),"") -> 0 | O43: =IFERROR(SUM(O39*VLOOKUP($K39,FringeFactor,3,FALSE),O40*VLOOKUP($K40,FringeFactor,3,FALSE),O41*VLOOKUP($K41,FringeFactor,3,FALSE)),"") -> 0 | P43: =IFERROR(SUM(P39*VLOOKUP($K39,FringeFactor,3,FALSE),P40*VLOOKUP($K40,FringeFactor,3,FALSE),P41*VLOOKUP($K41,FringeFactor,3,FALSE)),"") -> 0 | Q43: 0
A45: Click button for additional Undergrad Students
A48: Y | C48: Total Salary and Wages | L48: =SUMIF($K$12:$L$47,"us",L$12:L$47)+SUMIF($K$12:$L$47,"uss",L$12:L$47)+SUMIF($K$12:$L$47,"ff",L$12:L$47)+SUMIF($K$12:$L$47,"gs",L$12:L$47)+SUMIF($K$12:$L$47,"gss",L$12:L$47)+SUMIF($K$12:$L$47,"ts",L$12:L$47)+SUMIF($K$12:$L$47,"shra",L$12:L$47)+SUMIF($K$12:$L$47,"ehra",L$12:L$47)+SUMIF($K$12:$L$47,"pd",L$12:L$47) -> 0 | M48: =SUMIF($K$12:$L$47,"us",M$12:M$47)+SUMIF($K$12:$L$47,"uss",M$12:M$47)+SUMIF($K$12:$L$47,"ff",M$12:M$47)+SUMIF($K$12:$L$47,"gs",M$12:M$47)+SUMIF($K$12:$L$47,"gss",M$12:M$47)+SUMIF($K$12:$L$47,"ts",M$12:M$47)+SUMIF($K$12:$L$47,"shra",M$12:M$47)+SUMIF($K$12:$L$47,"ehra",M$12:M$47)+SUMIF($K$12:$L$47,"pd",M$12:M$47) -> 0 | N48: =SUMIF($K$12:$L$47,"us",N$12:N$47)+SUMIF($K$12:$L$47,"uss",N$12:N$47)+SUMIF($K$12:$L$47,"ff",N$12:N$47)+SUMIF($K$12:$L$47,"gs",N$12:N$47)+SUMIF($K$12:$L$47,"gss",N$12:N$47)+SUMIF($K$12:$L$47,"ts",N$12:N$47)+SUMIF($K$12:$L$47,"shra",N$12:N$47)+SUMIF($K$12:$L$47,"ehra",N$12:N$47)+SUMIF($K$12:$L$47,"pd",N$12:N$47) -> 0 | O48: =SUMIF($K$12:$L$47,"us",O$12:O$47)+SUMIF($K$12:$L$47,"uss",O$12:O$47)+SUMIF($K$12:$L$47,"ff",O$12:O$47)+SUMIF($K$12:$L$47,"gs",O$12:O$47)+SUMIF($K$12:$L$47,"gss",O$12:O$47)+SUMIF($K$12:$L$47,"ts",O$12:O$47)+SUMIF($K$12:$L$47,"shra",O$12:O$47)+SUMIF($K$12:$L$47,"ehra",O$12:O$47)+SUMIF($K$12:$L$47,"pd",O$12:O$47) -> 0 | P48: =SUMIF($K$12:$L$47,"us",P$12:P$47)+SUMIF($K$12:$L$47,"uss",P$12:P$47)+SUMIF($K$12:$L$47,"ff",P$12:P$47)+SUMIF($K$12:$L$47,"gs",P$12:P$47)+SUMIF($K$12:$L$47,"gss",P$12:P$47)+SUMIF($K$12:$L$47,"ts",P$12:P$47)+SUMIF($K$12:$L$47,"shra",P$12:P$47)+SUMIF($K$12:$L$47,"ehra",P$12:P$47)+SUMIF($K$12:$L$47,"pd",P$12:P$47) -> 0 | Q48: =SUM(L48:P48) -> 0
A49: Y | C49: B. Fringes Benefits | L49: =SUMIF($K$12:$L$47,"Fringe",L$12:L$47)+SUMIF($K$12:$L$47,"HIP",L$12:L$47) -> 0 | M49: =SUMIF($K$12:$L$47,"Fringe",M$12:M$47)+SUMIF($K$12:$L$47,"HIP",M$12:M$47) -> 0 | N49: =SUMIF($K$12:$L$47,"Fringe",N$12:N$47)+SUMIF($K$12:$L$47,"HIP",N$12:N$47) -> 0 | O49: =SUMIF($K$12:$L$47,"Fringe",O$12:O$47)+SUMIF($K$12:$L$47,"HIP",O$12:O$47) -> 0 | P49: =SUMIF($K$12:$L$47,"Fringe",P$12:P$47)+SUMIF($K$12:$L$47,"HIP",P$12:P$47) -> 0 | Q49: =SUM(L49:P49) -> 0
C50: Total Salary and Fringes Benefits | L50: =SUM(L48:L49) -> 0 | M50: =SUM(M48:M49) -> 0 | N50: =SUM(N48:N49) -> 0 | O50: =SUM(O48:O49) -> 0 | P50: =SUM(P48:P49) -> 0 | Q50: =SUM(L50:P50) -> 0
C52: C. Equipment
A53: N | C53: Capital Equipment (purchased) | Q53: =SUM(L53:P53) -> 0
A54: N | C54: Capital Equipment (constructed) | Q54: =SUM(L54:P54) -> 0
C55: D. Travel
A56: Y | C56: Travel Domestic | Q56: 0
A57: Y | C57: Travel Foreign | Q57: 0
C58: E. Participant/Trainee Support Costs
A59: N | C59: Tuition/Fees/Health Insurance | Q59: 0
A60: N | C60: Stipends | Q60: 0
A61: N | C61: Participant Travel | Q61: 0
A62: N | C62: Travel Domestic | Q62: 0
A63: N | C63: Travel Foreign | Q63: 0
A64: N | C64: Subsistence | Q64: 0
A65: N | C65: Other | Q65: 0
A66: N | C66: Other | Q66: 0
A67: N | C67: Supplies | Q67: 0
C68: F. Other Direct Costs
A69: Y | C69: 1. Materials and Supplies | Q69: 0
A70: Y | C70: 2. Publication Costs | Q70: 0
A71: Y | C71: 3. Consultant Services | Q71: 0
A72: Y | C72: 4. ADP/Computer Services | Q72: 0
C73: 5. Subawards/Consortium/Contractual Costs
A74: Y | C74: Subcontracts < 25,000 | Q74: =SUM(L74:P74) -> 0
A75: N | C75: Subcontracts> 25,000 | Q75: 0
A76: N | C76: 6. Facility Rental / NIC
A77: Y | C77: 7. Repair & Maint - Equipment | Q77: 0
A78: Y | C78: 8. Other Direct | E78: Enter College/Program (Optional) | I78: Click for Student Section | Q78: 0
A79: N | B79: 1 | C79: Tuition and Fees (In-state) | L79: =($D79/9)*SUM(F27:F28) -> 0 | M79: =(($D79/9)*($Q$6+1))*SUM(G27:G28) -> 0 | N79: =(($D79/9)*($Q$6+1)^2)*SUM(H27:H28) -> 0 | O79: =(($D79/9)*($Q$6+1)^3)*SUM(I27:I28) -> 0 | P79: =(($D79/9)*($Q$6+1)^4)*SUM(J27:J28) -> 0 | Q79: 0
A80: Click button for additional T&F line
A81: Y | B81: =IFERROR(VLOOKUP(C81,'Look ups'!$M$4:$N$42,2,FALSE),"") -> 0 | C81: - | Q81: 0
A82: Y | B82: =IFERROR(VLOOKUP(C82,'Look ups'!$M$4:$N$42,2,FALSE),"") -> 0 | C82: - | Q82: 0
A83: Y | B83: =IFERROR(VLOOKUP(C83,'Look ups'!$M$4:$N$42,2,FALSE),"") -> 0 | C83: - | Q83: 0
A84: Y | B84: =IFERROR(VLOOKUP(C84,'Look ups'!$M$4:$N$42,2,FALSE),"") -> 0 | C84: - | Q84: 0
A85: Y | B85: =IFERROR(VLOOKUP(C85,'Look ups'!$M$4:$N$42,2,FALSE),"") -> 0 | C85: - | Q85: 0
A86: Y | B86: =IFERROR(VLOOKUP(C86,'Look ups'!$M$4:$N$42,2,FALSE),"") -> 0 | C86: - | Q86: 0
A87: Y | B87: =IFERROR(VLOOKUP(C87,'Look ups'!$M$4:$N$42,2,FALSE),"") -> 0 | C87: - | Q87: 0
A88: Y | B88: =IFERROR(VLOOKUP(C88,'Look ups'!$M$4:$N$42,2,FALSE),"") -> 0 | C88: - | Q88: 0
A89: Y | B89: =IFERROR(VLOOKUP(C89,'Look ups'!$M$4:$N$42,2,FALSE),"") -> 0 | C89: - | Q89: 0
A90: Y | B90: =IFERROR(VLOOKUP(C90,'Look ups'!$M$4:$N$42,2,FALSE),"") -> 0 | C90: - | Q90: 0
C91: Total Non-personnel Costs | L91: =SUM(L53:L90) -> 0 | M91: 0 | N91: 0 | O91: 0 | P91: 0 | Q91: 0
C93: G. Total Direct Costs | F93: Enter Modules/year here | L93: =SUM(L91,L50) -> 0 | M93: =SUM(M91,M50) -> 0 | N93: =SUM(N91,N50) -> 0 | O93: =SUM(O91,O50) -> 0 | P93: =SUM(P91,P50) -> 0 | Q93: =SUM(L93:P93) -> 0
C95: H. Indirect Costs
C96: UNC Charlotte's Facilities and Administrative Costs (F&A) | E96: 0.54 | L96: =L101*$E$96 -> 0 | M96: =M101*$E$96 -> 0 | N96: =N101*$E$96 -> 0 | O96: =O101*$E$96 -> 0 | P96: =P101*$E$96 -> 0 | Q96: 0
B97: 75010 | C97: Sponsor F&A Rate | E97: =IF(D6="No",0,H6) -> 0.54 | L97: =L101*$E$97 -> 0 | M97: =M101*$E$97 -> 0 | N97: =N101*$E$97 -> 0 | O97: =O101*$E$97 -> 0 | P97: =P101*$E$97 -> 0 | Q97: =SUM(L97:P97) -> 0
B98: Rounding Adjustment | C98: Rounding Adjustment | Q98: =SUM(L98:P98) -> 0
C99: I. Total Direct and Indirect Costs | L99: =L93+L97+L98 -> 0 | M99: =M93+M97+M98 -> 0 | N99: =N93+N97+N98 -> 0 | O99: =O93+O97+O98 -> 0 | P99: =P93+P97+P98 -> 0 | Q99: =SUM(L99:P99) -> 0
C101: MTDC Base | L101: =SUMIFS(L48:L90,$A48:$A90,"Y") -> 0 | M101: =SUMIFS(M48:M90,$A48:$A90,"Y") -> 0 | N101: =SUMIFS(N48:N90,$A48:$A90,"Y") -> 0 | O101: =SUMIFS(O48:O90,$A48:$A90,"Y") -> 0 | P101: =SUMIFS(P48:P90,$A48:$A90,"Y") -> 0 | Q101: =SUM(L101:P101) -> 0
C102: Non-MTDC Direct Costs | L102: =SUMIFS(L$48:L$90,$A48:$A90,"N") -> 0 | M102: =SUMIFS(M$48:M$90,$A48:$A90,"N") -> 0 | N102: =SUMIFS(N$48:N$90,$A48:$A90,"N") -> 0 | O102: =SUMIFS(O$48:O$90,$A48:$A90,"N") -> 0 | P102: =SUMIFS(P$48:P$90,$A48:$A90,"N") -> 0 | Q102: =SUM(L102:P102) -> 0
C104: Unrecovered F&A | L104: =L96-L97 -> 0 | M104: =M96-M97 -> 0 | N104: =N96-N97 -> 0 | O104: =O96-O97 -> 0 | P104: =P96-P97 -> 0 | Q104: =SUM(L104:P104) -> 0
C105: BUDGET COMMENTS

Sheet Budget Worksheet (2) (hidden)
A1: **DO NOT DELETE. This sheet is used for Macros on the main budget worksheet | C1: Budget Worksheet | D1: IPF 21-0000 | E1: *Enter/select budget information in blue cells only | I1: Salary Cap? | J1: ='Budget Worksheet'!J2 -> No | K1: NIH Modular Budget? | L1: ='Budget Worksheet'!K2 -> No
C2: Principal Investigator: | D2: PI - NAME | O2: Total Direct & | P2: Indirect Costs | Q2: =SUM(L97:P97) -> 0
C3: Sponsor: | D3: NIH | I3: Project Start Date | J3: Project End Date | K3: Pre Escalate Key Personnel? | L3: Esc Factor Key Personnel | M3: Pre Escalate Other Personnel? | N3: Esc Factor Other Personnel | O3: Pre Escalate Students? | P3: Esc Factor Students | Q3: Tuition & Fees Esc Factor
C4: Program:
C5: Pre Award Budget Administrator:
C6: Sponsor F&A Allowed? | D6: Yes | E6: Sponsor F&A rate: | H6: 0.51 | I6: 2020-01-01 | J6: 2022-12-31 | K6: ='Budget Worksheet'!K6 -> Y | L6: ='Budget Worksheet'!L6 -> 0.025 | M6: ='Budget Worksheet'!M6 -> Y | N6: ='Budget Worksheet'!N6 -> 0.025 | O6: ='Budget Worksheet'!O6 -> N | P6: ='Budget Worksheet'!P6 -> 0.03 | Q6: ='Budget Worksheet'!Q6 -> 0.03
A8: F & A? | B8: Appointment Months | C8: Categories | D8: Base Salary | F8: Effort Mos Yr 1 | G8: Effort Mos Yr 2 | H8: Effort Mos Yr 3 | I8: Effort Mos Yr 4 | J8: Effort Mos Yr 5 | K8: Fringe Factor | L8: Year 1 | M8: Year 2 | N8: Year 3 | O8: Year 4 | P8: Year 5 | Q8: Total
C9: A. Salaries and Wages
C10: Senior Personnel:
A11: =INDIRECT(ADDRESS(ROW()-6,COLUMN()))+1 -> 1 | C11: CO-PI - NAME | F11: =IF(K6="n",D11,D11*(1+$L$6)) -> 0 | G11: =F11*(1+$L$6) -> 0 | H11: =G11*(1+$L$6) -> 0 | I11: 0 | J11: 0
C12: =VLOOKUP($B11,'Look ups'!$A$18:$B$23,2,FALSE) -> - | K12: FF | L12: =IFERROR((IF(AND($J$2="Yes",($D11*(IF($K$6="Y",($L$6+1),1)))>((VLOOKUP($B11,'Look ups'!$A$26:$B$30,2,FALSE)))),(VLOOKUP($B11,'Look ups'!$A$26:$B$30,2,FALSE)/$B11)*F12,(($D11/$B11)*F12*(IF($K$6="Y",($L$6+1),1))))),0) -> 0 | M12: =IFERROR((IF(AND('Budget Worksheet'!$J$2="Yes",($D11*(IF($K$6="Y",($L$6+1)^2,($L$6+1)^1)))>((VLOOKUP($B11,'Look ups'!$A$26:$B$30,2,FALSE)))),(VLOOKUP($B11,'Look ups'!$A$26:$B$30,2,FALSE)/$B11)*G12,(($D11/$B11)*G12*(IF($K$6="Y",($L$6+1)^2,($L$6+1)^1))))),0) -> 0 | N12: =IFERROR((IF(AND('Budget Worksheet'!$J$2="Yes",($D11*(IF($K$6="Y",($L$6+1)^3,($L$6+1)^2)))>((VLOOKUP($B11,'Look ups'!$A$26:$B$30,2,FALSE)))),(VLOOKUP($B11,'Look ups'!$A$26:$B$30,2,FALSE)/$B11)*H12,(($D11/$B11)*H12*(IF($K$6="Y",($L$6+1)^3,($L$6+1)^2))))),0) -> 0 | O12: =IFERROR((IF(AND('Budget Worksheet'!$J$2="Yes",($D11*(IF($K$6="Y",($L$6+1)^4,($L$6+1)^3)))>((VLOOKUP($B11,'Look ups'!$A$26:$B$30,2,FALSE)))),(VLOOKUP($B11,'Look ups'!$A$26:$B$30,2,FALSE)/$B11)*I12,(($D11/$B11)*I12*(IF($K$6="Y",($L$6+1)^4,($L$6+1)^3))))),0) -> 0 | P12: =IFERROR((IF(AND('Budget Worksheet'!$J$2="Yes",($D11*(IF($K$6="Y",($L$6+1)^5,($L$6+1)^4)))>((VLOOKUP($B11,'Look ups'!$A$26:$B$30,2,FALSE)))),(VLOOKUP($B11,'Look ups'!$A$26:$B$30,2,FALSE)/$B11)*J12,(($D11/$B11)*J12*(IF($K$6="Y",($L$6+1)^5,($L$6+1)^4))))),0) -> 0 | Q12: =SUM(L12:P12) -> 0
C13: Summer Salary | K13: FF | L13: =IFERROR(IF($C12="Calendar Year Salary",0,IF(AND($J$2="Yes",($D11*IF($K$6="Y",$L$6+1,1))>((VLOOKUP($B11,'Look ups'!$A$26:$B$30,2,FALSE)))),(VLOOKUP($B11,'Look ups'!$A$26:$B$30,2,FALSE)/$B11)*F13,(($D11/$B11)*F13)*IF($K$6="Y",($L$6+1),1))),0) -> 0 | M13: =IFERROR(IF($C12="Calendar Year Salary",0,IF(AND($J$2="Yes",($D11*(IF($K$6="Y",($L$6+1)^2,($L$6+1)^1)))>((VLOOKUP($B11,'Look ups'!$A$26:$B$30,2,FALSE)))),(VLOOKUP($B11,'Look ups'!$A$26:$B$30,2,FALSE)/$B11)*G13,(($D11/$B11)*G13*(IF($K$6="Y",($L$6+1)^2,($L$6+1)^1))))),0) -> 0 | N13: =IFERROR(IF($C12="Calendar Year Salary",0,IF(AND($J$2="Yes",($D11*(IF($K$6="Y",($L$6+1)^3,($L$6+1)^2)))>((VLOOKUP($B11,'Look ups'!$A$26:$B$30,2,FALSE)))),(VLOOKUP($B11,'Look ups'!$A$26:$B$30,2,FALSE)/$B11)*H13,(($D11/$B11)*H13*(IF($K$6="Y",($L$6+1)^3,($L$6+1)^2))))),0) -> 0 | O13: =IFERROR(IF($C12="Calendar Year Salary",0,IF(AND($J$2="Yes",($D11*(IF($K$6="Y",($L$6+1)^4,($L$6+1)^3)))>((VLOOKUP($B11,'Look ups'!$A$26:$B$30,2,FALSE)))),(VLOOKUP($B11,'Look ups'!$A$26:$B$30,2,FALSE)/$B11)*I13,(($D11/$B11)*I13*(IF($K$6="Y",($L$6+1)^4,($L$6+1)^3))))),0) -> 0 | P13: =IFERROR(IF($C12="Calendar Year Salary",0,IF(AND('Budget Worksheet'!$J$2="Yes",($D11*(IF($K$6="Y",($L$6+1)^5,($L$6+1)^4)))>((VLOOKUP($B11,'Look ups'!$A$26:$B$30,2,FALSE)))),(VLOOKUP($B11,'Look ups'!$A$26:$B$30,2,FALSE)/$B11)*J13,(($D11/$B11)*J13*(IF($K$6="Y",($L$6+1)^5,($L$6+1)^4))))),0) -> 0 | Q13: =SUM(L13:P13) -> 0
J14: Salary Subtotal: | L14: =SUM(L12:L13) -> 0 | M14: =SUM(M12:M13) -> 0 | N14: 0 | O14: 0 | P14: 0 | Q14: =SUM(L14:P14) -> 0
C15: Total Hours: | D15: =SUM(F15:J15) -> 0 | F15: =IF($C12="Calendar Year Salary",(F12-0)*173.3333,SUM(F12:F13)*173.3333) -> 0 | G15: =IF($C12="Calendar Year Salary",(G12-0)*173.3333,SUM(G12:G13)*173.3333) -> 0 | H15: =IF($C12="Calendar Year Salary",(H12-0)*173.3333,SUM(H12:H13)*173.3333) -> 0 | I15: =IF($C12="Calendar Year Salary",(I12-0)*173.3333,SUM(I12:I13)*173.3333) -> 0 | J15: =IF($C12="Calendar Year Salary",(J12-0)*173.3333,SUM(J12:J13)*173.3333) -> 0 | K15: Fringe | L15: =IFERROR(VLOOKUP($K12,FF,3,FALSE)*(L12+L13),"") -> 0 | M15: =IFERROR(VLOOKUP($K12,FF,4,FALSE)*(M12+M13),"") -> 0 | N15: =IFERROR(VLOOKUP($K12,FF,5,FALSE)*(N12+N13),"") -> 0 | O15: =IFERROR(VLOOKUP($K12,FF,6,FALSE)*(O12+O13),"") -> 0 | P15: =IFERROR(VLOOKUP($K12,FF,7,FALSE)*(P12+P13),"") -> 0 | Q15: =SUM(L15:P15) -> 0
A17: Click button for additional Senior Personnel
A19: =INDIRECT(ADDRESS(ROW()-3,COLUMN()))+1 -> 1 | C19: Select Position | K19: =IFERROR(VLOOKUP(C19,OPFringe,2,FALSE),"") ->  | L19: =IFERROR((($D19/$B19)*F19)*IF($M$6="Y",$N$6+1,1),0) -> 0 | M19: =IFERROR((($D19/$B19)*G19)*IF($M$6="Y",($N$6+1)^2,($N$6+1)),0) -> 0 | N19: =IFERROR((($D19/$B19)*H19)*IF($M$6="Y",($N$6+1)^3,($N$6+1)^2),0) -> 0 | O19: =IFERROR((($D19/$B19)*I19)*IF($M$6="Y",($N$6+1)^4,($N$6+1)^3),0) -> 0 | P19: =IFERROR((($D19/$B19)*J19)*IF($M$6="Y",($N$6+1)^5,($N$6+1)^4),0) -> 0 | Q19: =SUM(L19:P19) -> 0
C20: Total Hours: | D20: =SUM(F20:J20) -> 0 | F20: =F19*173.3333 -> 0 | G20: =G19*173.3333 -> 0 | H20: =H19*173.3333 -> 0 | I20: =I19*173.3333 -> 0 | J20: =J19*173.3333 -> 0 | K20: Fringe | L20: =IFERROR(L19*VLOOKUP($K19,FringeFactor,3,FALSE),0) -> 0 | M20: =IFERROR(M19*VLOOKUP($K19,FringeFactor,4,FALSE),0) -> 0 | N20: =IFERROR(N19*VLOOKUP($K19,FringeFactor,5,FALSE),0) -> 0 | O20: =IFERROR(O19*VLOOKUP($K19,FringeFactor,6,FALSE),0) -> 0 | P20: =IFERROR(P19*VLOOKUP($K19,FringeFactor,7,FALSE),0) -> 0 | Q20: =SUM(L20:P20) -> 0
A22: Click button for additional Other Personnel
D24: Click here for Tuition Section | F24: Enter number of students/year below
A25: =INDIRECT(ADDRESS(ROW()-10,COLUMN()))+1 -> 1 | C25: Ph.D. Grad Student | K25: =MAX(F25:J25) -> 0
C26: GS Fall Semester | K26: =IFERROR(VLOOKUP($C26,OPFringe,2,FALSE),"") -> GS | L26: =IFERROR((($D25/$B25)*F26)*IF($O$6="Y",$P$6+1,1),0) -> 0 | M26: =IFERROR((($D25/$B25)*G26)*($P$6+1),0) -> 0 | N26: =IFERROR(((($D25/$B25)*H26)*($P$6+1)^2),0) -> 0 | O26: =IFERROR(((($D25/$B25)*I26)*($P$6+1)^3),0) -> 0 | P26: =IFERROR(((($D25/$B25)*J26)*($P$6+1)^4),0) -> 0 | Q26: =SUM(L26:P26) -> 0
C27: GS Spring Semester | D27: Enter effort here: | K27: =IFERROR(VLOOKUP(C27,OPFringe,2,FALSE),"") -> GS | L27: =IFERROR((($D25/$B25)*F27)*IF($O$6="Y",$P$6+1,1),0) -> 0 | M27: =IFERROR((($D25/$B25)*G27)*($P$6+1),0) -> 0 | N27: =IFERROR(((($D25/$B25)*H27)*($P$6+1)^2),0) -> 0 | O27: =IFERROR(((($D25/$B25)*I27)*($P$6+1)^3),0) -> 0 | P27: =IFERROR(((($D25/$B25)*J27)*($P$6+1)^4),0) -> 0 | Q27: =SUM(L27:P27) -> 0
B28: (20 hrs./week FT) | C28: GS Summer | K28: =IFERROR(VLOOKUP(C28,OPFringe,2,FALSE),"") -> GSS | L28: =IFERROR((($D25/$B25)*F28)*IF($O$6="Y",$P$6+1,1),0) -> 0 | M28: =IFERROR((($D25/$B25)*G28)*($P$6+1),0) -> 0 | N28: =IFERROR(((($D25/$B25)*H28)*($P$6+1)^2),0) -> 0 | O28: =IFERROR(((($D25/$B25)*I28)*($P$6+1)^3),0) -> 0 | P28: =IFERROR(((($D25/$B25)*J28)*($P$6+1)^4),0) -> 0 | Q28: =SUM(L28:P28) -> 0
C29: Total Effort Months | F29: =SUM(F26:F28) -> 0 | G29: =SUM(G26:G28) -> 0 | H29: =SUM(H26:H28) -> 0 | I29: =SUM(I26:I28) -> 0 | J29: =SUM(J26:J28) -> 0 | L29: =SUM(L26:L28) -> 0 | M29: =SUM(M26:M28) -> 0 | N29: 0 | O29: 0 | P29: 0 | Q29: 0
C30: Total Hours: | D30: =SUM(F30:J30) -> 0 | F30: =F29*(173.3333/2) -> 0 | G30: =G29*(173.3333/2) -> 0 | H30: 0 | I30: 0 | J30: 0 | K30: Fringe | L30: =IFERROR(SUM(L26*VLOOKUP($K26,FringeFactor,3,FALSE),L27*VLOOKUP($K27,FringeFactor,3,FALSE),L28*VLOOKUP($K28,FringeFactor,3,FALSE)),"") -> 0 | M30: =IFERROR(SUM(M26*VLOOKUP($K26,FringeFactor,3,FALSE),M27*VLOOKUP($K27,FringeFactor,3,FALSE),M28*VLOOKUP($K28,FringeFactor,3,FALSE)),"") -> 0 | N30: =IFERROR(SUM(N26*VLOOKUP($K26,FringeFactor,3,FALSE),N27*VLOOKUP($K27,FringeFactor,3,FALSE),N28*VLOOKUP($K28,FringeFactor,3,FALSE)),"") -> 0 | O30: =IFERROR(SUM(O26*VLOOKUP($K26,FringeFactor,3,FALSE),O27*VLOOKUP($K27,FringeFactor,3,FALSE),O28*VLOOKUP($K28,FringeFactor,3,FALSE)),"") -> 0 | P30: =IFERROR(SUM(P26*VLOOKUP($K26,FringeFactor,3,FALSE),P27*VLOOKUP($K27,FringeFactor,3,FALSE),P28*VLOOKUP($K28,FringeFactor,3,FALSE)),"") -> 0 | Q30: =SUM(L30:P30) -> 0
C31: Include GS Health Insurance Premium? | D31: Yes | K31: HIP | L31: =SUM(IF(AND($B25>0,$D31="Yes",F26>0),(HIP/2)*F25,0),IF(AND($B25>0,$D31="Yes",F27>0),(HIP/2)*F25,0)) -> 0 | M31: =SUM(IF(AND($B25>0,$D31="Yes",G26>0),(HIP/2)*G25*(1+HIPI),0),IF(AND($B25>0,$D31="Yes",G27>0),(HIP/2)*G25*(1+HIPI),0)) -> 0 | N31: =SUM(IF(AND($B25>0,$D31="Yes",H26>0),(HIP/2)*H25*(1+HIPI)^2,0),IF(AND($B25>0,$D31="Yes",H27>0),(HIP/2)*H25*(1+HIPI)^2,0)) -> 0 | O31: =SUM(IF(AND($B25>0,$D31="Yes",I26>0),(HIP/2)*I25*(1+HIPI)^3,0),IF(AND($B25>0,$D31="Yes",I27>0),(HIP/2)*I25*(1+HIPI)^3,0)) -> 0 | P31: =SUM(IF(AND($B25>0,$D31="Yes",J26>0),(HIP/2)*J25*(1+HIPI)^4,0),IF(AND($B25>0,$D31="Yes",J27>0),(HIP/2)*J25*(1+HIPI)^4,0)) -> 0 | Q31: =SUM(L31:P31) -> 0
J32: GS Fringe-HIP Total: | L32: =SUM(L30:L31) -> 0 | M32: =SUM(M30:M31) -> 0 | N32: 0 | O32: 0 | P32: 0 | Q32: =SUM(L32:P32) -> 0
A34: Click button for additional Grad Students
F36: Enter number of students/year below
A37: =INDIRECT(ADDRESS(ROW()-8,COLUMN()))+1 -> 1 | C37: Undergraduate Student
C38: US Fall Semester | K38: =IFERROR(VLOOKUP(C38,OPFringe,2,FALSE),"") -> US | L38: =IFERROR((($D37/$B37)*F38)*IF($O$6="Y",$P$6+1,1),0) -> 0 | M38: =IFERROR((($D37/$B37)*G38)*($P$6+1),0) -> 0 | N38: =IFERROR(((($D37/$B37)*H38)*($P$6+1)^2),0) -> 0 | O38: =IFERROR(((($D37/$B37)*I38)*($P$6+1)^3),0) -> 0 | P38: =IFERROR(((($D37/$B37)*J38)*($P$6+1)^4),0) -> 0 | Q38: =SUM(L38:P38) -> 0
C39: US Spring Semester | D39: Enter effort here: | K39: =IFERROR(VLOOKUP(C39,OPFringe,2,FALSE),"") -> US | L39: =IFERROR((($D37/$B37)*F39)*IF($O$6="Y",$P$6+1,1),0) -> 0 | M39: =IFERROR((($D37/$B37)*G39)*($P$6+1),0) -> 0 | N39: =IFERROR(((($D37/$B37)*H39)*($P$6+1)^2),0) -> 0 | O39: =IFERROR(((($D37/$B37)*I39)*($P$6+1)^3),0) -> 0 | P39: =IFERROR(((($D37/$B37)*J39)*($P$6+1)^4),0) -> 0 | Q39: =SUM(L39:P39) -> 0
C40: US Summer | K40: =IFERROR(VLOOKUP(C40,OPFringe,2,FALSE),"") -> USS | L40: =IFERROR((($D37/$B37)*F40)*IF($O$6="Y",$P$6+1,1),0) -> 0 | M40: =IFERROR((($D37/$B37)*G40)*($P$6+1),0) -> 0 | N40: =IFERROR(((($D37/$B37)*H40)*($P$6+1)^2),0) -> 0 | O40: =IFERROR(((($D37/$B37)*I40)*($P$6+1)^3),0) -> 0 | P40: =IFERROR(((($D37/$B37)*J40)*($P$6+1)^4),0) -> 0 | Q40: =SUM(L40:P40) -> 0
C41: Total Effort Months | F41: =SUM(F38:F40) -> 0 | G41: =SUM(G38:G40) -> 0 | H41: =SUM(H38:H40) -> 0 | I41: =SUM(I38:I40) -> 0 | J41: =SUM(J38:J40) -> 0 | L41: =SUM(L38:L40) -> 0 | M41: =SUM(M38:M40) -> 0 | N41: =SUM(N38:N40) -> 0 | O41: =SUM(O38:O40) -> 0 | P41: =SUM(P38:P40) -> 0 | Q41: =SUM(L41:P41) -> 0
C42: Total Hours: | D42: =SUM(F42:J42) -> 0 | F42: =F41*(173.3333/2) -> 0 | G42: =G41*(173.3333/2) -> 0 | H42: 0 | I42: 0 | J42: 0 | K42: Fringe | L42: =IFERROR(SUM(L38*VLOOKUP($K38,FringeFactor,3,FALSE),L39*VLOOKUP($K39,FringeFactor,3,FALSE),L40*VLOOKUP($K40,FringeFactor,3,FALSE)),"") -> 0 | M42: =IFERROR(SUM(M38*VLOOKUP($K38,FringeFactor,3,FALSE),M39*VLOOKUP($K39,FringeFactor,3,FALSE),M40*VLOOKUP($K40,FringeFactor,3,FALSE)),"") -> 0 | N42: =IFERROR(SUM(N38*VLOOKUP($K38,FringeFactor,3,FALSE),N39*VLOOKUP($K39,FringeFactor,3,FALSE),N40*VLOOKUP($K40,FringeFactor,3,FALSE)),"") -> 0 | O42: =IFERROR(SUM(O38*VLOOKUP($K38,FringeFactor,3,FALSE),O39*VLOOKUP($K39,FringeFactor,3,FALSE),O40*VLOOKUP($K40,FringeFactor,3,FALSE)),"") -> 0 | P42: =IFERROR(SUM(P38*VLOOKUP($K38,FringeFactor,3,FALSE),P39*VLOOKUP($K39,FringeFactor,3,FALSE),P40*VLOOKUP($K40,FringeFactor,3,FALSE)),"") -> 0 | Q42: =SUM(L42:P42) -> 0
A44: Click button for additional Undergrad Students
A47: Y | C47: Total Salary | L47: =SUMIF($K$12:$L$46,"us",L$12:L$46)+SUMIF($K$12:$L$46,"uss",L$12:L$46)+SUMIF($K$12:$L$46,"ff",L$12:L$46)+SUMIF($K$12:$L$46,"gs",L$12:L$46)+SUMIF($K$12:$L$46,"gss",L$12:L$46)+SUMIF($K$12:$L$46,"ts",L$12:L$46)+SUMIF($K$12:$L$46,"shra",L$12:L$46)+SUMIF($K$12:$L$46,"ehra",L$12:L$46)+SUMIF($K$12:$L$46,"pd",L$12:L$46) -> 0 | M47: =SUMIF($K$12:$L$46,"us",M$12:M$46)+SUMIF($K$12:$L$46,"uss",M$12:M$46)+SUMIF($K$12:$L$46,"ff",M$12:M$46)+SUMIF($K$12:$L$46,"gs",M$12:M$46)+SUMIF($K$12:$L$46,"gss",M$12:M$46)+SUMIF($K$12:$L$46,"ts",M$12:M$46)+SUMIF($K$12:$L$46,"shra",M$12:M$46)+SUMIF($K$12:$L$46,"ehra",M$12:M$46)+SUMIF($K$12:$L$46,"pd",M$12:M$46) -> 0 | N47: =SUMIF($K$12:$L$46,"us",N$12:N$46)+SUMIF($K$12:$L$46,"uss",N$12:N$46)+SUMIF($K$12:$L$46,"ff",N$12:N$46)+SUMIF($K$12:$L$46,"gs",N$12:N$46)+SUMIF($K$12:$L$46,"gss",N$12:N$46)+SUMIF($K$12:$L$46,"ts",N$12:N$46)+SUMIF($K$12:$L$46,"shra",N$12:N$46)+SUMIF($K$12:$L$46,"ehra",N$12:N$46)+SUMIF($K$12:$L$46,"pd",N$12:N$46) -> 0 | O47: =SUMIF($K$12:$L$46,"us",O$12:O$46)+SUMIF($K$12:$L$46,"uss",O$12:O$46)+SUMIF($K$12:$L$46,"ff",O$12:O$46)+SUMIF($K$12:$L$46,"gs",O$12:O$46)+SUMIF($K$12:$L$46,"gss",O$12:O$46)+SUMIF($K$12:$L$46,"ts",O$12:O$46)+SUMIF($K$12:$L$46,"shra",O$12:O$46)+SUMIF($K$12:$L$46,"ehra",O$12:O$46)+SUMIF($K$12:$L$46,"pd",O$12:O$46) -> 0 | P47: =SUMIF($K$12:$L$46,"us",P$12:P$46)+SUMIF($K$12:$L$46,"uss",P$12:P$46)+SUMIF($K$12:$L$46,"ff",P$12:P$46)+SUMIF($K$12:$L$46,"gs",P$12:P$46)+SUMIF($K$12:$L$46,"gss",P$12:P$46)+SUMIF($K$12:$L$46,"ts",P$12:P$46)+SUMIF($K$12:$L$46,"shra",P$12:P$46)+SUMIF($K$12:$L$46,"ehra",P$12:P$46)+SUMIF($K$12:$L$46,"pd",P$12:P$46) -> 0 | Q47: =SUM(L47:P47) -> 0
A48: Y | C48: Total Fringes | L48: =SUMIF($K$12:$L$46,"Fringe",L$12:L$46)+SUMIF($K$12:$L$46,"HIP",L$12:L$46) -> 0 | M48: =SUMIF($K$12:$L$46,"Fringe",M$12:M$46)+SUMIF($K$12:$L$46,"HIP",M$12:M$46) -> 0 | N48: =SUMIF($K$12:$L$46,"Fringe",N$12:N$46)+SUMIF($K$12:$L$46,"HIP",N$12:N$46) -> 0 | O48: =SUMIF($K$12:$L$46,"Fringe",O$12:O$46)+SUMIF($K$12:$L$46,"HIP",O$12:O$46) -> 0 | P48: =SUMIF($K$12:$L$46,"Fringe",P$12:P$46)+SUMIF($K$12:$L$46,"HIP",P$12:P$46) -> 0 | Q48: =SUM(L48:P48) -> 0
C49: Total Salary and Fringes | L49: =SUM(L47:L48) -> 0 | M49: =SUM(M47:M48) -> 0 | N49: =SUM(N47:N48) -> 0 | O49: =SUM(O47:O48) -> 0 | P49: =SUM(P47:P48) -> 0 | Q49: =SUM(L49:P49) -> 0
C51: C. Equipment
A52: N | C52: Capital Equipment (purchased) | Q52: =SUM(L52:P52) -> 0
A53: N | C53: Capital Equipment (constructed) | Q53: =SUM(L53:P53) -> 0
C54: D. Travel
A55: Y | C55: Travel Domestic | Q55: 0
A56: Y | C56: Travel Foreign | Q56: 0
C57: E. Participant/Trainee Support Costs
A58: N | C58: Tuition/Fees/Health Insurance | Q58: 0
A59: N | C59: Stipends | Q59: 0
A60: N | C60: Participant Travel | Q60: 0
A61: N | C61: Travel Domestic | Q61: 0
A62: N | C62: Travel Foreign | Q62: 0
A63: N | C63: Subsistence | Q63: 0
A64: N | C64: Other | Q64: 0
A65: N | C65: Other | Q65: 0
A66: N | C66: Supplies | Q66: 0
C67: F. Other Direct Costs
A68: Y | C68: 1. Materials and Supplies | Q68: 0
A69: Y | C69: 2. Publication Costs | Q69: 0
A70: Y | C70: 3. Consultant Services | Q70: 0
A71: Y | C71: 4. ADP/Computer Services | Q71: 0
C72: 5. Subawards/Consortium/Contractual Costs
A73: Y | C73: Subcontracts < 25,000 | L73: =Subcontracts!C20 -> 0 | M73: =Subcontracts!D20 -> 0 | N73: =Subcontracts!E20 -> 0 | O73: =Subcontracts!F20 -> 0 | P73: =Subcontracts!G20 -> 0 | Q73: 0
A74: N | C74: Subcontracts> 25,000 | L74: =Subcontracts!C22 -> 0 | M74: =Subcontracts!D22 -> 0 | N74: =Subcontracts!E22 -> 0 | O74: =Subcontracts!F22 -> 0 | P74: =Subcontracts!G22 -> 0 | Q74: 0
A75: N | C75: 6. Facility Rental / NIC | Q75: 0
A76: Y | C76: 7. Repair & Maint - Equipment | Q76: 0
A77: Y | C77: 8. Other Direct | Q77: 0
A78: N | B78: =INDIRECT(ADDRESS(ROW()+1,COLUMN()))+1 -> 1 | C78: Tuition Only (In-state) | L78: =($D78/9)*SUM(F26:F27) -> 0 | M78: =(($D78/9)*($Q$6+1))*SUM(G26:G27) -> 0 | N78: =(($D78/9)*($Q$6+1)^2)*SUM(H26:H27) -> 0 | O78: =(($D78/9)*($Q$6+1)^3)*SUM(I26:I27) -> 0 | P78: =(($D78/9)*($Q$6+1)^4)*SUM(J26:J27) -> 0 | Q78: 0
A79: Y | B79: =IFERROR(VLOOKUP(C79,'Look ups'!$M$4:$N$42,2,FALSE),"") -> 0 | C79: - | Q79: 0
A80: Y | B80: =IFERROR(VLOOKUP(C80,'Look ups'!$M$4:$N$42,2,FALSE),"") -> 0 | C80: - | Q80: 0
A81: Y | B81: =IFERROR(VLOOKUP(C81,'Look ups'!$M$4:$N$42,2,FALSE),"") -> 0 | C81: - | Q81: 0
A82: Y | B82: =IFERROR(VLOOKUP(C82,'Look ups'!$M$4:$N$42,2,FALSE),"") -> 0 | C82: - | Q82: 0
A83: Y | B83: =IFERROR(VLOOKUP(C83,'Look ups'!$M$4:$N$42,2,FALSE),"") -> 0 | C83: - | Q83: 0
A84: Y | B84: =IFERROR(VLOOKUP(C84,'Look ups'!$M$4:$N$42,2,FALSE),"") -> 0 | C84: - | Q84: 0
A85: Y | B85: =IFERROR(VLOOKUP(C85,'Look ups'!$M$4:$N$42,2,FALSE),"") -> 0 | C85: - | Q85: 0
A86: Y | B86: =IFERROR(VLOOKUP(C86,'Look ups'!$M$4:$N$42,2,FALSE),"") -> 0 | C86: - | Q86: 0
A87: Y | B87: =IFERROR(VLOOKUP(C87,'Look ups'!$M$4:$N$42,2,FALSE),"") -> 0 | C87: - | Q87: 0
A88: Y | B88: =IFERROR(VLOOKUP(C88,'Look ups'!$M$4:$N$42,2,FALSE),"") -> 0 | C88: - | Q88: 0
C89: Total Non-personnel Costs | L89: =SUM(L52:L88) -> 0 | M89: 0 | N89: 0 | O89: 0 | P89: 0 | Q89: 0
C91: G. Total Direct Costs | L91: =SUM(L89,L49) -> 0 | M91: =SUM(M89,M49) -> 0 | N91: =SUM(N89,N49) -> 0 | O91: =SUM(O89,O49) -> 0 | P91: =SUM(P89,P49) -> 0 | Q91: =SUM(L91:P91) -> 0
C93: H. Indirect Costs
C94: Facilities and Administrative Costs (F&A) | E94: 0.51 | L94: =L99*$E$94 -> 0 | M94: =M99*$E$94 -> 0 | N94: =N99*$E$94 -> 0 | O94: =O99*$E$94 -> 0 | P94: =P99*$E$94 -> 0 | Q94: 0
B95: 75010 | C95: Sponsor F&A Rate | E95: =IF(D6="No",0,H6) -> 0.51 | L95: =L99*$E$95 -> 0 | M95: =M99*$E$95 -> 0 | N95: =N99*$E$95 -> 0 | O95: =O99*$E$95 -> 0 | P95: =P99*$E$95 -> 0 | Q95: =SUM(L95:P95) -> 0
B96: Rounding Adjustment | C96: Rounding Adjustment | Q96: =SUM(L96:P96) -> 0
C97: I. Total Direct and Indirect Costs | L97: =L91+L95+L96 -> 0 | M97: =M91+M95+M96 -> 0 | N97: =N91+N95+N96 -> 0 | O97: =O91+O95+O96 -> 0 | P97: =P91+P95+P96 -> 0 | Q97: =SUM(L97:P97) -> 0
C99: MTDC Base | L99: =SUMIFS(L47:L88,$A47:$A88,"Y") -> 0 | M99: =SUMIFS(M47:M88,$A47:$A88,"Y") -> 0 | N99: =SUMIFS(N47:N88,$A47:$A88,"Y") -> 0 | O99: =SUMIFS(O47:O88,$A47:$A88,"Y") -> 0 | P99: =SUMIFS(P47:P88,$A47:$A88,"Y") -> 0 | Q99: =SUM(L99:P99) -> 0
C100: Non-MTDC Direct Costs | L100: =SUMIFS(L$47:L$88,$A47:$A88,"N") -> 0 | M100: =SUMIFS(M$47:M$88,$A47:$A88,"N") -> 0 | N100: =SUMIFS(N$47:N$88,$A47:$A88,"N") -> 0 | O100: =SUMIFS(O$47:O$88,$A47:$A88,"N") -> 0 | P100: =SUMIFS(P$47:P$88,$A47:$A88,"N") -> 0 | Q100: =SUM(L100:P100) -> 0
C102: Unrecovered F&A | L102: =L94-L95 -> 0 | M102: =M94-M95 -> 0 | N102: =N94-N95 -> 0 | O102: =O94-O95 -> 0 | P102: =P94-P95 -> 0 | Q102: =SUM(L102:P102) -> 0
C103: BUDGET COMMENTS
